Workbook

Sheet 2 Heated Sides Planar
C2: Peroxide Cured Silicones ONLY! | AJ2: 1/T(K) | AK2: Ln (1/(t90 - ts1)) | AL2: Ln(1/ts(1)) | AM2: Slope/Interc | AN2: Slope/Interc
AJ3: =1/(D24+273.15) -> 0.002369387513 | AK3: =LN(1/(G24-F24)) -> -7.014185223 | AL3: =LN(1/(F24)) -> -5.009968405 | AM3: =SLOPE(AK3:AK5,AJ3:AJ5) -> -15664.77382 | AN3: =SLOPE(AL3:AL5,AJ3:AJ5) -> -12327.11386
B4: Imp | C4: Metric | AJ4: =1/(D25+273.15) -> 0.002279202279 | AK4: =LN(1/(G25-F25)) -> -5.892251762 | AL4: =LN(1/(F25)) -> -3.710151589 | AM4: =INTERCEPT(AK3:AK5,AJ3:AJ5) -> 30.00748462 | AN4: =INTERCEPT(AL3:AL5,AJ3:AJ5) -> 24.25870357
B5: =C5/25.4 -> 0.2362204724 | C5: 6 | D5: in, mm | E5: Thickness | AJ5: =1/(D26+273.15) -> 0.00219611288 | AK5: =LN(1/(G26-F26)) -> -4.291828367 | AL5: =LN(1/(F26)) -> -2.879198457
C6: =0.0006*C8 - 0.4448 -> 0.2752 | D6: W/m-K | E6: Thermal Conductivity, k
C7: 1450 | D7: J/kg - K | E7: Heat Capacity, cp | Z7: 55.71428571
C8: 1200 | D8: kg/m3 | E8: Density, p | Z8: 20
Z9: 55.71428571
C10: 7 | D10: # | E10: Number of nodes
B12: =(C12*9/5)+32 -> 350.6 | C12: 177 | D12: F, C | E12: Mold Temperature, TmL
B13: =(C13*9/5)+32 -> 350.6 | C13: 177 | D13: F, C | E13: Mold Temperature, TmR
B14: 69.8 | C14: 21 | D14: F, C | E14: Initial Rubber Temperature, Tr
C16: 300 | D16: sec | E16: Total T
C18: =8.3144621*-AM3 -> 130244.1682 | D18: J/mole | E18: Ea2 | F18: Activation Energy
C19: =POWER(2.71828,AM4) -> 1.076654156e+13 | D19: s-1 | E19: A2 | F19: Arrhenius Constant
C20: =8.3144621*-AN3 -> 102493.321 | D20: J/mole | E20: Ea1 | F20: Activation Energy
C21: =POWER(2.71828,AN4) -> 3.430947017e+10 | D21: s-1 | E21: A1 | F21: Arrhenius Constant
B22: 3 Temp Rheology Study (ASTM D5289)
C23: Cure Set | D23: Temperature, C | F23: ts(1), sec | G23: t(90), sec
C24: Low | D24: 148.9 | F24: 149.9 | G24: 1262.2
C25: Med | D25: 165.6 | F25: 40.86 | G25: 403.08
C26: High | D26: 182.2 | F26: 17.8 | G26: 90.9
D28: Temperature (time, x), C | S28: SOC (time, x), %
C29: time, s | D29: 0.4285714286 | E29: 1.285714286 | F29: 2.142857143 | G29: 3 | H29: 3.857142857 | I29: 4.714285714 | J29: 5.571428571 | S29: 0.4285714286 | T29: 1.285714286 | U29: 2.142857143 | V29: 3 | W29: 3.857142857 | X29: 4.714285714 | Y29: 5.571428571
C30: 0 | D30: 21 | E30: 21 | F30: 21 | G30: 21 | H30: 21 | I30: 21 | J30: 21 | S30: 0 | T30: 0 | U30: 0 | V30: 0 | W30: 0 | X30: 0 | Y30: 0
C31: 0.6 | D31: 50.32803369 | E31: 24.04321333 | F31: 21.31910366 | G31: 21.06551058 | H31: 21.31910366 | I31: 24.04321333 | J31: 50.32803369 | S31: 5.737445647e-32 | T31: 2.739069525e-39 | U31: 4.018810063e-40 | V31: 3.35520656e-40 | W31: 4.018810063e-40 | X31: 2.739069525e-39 | Y31: 5.737445647e-32
C32: 1.2 | D32: 71.90400332 | E32: 28.75425235 | F32: 22.07760247 | G32: 21.27328858 | H32: 22.07760247 | I32: 28.75425235 | J32: 71.90400332 | S32: 1.224166228e-26 | T32: 3.783817363e-37 | U32: 9.332990545e-39 | V32: 6.204547118e-39 | W32: 9.332990545e-39 | X32: 3.783817363e-37 | Y32: 1.224166228e-26
C33: 1.8 | D33: 87.96792164 | E33: 34.27142866 | F33: 23.28919224 | G33: 21.68714472 | H33: 23.28919224 | I33: 34.27142866 | J33: 87.96792164 | S33: 5.444927517e-23 | T33: 2.48911316e-35 | U33: 8.319235104e-38 | V33: 4.104284043e-38 | W33: 8.319235104e-38 | X33: 2.48911316e-35 | Y33: 5.444927517e-23
C34: 2.4 | D34: 100.0850557 | E34: 40.06662872 | F34: 24.9149321 | G34: 22.34979524 | H34: 24.9149321 | I34: 40.06662872 | J34: 100.0850557 | S34: 2.418200545e-20 | T34: 1.259312874e-33 | U34: 5.308831004e-37 | V34: 1.815356479e-37 | W34: 5.308831004e-37 | X34: 1.259312874e-33 | Y34: 2.418200545e-20
C35: 3 | D35: 109.3543801 | E35: 45.82671567 | F35: 26.89393424 | G35: 23.28268696 | H35: 26.89393424 | I35: 45.82671567 | J35: 109.3543801 | S35: 2.428374552e-18 | T35: 5.162490506e-32 | U35: 2.973817282e-36 | V35: 6.628567318e-37 | W35: 2.973817282e-36 | X35: 5.162490506e-32 | Y35: 2.428374552e-18
C36: 3.6 | D36: 116.5515661 | E36: 51.37567435 | F36: 29.16009989 | G36: 24.48929393 | H36: 29.16009989 | I36: 51.37567435 | J36: 116.5515661 | S36: 8.921581711e-17 | T36: 1.680119707e-30 | U36: 1.602404473e-35 | V36: 2.214353294e-36 | W36: 1.602404473e-35 | X36: 1.680119707e-30 | Y36: 8.921581711e-17
C37: 4.2 | D37: 122.227299 | E37: 56.62370648 | F37: 31.65064277 | G37: 25.95948729 | H37: 31.65064277 | I37: 56.62370648 | J37: 122.227299 | S37: 1.618701844e-15 | T37: 4.261822602e-29 | U37: 8.681384621e-35 | V37: 7.186869311e-36 | W37: 8.681384621e-35 | X37: 4.261822602e-29 | Y37: 1.618701844e-15
C38: 4.8 | D38: 126.7750554 | E38: 61.53412494 | F38: 34.30990125 | G38: 27.67379048 | H38: 34.30990125 | I38: 61.53412494 | J38: 126.7750554 | S38: 1.761642014e-14 | T38: 8.402551344e-28 | U38: 4.820109155e-34 | V38: 2.355581725e-35 | W38: 4.820109155e-34 | X38: 8.402551344e-28 | Y38: 1.761642014e-14
C39: 5.4 | D39: 130.4779623 | E39: 66.10197846 | F39: 37.0905464 | G39: 29.60700898 | H39: 37.0905464 | I39: 66.10197846 | J39: 130.4779623 | S39: 1.309940404e-13 | T39: 1.30051424e-26 | U39: 2.754158396e-33 | V39: 7.998954668e-35 | W39: 2.754158396e-33 | X39: 1.30051424e-26 | Y39: 1.309940404e-13
C40: 6 | D40: 133.5412973 | E40: 70.34038527 | F40: 39.9534321 | G40: 31.73108405 | H40: 39.9534321 | I40: 70.34038527 | J40: 133.5412973 | S40: 7.281880313e-13 | T40: 1.607840626e-25 | U40: 1.611990732e-32 | V40: 2.859629236e-34 | W40: 1.611990732e-32 | X40: 1.607840626e-25 | Y40: 7.281880313e-13
C41: 6.6 | D41: 136.1151096 | E41: 74.27191357 | F41: 42.86680736 | G41: 34.01719898 | H41: 42.86680736 | I41: 74.27191357 | J41: 136.1151096 | S41: 3.225919965e-12 | T41: 1.620695884e-24 | U41: 9.574689641e-32 | V41: 1.085187298e-33 | W41: 9.574689641e-32 | X41: 1.620695884e-24 | Y41: 3.225919965e-12
C42: 7.2 | D42: 138.3100277 | E42: 77.92324903 | F42: 45.80529322 | G42: 36.43724278 | H42: 45.80529322 | I42: 77.92324903 | J42: 138.3100277 | S42: 1.193148304e-11 | T42: 1.360230236e-23 | U42: 5.707498699e-31 | V42: 4.378586659e-33 | W42: 5.707498699e-31 | X42: 1.360230236e-23 | Y42: 1.193148304e-11
C43: 7.8 | D43: 140.208353 | E43: 81.3219887 | F43: 48.74883799 | G43: 38.96475903 | H43: 48.74883799 | I43: 81.3219887 | J43: 140.208353 | S43: 3.814209957e-11 | T43: 9.697844829e-23 | U43: 3.377028338e-30 | V43: 1.871471407e-32 | W43: 3.377028338e-30 | X43: 9.697844829e-23 | Y43: 3.814209957e-11
C44: 8.4 | D44: 141.8718844 | E44: 84.49479739 | F44: 51.68175486 | G44: 41.57550223 | H44: 51.68175486 | I44: 84.49479739 | J44: 141.8718844 | S44: 1.081901036e-10 | T44: 5.982221052e-22 | U44: 1.963831425e-29 | V44: 8.408243988e-32 | W44: 1.963831425e-29 | X44: 5.982221052e-22 | Y44: 1.081901036e-10
C45: 9 | D45: 143.3474661 | E45: 87.46642599 | F45: 54.59188398 | G45: 44.24770805 | H45: 54.59188398 | I45: 87.46642599 | J45: 143.3474661 | S45: 2.778670797e-10 | T45: 3.245710217e-21 | U45: 1.113222257e-28 | V45: 3.930496713e-31 | W45: 1.113222257e-28 | X45: 3.245710217e-21 | Y45: 2.778670797e-10
C46: 9.6 | D46: 144.6709441 | E46: 90.2592652 | F46: 57.46988807 | G46: 46.96216334 | H46: 57.46988807 | I46: 90.2592652 | J46: 144.6709441 | S46: 6.565041254e-10 | T46: 1.571495004e-20 | U46: 6.111597337e-28 | V46: 1.88988874e-30 | W46: 6.111597337e-28 | X46: 1.571495004e-20 | Y46: 6.565041254e-10
C47: 10.2 | D47: 145.8700067 | E47: 92.89322304 | F47: 60.30867344 | G47: 49.70214306 | H47: 60.30867344 | I47: 92.89322304 | J47: 145.8700067 | S47: 1.44494467e-09 | T47: 6.876694044e-20 | U47: 3.233848693e-27 | V47: 9.239710346e-30 | W47: 3.233848693e-27 | X47: 6.876694044e-20 | Y47: 1.44494467e-09
C48: 10.8 | D48: 146.9662378 | E48: 95.38579007 | F48: 63.10292169 | G48: 52.45326386 | H48: 63.10292169 | I48: 95.38579007 | J48: 146.9662378 | S48: 2.992721261e-09 | T48: 2.749817383e-19 | U48: 1.643577443e-26 | V48: 4.543651562e-29 | W48: 1.643577443e-26 | X48: 2.749817383e-19 | Y48: 2.992721261e-09
C49: 11.4 | D49: 147.9766122 | E49: 97.75220639 | F49: 65.84871473 | G49: 55.2032909 | H49: 65.84871473 | I49: 97.75220639 | J49: 147.9766122 | S49: 5.880938454e-09 | T49: 1.014490569e-18 | U49: 8.005524847e-26 | V49: 2.225778017e-28 | W49: 8.005524847e-26 | X49: 1.014490569e-18 | Y49: 5.880938454e-09
C50: 12 | D50: 148.9145933 | E50: 100.0056763 | F50: 68.54323683 | G50: 57.94192301 | H50: 68.54323683 | I50: 100.0056763 | J50: 148.9145933 | S50: 1.103866714e-08 | T50: 3.481957063e-18 | U50: 3.732076689e-25 | V50: 1.077225677e-27 | W50: 3.732076689e-25 | X50: 3.481957063e-18 | Y50: 1.103866714e-08
C51: 12.6 | D51: 149.7909454 | E51: 102.1575982 | F51: 71.18453897 | G51: 60.66057372 | H51: 71.18453897 | I51: 102.1575982 | J51: 149.7909454 | S51: 1.990206237e-08 | T51: 1.119860601e-17 | U51: 1.664266389e-24 | V51: 5.115953083e-27 | W51: 1.664266389e-24 | X51: 1.119860601e-17 | Y51: 1.990206237e-08
C52: 13.2 | D52: 150.6143408 | E52: 104.2177906 | F52: 73.77135291 | G52: 63.35215891 | H52: 73.77135291 | I52: 104.2177906 | J52: 150.6143408 | S52: 3.462691153e-08 | T52: 3.396194135e-17 | U52: 7.099050796e-24 | V52: 2.37128251e-26 | W52: 7.099050796e-24 | X52: 3.396194135e-17 | Y52: 3.462691153e-08
C53: 13.8 | D53: 151.3918162 | E53: 106.1947029 | F53: 76.30294477 | G53: 66.01089818 | H53: 76.30294477 | I53: 106.1947029 | J53: 151.3918162 | S53: 5.836687862e-08 | T53: 9.765148617e-17 | U53: 2.897734874e-23 | V53: 1.068198536e-25 | W53: 2.897734874e-23 | X53: 9.765148617e-17 | Y53: 5.836687862e-08
C54: 14.4 | D54: 152.1291205 | E54: 108.0956082 | F54: 78.77899971 | G54: 68.63213316 | H54: 78.77899971 | I54: 108.0956082 | J54: 152.1291205 | S54: 9.563130293e-08 | T54: 2.674792729e-16 | U54: 1.13268035e-22 | V54: 4.661955789e-25 | W54: 1.13268035e-22 | X54: 2.674792729e-16 | Y54: 9.563130293e-08
C55: 15 | D55: 152.8309801 | E55: 109.9267725 | F55: 81.199531 | G55: 71.21216456 | H55: 81.199531 | I55: 109.9267725 | J55: 152.8309801 | S55: 1.527379969e-07 | T55: 7.008644021e-16 | U55: 4.243768088e-22 | V55: 1.96677478e-24 | W55: 4.243768088e-22 | X55: 7.008644021e-16 | Y55: 1.527379969e-07
C56: 15.6 | D56: 153.501305 | E56: 111.6936047 | F56: 83.56480831 | G56: 73.74810789 | H56: 83.56480831 | I56: 111.6936047 | J56: 153.501305 | S56: 2.383780222e-07 | T56: 1.763175971e-15 | U56: 1.525678958e-21 | V56: 8.008540644e-24 | W56: 1.525678958e-21 | X56: 1.763175971e-15 | Y56: 2.383780222e-07
C57: 16.2 | D57: 154.1433492 | E57: 113.4007854 | F57: 85.875301 | G57: 76.2377672 | H57: 85.875301 | I57: 113.4007854 | J57: 154.1433492 | S57: 3.643108542e-07 | T57: 4.272375088e-15 | U57: 5.269356947e-21 | V57: 3.144598504e-23 | W57: 5.269356947e-21 | X57: 4.272375088e-15 | Y57: 3.643108542e-07
C58: 16.8 | D58: 154.7598358 | E58: 115.052378 | F58: 88.13163317 | G58: 78.67952547 | H58: 88.13163317 | I58: 115.052378 | J58: 154.7598358 | S58: 5.462096131e-07 | T58: 9.999662681e-15 | U58: 1.750562844e-20 | V58: 1.190139728e-22 | W58: 1.750562844e-20 | X58: 9.999662681e-15 | Y58: 5.462096131e-07
C59: 17.4 | D59: 155.3530574 | E59: 116.6519232 | F59: 90.334548 | G59: 81.07225024 | H59: 90.334548 | I59: 116.6519232 | J59: 155.3530574 | S59: 8.046770874e-07 | T59: 2.266379168e-14 | U59: 5.601188474e-20 | V59: 4.34133305e-22 | W59: 5.601188474e-20 | X59: 2.266379168e-14 | Y59: 8.046770874e-07
C60: 18 | D60: 155.9249545 | E60: 118.2025195 | F60: 92.48487935 | G60: 83.41521271 | H60: 92.48487935 | I60: 118.2025195 | J60: 155.9249545 | S60: 1.166454039e-06 | T60: 4.985150111e-14 | U60: 1.728328445e-19 | V60: 1.526651114e-21 | W60: 1.728328445e-19 | X60: 4.985150111e-14 | Y60: 1.166454039e-06
C61: 18.6 | D61: 156.4771794 | E61: 119.7068917 | F61: 94.58352914 | G61: 85.70801886 | H61: 94.58352914 | I61: 119.7068917 | J61: 156.4771794 | S61: 1.665841699e-06 | T61: 1.066312128e-13 | U61: 5.149611984e-19 | V61: 5.177802033e-21 | W61: 5.149611984e-19 | X61: 1.066312128e-13 | Y61: 1.665841699e-06
C62: 19.2 | D62: 157.0111473 | E62: 121.167448 | F62: 96.63144925 | G62: 87.95055098 | H62: 96.63144925 | I62: 121.167448 | J62: 157.0111473 | S62: 2.346360366e-06 | T62: 2.221885963e-13 | U62: 1.483458775e-18 | V62: 1.694774261e-20 | W62: 1.483458775e-18 | X62: 2.221885963e-13 | Y62: 2.346360366e-06
C63: 19.8 | D63: 157.5280772 | E63: 122.5863288 | F63: 98.62962704 | G63: 90.14291824 | H63: 98.62962704 | I63: 122.5863288 | J63: 157.5280772 | S63: 3.262665603e-06 | T63: 4.517334761e-13 | U63: 4.136834348e-18 | V63: 5.357548209e-20 | W63: 4.136834348e-18 | X63: 4.517334761e-13 | Y63: 3.262665603e-06
C64: 20.4 | D64: 158.0290259 | E64: 123.9654473 | F64: 100.5790738 | G64: 92.28541499 | H64: 100.5790738 | I64: 123.9654473 | J64: 158.0290259 | S64: 4.482742544e-06 | T64: 8.974057691e-13 | U64: 1.118090764e-17 | V64: 1.637099136e-19 | W64: 1.118090764e-17 | X64: 8.974057691e-13 | Y64: 4.482742544e-06
C65: 21 | D65: 158.5149151 | E65: 125.3065239 | F65: 102.4808154 | G65: 94.37848576 | H65: 102.4808154 | I65: 125.3065239 | J65: 158.5149151 | S65: 6.090397361e-06 | T65: 1.744232889e-12 | U65: 2.932315997e-17 | V65: 4.839861585e-19 | W65: 2.932315997e-17 | X65: 1.744232889e-12 | Y65: 6.090397361e-06
C66: 21.6 | D66: 158.9865541 | E66: 126.6111149 | F66: 104.3358848 | G66: 96.42269591 | H66: 104.3358848 | I66: 126.6111149 | J66: 158.9865541 | S66: 8.188062887e-06 | T66: 3.320776099e-12 | U66: 7.47068658e-17 | V66: 1.385645747e-18 | W66: 7.47068658e-17 | X66: 3.320776099e-12 | Y66: 8.188062887e-06
C67: 22.2 | D67: 159.4446579 | E67: 127.8806367 | F67: 106.1453165 | G67: 98.41870707 | H67: 106.1453165 | I67: 127.8806367 | J67: 159.4446579 | S67: 1.089993274e-05 | T67: 6.199528809e-12 | U67: 1.850971224e-16 | V67: 3.845521143e-18 | W67: 1.850971224e-16 | X67: 6.199528809e-12 | Y67: 1.089993274e-05
C68: 22.8 | D68: 159.8898627 | E68: 129.1163858 | F68: 107.910141 | G68: 100.3672566 | H68: 107.910141 | I68: 129.1163858 | J68: 159.8898627 | S68: 1.437543506e-05 | T68: 1.136019345e-11 | U68: 4.464608902e-16 | V68: 1.035543845e-17 | W68: 4.464608902e-16 | X68: 1.136019345e-11 | Y68: 1.437543506e-05
C69: 23.4 | D69: 160.322738 | E69: 130.3195564 | F69: 109.6313819 | G69: 102.2691407 | H69: 109.6313819 | I69: 130.3195564 | J69: 160.322738 | S69: 1.879305333e-05 | T69: 2.045074068e-11 | U69: 1.049418727e-15 | V69: 2.708433427e-17 | W69: 1.049418727e-15 | X69: 2.045074068e-11 | Y69: 1.879305333e-05
C70: 24 | D70: 160.7437973 | E70: 131.4912539 | F70: 111.3100521 | G70: 104.1252 | H70: 111.3100521 | I70: 131.4912539 | J70: 160.7437973 | S70: 2.436449715e-05 | T70: 3.619806829e-11 | U70: 2.406106816e-15 | V70: 6.886938981e-17 | W70: 2.406106816e-15 | X70: 3.619806829e-11 | Y70: 2.436449715e-05
C71: 24.6 | D71: 161.1535064 | E71: 132.6325076 | F71: 112.9471522 | G71: 105.9363079 | H71: 112.9471522 | I71: 132.6325076 | J71: 161.1535064 | S71: 3.13392214e-05 | T71: 6.30439735e-11 | U71: 5.386208459e-15 | V71: 1.704150363e-16 | W71: 5.386208459e-15 | X71: 6.30439735e-11 | Y71: 3.13392214e-05
C72: 25.2 | D72: 161.5522907 | E72: 133.7442801 | F72: 114.543668 | G72: 107.703361 | H72: 114.543668 | I72: 133.7442801 | J72: 161.5522907 | S72: 4.000928681e-05 | T72: 1.081153853e-10 | U72: 1.178251162e-14 | V72: 4.107424294e-16 | W72: 1.178251162e-14 | X72: 1.081153853e-10 | Y72: 4.000928681e-05
C73: 25.8 | D73: 161.940541 | E73: 134.8274761 | F73: 116.1005693 | G73: 109.4272709 | H73: 116.1005693 | I73: 134.8274761 | J73: 161.940541 | S73: 5.071454925e-05 | T73: 1.826833128e-10 | U73: 2.520848483e-14 | V73: 9.651776508e-16 | W73: 2.520848483e-14 | X73: 1.826833128e-10 | Y73: 5.071454925e-05
C74: 26.4 | D74: 162.3186184 | E74: 135.8829495 | F74: 117.6188091 | G74: 111.1089576 | H74: 117.6188091 | I74: 135.8829495 | J74: 162.3186184 | S74: 6.384815963e-05 | T74: 3.043263599e-10 | U74: 5.279118339e-14 | V74: 2.21312358e-15 | W74: 5.279118339e-14 | X74: 3.043263599e-10 | Y74: 6.384815963e-05
C75: 27 | D75: 162.6868585 | E75: 136.9115094 | F75: 119.0993224 | G75: 112.7493443 | H75: 119.0993224 | I75: 136.9115094 | J75: 162.6868585 | S75: 7.986234981e-05 | T75: 5.000962752e-10 | U75: 1.082974051e-13 | V75: 4.956069745e-15 | W75: 1.082974051e-13 | X75: 5.000962752e-10 | Y75: 7.986234981e-05
C76: 27.6 | D76: 163.0455749 | E76: 137.9139249 | F76: 120.543026 | G76: 114.3493528 | H76: 120.543026 | I76: 137.9139249 | J76: 163.0455749 | S76: 9.927447429e-05 | T76: 8.110899681e-10 | U76: 2.177900857e-13 | V76: 1.084832308e-14 | W76: 2.177900857e-13 | X76: 8.110899681e-10 | Y76: 9.927447429e-05
C77: 28.2 | D77: 163.3950617 | E77: 138.8909297 | F77: 121.9508177 | G77: 115.9099 | H77: 121.9508177 | I77: 138.8909297 | J77: 163.3950617 | S77: 0.000122673271 | T77: 1.298970635e-09 | U77: 4.296638237e-13 | V77: 2.322890205e-14 | W77: 4.296638237e-13 | X77: 1.298970635e-09 | Y77: 0.000122673271
C78: 28.8 | D78: 163.7355964 | E78: 139.8432255 | F78: 123.3235765 | G78: 117.4318951 | H78: 123.3235765 | I78: 139.8432255 | J78: 163.7355964 | S78: 0.000150725299 | T78: 2.055156791e-09 | U78: 8.32115808e-13 | V78: 4.869342102e-14 | W78: 8.32115808e-13 | X78: 2.055156791e-09 | Y78: 0.000150725299
C79: 29.4 | D79: 164.0674414 | E79: 140.7714852 | F79: 124.6621622 | G79: 118.9162371 | H79: 124.6621622 | I79: 140.7714852 | J79: 164.0674414 | S79: 0.0001841815049 | T79: 3.213619448e-09 | U79: 1.583010478e-12 | V79: 1.00002169e-13 | W79: 1.583010478e-12 | X79: 3.213619448e-09 | Y79: 0.0001841815049
C80: 30 | D80: 164.3908463 | E80: 141.6763554 | F80: 125.9674156 | G80: 120.363813 | H80: 125.9674156 | I80: 141.6763554 | J80: 164.3908463 | S80: 0.0002238838656 | T80: 4.968502364e-09 | U80: 2.960037637e-12 | V80: 2.013518347e-13 | W80: 2.960037637e-12 | X80: 4.968502364e-09 | Y80: 0.0002238838656
C81: 30.6 | D81: 164.7060487 | E81: 142.5584589 | F81: 127.2401583 | G81: 121.7754964 | H81: 127.2401583 | I81: 142.5584589 | J81: 164.7060487 | S81: 0.0002707720473 | T81: 7.59811645e-09 | U81: 5.443531487e-12 | V81: 3.977462447e-13 | W81: 5.443531487e-12 | X81: 7.59811645e-09 | Y81: 0.0002707720473
C82: 31.2 | D82: 165.0132759 | E82: 143.4183961 | F82: 128.4811934 | G82: 123.1521464 | H82: 128.4811934 | I82: 143.4183961 | J82: 165.0132759 | S82: 0.0003258900211 | T82: 1.149726542e-08 | U82: 9.850987037e-12 | V82: 7.713407682e-13 | W82: 9.850987037e-12 | X82: 1.149726542e-08 | Y82: 0.0003258900211
C83: 31.8 | D83: 165.3127457 | E83: 144.2567471 | F83: 129.6913049 | G83: 124.4946068 | H83: 129.6913049 | I83: 144.2567471 | J83: 165.3127457 | S83: 0.0003903925679 | T83: 1.722034355e-08 | U83: 1.755209829e-11 | V83: 1.469433725e-12 | W83: 1.755209829e-11 | X83: 1.722034355e-08 | Y83: 0.0003903925679
C84: 32.4 | D84: 165.6046672 | E84: 145.0740732 | F84: 130.8712586 | G84: 125.8037054 | H84: 130.8712586 | I84: 145.0740732 | J84: 165.6046672 | S84: 0.0004655516032 | T84: 2.553821535e-08 | U84: 3.080727401e-11 | V84: 2.751565647e-12 | W84: 3.080727401e-11 | X84: 2.553821535e-08 | Y84: 0.0004655516032
C85: 33 | D85: 165.8892419 | E85: 145.8709176 | F85: 132.0218022 | G85: 127.0802532 | H85: 132.0218022 | I85: 145.8709176 | J85: 165.8892419 | S85: 0.0005527622534 | T85: 3.751254688e-08 | U85: 5.329266561e-11 | V85: 5.067430159e-12 | W85: 5.329266561e-11 | X85: 3.751254688e-08 | Y85: 0.0005527622534
C86: 33.6 | D86: 166.1666639 | E86: 146.6478068 | F86: 133.1436654 | G86: 128.325045 | H86: 133.1436654 | I86: 146.6478068 | J86: 166.1666639 | S86: 0.0006535486082 | T86: 5.459201369e-08 | U86: 9.090282941e-11 | V86: 9.18364669e-12 | W86: 9.090282941e-11 | X86: 5.459201369e-08 | Y86: 0.0006535486082
C87: 34.2 | D87: 166.4371207 | E87: 147.4052518 | F87: 134.2375603 | G87: 129.5388584 | H87: 134.2375603 | I87: 147.4052518 | J87: 166.4371207 | S87: 0.0007695690797 | T87: 7.873566248e-08 | U87: 1.52960845e-10 | V87: 1.638677862e-11 | W87: 1.52960845e-10 | X87: 7.873566248e-08 | Y87: 0.0007695690797
C88: 34.8 | D88: 166.7007935 | E88: 148.1437485 | F88: 135.304182 | G88: 130.7224539 | H88: 135.304182 | I88: 148.1437485 | J88: 166.7007935 | S88: 0.0009026212938 | T88: 1.125696511e-07 | U88: 2.540182443e-10 | V88: 2.880348226e-11 | W88: 2.540182443e-10 | X88: 1.125696511e-07 | Y88: 0.0009026212938
C89: 35.4 | D89: 166.9578578 | E89: 148.8637786 | F89: 136.3442084 | G89: 131.8765753 | H89: 136.3442084 | I89: 148.8637786 | J89: 166.9578578 | S89: 0.001054646444 | T89: 1.595846295e-07 | U89: 4.164973893e-10 | V89: 4.98978934e-11 | W89: 4.164973893e-10 | X89: 1.595846295e-07 | Y89: 0.001054646444
C90: 36 | D90: 167.2084838 | E90: 149.5658102 | F90: 137.3583012 | G90: 133.0019495 | H90: 137.3583012 | I90: 149.5658102 | J90: 167.2084838 | S90: 0.001227733041 | T90: 2.243821443e-07 | U90: 6.745216394e-10 | V90: 8.52332979e-11 | W90: 6.745216394e-10 | X90: 2.243821443e-07 | Y90: 0.001227733041
C91: 36.6 | D91: 167.4528363 | E91: 150.2502988 | F91: 138.3471057 | G91: 134.0992865 | H91: 138.3471057 | I91: 150.2502988 | J91: 167.4528363 | S91: 0.001424119983 | T91: 3.129796328e-07 | U91: 1.07939922e-09 | V91: 1.436223191e-10 | W91: 1.07939922e-09 | X91: 3.129796328e-07 | Y91: 0.001424119983
C92: 37.2 | D92: 167.6910756 | E92: 150.917687 | F92: 139.3112513 | G92: 135.1692799 | H92: 139.3112513 | I92: 150.917687 | J92: 167.6910756 | S92: 0.001646198901 | T92: 4.3318481e-07 | U92: 1.707381378e-09 | V92: 2.388404267e-10 | W92: 1.707381378e-09 | X92: 4.3318481e-07 | Y92: 0.001646198901
C93: 37.8 | D93: 167.923357 | E93: 151.5684058 | F93: 140.2513522 | G93: 136.212607 | H93: 140.2513522 | I93: 151.5684058 | J93: 167.923357 | S93: 0.001896515707 | T93: 5.950515046e-07 | U93: 2.670511171e-09 | V93: 3.921453548e-10 | W93: 2.670511171e-09 | X93: 5.950515046e-07 | Y93: 0.001896515707
C94: 38.4 | D94: 168.1498318 | E94: 152.2028746 | F94: 141.1680072 | G94: 137.2299288 | H94: 141.1680072 | I94: 152.2028746 | J94: 168.1498318 | S94: 0.002177771298 | T94: 8.114302532e-07 | U94: 4.131623648e-09 | V94: 6.359345742e-10 | W94: 4.131623648e-09 | X94: 8.114302532e-07 | Y94: 0.002177771298
C95: 39 | D95: 168.3706469 | E95: 152.8215019 | F95: 142.0618004 | G95: 138.2218907 | H95: 142.0618004 | I95: 152.8215019 | J95: 168.3706469 | S95: 0.002492821366 | T95: 1.098628166e-06 | U95: 6.324859377e-09 | V95: 1.018989657e-09 | W95: 6.324859377e-09 | X95: 1.098628166e-06 | Y95: 0.002492821366
C96: 39.6 | D96: 168.5859451 | E96: 153.4246853 | F96: 142.9333014 | G96: 139.1891226 | H96: 142.9333014 | I96: 153.4246853 | J96: 168.5859451 | S96: 0.002844675289 | T96: 1.477193708e-06 | U96: 9.58341946e-09 | V96: 1.613906319e-09 | W96: 9.58341946e-09 | X96: 1.477193708e-06 | Y96: 0.002844675289
C97: 40.2 | D97: 168.7958656 | E97: 154.0128121 | F97: 143.7830659 | G97: 140.1322389 | H97: 143.7830659 | I97: 154.0128121 | J97: 168.7958656 | S97: 0.003236494036 | T97: 1.972843034e-06 | U97: 1.437672965e-08 | V97: 2.527499037e-09 | W97: 1.437672965e-08 | X97: 1.972843034e-06 | Y97: 0.003236494036
C98: 40.8 | D98: 169.0005438 | E98: 154.5862597 | F98: 144.6116355 | G98: 141.0518393 | H98: 144.6116355 | I98: 154.5862597 | J98: 169.0005438 | S98: 0.003671587105 | T98: 2.617545355e-06 | U98: 2.135970151e-08 | V98: 3.915206881e-09 | W98: 2.135970151e-08 | X98: 2.617545355e-06 | Y98: 0.003671587105
C99: 41.4 | D99: 169.2001113 | E99: 155.1453956 | F99: 145.4195387 | G99: 141.9485087 | H99: 145.4195387 | I99: 155.1453956 | J99: 169.2001113 | S99: 0.00415340843 | T99: 3.450785405e-06 | U99: 3.143738659e-08 | V99: 6.000820706e-09 | W99: 3.143738659e-08 | X99: 3.450785405e-06 | Y99: 0.00415340843
C100: 42 | D100: 169.3946965 | E100: 155.6905782 | F100: 146.2072906 | G100: 142.8228179 | H100: 146.2072906 | I100: 155.6905782 | J100: 169.3946965 | S100: 0.004685551276 | T100: 4.521021435e-06 | U100: 4.584902054e-08 | V100: 9.103209244e-09 | W100: 4.584902054e-08 | X100: 4.521021435e-06 | Y100: 0.004685551276
C101: 42.6 | D101: 169.5844244 | E101: 156.2221564 | F101: 146.9753937 | G101: 143.6753234 | H101: 146.9753937 | I101: 156.2221564 | J101: 169.5844244 | S101: 0.005271742115 | T101: 5.887357167e-06 | U101: 6.627625073e-08 | V101: 1.367215129e-08 | W101: 6.627625073e-08 | X101: 5.887357167e-06 | Y101: 0.005271742115
C102: 43.2 | D102: 169.7694168 | E102: 156.7404705 | F102: 147.7243378 | G102: 144.5065682 | H102: 147.7243378 | I102: 156.7404705 | J102: 169.7694168 | S102: 0.005915833467 | T102: 7.621445808e-06 | U102: 9.498123445e-08 | V102: 2.033589079e-08 | W102: 9.498123445e-08 | X102: 7.621445808e-06 | Y102: 0.005915833467
C103: 43.8 | D103: 169.9497922 | E103: 157.245852 | F103: 148.4546007 | G103: 145.3170819 | H103: 148.4546007 | I103: 157.245852 | J103: 169.9497922 | S103: 0.006621795746 | T103: 9.809643466e-06 | U103: 1.349812811e-07 | V103: 2.996362805e-08 | W103: 1.349812811e-07 | X103: 9.809643466e-06 | Y103: 0.006621795746
C104: 44.4 | D104: 170.1256662 | E104: 157.7386241 | F104: 149.1666483 | G104: 146.1073809 | H104: 149.1666483 | I104: 157.7386241 | J104: 170.1256662 | S104: 0.007393708119 | T104: 1.255542815e-05 | U104: 1.902677846e-07 | V104: 4.374684913e-08 | W104: 1.902677846e-07 | X104: 1.255542815e-05 | Y104: 0.007393708119
C105: 45 | D105: 170.2971515 | E105: 158.2191018 | F105: 149.8609348 | G105: 146.877969 | H105: 149.8609348 | I105: 158.2191018 | J105: 170.2971515 | S105: 0.008235748395 | T105: 1.598209887e-05 | U105: 2.660783417e-07 | V105: 6.330417991e-08 | W105: 2.660783417e-07 | X105: 1.598209887e-05 | Y105: 0.008235748395
C106: 45.6 | D106: 170.4643577 | E106: 158.6875922 | F106: 150.5379032 | G106: 147.6293374 | H106: 150.5379032 | I106: 158.6875922 | J106: 170.4643577 | S106: 0.009152182005 | T106: 2.023576718e-05 | U106: 3.692321554e-07 | V106: 9.081533217e-08 | W106: 3.692321554e-07 | X106: 2.023576718e-05 | Y106: 0.009152182005
C107: 46.2 | D107: 170.6273919 | E107: 159.1443947 | F107: 151.1979853 | G107: 148.3619651 | H107: 151.1979853 | I107: 159.1443947 | J107: 170.6273919 | S107: 0.0101473501 | T107: 2.548865108e-05 | U107: 5.08540071e-07 | V107: 1.291906841e-07 | W107: 5.08540071e-07 | X107: 2.548865108e-05 | Y107: 0.0101473501
C108: 46.8 | D108: 170.7863583 | E108: 159.5898011 | F108: 151.8416024 | G108: 149.0763193 | H108: 151.8416024 | I108: 159.5898011 | J108: 170.7863583 | S108: 0.0112256568 | T108: 3.194267767e-05 | U108: 6.953018431e-07 | V108: 1.822840997e-07 | W108: 6.953018431e-07 | X108: 3.194267767e-05 | Y108: 0.0112256568
C109: 47.4 | D109: 170.9413586 | E109: 160.0240958 | F109: 152.469165 | G109: 149.7728556 | H109: 152.469165 | I109: 160.0240958 | J109: 170.9413586 | S109: 0.01239155571 | T109: 3.983339805e-05 | U109: 9.439044649e-07 | V109: 2.551577317e-07 | W109: 9.439044649e-07 | X109: 3.983339805e-05 | Y109: 0.01239155571
C110: 48 | D110: 171.0924918 | E110: 160.4475564 | F110: 153.0810736 | G110: 150.4520181 | H110: 153.0810736 | I110: 160.4475564 | J110: 171.0924918 | S110: 0.01364953568 | T110: 4.94342131e-05 | U110: 1.272536566e-06 | V110: 3.544087512e-07 | W110: 1.272536566e-06 | X110: 4.94342131e-05 | Y110: 0.01364953568
C111: 48.6 | D111: 171.2398545 | E111: 160.8604531 | F111: 153.6777187 | G111: 151.1142403 | H111: 153.6777187 | I111: 160.8604531 | J111: 171.2398545 | S111: 0.01500410597 | T111: 6.106090523e-05 | U111: 1.704034954e-06 | V111: 4.885691896e-07 | W111: 1.704034954e-06 | X111: 6.106090523e-05 | Y111: 0.01500410597
C112: 49.2 | D112: 171.3835409 | E112: 161.2630496 | F112: 154.2594809 | G112: 151.7599443 | H112: 154.2594809 | I112: 161.2630496 | J112: 171.3835409 | S112: 0.01645978079 | T112: 7.50764658e-05 | U112: 2.266880313e-06 | V112: 6.685913314e-07 | W112: 2.266880313e-06 | X112: 7.50764658e-05 | Y112: 0.01645978079
C113: 49.8 | D113: 171.5236427 | E113: 161.655603 | F113: 154.8267314 | G113: 152.3895422 | H113: 154.8267314 | I113: 161.655603 | J113: 171.5236427 | S113: 0.01802106341 | T113: 9.189620316e-05 | U113: 2.996359784e-06 | V113: 9.084323348e-07 | W113: 2.996359784e-06 | X113: 9.189620316e-05 | Y113: 0.01802106341
C114: 50.4 | D114: 171.6602493 | E114: 162.0383639 | F114: 155.3798323 | G114: 153.0034356 | H114: 155.3798323 | I114: 162.0383639 | J114: 171.6602493 | S114: 0.01969242981 | T114: 0.0001119931111 | U114: 3.935914678e-06 | V114: 1.225752938e-06 | W114: 3.935914678e-06 | X114: 0.0001119931111 | Y114: 0.01969242981
C115: 51 | D115: 171.7934482 | E115: 162.4115766 | F115: 155.9191364 | G115: 153.6020161 | H115: 155.9191364 | I115: 162.4115766 | J115: 171.7934482 | S115: 0.02147831206 | T115: 0.0001359034719 | U115: 5.138691743e-06 | V115: 1.642746199e-06 | W115: 5.138691743e-06 | X115: 0.0001359034719 | Y115: 0.02147831206
C116: 51.6 | D116: 171.9233242 | E116: 162.7754793 | F116: 156.444988 | G116: 154.1856657 | H116: 156.444988 | I116: 162.7754793 | J116: 171.9233242 | S116: 0.0233830814 | T116: 0.0001642326632 | U116: 6.669316287e-06 | V116: 2.187113168e-06 | W116: 6.669316287e-06 | X116: 0.0001642326632 | Y116: 0.0233830814
C117: 52.2 | D117: 172.0499603 | E117: 163.1303044 | F117: 156.9577225 | G117: 154.7547567 | H117: 156.9577225 | I117: 163.1303044 | J117: 172.0499603 | S117: 0.02541103124 | T117: 0.0001976611316 | U117: 8.605904947e-06 | V117: 2.893203141e-06 | W117: 8.605904947e-06 | X117: 0.0001976611316 | Y117: 0.02541103124
C118: 52.8 | D118: 172.1734375 | E118: 163.4762784 | F118: 157.4576671 | G118: 155.3096523 | H118: 157.4576671 | I118: 163.4762784 | J118: 172.1734375 | S118: 0.02756636007 | T118: 0.0002369504928 | U118: 1.104233494e-05 | V118: 3.803336691e-06 | W118: 1.104233494e-05 | X118: 0.0002369504928 | Y118: 0.02756636007
C119: 53.4 | D119: 172.2938344 | E119: 163.813622 | F119: 157.9451409 | G119: 155.8507065 | H119: 157.9451409 | I119: 163.813622 | J119: 172.2938344 | S119: 0.02985315441 | T119: 0.0002829497106 | U119: 1.40907853e-05 | V119: 4.969329893e-06 | W119: 1.40907853e-05 | X119: 0.0002829497106 | Y119: 0.02985315441
C120: 54 | D120: 172.4112279 | E120: 164.1425506 | F120: 158.420455 | G120: 156.3782646 | H120: 158.420455 | I120: 164.1425506 | J120: 172.4112279 | S120: 0.03227537192 | T120: 0.0003366013036 | U120: 1.788456359e-05 | V120: 6.454238081e-06 | W120: 1.788456359e-05 | X120: 0.0003366013036 | Y120: 0.03227537192
C121: 54.6 | D121: 172.5256931 | E121: 164.4632741 | F121: 158.8839126 | G121: 156.892663 | H121: 158.8839126 | I121: 164.4632741 | J121: 172.5256931 | S121: 0.03483682472 | T121: 0.0003989475263 | U121: 2.258122959e-05 | V121: 8.334337013e-06 | W121: 2.258122959e-05 | X121: 0.0003989475263 | Y121: 0.03483682472
C122: 55.2 | D122: 172.6373029 | E122: 164.7759972 | F122: 159.3358095 | G122: 157.3942302 | H122: 159.3358095 | I122: 164.7759972 | J122: 172.6373029 | S122: 0.037541163 | T122: 0.0004711364631 | U122: 2.83660241e-05 | V122: 1.070135843e-05 | W122: 2.83660241e-05 | X122: 0.0004711364631 | Y122: 0.037541163
C123: 55.8 | D123: 172.7461285 | E123: 165.0809195 | F123: 159.776434 | G123: 157.8832862 | H123: 159.776434 | I123: 165.0809195 | J123: 172.7461285 | S123: 0.04039185909 | T123: 0.0005544279755 | U123: 3.545560821e-05 | V123: 1.366499568e-05 | W123: 3.545560821e-05 | X123: 0.0005544279755 | Y123: 0.04039185909
C124: 56.4 | D124: 172.8522396 | E124: 165.3782355 | F124: 160.2060674 | G124: 158.3601429 | H124: 160.2060674 | I124: 165.3782355 | J124: 172.8522396 | S124: 0.04339219201 | T124: 0.0006501994374 | U124: 4.410211432e-05 | V124: 1.735569327e-05 | W124: 4.410211432e-05 | X124: 0.0006501994374 | Y124: 0.04339219201
C125: 57 | D125: 172.9557036 | E125: 165.6681351 | F125: 160.6249839 | G125: 158.8251048 | H125: 160.6249839 | I125: 165.6681351 | J125: 172.9557036 | S125: 0.04654523253 | T125: 0.0007599511921 | U125: 5.459750611e-05 | V125: 2.192773197e-05 | W125: 5.459750611e-05 | X125: 0.0007599511921 | Y125: 0.04654523253
C126: 57.6 | D126: 173.0565868 | E126: 165.9508033 | F126: 161.0334507 | G126: 159.2784685 | H126: 161.0334507 | I126: 165.9508033 | J126: 173.0565868 | S126: 0.04985382899 | T126: 0.0008853116651 | U126: 6.727824003e-05 | V126: 2.756261823e-05 | W126: 6.727824003e-05 | X126: 0.0008853116651 | Y126: 0.04985382899
C127: 58.2 | D127: 173.1549535 | E127: 166.2264204 | F127: 161.4317285 | G127: 159.7205233 | H127: 161.4317285 | I127: 166.2264204 | J127: 173.1549535 | S127: 0.05332059383 | T127: 0.001028042064 | U127: 8.253021616e-05 | V127: 3.447278354e-05 | W127: 8.253021616e-05 | X127: 0.001028042064 | Y127: 0.05332059383
C128: 58.8 | D128: 173.2508665 | E128: 166.4951623 | F128: 161.8200714 | G128: 160.1515512 | H128: 161.8200714 | I128: 166.4951623 | J128: 173.2508665 | S128: 0.05694789085 | T128: 0.001190040602 | U128: 0.0001007940011 | V128: 4.290559561e-05 | W128: 0.0001007940011 | X128: 0.001190040602 | Y128: 0.05694789085
C129: 59.4 | D129: 173.3443869 | E129: 166.7572005 | F129: 162.1987273 | G129: 160.5718275 | H129: 162.1987273 | I129: 166.7572005 | J129: 173.3443869 | S129: 0.06073782345 | T129: 0.001373346174 | U129: 0.0001225702998 | V129: 5.314767906e-05 | W129: 0.0001225702998 | X129: 0.001373346174 | Y129: 0.06073782345
C130: 60 | D130: 173.4355745 | E130: 167.0127023 | F130: 162.5679379 | G130: 160.9816202 | H130: 162.5679379 | I130: 167.0127023 | J130: 173.4355745 | S130: 0.06469222375 | T130: 0.001580141429 | U130: 0.0001484256496 | V130: 6.552953886e-05 | W130: 0.0001484256496 | X130: 0.001580141429 | Y130: 0.06469222375
C131: 60.6 | D131: 173.5244874 | E131: 167.2618307 | F131: 162.9279387 | G131: 161.3811908 | H131: 162.9279387 | I131: 167.2618307 | J131: 173.5244874 | S131: 0.06881264274 | T131: 0.001812755175 | U131: 0.0001789983008 | V131: 8.043047501e-05 | W131: 0.0001789983008 | X131: 0.001812755175 | Y131: 0.06881264274
C132: 61.2 | D132: 173.6111825 | E132: 167.5047447 | F132: 163.2789594 | G132: 161.7707943 | H132: 163.2789594 | I132: 167.5047447 | J132: 173.6111825 | S132: 0.07310034141 | T132: 0.002073664057 | U132: 0.0002150042482 | V132: 9.828377159e-05 | W132: 0.0002150042482 | X132: 0.002073664057 | Y132: 0.07310034141
C133: 61.8 | D133: 173.6957149 | E133: 167.7415993 | F133: 163.6212241 | G133: 162.1506794 | H133: 163.6212241 | I133: 167.7415993 | J133: 173.6957149 | S133: 0.07755628305 | T133: 0.002365493463 | U133: 0.0002572433666 | V133: 0.0001195821384 | W133: 0.0002572433666 | X133: 0.002365493463 | Y133: 0.07755628305
C134: 62.4 | D134: 173.7781388 | E134: 167.9725457 | F134: 163.9549512 | G134: 162.5210884 | H134: 163.9549512 | I134: 167.9725457 | J134: 173.7781388 | S134: 0.08218112665 | T134: 0.002691017606 | U134: 0.0003066056047 | V134: 0.0001448833777 | W134: 0.0003066056047 | X134: 0.002691017606 | Y134: 0.08218112665
C135: 63 | D135: 173.8585066 | E135: 168.1977312 | F135: 164.2803536 | G135: 162.8822578 | H135: 164.2803536 | I135: 168.1977312 | J135: 173.8585066 | S135: 0.08697522138 | T135: 0.003053158735 | U135: 0.0003640771826 | V135: 0.0001748162435 | W135: 0.0003640771826 | X135: 0.003053158735 | Y135: 0.08697522138
C136: 63.6 | D136: 173.9368696 | E136: 168.4172996 | F136: 164.597639 | G136: 163.234418 | H136: 164.597639 | I136: 168.4172996 | J136: 173.9368696 | S136: 0.0919386024 | T136: 0.003454985455 | U136: 0.000430746737 | V136: 0.0002100864556 | W136: 0.000430746737 | X136: 0.003454985455 | Y136: 0.0919386024
C137: 64.2 | D137: 174.0132779 | E137: 168.631391 | F137: 164.9070099 | G137: 163.5777938 | H137: 164.9070099 | I137: 168.631391 | J137: 174.0132779 | S137: 0.09707098772 | T137: 0.003899710102 | U137: 0.0005078113536 | V137: 0.0002514828242 | W137: 0.0005078113536 | X137: 0.003899710102 | Y137: 0.09707098772
C138: 64.8 | D138: 174.0877803 | E138: 168.8401419 | F138: 165.2086637 | G138: 163.9126042 | H138: 165.2086637 | I138: 168.8401419 | J138: 174.0877803 | S138: 0.1023717764 | T138: 0.004390685181 | U138: 0.0005965824241 | V138: 0.0002998834396 | W138: 0.0005965824241 | X138: 0.004390685181 | Y138: 0.1023717764
C139: 65.4 | D139: 174.1604242 | E139: 169.0436856 | F139: 165.5027928 | G139: 164.2390629 | H139: 165.5027928 | I139: 169.0436856 | J139: 174.1604242 | S139: 0.1078400477 | T139: 0.004931398816 | U139: 0.0006984912621 | V139: 0.0003562618717 | W139: 0.0006984912621 | X139: 0.004931398816 | Y139: 0.1078400477
C140: 66 | D140: 174.2312561 | E140: 169.242152 | F140: 165.7895851 | G140: 164.5573783 | H140: 165.7895851 | I140: 169.242152 | J140: 174.2312561 | S140: 0.113474562 | T140: 0.00552546924 | U140: 0.0008150944125 | V140: 0.0004216933252 | W140: 0.0008150944125 | X140: 0.00552546924 | Y140: 0.113474562
C141: 66.6 | D141: 174.3003211 | E141: 169.4356678 | F141: 166.0692235 | G141: 164.8677534 | H141: 166.0692235 | I141: 169.4356678 | J141: 174.3003211 | S141: 0.1192737622 | T141: 0.006176638296 | U141: 0.0009480785856 | V141: 0.0004973606901 | W141: 0.0009480785856 | X141: 0.006176638296 | Y141: 0.1192737622
C142: 67.2 | D142: 174.3676633 | E142: 169.6243564 | F142: 166.3418864 | G142: 165.1703864 | H142: 166.3418864 | I142: 169.6243564 | J142: 174.3676633 | S142: 0.1252357767 | T142: 0.00688876397 | U142: 0.001099265151 | V142: 0.000584560424 | W142: 0.001099265151 | X142: 0.00688876397 | Y142: 0.1252357767
C143: 67.8 | D143: 174.4333256 | E143: 169.8083383 | F143: 166.6077479 | G143: 165.4654704 | H143: 166.6077479 | I143: 169.8083383 | J143: 174.4333256 | S143: 0.1313584236 | T143: 0.007665811963 | U143: 0.001270614125 | V143: 0.0006847082031 | W143: 0.001270614125 | X143: 0.007665811963 | Y143: 0.1313584236
C144: 68.4 | D144: 174.4973501 | E144: 169.9877308 | F144: 166.8669776 | G144: 165.7531936 | H144: 166.8669776 | I144: 169.9877308 | J144: 174.4973501 | S144: 0.137639216 | T144: 0.008511846334 | U144: 0.001464227582 | V144: 0.0007993442737 | W144: 0.001464227582 | X144: 0.008511846334 | Y144: 0.137639216
C145: 69 | D145: 174.5597775 | E145: 170.1626485 | F145: 167.1197409 | G145: 166.0337398 | H145: 167.1197409 | I145: 170.1626485 | J145: 174.5597775 | S145: 0.1440753678 | T145: 0.009431019235 | U145: 0.001682352441 | V145: 0.0009301384387 | W145: 0.001682352441 | X145: 0.009431019235 | Y145: 0.1440753678
C146: 69.6 | D146: 174.6206477 | E146: 170.3332029 | F146: 167.3661992 | G146: 166.3072878 | H146: 167.3661992 | I146: 170.3332029 | J146: 174.6206477 | S146: 0.1506638017 | T146: 0.01042755977 | U146: 0.001927382549 | V146: 0.001078894611 | W146: 0.001927382549 | X146: 0.01042755977 | Y146: 0.1506638017
C147: 70.2 | D147: 174.6799995 | E147: 170.499503 | F147: 167.6065097 | G147: 166.5740123 | H147: 167.6065097 | I147: 170.499503 | J147: 174.6799995 | S147: 0.1574011571 | T147: 0.01150576204 | U147: 0.002201860028 | V147: 0.001247554869 | W147: 0.002201860028 | X147: 0.01150576204 | Y147: 0.1574011571
C148: 70.8 | D148: 174.7378708 | E148: 170.6616547 | F148: 167.8408257 | G148: 166.8340836 | H148: 167.8408257 | I148: 170.6616547 | J148: 174.7378708 | S148: 0.1642837996 | T148: 0.01266997238 | U148: 0.002508475817 | V148: 0.001438202946 | W148: 0.002508475817 | X148: 0.01266997238 | Y148: 0.1642837996
C149: 71.4 | D149: 174.7942985 | E149: 170.8197617 | F149: 168.0692969 | G149: 167.0876674 | H149: 168.0692969 | I149: 170.8197617 | J149: 174.7942985 | S149: 0.171307831 | T149: 0.01392457596 | U149: 0.002850069376 | V149: 0.001653067099 | W149: 0.002850069376 | X149: 0.01392457596 | Y149: 0.171307831
C150: 72 | D150: 174.8493186 | E150: 170.9739247 | F150: 168.292069 | G150: 167.3349257 | H150: 168.292069 | I150: 170.9739247 | J150: 174.8493186 | S150: 0.1784691007 | T150: 0.01527398258 | U150: 0.003229627506 | V150: 0.001894522286 | W150: 0.003229627506 | X150: 0.01527398258 | Y150: 0.1784691007
C151: 72.6 | D151: 174.9029663 | E151: 171.1242423 | F151: 168.5092841 | G151: 167.5760163 | H151: 168.5092841 | I151: 171.1242423 | J151: 174.9029663 | S151: 0.1857632171 | T151: 0.01672261205 | U151: 0.003650282258 | V151: 0.002165091609 | W151: 0.003650282258 | X151: 0.01672261205 | Y151: 0.1857632171
C152: 73.2 | D152: 174.9552758 | E152: 171.2708102 | F152: 168.7210809 | G152: 167.8110931 | H152: 168.7210809 | I152: 171.2708102 | J152: 174.9552758 | S152: 0.1931855605 | T152: 0.01827487889 | U152: 0.004115307894 | V152: 0.002467446962 | W152: 0.004115307894 | X152: 0.01827487889 | Y152: 0.1931855605
C153: 73.8 | D153: 175.0062805 | E153: 171.4137221 | F153: 168.9275945 | G153: 168.0403059 | H153: 168.9275945 | I153: 171.4137221 | J153: 175.0062805 | S153: 0.2007312959 | T153: 0.01993517672 | U153: 0.004628116895 | V153: 0.002804408845 | W153: 0.004628116895 | X153: 0.01993517672 | Y153: 0.2007312959
C154: 74.4 | D154: 175.0560129 | E154: 171.5530691 | F154: 169.1289568 | G154: 168.2638011 | H154: 169.1289568 | I154: 171.5530691 | J154: 175.0560129 | S154: 0.2083953873 | T154: 0.02170786218 | U154: 0.005192254987 | V154: 0.0031789453 | W154: 0.005192254987 | X154: 0.02170786218 | Y154: 0.2083953873
C155: 75 | D155: 175.1045047 | E155: 171.6889401 | F155: 169.3252961 | G155: 168.4817214 | H155: 169.3252961 | I155: 171.6889401 | J155: 175.1045047 | S155: 0.2161726114 | T155: 0.02359723868 | U155: 0.0058113952 | V155: 0.003594169935 | W155: 0.0058113952 | X155: 0.02359723868 | Y155: 0.2161726114
C156: 75.6 | D156: 175.1517869 | E156: 171.8214219 | F156: 169.5167379 | G156: 168.6942057 | H156: 169.5167379 | I156: 171.8214219 | J156: 175.1517869 | S156: 0.2240575725 | T156: 0.02560753983 | U156: 0.006489330938 | V156: 0.00405333901 | W156: 0.006489330938 | X156: 0.02560753983 | Y156: 0.2240575725
C157: 76.2 | D157: 175.1978897 | E157: 171.9505991 | F157: 169.7034043 | G157: 168.9013897 | H157: 169.7034043 | I157: 171.9505991 | J157: 175.1978897 | S157: 0.2320447177 | T157: 0.02774291291 | U157: 0.007229968091 | V157: 0.004559847567 | W157: 0.007229968091 | X157: 0.02774291291 | Y157: 0.2320447177
C158: 76.8 | D158: 175.2428424 | E158: 172.0765539 | F158: 169.8854143 | G158: 169.1034056 | H158: 169.8854143 | I158: 172.0765539 | J158: 175.2428424 | S158: 0.2401283521 | T158: 0.03000740219 | U158: 0.008037316203 | V158: 0.005117224585 | W158: 0.008037316203 | X158: 0.03000740219 | Y158: 0.2401283521
C159: 77.4 | D159: 175.2866739 | E159: 172.1993669 | F159: 170.0628842 | G159: 169.3003824 | H159: 170.0628842 | I159: 172.1993669 | J159: 175.2866739 | S159: 0.2483026545 | T159: 0.03240493243 | U159: 0.008915478703 | V159: 0.005729127155 | W159: 0.008915478703 | X159: 0.03240493243 | Y159: 0.2483026545
C160: 78 | D160: 175.329412 | E160: 172.3191164 | F160: 170.2359272 | G160: 169.4924456 | H160: 170.2359272 | I160: 172.3191164 | J160: 175.329412 | S160: 0.2565616927 | T160: 0.03493929249 | U160: 0.009868642263 | V160: 0.006399333686 | W160: 0.009868642263 | X160: 0.03493929249 | Y160: 0.2565616927
C161: 78.6 | D161: 175.371084 | E161: 172.4358788 | F161: 170.4046537 | G161: 169.6797179 | H161: 170.4046537 | I161: 172.4358788 | J161: 175.371084 | S161: 0.2648994398 | T161: 0.03761411921 | U161: 0.01090106529 | V161: 0.007131736134 | W161: 0.01090106529 | X161: 0.03761411921 | Y161: 0.2648994398
C162: 79.2 | D162: 175.4117165 | E162: 172.5497286 | F162: 170.5691714 | G162: 169.8623188 | H162: 170.5691714 | I162: 172.5497286 | J162: 175.4117165 | S162: 0.2733097898 | T162: 0.04043288164 | U162: 0.01201706562 | V162: 0.007930331285 | W162: 0.01201706562 | X162: 0.04043288164 | Y162: 0.2733097898
C163: 79.8 | D163: 175.4513355 | E163: 172.6607384 | F163: 170.7295853 | G163: 170.0403648 | H163: 170.7295853 | I163: 172.6607384 | J163: 175.4513355 | S163: 0.2817865731 | T163: 0.04339886569 | U163: 0.01322100745 | V163: 0.008799211116 | W163: 0.01322100745 | X163: 0.04339886569 | Y163: 0.2817865731
C164: 80.4 | D164: 175.4899662 | E164: 172.7689792 | F164: 170.8859978 | G164: 170.2139695 | H164: 170.8859978 | I164: 172.7689792 | J164: 175.4899662 | S164: 0.2903235725 | T164: 0.04651515931 | U164: 0.01451728762 | V164: 0.00974255225 | W164: 0.01451728762 | X164: 0.04651515931 | Y164: 0.2903235725
C165: 81 | D165: 175.5276332 | E165: 172.87452 | F165: 171.0385086 | G165: 170.3832438 | H165: 171.0385086 | I165: 172.87452 | J165: 175.5276332 | S165: 0.2989145383 | T165: 0.04978463826 | U165: 0.01591032119 | V165: 0.01076460456 | W165: 0.01591032119 | X165: 0.04978463826 | Y165: 0.2989145383
C166: 81.6 | D166: 175.5643607 | E166: 172.9774281 | F166: 171.1872151 | G166: 170.5482955 | H166: 171.1872151 | I166: 172.9774281 | J166: 175.5643607 | S166: 0.3075532034 | T166: 0.05320995252 | U166: 0.01740452652 | V166: 0.01186967898 | W166: 0.01740452652 | X166: 0.05320995252 | Y166: 0.3075532034
C167: 82.2 | D167: 175.600172 | E167: 173.0777692 | F167: 171.3322122 | G167: 170.7092302 | H167: 171.3322122 | I167: 173.0777692 | J167: 175.600172 | S167: 0.3162332988 | T167: 0.05679351352 | U167: 0.01900430983 | V167: 0.0130621345 | W167: 0.01900430983 | X167: 0.05679351352 | Y167: 0.3162332988
C168: 82.8 | D168: 175.6350901 | E168: 173.1756073 | F168: 171.4735925 | G168: 170.8661504 | H168: 171.4735925 | I168: 173.1756073 | J168: 175.6350901 | S168: 0.3249485671 | T168: 0.06053748212 | U168: 0.02071404939 | V168: 0.01434636455 | W168: 0.02071404939 | X168: 0.06053748212 | Y168: 0.3249485671
C169: 83.4 | D169: 175.6691371 | E169: 173.271005 | F169: 171.611446 | G169: 171.0191563 | H169: 171.611446 | I169: 173.271005 | J169: 175.6691371 | S169: 0.3336927776 | T169: 0.06444375753 | U169: 0.02253807936 | V169: 0.01572678265 | W169: 0.02253807936 | X169: 0.06444375753 | Y169: 0.3336927776
C170: 84 | D170: 175.7023348 | E170: 173.3640229 | F170: 171.7458609 | G170: 171.1683456 | H170: 171.7458609 | I170: 173.3640229 | J170: 175.7023348 | S170: 0.3424597392 | T170: 0.06851396707 | U170: 0.02448067336 | V170: 0.01720780757 | W170: 0.02448067336 | X170: 0.06851396707 | Y170: 0.3424597392
C171: 84.6 | D171: 175.7347044 | E171: 173.4547206 | F171: 171.8769229 | G171: 171.3138134 | H171: 171.8769229 | I171: 173.4547206 | J171: 175.7347044 | S171: 0.3512433142 | T171: 0.07274945706 | U171: 0.02654602796 | V171: 0.01879384794 | W171: 0.02654602796 | X171: 0.07274945706 | Y171: 0.3512433142
C172: 85.2 | D172: 175.7662666 | E172: 173.5431559 | F172: 172.0047155 | G172: 171.4556525 | H172: 172.0047155 | I172: 173.5431559 | J172: 175.7662666 | S172: 0.3600374304 | T172: 0.07715128463 | U172: 0.02873824602 | V172: 0.02048928647 | W172: 0.02873824602 | X172: 0.07715128463 | Y172: 0.3600374304
C173: 85.8 | D173: 175.7970415 | E173: 173.6293852 | F173: 172.1293205 | G173: 171.5939536 | H173: 172.1293205 | I173: 173.6293852 | J173: 175.7970415 | S173: 0.3688360935 | T173: 0.0817202107 | U173: 0.03106132017 | V173: 0.02229846384 | W173: 0.03106132017 | X173: 0.0817202107 | Y173: 0.3688360935
C174: 86.4 | D174: 175.8270487 | E174: 173.7134636 | F174: 172.2508172 | G174: 171.7288048 | H174: 172.2508172 | I174: 173.7134636 | J174: 175.8270487 | S174: 0.3776333987 | T174: 0.086456694 | U174: 0.03351911625 | V174: 0.02422566232 | W174: 0.03351911625 | X174: 0.086456694 | Y174: 0.3776333987
C175: 87 | D175: 175.8563074 | E175: 173.7954446 | F175: 172.3692833 | G175: 171.8602922 | H175: 172.3692833 | I175: 173.7954446 | J175: 175.8563074 | S175: 0.3864235412 | T175: 0.09136088627 | U175: 0.0361153571 | V175: 0.02627508924 | W175: 0.0361153571 | X175: 0.09136088627 | Y175: 0.3864235412
C176: 87.6 | D176: 175.8848363 | E176: 173.8753807 | F176: 172.4847943 | G176: 171.9884997 | H176: 172.4847943 | I176: 173.8753807 | J176: 175.8848363 | S176: 0.3952008268 | T176: 0.09643262865 | U176: 0.03885360657 | V176: 0.02845086035 | W176: 0.03885360657 | X176: 0.09643262865 | Y176: 0.3952008268
C177: 88.2 | D177: 175.9126535 | E177: 173.9533228 | F177: 172.5974239 | G177: 172.1135092 | H177: 172.5974239 | I177: 173.9533228 | J177: 175.9126535 | S177: 0.4039596813 | T177: 0.1016714492 | U177: 0.04173725392 | V177: 0.03075698328 | W177: 0.04173725392 | X177: 0.1016714492 | Y177: 0.4039596813
C178: 88.8 | D178: 175.9397768 | E178: 174.0293207 | F178: 172.707244 | G178: 172.2354003 | H178: 172.707244 | I178: 174.0293207 | J178: 175.9397768 | S178: 0.4126946596 | T178: 0.1070765616 | U178: 0.04476949871 | V178: 0.03319734098 | W178: 0.04476949871 | X178: 0.1070765616 | Y178: 0.4126946596
C179: 89.4 | D179: 175.9662236 | E179: 174.1034229 | F179: 172.8143248 | G179: 172.354251 | H179: 172.8143248 | I179: 174.1034229 | J179: 175.9662236 | S179: 0.4214004537 | T179: 0.1126468651 | U179: 0.04795333624 | V179: 0.03577567546 | W179: 0.04795333624 | X179: 0.1126468651 | Y179: 0.4214004537
C180: 90 | D180: 175.9920106 | E180: 174.1756766 | F180: 172.9187344 | G180: 172.4701369 | H180: 172.9187344 | I180: 174.1756766 | J180: 175.9920106 | S180: 0.4300719005 | T180: 0.1183809457 | U180: 0.05129154355 | V180: 0.03849557177 | W180: 0.05129154355 | X180: 0.1183809457 | Y180: 0.4300719005
C181: 90.6 | D181: 176.0171544 | E181: 174.246128 | F181: 173.0205396 | G181: 172.5831322 | H181: 173.0205396 | I181: 174.246128 | J181: 176.0171544 | S181: 0.4387039888 | T181: 0.1242770781 | U181: 0.05478666625 | V181: 0.04136044235 | W181: 0.05478666625 | X181: 0.1242770781 | Y181: 0.4387039888
C182: 91.2 | D182: 176.0416711 | E182: 174.314822 | F182: 173.1198053 | G182: 172.6933088 | H182: 173.1198053 | I182: 174.314822 | J182: 176.0416711 | S182: 0.447291865 | T182: 0.1303332295 | U182: 0.05844100605 | V182: 0.04437351183 | W182: 0.05844100605 | X182: 0.1303332295 | Y182: 0.447291865
C183: 91.8 | D183: 176.0655761 | E183: 174.3818024 | F183: 173.2165949 | G183: 172.8007371 | H183: 173.2165949 | I183: 174.3818024 | J183: 176.0655761 | S183: 0.4558308392 | T183: 0.1365470637 | U183: 0.0622566091 | V183: 0.0475378024 | W183: 0.0622566091 | X183: 0.1365470637 | Y183: 0.4558308392
C184: 92.4 | D184: 176.0888849 | E184: 174.4471121 | F184: 173.3109701 | G184: 172.9054857 | H184: 173.3109701 | I184: 174.4471121 | J184: 176.0888849 | S184: 0.4643163898 | T184: 0.1429159473 | U184: 0.06623525537 | V184: 0.05085611978 | W184: 0.06623525537 | X184: 0.1429159473 | Y184: 0.4643163898
C185: 93 | D185: 176.1116122 | E185: 174.5107926 | F185: 173.4029912 | G185: 173.0076214 | H185: 173.4029912 | I185: 174.5107926 | J185: 176.1116122 | S185: 0.4727441676 | T185: 0.1494369558 | U185: 0.07037844882 | V185: 0.05433103987 | W185: 0.07037844882 | X185: 0.1494369558 | Y185: 0.4727441676
C186: 93.6 | D186: 176.1337726 | E186: 174.5728847 | F186: 173.4927168 | G186: 173.1072093 | H186: 173.4927168 | I186: 174.5728847 | J186: 176.1337726 | S186: 0.4811099996 | T186: 0.1561068816 | U186: 0.07468740873 | V186: 0.05796489625 | W186: 0.07468740873 | X186: 0.1561068816 | Y186: 0.4811099996
C187: 94.2 | D187: 176.1553802 | E187: 174.6334279 | F187: 173.5802043 | G187: 173.2043131 | H187: 173.5802043 | I187: 174.6334279 | J187: 176.1553802 | S187: 0.4894098917 | T187: 0.1629222425 | U187: 0.07916306203 | V187: 0.06175976836 | W187: 0.07916306203 | X187: 0.1629222425 | Y187: 0.4894098917
C188: 94.8 | D188: 176.1764488 | E188: 174.6924609 | F188: 173.6655094 | G188: 173.2989947 | H188: 173.6655094 | I188: 174.6924609 | J188: 176.1764488 | S188: 0.497640031 | T188: 0.1698792915 | U188: 0.08380603669 | V188: 0.06571747078 | W188: 0.08380603669 | X188: 0.1698792915 | Y188: 0.497640031
C189: 95.4 | D189: 176.1969919 | E189: 174.7500214 | F189: 173.7486867 | G189: 173.3913145 | H189: 173.7486867 | I189: 174.7500214 | J189: 176.1969919 | S189: 0.5057967878 | T189: 0.1769740268 | U189: 0.08861665632 | V189: 0.06983954327 | W189: 0.08861665632 | X189: 0.1769740268 | Y189: 0.5057967878
C190: 96 | D190: 176.2170226 | E190: 174.806146 | F190: 173.8297891 | G190: 173.4813314 | H190: 173.8297891 | I190: 174.806146 | J190: 176.2170226 | S190: 0.5138767162 | T190: 0.1842022038 | U190: 0.09359493586 | V190: 0.07412724199 | W190: 0.09359493586 | X190: 0.1842022038 | Y190: 0.5138767162
C191: 96.6 | D191: 176.2365536 | E191: 174.8608706 | F191: 173.9088685 | G191: 173.5691029 | H191: 173.9088685 | I191: 174.8608706 | J191: 176.2365536 | S191: 0.5218765553 | T191: 0.1915593461 | U191: 0.09874057843 | V191: 0.07858153164 | W191: 0.09874057843 | X191: 0.1915593461 | Y191: 0.5218765553
C192: 97.2 | D192: 176.2555974 | E192: 174.9142302 | F192: 173.9859753 | G192: 173.6546849 | H192: 173.9859753 | I192: 174.9142302 | J192: 176.2555974 | S192: 0.5297932287 | T192: 0.1990407589 | U192: 0.1040529734 | V192: 0.08320307877 | W192: 0.1040529734 | X192: 0.1990407589 | Y192: 0.5297932287
C193: 97.8 | D193: 176.2741661 | E193: 174.9662587 | F193: 174.0611587 | G193: 173.7381322 | H193: 174.0611587 | I193: 174.9662587 | J193: 176.2741661 | S193: 0.5376238442 | T193: 0.206641542 | U193: 0.1095311958 | V193: 0.08799224619 | W193: 0.1095311958 | X193: 0.206641542 | Y193: 0.5376238442
C194: 98.4 | D194: 176.2922717 | E194: 175.0169894 | F194: 174.1344666 | G194: 173.8194979 | H194: 174.1344666 | I194: 175.0169894 | J194: 176.2922717 | S194: 0.5453656931 | T194: 0.2143566034 | U194: 0.1151740065 | V194: 0.0929490885 | W194: 0.1151740065 | X194: 0.2143566034 | Y194: 0.5453656931
C195: 99 | D195: 176.3099256 | E195: 175.0664546 | F195: 174.205946 | G195: 173.898834 | H195: 174.205946 | I195: 175.0664546 | J195: 176.3099256 | S195: 0.5530162485 | T195: 0.2221806739 | U195: 0.1209798538 | V195: 0.09807334888 | W195: 0.1209798538 | X195: 0.2221806739 | Y195: 0.5530162485
C196: 99.6 | D196: 176.3271392 | E196: 175.114686 | F196: 174.2756423 | G196: 173.9761911 | H196: 174.2756423 | I196: 175.114686 | J196: 176.3271392 | S196: 0.5605731636 | T196: 0.2301083216 | U196: 0.1269468765 | V196: 0.1033644569 | W196: 0.1269468765 | X196: 0.2301083216 | Y196: 0.5605731636
C197: 100.2 | D197: 176.3439234 | E197: 175.1617142 | F197: 174.3436001 | G197: 174.0516185 | H197: 174.3436001 | I197: 175.1617142 | J197: 176.3439234 | S197: 0.5680342695 | T197: 0.2381339668 | U197: 0.1330729075 | V197: 0.1088215278 | W197: 0.1330729075 | X197: 0.2381339668 | Y197: 0.5680342695
C198: 100.8 | D198: 176.3602889 | E198: 175.2075694 | F198: 174.4098627 | G198: 174.1251645 | H198: 174.4098627 | I198: 175.2075694 | J198: 176.3602889 | S198: 0.5753975726 | T198: 0.2462518973 | U198: 0.1393554792 | V198: 0.1144433625 | W198: 0.1393554792 | X198: 0.2462518973 | Y198: 0.5753975726
C199: 101.4 | D199: 176.3762462 | E199: 175.2522807 | F199: 174.4744724 | G199: 174.1968759 | H199: 174.4744724 | I199: 175.2522807 | J199: 176.3762462 | S199: 0.5826612515 | T199: 0.2544562839 | U199: 0.1457918288 | V199: 0.1202284493 | W199: 0.1457918288 | X199: 0.2544562839 | Y199: 0.5826612515
C200: 102 | D200: 176.3918054 | E200: 175.2958767 | F200: 174.5374705 | G200: 174.2667984 | H200: 174.5374705 | I200: 175.2958767 | J200: 176.3918054 | S200: 0.5898236542 | T200: 0.262741196 | U200: 0.1523789066 | V200: 0.1261749664 | W200: 0.1523789066 | X200: 0.262741196 | Y200: 0.5898236542
C201: 102.6 | D201: 176.4069766 | E201: 175.3383852 | F201: 174.5988971 | G201: 174.3349768 | H201: 174.5988971 | I201: 175.3383852 | J201: 176.4069766 | S201: 0.5968832941 | T201: 0.2711006168 | U201: 0.1591133829 | V201: 0.1322807855 | W201: 0.1591133829 | X201: 0.2711006168 | Y201: 0.5968832941
C202: 103.2 | D202: 176.4217692 | E202: 175.3798334 | F202: 174.6587914 | G202: 174.4014545 | H202: 174.6587914 | I202: 175.3798334 | J202: 176.4217692 | S202: 0.6038388465 | T202: 0.2795284593 | U202: 0.1659916579 | V202: 0.1385434771 | W202: 0.1659916579 | X202: 0.2795284593 | Y202: 0.6038388465
C203: 103.8 | D203: 176.4361929 | E203: 175.4202477 | F203: 174.7171918 | G203: 174.466274 | H203: 174.7171918 | I203: 175.4202477 | J203: 176.4361929 | S203: 0.6106891444 | T203: 0.2880185814 | U203: 0.1730098713 | V203: 0.144960316 | W203: 0.1730098713 | X203: 0.2880185814 | Y203: 0.6106891444
C204: 104.4 | D204: 176.4502568 | E204: 175.4596538 | F204: 174.7741353 | G204: 174.5294766 | H204: 174.7741353 | I204: 175.4596538 | J204: 176.4502568 | S204: 0.6174331744 | T204: 0.2965648017 | U204: 0.1801639133 | V204: 0.1515282885 | W204: 0.1801639133 | X204: 0.2965648017 | Y204: 0.6174331744
C205: 105 | D205: 176.4639699 | E205: 175.498077 | F205: 174.8296584 | G205: 174.5911026 | H205: 174.8296584 | I205: 175.498077 | J205: 176.4639699 | S205: 0.6240700723 | T205: 0.305160914 | U205: 0.187449436 | V205: 0.1582441005 | W205: 0.187449436 | X205: 0.305160914 | Y205: 0.6240700723
... 325 more rows

Sheet 1 Heated Side Planar
C2: Peroxide Cured Silicones ONLY! | AJ2: Temp (K) | AK2: Ln (1/(t90 - ts1)) | AL2: Ln(1/ts(1)) | AM2: Slope/Interc | AN2: Slope/Interc
AJ3: =1/(D24+273.15) -> 0.002369387513 | AK3: =LN(1/(G24-F24)) -> -7.014185223 | AL3: =LN(1/(F24)) -> -5.009968405 | AM3: =SLOPE(AK3:AK5,AJ3:AJ5) -> -15664.77382 | AN3: =SLOPE(AL3:AL5,AJ3:AJ5) -> -12327.11386
B4: Imp | C4: Metric | AJ4: =1/(D25+273.15) -> 0.002279202279 | AK4: =LN(1/(G25-F25)) -> -5.892251762 | AL4: =LN(1/(F25)) -> -3.710151589 | AM4: =INTERCEPT(AK3:AK5,AJ3:AJ5) -> 30.00748462 | AN4: =INTERCEPT(AL3:AL5,AJ3:AJ5) -> 24.25870357
B5: =C5/25.4 -> 0.2362204724 | C5: 6 | D5: in, mm | E5: Thickness | AJ5: =1/(D26+273.15) -> 0.00219611288 | AK5: =LN(1/(G26-F26)) -> -4.291828367 | AL5: =LN(1/(F26)) -> -2.879198457
C6: =0.0006*C8 - 0.4448 -> 0.2272 | D6: W/m-K | E6: Thermal Conductivity, k
C7: 1450 | D7: J/kg - K | E7: Heat Capacity, cp | Z7: 55.71428571
C8: 1120 | D8: kg/m3 | E8: Density, p | Z8: 20
Z9: 55.71428571
C10: 5 | D10: # | E10: Number of nodes
B13: =(C13*9/5)+32 -> 320 | C13: 160 | D13: F, C | E13: Mold Temperature, TmL
B14: 69.8 | C14: 21 | D14: F, C | E14: Initial Rubber Temperature, Tr
C16: 600 | D16: sec | E16: Total T
C18: =8.3144621*-AM3 -> 130244.1682 | D18: J/mole | E18: Ea2 | F18: Activation Energy
C19: =POWER(2.71828,AM4) -> 1.076654156e+13 | D19: s-1 | E19: A2 | F19: Arrhenius Constant
C20: =8.3144621*-AN3 -> 102493.321 | D20: J/mole | E20: Ea1 | F20: Activation Energy
C21: =POWER(2.71828,AN4) -> 3.430947017e+10 | D21: s-1 | E21: A1 | F21: Arrhenius Constant
B22: 3 Temp Rheology Study (ASTM D5289)
C23: Cure Set | D23: Temperature, C | F23: ts(1), sec | G23: t(90), sec
C24: Low | D24: 148.9 | F24: 149.9 | G24: 1262.2
C25: Med | D25: 165.6 | F25: 40.86 | G25: 403.08
C26: High | D26: 182.2 | F26: 17.8 | G26: 90.9
D28: Temperature (time, x), C | S28: 90% SOC (time, x), %
C29: time, s | D29: 0.6 | E29: 1.8 | F29: 3 | G29: 4.2 | H29: 5.4 | S29: 0.6 | T29: 1.8 | U29: 3 | V29: 4.2 | W29: 5.4
C30: 0 | D30: 21 | E30: 21 | F30: 21 | G30: 21 | H30: 21 | S30: 0 | T30: 0 | U30: 0 | V30: 0 | W30: 0
C31: 1.2 | D31: 45.21167556 | E31: 23.30982126 | F31: 21.22037749 | G31: 21.02121384 | H31: 21.00401114 | S31: 8.581797167e-32 | T31: 5.246401506e-38 | U31: 1.198809393e-38 | V31: 1.040314247e-38 | W31: 1.027640463e-38
C32: 2.4 | D32: 63.46469131 | E32: 26.95867385 | F32: 21.75056104 | G32: 21.09007895 | H32: 21.02028495 | S32: 4.953223295e-27 | T32: 4.396019385e-36 | U32: 2.5310323e-37 | V32: 1.818335238e-37 | W32: 1.758472541e-37
C33: 3.6 | D33: 77.36396782 | E33: 31.31245828 | F33: 22.60538138 | G33: 21.2304959 | H33: 21.06003189 | S33: 1.131771611e-23 | T33: 1.630683751e-34 | U33: 1.972370602e-36 | V33: 1.097344134e-36 | W33: 1.026530152e-36
C34: 4.8 | D34: 88.0633579 | E34: 35.96371536 | F34: 23.76006658 | G34: 21.46068939 | H34: 21.1357887 | S34: 3.568416192e-21 | T34: 4.583998952e-33 | U34: 1.05288585e-35 | V34: 4.240891133e-36 | W34: 3.78650825e-36
C35: 6 | D35: 96.39563171 | E35: 40.65668034 | F35: 25.17147091 | G35: 21.79253249 | H35: 21.25996662 | S35: 3.005497941e-19 | T35: 1.0820301e-31 | U35: 4.705853696e-35 | V35: 1.286312939e-35 | W35: 1.080862805e-35
C36: 7.2 | D36: 102.9643823 | E36: 45.236374 | F36: 26.79052676 | G36: 22.23207408 | H36: 21.44377389 | S36: 1.011514296e-17 | T36: 2.159468287e-30 | U36: 1.927915851e-34 | V36: 3.36925427e-35 | W36: 2.626611589e-35
C37: 8.4 | D37: 108.2091388 | E37: 49.61413097 | F37: 28.56917935 | G37: 22.78055766 | H37: 21.6965346 | S37: 1.762425999e-16 | T37: 3.60227214e-29 | U37: 7.58111237e-34 | V37: 8.039349433e-35 | W37: 5.732789103e-35
C38: 9.6 | D38: 112.4515991 | E38: 53.74435093 | F38: 30.46391898 | G38: 23.43554952 | H38: 22.02534968 | S38: 1.888862249e-15 | T38: 4.983471354e-28 | U38: 2.92987219e-33 | V38: 1.806434789e-34 | W38: 1.162121252e-34
C39: 10.8 | D39: 115.9285347 | E39: 57.60889723 | F39: 32.43726956 | G39: 24.19198699 | H39: 22.43502011 | S39: 1.401437478e-14 | T39: 5.718014178e-27 | U39: 1.125044153e-32 | V39: 3.907988338e-34 | W39: 2.238293948e-34
C40: 12 | D40: 118.8152712 | E40: 61.20669441 | F40: 34.45809623 | G40: 25.0430676 | H40: 22.92815293 | S40: 7.823499152e-14 | T40: 5.477634529e-26 | U40: 4.306388556e-32 | V40: 8.267001527e-34 | W40: 4.163321467e-34
C41: 13.2 | D41: 121.2424897 | E41: 64.54684947 | F41: 36.50127168 | G41: 25.98095943 | H41: 23.50538132 | S41: 3.489835404e-13 | T41: 4.42840186e-25 | U41: 1.641150848e-31 | V41: 1.729309924e-33 | W41: 7.570588229e-34
C42: 14.4 | D42: 123.308286 | E42: 67.64415295 | F42: 38.54703148 | G42: 26.9973427 | H42: 24.16564565 | S42: 1.300382684e-12 | T42: 3.060404097e-24 | U42: 6.204465409e-31 | V42: 3.606611142e-33 | W42: 1.358659864e-33
C43: 15.6 | D43: 125.0868551 | E43: 70.51617989 | F43: 40.58021459 | G43: 28.08380582 | H43: 24.90649618 | S43: 4.185214637e-12 | T43: 1.832482384e-23 | U43: 2.316222215e-30 | V43: 7.544793366e-33 | W43: 2.424771911e-33
C44: 16.8 | D44: 126.634767 | E44: 73.18146014 | F44: 42.58950075 | G44: 29.23212257 | H44: 25.72439092 | S44: 1.193614831e-11 | T44: 9.633366464e-23 | U44: 8.498445533e-30 | V44: 1.590016109e-32 | W44: 4.32987065e-33
C45: 18 | D45: 127.9955189 | E45: 75.65835821 | F45: 44.56670354 | G45: 30.43443624 | H45: 26.61497205 | S45: 3.077231558e-11 | T45: 4.502186145e-22 | U45: 3.051700821e-29 | V45: 3.385763146e-32 | W45: 7.774967643e-33
C46: 19.2 | D46: 129.2028525 | E46: 77.96441951 | F46: 46.50614611 | G46: 31.68337305 | H46: 27.57331152 | S46: 7.284983476e-11 | T46: 1.89227009e-21 | U46: 1.068711068e-28 | V46: 7.298315693e-32 | W46: 1.409652178e-32
C47: 20.4 | D47: 130.2831807 | E47: 80.11601912 | F47: 48.40412743 | G47: 32.9721037 | H47: 28.59412176 | S47: 1.603689206e-10 | T47: 7.227777046e-21 | U47: 3.640147306e-28 | V47: 1.594072619e-31 | W47: 2.588996309e-32
C48: 21.6 | D48: 131.2573717 | E48: 82.12820359 | F48: 50.25847692 | G48: 34.29436769 | H48: 29.67193124 | S48: 3.316199222e-10 | T48: 2.532670805e-20 | U48: 1.203607284e-27 | V48: 3.528496237e-31 | W48: 4.828949191e-32
C49: 22.8 | D49: 132.1420678 | E49: 84.0146528 | F49: 52.06818948 | G49: 35.64447199 | H49: 30.80122656 | S49: 6.495142684e-10 | T49: 8.210358956e-20 | U49: 3.858619168e-27 | V49: 7.911793596e-31 | W49: 9.163746359e-32
C50: 24 | D50: 132.9506654 | E50: 85.78771385 | F50: 53.83313108 | G50: 37.01727271 | H50: 31.97656418 | S50: 1.21320308e-09 | T50: 2.480920228e-19 | U50: 1.198656769e-26 | V50: 1.795393849e-30 | W50: 1.771373976e-31
C51: 25.2 | D51: 133.6940474 | E51: 87.45847564 | F51: 55.55380422 | G51: 38.4081461 | H51: 33.19265557 | S51: 2.173436003e-09 | T51: 7.034406603e-19 | U51: 3.607611712e-26 | V51: 4.11794253e-30 | W51: 3.489956493e-31
C52: 26.4 | D52: 134.3811341 | E52: 89.03686391 | F52: 57.23116353 | G52: 39.81295352 | H52: 34.44442962 | S52: 3.752355981e-09 | T52: 1.882695197e-18 | U52: 1.052249611e-25 | V52: 9.531486793e-30 | W52: 7.008368897e-31
C53: 27.6 | D53: 135.0192999 | E53: 90.53174426 | F53: 58.86647228 | G53: 41.22800349 | H53: 35.72707608 | S53: 6.268462853e-09 | T53: 4.781428864e-18 | U53: 2.975975018e-25 | V53: 2.222564172e-29 | W53: 1.433834225e-30
C54: 28.8 | D54: 135.6146915 | E54: 91.9510253 | F54: 60.46119222 | G54: 42.65001331 | H54: 37.03607353 | S54: 1.016751055e-08 | T54: 1.157696038e-17 | U54: 8.167332305e-25 | V54: 5.211702964e-29 | W54: 2.985899962e-30
C55: 30 | D55: 136.1724719 | E55: 93.30175741 | F55: 62.0169 | G55: 44.07607131 | H55: 38.36720493 | S55: 1.606013007e-08 | T55: 2.683499028e-17 | U55: 2.177028645e-24 | V55: 1.226730711e-28 | W55: 6.321174856e-30
C56: 31.2 | D56: 136.6970089 | E56: 94.59022483 | F56: 63.53522469 | G56: 45.50360105 | H56: 39.71656345 | S56: 2.476699395e-08 | T56: 5.977132807e-17 | U56: 5.641765201e-24 | V56: 2.893295627e-28 | W56: 1.358295014e-29
C57: 32.4 | D57: 137.1920226 | E57: 95.82202991 | F57: 65.01780189 | G57: 46.93032767 | H57: 41.08055083 | S57: 3.737235804e-08 | T57: 1.283543894e-16 | U57: 1.422954171e-23 | V57: 6.826131369e-28 | W57: 2.957333835e-29
C58: 33.6 | D58: 137.6607005 | E58: 97.00216917 | F58: 66.46624087 | G58: 48.35424692 | H58: 42.4558702 | S58: 5.528683374e-08 | T58: 2.665291394e-16 | U58: 3.49671962e-23 | V58: 1.60844312e-27 | W58: 6.511680597e-29
C59: 34.8 | D59: 138.1057893 | E59: 98.13510157 | F59: 67.88210156 | G59: 49.77359673 | H59: 43.83951489 | S59: 8.032025768e-08 | T59: 5.366001221e-16 | U59: 8.380975102e-23 | V59: 3.779649392e-27 | W59: 1.447165452e-28
C60: 36 | D60: 138.529668 | E60: 99.2248092 | F60: 69.26687927 | G60: 51.18683143 | H60: 45.22875451 | S60: 1.147655374e-07 | T60: 1.049945773e-15 | U60: 1.961352134e-22 | V60: 8.845784621e-27 | W60: 3.23978443e-28
C61: 37.2 | D61: 138.9344067 | E61: 100.2748513 | F61: 70.62199523 | G61: 52.59259849 | H61: 46.62111915 | S61: 1.614943591e-07 | T61: 2.000906258e-15 | U61: 4.486376095e-22 | V61: 2.059419236e-26 | W61: 7.291939026e-28
C62: 38.4 | D62: 139.3218138 | E62: 101.288412 | F62: 71.94879133 | G62: 53.98971749 | H62: 48.01438275 | S62: 2.240656483e-07 | T62: 3.721105481e-15 | U62: 1.004040961e-21 | V62: 4.764538057e-26 | W62: 1.646976713e-27
C63: 39.6 | D63: 139.6934755 | E63: 102.2683424 | F63: 73.24852822 | G63: 55.37716141 | H63: 49.40654596 | S63: 3.068476741e-07 | T63: 6.764918268e-15 | U63: 2.20060353e-21 | V63: 1.094374328e-25 | W63: 3.726342435e-27
C64: 40.8 | D64: 140.0507879 | E64: 103.2171982 | F64: 74.52238559 | G64: 56.75403972 | H64: 50.79581908 | S64: 4.151546834e-07 | T64: 1.204164978e-14 | U64: 4.727883721e-21 | V64: 2.493650719e-25 | W64: 8.431711185e-27
C65: 42 | D65: 140.3949832 | E65: 104.1372723 | F65: 75.77146415 | G65: 58.1195834 | H65: 52.18060541 | S65: 5.553989419e-07 | T65: 2.10167435e-14 | U65: 9.965674183e-21 | V65: 5.63294929e-25 | W65: 1.905161476e-26
C66: 43.2 | D66: 140.7271521 | E66: 105.030624 | F66: 76.99678869 | G66: 59.47313147 | H66: 53.55948517 | S66: 7.352590439e-07 | T66: 3.601360654e-14 | U66: 2.062633052e-20 | V66: 1.260719706e-24 | W66: 4.292769438e-26
C67: 44.4 | D67: 141.0482629 | E67: 105.899105 | F67: 78.19931187 | G67: 60.81411907 | H67: 54.93120024 | S67: 9.638653297e-07 | T67: 6.066024297e-14 | U67: 4.195208201e-20 | V67: 2.794329185e-24 | W67: 9.633875772e-26
C68: 45.6 | D68: 141.3591767 | E68: 106.7443817 | F68: 79.37991847 | G68: 62.14206677 | H68: 56.29463971 | S68: 1.252003224e-06 | T68: 1.005418411e-13 | U68: 8.391180821e-20 | V68: 6.131184912e-24 | W68: 2.151048683e-25
C69: 46.8 | D69: 141.6606611 | E69: 107.567956 | F69: 80.53942979 | G69: 63.45657105 | H69: 57.64882646 | S69: 1.612335268e-06 | T69: 1.641430578e-13 | U69: 1.651710718e-19 | V69: 1.331325335e-23 | W69: 4.773869927e-25
C70: 48 | D70: 141.9534022 | E70: 108.3711823 | F70: 81.6786081 | G70: 64.75729583 | H70: 58.99290456 | S70: 2.059642584e-06 | T70: 2.641935919e-13 | U70: 3.201636001e-19 | V70: 2.860170006e-23 | W70: 1.052207767e-24
C71: 49.2 | D71: 142.2380135 | E71: 109.1552842 | F71: 82.79816115 | G71: 66.04396494 | H71: 60.32612769 | S71: 2.611086444e-06 | T71: 4.19569733e-13 | U71: 6.115133747e-19 | V71: 6.078390651e-23 | W71: 2.301614363e-24
C72: 50.4 | D72: 142.5150454 | E72: 109.9213679 | F72: 83.89874633 | G72: 67.31635537 | H72: 61.64784851 | S72: 3.286490573e-06 | T72: 6.579553688e-13 | U72: 1.151566863e-18 | V72: 1.277670318e-22 | W72: 4.99343382e-24
C73: 51.6 | D73: 142.7849922 | E73: 110.670435 | F73: 84.98097481 | G73: 68.57429128 | H73: 62.95750879 | S73: 4.108644744e-06 | T73: 1.019531428e-12 | U73: 2.139241493e-18 | V73: 2.656115381e-22 | W73: 1.073937687e-23
C74: 52.8 | D74: 143.0482983 | E74: 111.4033936 | F74: 86.04541538 | G74: 69.81763869 | H74: 64.25463056 | S74: 5.103630128e-06 | T74: 1.562046568e-12 | U74: 3.922312632e-18 | V74: 5.460784517e-22 | W74: 2.288690099e-23
C75: 54 | D75: 143.3053643 | E75: 112.1210679 | F75: 87.09259805 | G75: 71.04630064 | H75: 65.53880785 | S75: 6.301166817e-06 | T75: 2.367728452e-12 | U75: 7.101458197e-18 | V75: 1.110300002e-21 | W75: 4.831387681e-23
C76: 55.2 | D76: 143.5565518 | E76: 112.8242074 | F76: 88.1230174 | G76: 72.26021302 | H76: 66.80969938 | S76: 7.7349838e-06 | T76: 3.552629493e-12 | U76: 1.270207779e-17 | V76: 2.232611525e-21 | W76: 1.009979911e-22
C77: 56.4 | D77: 143.8021875 | E77: 113.5134944 | F77: 89.13713567 | G77: 73.45934075 | H77: 68.06702171 | S77: 9.443211618e-06 | T77: 5.279169598e-12 | U77: 2.245491774e-17 | V77: 4.440123652e-21 | W77: 2.090331499e-22
C78: 57.6 | D78: 144.0425673 | E78: 114.1895509 | F78: 90.13538565 | G78: 74.64367439 | H78: 69.31054326 | S78: 1.146879778e-05 | T78: 7.772848742e-12 | U78: 3.924953956e-17 | V78: 8.73408081e-21 | W78: 4.282608025e-22
C79: 58.8 | D79: 144.2779594 | E79: 114.8529453 | F79: 91.11817324 | G79: 75.81322716 | H79: 70.5400787 | S79: 1.385994491e-05 | T79: 1.134436261e-11 | U79: 6.785956829e-17 | V79: 1.699491096e-20 | W79: 8.684444187e-22
C80: 60 | D80: 144.5086074 | E80: 115.5041975 | F80: 92.08587991 | G80: 76.96803219 | H80: 71.75548402 | S80: 1.667057155e-05 | T80: 1.641867529e-11 | U80: 1.160910831e-16 | V80: 3.271495417e-20 | W80: 1.742946865e-21
C81: 61.2 | D81: 144.734733 | E81: 116.1437839 | F81: 93.03886481 | G81: 78.10814021 | H81: 72.95665203 | S81: 1.996079526e-05 | T81: 2.357299569e-11 | U81: 1.965835267e-16 | V81: 6.230909242e-20 | W81: 3.461930178e-21
C82: 62.4 | D82: 144.9565383 | E82: 116.7721422 | F82: 93.97746684 | G82: 79.23361735 | H82: 74.14350832 | S82: 2.37974377e-05 | T82: 3.358608234e-11 | U82: 3.296075383e-16 | V82: 1.174332177e-19 | W82: 6.805213955e-21
C83: 63.6 | D83: 145.1742077 | E83: 117.3896748 | F83: 94.90200637 | G83: 80.34454322 | H83: 75.3160076 | S83: 2.825455116e-05 | T83: 4.750188029e-11 | U83: 5.473722175e-16 | V83: 2.190410923e-19 | W83: 1.323925911e-20
C84: 64.8 | D84: 145.3879099 | E84: 117.9967529 | F84: 95.81278694 | G84: 81.44100926 | H84: 76.47413042 | S84: 3.341396577e-05 | T84: 6.671119084e-11 | U84: 9.005978505e-16 | V84: 4.044074951e-19 | W84: 2.549196197e-20
C85: 66 | D85: 145.5977995 | E85: 118.5937192 | F85: 96.71009671 | G85: 82.52311718 | H85: 77.61788024 | S85: 3.936585673e-05 | T85: 9.305591027e-11 | U85: 1.468459972e-15 | V85: 7.391595017e-19 | W85: 4.858346649e-20
C86: 67.2 | D86: 145.8040185 | E86: 119.1808911 | F86: 97.59420983 | G86: 83.59097763 | H86: 78.74728081 | S86: 4.620933051e-05 | T86: 1.289613695e-10 | U86: 2.373509058e-15 | V86: 1.337675839e-18 | W86: 9.165471139e-20
C87: 68.4 | D87: 146.0066973 | E87: 119.7585629 | F87: 98.4653876 | G87: 84.64470896 | H87: 79.86237375 | S87: 5.405302895e-05 | T87: 1.776034875e-10 | U87: 3.803874587e-15 | V87: 2.3973267e-18 | W87: 1.711763813e-19
C88: 69.6 | D88: 146.2059565 | E88: 120.3270082 | F88: 99.32387962 | G88: 85.68443619 | H88: 80.96321645 | S88: 6.301574996e-05 | T88: 2.431188443e-10 | U88: 6.046050098e-15 | V88: 4.255377724e-18 | W88: 3.165210731e-19
C89: 70.8 | D89: 146.4019072 | E89: 120.8864821 | F89: 100.1699248 | G89: 86.71029 | H89: 82.04988016 | S89: 7.322708355e-05 | T89: 3.308674182e-10 | U89: 9.5329306e-15 | V89: 7.482645899e-18 | W89: 5.795388713e-19
C90: 72 | D90: 146.5946525 | E90: 121.4372228 | F90: 101.0037521 | G90: 87.72240591 | H90: 83.12244827 | S90: 8.482806152e-05 | T90: 4.47759642e-10 | U90: 1.491367274e-14 | V90: 1.303618353e-17 | W90: 1.050845163e-18
C91: 73.2 | D91: 146.7842878 | E91: 121.9794533 | F91: 101.8255816 | G91: 88.72092349 | H91: 84.18101483 | S91: 9.797181932e-05 | T91: 6.026616613e-10 | U91: 2.315455211e-14 | V91: 2.250588275e-17 | W91: 1.887248782e-18
C92: 74.4 | D92: 146.970902 | E92: 122.5133828 | F92: 102.635625 | G92: 89.70598573 | H92: 85.22568309 | S92: 0.000112824268 | T92: 8.068952534e-10 | U92: 3.568353776e-14 | V92: 3.850915104e-17 | W92: 3.357486589e-18
C93: 75.6 | D93: 147.154578 | E93: 123.0392081 | F93: 103.4340863 | G93: 90.67773836 | H93: 86.25656438 | S93: 0.0001295647746 | T93: 1.074851836e-09 | U93: 5.459609787e-14 | V93: 6.531693709e-17 | W93: 5.917747829e-18
C94: 76.8 | D94: 147.3353931 | E94: 123.5571147 | F94: 104.2211626 | G94: 91.63632938 | H94: 87.27377694 | S94: 0.0001483868489 | T94: 1.424743407e-09 | U94: 8.294618858e-14 | V94: 1.098380526e-16 | W94: 1.033521279e-17
C95: 78 | D95: 147.5134199 | E95: 124.0672781 | F95: 104.9970443 | G95: 92.58190856 | H95: 88.27744497 | S95: 0.0001694988337 | T95: 1.879517133e-09 | U95: 1.251549665e-13 | V95: 1.831536245e-16 | W95: 1.78882561e-17
C96: 79.2 | D96: 147.6887263 | E96: 124.5698641 | F96: 105.7619159 | G96: 93.51462701 | H96: 89.26769776 | S96: 0.000193124598 | T96: 2.467964766e-09 | U96: 1.875811474e-13 | V96: 3.028891118e-16 | W96: 3.068793926e-17
C97: 80.4 | D97: 147.8613765 | E97: 125.0650305 | F97: 106.5159563 | G97: 94.4346368 | H97: 90.24466893 | S97: 0.0002195042281 | T97: 3.22606303e-09 | U97: 2.79311924e-13 | V97: 4.968509978e-16 | W97: 5.218966829e-17
C98: 81.6 | D98: 148.0314308 | E98: 125.552927 | F98: 107.259339 | G98: 95.34209065 | H98: 91.20849567 | S98: 0.0002488947168 | T98: 4.19858681e-09 | U98: 4.13252969e-13 | V98: 8.085576551e-16 | W98: 8.80003813e-17
C99: 82.8 | D99: 148.1989463 | E99: 126.0336968 | F99: 107.992233 | G99: 96.2371416 | H99: 92.1593182 | S99: 0.0002815706462 | T99: 5.441043284e-09 | U99: 6.076215673e-13 | V99: 1.305584807e-15 | W99: 1.471410492e-16
C100: 84 | D100: 148.363977 | E100: 126.5074763 | F100: 108.7148025 | G100: 97.11994279 | H100: 93.09727918 | S100: 0.0003178248624 | T100: 7.021982241e-09 | U100: 8.879798999e-13 | V100: 2.0920609e-15 | W100: 2.440047365e-16
C101: 85.2 | D101: 148.5265744 | E101: 126.9743962 | F101: 109.4272075 | G101: 97.99064718 | H101: 94.02252319 | S101: 0.0003579691395 | T101: 9.02574567e-09 | U101: 1.289987897e-12 | V101: 3.32723483e-15 | W101: 4.013684415e-16
C102: 86.4 | D102: 148.6867872 | E102: 127.434582 | F102: 110.129604 | G102: 98.8494074 | H102: 94.93519637 | S102: 0.0004023348288 | T102: 1.155572847e-08 | U102: 1.863109245e-12 | V102: 5.252863119e-15 | W102: 6.549884757e-16
C103: 87.6 | D103: 148.8446622 | E103: 127.8881541 | F103: 110.8221444 | G103: 99.69637553 | H103: 95.83544596 | S103: 0.000451273492 | T103: 1.473823167e-08 | U103: 2.675572945e-12 | V103: 8.233313246e-15 | W103: 1.060556565e-15
C104: 88.8 | D104: 149.0002439 | E104: 128.3352284 | F104: 111.5049774 | G104: 100.5317029 | H104: 96.72341998 | S104: 0.0005051575151 | T104: 1.872700023e-08 | U104: 3.820979772e-12 | V104: 1.281387099e-14 | W104: 1.704147905e-15
C105: 90 | D105: 149.153575 | E105: 128.7759169 | F105: 112.1782486 | G105: 101.3555402 | H105: 97.59926695 | S105: 0.0005643806991 | T105: 2.370854885e-08 | U105: 5.427052232e-12 | V105: 1.980492623e-14 | W105: 2.717795092e-15
C106: 91.2 | D106: 149.3046964 | E106: 129.2103275 | F106: 112.8421002 | G106: 102.1680369 | H106: 98.46313557 | S106: 0.0006293588259 | T106: 2.990839186e-08 | U106: 7.667163116e-12 | V106: 3.040269542e-14 | W106: 4.302530217e-15
C107: 92.4 | D107: 149.4536474 | E107: 129.6385647 | F107: 113.4966716 | G107: 102.9693416 | H107: 99.31517454 | S107: 0.0007005301962 | T107: 3.759830694e-08 | U107: 1.07754475e-11 | V107: 4.636118354e-14 | W107: 6.76222808e-15
C108: 93.6 | D108: 149.6004661 | E108: 130.0607298 | F108: 114.1420993 | G108: 103.7596017 | H108: 100.1555323 | S108: 0.0007783561359 | T108: 4.710477684e-08 | U108: 1.506651281e-11 | V108: 7.023553258e-14 | W108: 1.055295902e-14
C109: 94.8 | D109: 149.7451888 | E109: 130.4769208 | F109: 114.778517 | G109: 104.5389634 | H109: 100.9843568 | S109: 0.0008633214687 | T109: 5.881876906e-08 | U109: 2.096101985e-11 | V109: 1.057241862e-13 | W109: 1.63544559e-14
C110: 96 | D110: 149.887851 | E110: 130.8872332 | F110: 115.4060559 | G110: 105.3075714 | H110: 101.8017955 | S110: 0.0009559349525 | T110: 7.320703045e-08 | U110: 2.901872354e-11 | V110: 1.581469768e-13 | W110: 2.517289534e-14
C111: 97.2 | D111: 150.0284869 | E111: 131.2917598 | F111: 116.0248447 | G111: 106.0655694 | H111: 102.6079951 | S111: 0.001056729676 | T111: 9.082509114e-08 | U111: 3.998094694e-11 | V111: 2.35109019e-13 | W111: 3.848772152e-14
C112: 98.4 | D112: 150.1671295 | E112: 131.6905907 | F112: 116.6350099 | G112: 106.8130994 | H112: 103.4031014 | S112: 0.001166263413 | T112: 1.123321913e-07 | U112: 5.482492855e-11 | V112: 3.474170615e-13 | W112: 5.846000521e-14
C113: 99.6 | D113: 150.303811 | E113: 132.0838139 | F113: 117.2366755 | G113: 107.5503021 | H113: 104.1872592 | S113: 0.001285118931 | T113: 1.385083639e-07 | U113: 7.483304514e-11 | V113: 5.103368197e-13 | W113: 8.822622102e-14
C114: 100.8 | D114: 150.4385627 | E114: 132.4715154 | F114: 117.8299633 | G114: 108.2773167 | H114: 104.9606123 | S114: 0.001413904259 | T114: 1.702739281e-07 | U114: 1.016805873e-10 | V114: 7.453081645e-13 | W114: 1.323098422e-13
C115: 102 | D115: 150.5714148 | E115: 132.8537787 | F115: 118.4149932 | G115: 108.9942809 | H115: 105.7233033 | S115: 0.001553252892 | T115: 2.087116672e-07 | U115: 1.375465711e-10 | V115: 1.082271587e-12 | W115: 1.971944294e-13
C116: 103.2 | D116: 150.702397 | E116: 133.2306859 | F116: 118.9918829 | G116: 109.7013307 | H116: 106.4754736 | S116: 0.001703823961 | T116: 2.550919916e-07 | U116: 1.852530278e-10 | V116: 1.562806189e-12 | W116: 2.921167278e-13
C117: 104.4 | D117: 150.831538 | E117: 133.6023169 | F117: 119.5607481 | G117: 110.3986008 | H117: 107.2172633 | S117: 0.001866302333 | T117: 3.109014049e-07 | U117: 2.484393474e-10 | V117: 2.24433911e-12 | W117: 4.301576968e-13
C118: 105.6 | D118: 150.9588661 | E118: 133.9687502 | F118: 120.1217028 | G118: 111.0862242 | H118: 107.9488112 | S118: 0.002041398666 | T118: 3.778746199e-07 | U118: 3.31779589e-10 | V118: 3.205761909e-12 | W118: 6.297346198e-13
C119: 106.8 | D119: 151.0844086 | E119: 134.3300624 | F119: 120.6748589 | G119: 111.7643324 | H119: 108.6702546 | S119: 0.0022298494 | T119: 4.580306901e-07 | U119: 4.412522358e-10 | V119: 4.55488467e-12 | W119: 9.166300479e-13
C120: 108 | D120: 151.2081924 | E120: 134.6863287 | F120: 121.2203266 | G120: 112.4330551 | H120: 109.3817295 | S120: 0.002432416691 | T120: 5.537135511e-07 | U120: 5.844737035e-10 | V120: 6.438277986e-12 | W120: 1.326735209e-12
C121: 109.2 | D121: 151.3302438 | E121: 135.0376228 | F121: 121.7582145 | G121: 113.0925208 | H121: 110.0833705 | S121: 0.00264988828 | T121: 6.676373862e-07 | U121: 7.711090356e-10 | V121: 9.054201823e-12 | W121: 1.909739018e-12
C122: 110.4 | D122: 151.4505884 | E122: 135.384017 | F122: 122.2886293 | G122: 113.742856 | H122: 110.7753105 | S122: 0.002883077306 | T122: 8.029372558e-07 | U122: 1.013375678e-09 | V122: 1.266950479e-11 | W122: 2.734061779e-12
C123: 111.6 | D123: 151.5692514 | E123: 135.7255822 | F123: 122.8116762 | G123: 114.384186 | H123: 111.4576811 | S123: 0.003132822044 | T123: 9.632254538e-07 | U123: 1.32665906e-09 | V123: 1.764160505e-11 | W123: 3.893418518e-12
C124: 112.8 | D124: 151.6862575 | E124: 136.062388 | F124: 123.3274585 | G124: 115.0166342 | H124: 112.1306123 | S124: 0.00339998559 | T124: 1.152654076e-06 | U124: 1.730261955e-09 | V124: 2.444694358e-11 | W124: 5.515504716e-12
C125: 114 | D125: 151.8016308 | E125: 136.3945028 | F125: 123.8360784 | G125: 115.6403227 | H125: 112.7942326 | S125: 0.003685455469 | T125: 1.375984307e-06 | U125: 2.248313314e-09 | V125: 3.371764176e-11 | W125: 7.773431992e-12
C126: 115.2 | D126: 151.9153951 | E126: 136.7219939 | F126: 124.3376361 | G126: 116.2553717 | H126: 113.4486691 | S126: 0.003990143183 | T126: 1.638662948e-06 | U126: 2.910866467e-09 | V126: 4.628850999e-11 | W126: 1.090070878e-11
C127: 116.4 | D127: 152.0275735 | E127: 137.0449273 | F127: 124.8322305 | G127: 116.8619003 | H127: 114.094047 | S127: 0.00431498369 | T127: 1.946906742e-06 | U127: 3.755221392e-09 | V127: 6.325705578e-11 | W127: 1.521076818e-11
C128: 117.6 | D128: 152.138189 | E128: 137.3633678 | F128: 125.3199592 | G128: 117.4600255 | H128: 114.7304903 | S128: 0.004660934812 | T128: 2.307795039e-06 | U128: 4.827511107e-09 | V128: 8.605974305e-11 | W128: 2.112229999e-11
C129: 118.8 | D129: 152.2472641 | E129: 137.6773794 | F129: 125.8009179 | G129: 118.0498633 | H129: 115.3581214 | S129: 0.005028976578 | T129: 2.729371396e-06 | U129: 6.184598311e-09 | V129: 1.165684778e-10 | W129: 2.919195582e-11
C130: 120 | D130: 152.3548206 | E130: 137.9870248 | F130: 126.2752014 | G130: 118.6315278 | H130: 115.9770611 | S130: 0.005420110498 | T130: 3.220754689e-06 | U130: 7.896335147e-09 | V130: 1.572121566e-10 | W130: 4.015637609e-11
C131: 121.2 | D131: 152.4608805 | E131: 138.2923658 | F131: 126.7429028 | G131: 119.2051318 | H131: 116.5874287 | S131: 0.005835358771 | T131: 3.79226033e-06 | U131: 1.004824648e-08 | V131: 2.111291383e-10 | W131: 5.498594807e-11
C132: 122.4 | D132: 152.5654648 | E132: 138.5934632 | F132: 127.2041139 | G132: 119.7707864 | H132: 117.1893419 | S132: 0.006275763421 | T132: 4.455532198e-06 | U132: 1.274470544e-08 | V132: 2.823577052e-10 | W132: 7.495325949e-11
C133: 123.6 | D133: 152.6685947 | E133: 138.8903768 | F133: 127.6589252 | G133: 120.3286015 | H133: 117.7829169 | S133: 0.006742385372 | T133: 5.22368589e-06 | U133: 1.611267912e-08 | V133: 3.760730035e-10 | W133: 1.017198787e-10
C134: 124.8 | D134: 152.7702907 | E134: 139.1831656 | F134: 128.1074259 | G134: 120.8786853 | H134: 118.3682686 | S134: 0.007236303454 | T134: 6.111463878e-06 | U134: 2.030613252e-08 | V134: 4.988806113e-10 | W134: 1.374458887e-10
C135: 126 | D135: 152.870573 | E135: 139.4718875 | F135: 128.5497039 | G135: 121.4211445 | H135: 118.9455101 | S135: 0.007758613345 | T135: 7.135403191e-06 | U135: 2.551118978e-08 | V135: 6.591788242e-10 | W135: 1.849275494e-10
C136: 127.2 | D136: 152.9694617 | E136: 139.7565996 | F136: 128.9858459 | G136: 121.9560846 | H136: 119.5147532 | S136: 0.008310426447 | T136: 8.314016179e-06 | U136: 3.19521639e-08 | V136: 8.67603992e-10 | W136: 2.477695823e-10
C137: 128.4 | D137: 153.0669764 | E137: 140.0373582 | F137: 129.4159372 | G137: 122.4836095 | H137: 120.0761082 | S137: 0.008892868705 | T137: 9.667984964e-06 | U137: 3.989857902e-08 | V137: 1.137575839e-09 | W137: 3.305998945e-10
C138: 129.6 | D138: 153.1631365 | E138: 140.3142187 | F138: 129.8400621 | G138: 123.0038218 | H138: 120.6296839 | S138: 0.009507079363 | T138: 1.122037009e-05 | U138: 4.967332365e-08 | V138: 1.485962682e-09 | W138: 4.393361038e-10
C139: 130.8 | D139: 153.2579609 | E139: 140.5872357 | F139: 130.2583035 | G139: 123.5168226 | H139: 121.1755876 | S139: 0.01015420966 | T139: 1.299683392e-05 | U139: 6.166208823e-08 | V139: 1.933889884e-09 | W139: 5.815150395e-10
C140: 132 | D140: 153.3514684 | E140: 140.8564628 | F140: 130.6707433 | G140: 124.0227116 | H140: 121.7139253 | S140: 0.01083542147 | T140: 1.502587928e-05 | U140: 7.632425661e-08 | V140: 2.507718774e-09 | W140: 7.666984919e-10
C141: 133.2 | D141: 153.4436775 | E141: 141.1219531 | F141: 131.0774621 | G141: 124.5215873 | H141: 122.2448015 | S141: 0.01155188589 | T141: 1.733910378e-05 | U141: 9.420543829e-08 | V141: 3.24022768e-09 | W141: 1.006970918e-09
C142: 134.4 | D142: 153.5346064 | E142: 141.3837587 | F142: 131.4785394 | G142: 125.0135468 | H142: 122.7683192 | S142: 0.01230478177 | T142: 1.997147026e-05 | U142: 1.159518465e-07 | V142: 4.172031745e-09 | W142: 1.317547615e-09
C143: 135.6 | D143: 153.624273 | E143: 141.6419311 | F143: 131.8740537 | G143: 125.4986858 | H143: 123.2845803 | S143: 0.01309529422 | T143: 2.296159367e-05 | U143: 1.423267466e-07 | V143: 5.353283797e-09 | W143: 1.717515083e-09
C144: 136.8 | D144: 153.712695 | E144: 141.8965209 | F144: 132.2640821 | G144: 125.9770987 | H144: 123.7936849 | S144: 0.01392461301 | T144: 2.635204481e-05 | U144: 1.74229219e-07 | V144: 6.845704862e-09 | W144: 2.230728988e-09
C145: 138 | D145: 153.7998896 | E145: 142.1475781 | F145: 132.648701 | G145: 126.4488786 | H145: 124.2957322 | S145: 0.01479393099 | T145: 3.018967105e-05 | U145: 2.12715502e-07 | V145: 8.724999954e-09 | W145: 2.886899286e-09
C146: 139.2 | D146: 153.8858742 | E146: 142.3951519 | F146: 133.0279854 | G146: 126.9141175 | H146: 124.7908197 | S146: 0.01570444245 | T146: 3.452593432e-05 | U146: 2.590232029e-07 | V146: 1.108372259e-08 | W146: 3.722896837e-09
C147: 140.4 | D147: 153.9706655 | E147: 142.6392909 | F147: 133.4020094 | G147: 127.3729059 | H147: 125.2790437 | S147: 0.01665734142 | T147: 3.941726644e-05 | U147: 3.145986855e-07 | V147: 1.403466009e-08 | W147: 4.784321141e-09
C148: 141.6 | D148: 154.0542802 | E148: 142.8800428 | F148: 133.7708461 | G148: 127.8253332 | H148: 125.7604993 | S148: 0.01765381995 | T148: 4.492544188e-05 | U148: 3.811279679e-07 | V148: 1.771482141e-08 | W148: 6.12737484e-09
C149: 142.8 | D149: 154.1367347 | E149: 143.1174547 | F149: 134.1345675 | G149: 128.2714874 | H149: 126.23528 | S149: 0.0186950664 | T149: 5.111796783e-05 | U149: 4.605714863e-07 | V149: 2.229011937e-08 | W149: 7.821097324e-09
C150: 144 | D150: 154.2180452 | E150: 143.3515732 | F150: 134.4932445 | G150: 128.7114556 | H150: 126.7034783 | S150: 0.0197822636 | T150: 5.806849156e-05 | U150: 5.552031048e-07 | V150: 2.796085106e-08 | W150: 9.950017232e-09
C151: 145.2 | D151: 154.2982275 | E151: 143.5824441 | F151: 134.8469473 | G151: 129.1453234 | H151: 127.1651854 | S151: 0.0209165871 | T151: 6.585722479e-05 | U151: 6.676537744e-07 | V151: 3.496809208e-08 | W151: 1.261729192e-08
C152: 146.4 | D152: 154.3772975 | E152: 143.8101124 | F152: 135.1957448 | G152: 129.5731754 | H152: 127.6204911 | S152: 0.02209920336 | T152: 7.457138482e-05 | U152: 8.009602677e-07 | V152: 4.360113416e-08 | W152: 1.594841105e-08
C153: 147.6 | D153: 154.4552706 | E153: 144.0346228 | F153: 135.5397051 | G153: 129.9950949 | H153: 128.0694841 | S153: 0.02333126786 | T153: 8.430565187e-05 | U153: 9.586194404e-07 | V153: 5.420610982e-08 | W153: 2.009555162e-08
C154: 148.8 | D154: 154.532162 | E154: 144.2560191 | F154: 135.8788954 | G154: 130.4111641 | H154: 128.5122518 | S154: 0.0246139233 | T154: 9.516264238e-05 | U154: 1.144648491e-06 | V154: 6.71959636e-08 | W154: 2.524268246e-08
C155: 150 | D155: 154.6079867 | E155: 144.4743446 | F155: 136.2133818 | G155: 130.8214641 | H155: 128.9488805 | S155: 0.02594829773 | T155: 0.0001072533974 | U155: 1.363651712e-06 | V155: 8.306194563e-08 | W155: 3.161152851e-08
C156: 151.2 | D156: 154.6827597 | E156: 144.689642 | F156: 136.5432295 | G156: 131.2260749 | H156: 129.3794552 | S156: 0.0273355027 | T156: 0.0001206978855 | U156: 1.620894252e-06 | V156: 1.023868212e-07 | W156: 3.946851791e-08
C157: 152.4 | D157: 154.7564956 | E157: 144.9019532 | F157: 136.8685031 | G157: 131.6250753 | H157: 129.8040598 | S157: 0.0287766314 | T157: 0.0001356255194 | U157: 1.922383411e-06 | V157: 1.258600083e-07 | W157: 4.913284902e-08
C158: 153.6 | D158: 154.8292087 | E158: 145.1113198 | F158: 137.1892659 | G158: 132.0185432 | H158: 130.222777 | S158: 0.03027275678 | T158: 0.000152175685 | U158: 2.274958034e-06 | V158: 1.542948753e-07 | W158: 6.098582963e-08
C159: 154.8 | D159: 154.9009132 | E159: 145.3177827 | F159: 137.5055804 | G159: 132.4065551 | H159: 130.6356885 | S159: 0.03182492975 | T159: 0.0001704982828 | U159: 2.686386557e-06 | V159: 1.886484505e-07 | W159: 7.548165646e-08
C160: 156 | D160: 154.9716232 | E160: 145.5213822 | F160: 137.8175085 | G160: 132.7891868 | H160: 131.0428746 | S160: 0.03343417731 | T160: 0.0001907542789 | U160: 3.165474286e-06 | V160: 2.30043817e-07 | W160: 9.315982057e-08
C161: 157.2 | D161: 155.0413525 | E161: 145.722158 | F161: 138.1251109 | G161: 133.1665127 | H161: 131.4444147 | S161: 0.03510150075 | T161: 0.000213116266 | U161: 3.722180502e-06 | V161: 2.797954894e-07 | W161: 1.146593421e-07
C162: 158.4 | D162: 155.1101147 | E162: 145.9201493 | F162: 138.4284477 | G162: 133.5386065 | H162: 131.840387 | S162: 0.03682787386 | T162: 0.0002377690317 | U162: 4.367745982e-06 | V162: 3.394380892e-07 | W162: 1.407350572e-07
C163: 159.6 | D163: 155.1779232 | E163: 146.1153948 | F163: 138.727578 | G163: 133.9055408 | H163: 132.2308688 | S163: 0.03861424113 | T163: 0.000264910134 | U163: 5.114831535e-06 | V163: 4.107586614e-07 | W163: 1.722761997e-07
C164: 160.8 | D164: 155.2447913 | E164: 146.3079326 | F164: 139.0225602 | G164: 134.2673869 | H164: 132.6159362 | S164: 0.04046151606 | T164: 0.0002947504804 | U164: 5.977668154e-06 | V164: 4.958329967e-07 | W164: 2.103275417e-07
C165: 162 | D165: 155.310732 | E165: 146.4978003 | F165: 139.3134517 | G165: 134.6242155 | H165: 132.9956641 | S165: 0.0423705794 | T165: 0.0003275149113 | U165: 6.97221937e-06 | V165: 5.970663475e-07 | W165: 2.561133779e-07
C166: 163.2 | D166: 155.3757582 | E166: 146.6850349 | F166: 139.6003095 | G166: 134.9760961 | H166: 133.3701266 | S166: 0.04434227751 | T166: 0.0003634427841 | U166: 8.116356413e-06 | V166: 7.172389507e-07 | W166: 3.110646626e-07
C167: 164.4 | D167: 155.4398827 | E167: 146.8696729 | F167: 139.8831893 | G167: 135.3230974 | H167: 133.7393967 | S167: 0.04637742073 | T167: 0.0004027885568 | U167: 9.43004672e-06 | V167: 8.595567918e-07 | W167: 3.768496287e-07
C168: 165.6 | D168: 155.5031178 | E168: 147.0517504 | F168: 140.1621464 | G168: 135.665287 | H168: 134.1035464 | S168: 0.04847678177 | T168: 0.0004458223693 | U168: 1.093555638e-05 | V168: 1.027708069e-06 | W168: 4.554082443e-07
C169: 166.8 | D169: 155.565476 | E169: 147.2313029 | F169: 140.4372351 | G169: 136.0027315 | H169: 134.4626466 | S169: 0.05064109419 | T169: 0.0004928306201 | U169: 1.265766703e-05 | V169: 1.225925839e-06 | W169: 5.489908837e-07
C170: 168 | D170: 155.6269693 | E170: 147.4083654 | F170: 140.7085092 | G170: 136.3354969 | H170: 134.8167675 | S170: 0.05287105093 | T170: 0.0005441165362 | U170: 1.462390767e-05 | V170: 1.459057341e-06 | W170: 6.602016148e-07
C171: 169.2 | D171: 155.68761 | E171: 147.5829726 | F171: 140.9760215 | G171: 136.6636479 | H171: 135.1659779 | S171: 0.05516730284 | T171: 0.0006000007345 | U171: 1.686480196e-05 | V171: 1.732640533e-06 | W171: 7.920465271e-07
C172: 170.4 | D172: 155.7474096 | E172: 147.7551583 | F172: 141.2398242 | G172: 136.9872485 | H172: 135.5103459 | S172: 0.05753045735 | T172: 0.0006608217717 | U172: 1.941413136e-05 | V172: 2.052988361e-06 | W172: 9.479875491e-07
C173: 171.6 | D173: 155.80638 | E173: 147.9249563 | F173: 141.4999688 | G173: 137.3063619 | H173: 135.8499388 | S173: 0.05996107711 | T173: 0.0007269366812 | U173: 2.230921444e-05 | V173: 2.427281335e-06 | W173: 1.132002225e-06
C174: 172.8 | D174: 155.8645326 | E174: 148.0923996 | F174: 141.7565059 | G174: 137.6210502 | H174: 136.1848228 | S174: 0.06245967881 | T174: 0.0007987214943 | U174: 2.559120285e-05 | V174: 2.863668971e-06 | W174: 1.348649945e-06
C175: 174 | D175: 155.9218788 | E175: 148.257521 | F175: 142.0094856 | G175: 137.9313749 | H175: 136.515063 | S175: 0.06502673195 | T175: 0.0008765717432 | U175: 2.930539412e-05 | V175: 3.37138069e-06 | W175: 1.603145134e-06
C176: 175.2 | D176: 155.9784297 | E176: 148.4203525 | F176: 142.2589573 | G176: 138.2373964 | H176: 136.8407239 | S176: 0.06766265776 | T176: 0.0009609029434 | U176: 3.350156151e-05 | V176: 3.960846755e-06 | W176: 1.901437946e-06
C177: 176.4 | D177: 156.0341964 | E177: 148.580926 | F177: 142.5049695 | G177: 138.5391743 | H177: 137.161869 | S177: 0.07036782815 | T177: 0.001052151054 | U177: 3.823430109e-05 | V177: 4.643829849e-06 | W177: 2.250302995e-06
C178: 177.6 | D178: 156.0891897 | E178: 148.7392729 | F178: 142.7475703 | G178: 138.8367676 | H178: 137.4785609 | S178: 0.07314256475 | T178: 0.00115077291 | U178: 4.356339613e-05 | V178: 5.433567891e-06 | W178: 2.657436699e-06
C179: 178.8 | D179: 156.1434205 | E179: 148.8954239 | F179: 142.986807 | G179: 139.1302342 | H179: 137.7908613 | S179: 0.07598713806 | T179: 0.001257246634 | U179: 4.955419876e-05 | V179: 6.344928686e-06 | W179: 3.13156381e-06
C180: 180 | D180: 156.1968992 | E180: 149.0494095 | F180: 143.2227262 | G180: 139.4196315 | H180: 138.0988311 | S180: 0.07890176661 | T180: 0.001372072007 | U180: 5.627802888e-05 | V180: 7.394577004e-06 | W180: 3.682553718e-06
C181: 181.2 | D181: 156.2496363 | E181: 149.2012598 | F181: 143.4553739 | G181: 139.7050157 | H181: 138.4025305 | S181: 0.08188661625 | T181: 0.001495770817 | U181: 6.381259008e-05 | V181: 8.601154661e-06 | W181: 4.321547119e-06
C182: 182.4 | D182: 156.3016421 | E182: 149.3510044 | F182: 143.6847955 | G182: 139.9864425 | H182: 138.7020185 | S182: 0.08494179952 | T182: 0.001628887165 | U182: 7.22424023e-05 | V182: 9.985474174e-06 | W182: 5.061093655e-06
C183: 183.6 | D183: 156.3529268 | E183: 149.4986725 | F183: 143.9110358 | G183: 140.2639669 | H183: 138.9973536 | S183: 0.08806737511 | T183: 0.001771987742 | U183: 8.165925102e-05 | V183: 1.157072654e-05 | W183: 5.915301115e-06
C184: 184.8 | D184: 156.4035002 | E184: 149.6442928 | F184: 144.1341388 | G184: 140.5376429 | H184: 139.2885934 | S184: 0.09126334735 | T184: 0.001925662057 | U184: 9.216265225e-05 | V184: 1.338270364e-05 | W184: 6.899996791e-06
C185: 186 | D185: 156.4533724 | E185: 149.7878938 | F185: 144.354148 | G185: 140.8075239 | H185: 139.5757947 | S185: 0.09452966585 | T185: 0.002090522631 | U185: 0.0001038603331 | V185: 1.545003582e-05 | W185: 8.032901582e-06
C186: 187.2 | D186: 156.502553 | E186: 149.9295035 | F186: 144.5711065 | G186: 141.0736626 | H186: 139.8590134 | S186: 0.09786622522 | T186: 0.002267205146 | U186: 0.0001168687267 | V186: 1.780444495e-05 | W186: 9.333817419e-06
C187: 188.4 | D187: 156.5510516 | E187: 150.0691496 | F187: 144.7850563 | G187: 141.3361107 | H187: 140.1383047 | S187: 0.1012728649 | T187: 0.002456368544 | U187: 0.0001313134819 | V187: 2.048101366e-05 | W187: 1.082482855e-05
C188: 189.6 | D188: 156.5988776 | E188: 150.2068591 | F188: 144.9960394 | G188: 141.5949195 | H188: 140.4137232 | S188: 0.1047493688 | T188: 0.002658695086 | U188: 0.0001473299846 | V188: 2.351847075e-05 | W188: 1.253051726e-05
C189: 190.8 | D189: 156.6460405 | E189: 150.342659 | F189: 145.2040968 | G189: 141.8501395 | H189: 140.6853226 | S189: 0.1082954657 | T189: 0.002874890354 | U189: 0.0001650638931 | V189: 2.695949342e-05 | W189: 1.447819446e-05
C190: 192 | D190: 156.6925493 | E190: 150.4765758 | F190: 145.4092691 | G190: 142.1018204 | H190: 140.9531557 | S190: 0.1119108289 | T190: 0.003105683204 | U190: 0.0001846716823 | V190: 3.08510264e-05 | W190: 1.669814569e-05
C191: 193.2 | D191: 156.7384132 | E191: 150.6086356 | F191: 145.6115963 | G191: 142.3500113 | H191: 141.2172749 | S191: 0.1155950765 | T191: 0.003351825671 | U191: 0.0002063211993 | V191: 3.524461817e-05 | W191: 1.922389296e-05
C192: 194.4 | D192: 156.7836411 | E192: 150.7388642 | F192: 145.8111178 | G192: 142.5947606 | H192: 141.4777316 | S192: 0.1193477719 | T192: 0.003614092815 | U192: 0.0002301922269 | V192: 4.019677448e-05 | W192: 2.209247275e-05
C193: 195.6 | D193: 156.8282419 | E193: 150.8672868 | F193: 146.0078726 | G193: 142.8361159 | H193: 141.7345765 | S193: 0.1231684235 | T193: 0.00389328251 | U193: 0.0002564770534 | V193: 4.576932918e-05 | W193: 2.534473056e-05
C194: 196.8 | D194: 156.8722241 | E194: 150.9939287 | F194: 146.2018991 | G194: 143.0741245 | H194: 141.9878599 | S194: 0.1270564858 | T194: 0.004190215183 | U194: 0.0002853810494 | V194: 5.202983228e-05 | W194: 2.902563235e-05
C195: 198 | D195: 156.9155965 | E195: 151.1188144 | F195: 146.393235 | G195: 143.3088326 | H195: 142.2376311 | S195: 0.1310113593 | T195: 0.004505733488 | U195: 0.0003171232468 | V195: 5.905195518e-05 | W195: 3.318459298e-05
C196: 199.2 | D196: 156.9583674 | E196: 151.2419683 | F196: 146.5819177 | G196: 143.5402861 | H196: 142.4839387 | S196: 0.1350323915 | T196: 0.004840701922 | U196: 0.0003519369209 | V196: 6.691591284e-05 | W196: 3.787582183e-05
C197: 200.4 | D197: 157.0005452 | E197: 151.3634145 | F197: 146.7679839 | G197: 143.7685301 | H197: 142.7268308 | S197: 0.1391188772 | T197: 0.00519600639 | U197: 0.0003900701728 | V197: 7.570890266e-05 | W197: 4.31586858e-05
C198: 201.6 | D198: 157.0421382 | E198: 151.4831766 | F198: 146.95147 | G198: 143.993609 | H198: 142.9663548 | S198: 0.1432700596 | T198: 0.005572553699 | U198: 0.0004317865096 | V198: 8.552555948e-05 | W198: 4.90980895e-05
C199: 202.8 | D199: 157.0831544 | E199: 151.6012779 | F199: 147.1324117 | G199: 144.2155668 | H199: 143.2025573 | S199: 0.1474851308 | T199: 0.005971270993 | U199: 0.0004773654212 | V199: 9.646842648e-05 | W199: 5.576487277e-05
C200: 204 | D200: 157.1236018 | E200: 151.7177416 | F200: 147.3108444 | G200: 144.4344468 | H200: 143.4354845 | S200: 0.1517632327 | T200: 0.00639310514 | U200: 0.000527102952 | V200: 0.0001086484411 | W200: 6.32362251e-05
C201: 205.2 | D201: 157.1634883 | E201: 151.8325903 | F201: 147.4868027 | G201: 144.6502916 | H201: 143.6651817 | S201: 0.1561034581 | T201: 0.006839022037 | U201: 0.0005813122637 | V201: 0.0001221854356 | W201: 7.159611704e-05
C202: 206.4 | D202: 157.2028217 | E202: 151.9458463 | F202: 147.6603211 | G202: 144.8631433 | H202: 143.8916938 | S202: 0.1605048517 | T202: 0.007310005874 | U202: 0.0006403241889 | V202: 0.0001372086508 | W202: 8.093574785e-05
C203: 207.6 | D203: 157.2416097 | E203: 152.0575319 | F203: 147.8314333 | G203: 145.0730435 | H203: 144.1150648 | S203: 0.1649664112 | T203: 0.007807058323 | U203: 0.000704487772 | V203: 0.0001538572633 | W203: 9.135400932e-05
C204: 208.8 | D204: 157.2798599 | E204: 152.1676688 | F204: 148.0001727 | G204: 145.280033 | H204: 144.3353384 | S204: 0.1694870882 | T204: 0.008331197678 | U204: 0.000774170796 | V204: 0.0001722809236 | W204: 0.0001029579649
C205: 210 | D205: 157.3175796 | E205: 152.2762784 | F205: 148.1665722 | G205: 145.4841522 | H205: 144.5525575 | S205: 0.1740657899 | T205: 0.008883457927 | U205: 0.0008497602911 | V205: 0.000192640305 | W205: 0.0001158633437
C206: 211.2 | D206: 157.3547763 | E206: 152.3833819 | F206: 148.3306643 | G206: 145.6854409 | H206: 144.7667645 | S206: 0.1787013799 | T206: 0.009464887771 | U206: 0.0009316630258 | V206: 0.0002151076621 | W206: 0.0001301950483
... 324 more rows

Sheet Outer Heated Annulus
C1: Peroxide Cured Silicones ONLY!
AJ2: Temp (K) | AK2: Ln (1/(t90 - ts1)) | AL2: Ln(1/ts(1)) | AM2: Slope/Interc | AN2: Slope/Interc
B3: Imp | C3: Metric | AJ3: =1/(D24+273.15) -> 0.002369387513 | AK3: =LN(1/(G24-F24)) -> -7.014185223 | AL3: =LN(1/(F24)) -> -5.009968405 | AM3: =SLOPE(AK3:AK5,AJ3:AJ5) -> -15664.77382 | AN3: =SLOPE(AL3:AL5,AJ3:AJ5) -> -12327.11386
B4: =C4/25.4 -> 0.1377952756 | C4: 3.5 | D4: in, mm | E4: Inner Radius, Ri | AJ4: =1/(D25+273.15) -> 0.002279202279 | AK4: =LN(1/(G25-F25)) -> -5.892251762 | AL4: =LN(1/(F25)) -> -3.710151589 | AM4: =INTERCEPT(AK3:AK5,AJ3:AJ5) -> 30.00748462 | AN4: =INTERCEPT(AL3:AL5,AJ3:AJ5) -> 24.25870357
B5: =C5/25.4 -> 0.2755905512 | C5: 7 | D5: in, mm | E5: Outer Radius, Ro | AJ5: =1/(D26+273.15) -> 0.00219611288 | AK5: =LN(1/(G26-F26)) -> -4.291828367 | AL5: =LN(1/(F26)) -> -2.879198457
C6: =0.0006*C8 - 0.4448 -> 0.2272 | D6: W/m-K | E6: Thermal Conductivity, k
C7: 1450 | D7: J/kg - K | E7: Heat Capacity, cp | Z7: 55.71428571
C8: 1120 | D8: kg/m3 | E8: Density, p | Z8: 20
Z9: 55.71428571
C10: 7 | D10: # | E10: Number of nodes
B13: =(C13*9/5)+32 -> 320 | C13: 160 | D13: F, C | E13: Mold Temperature, Tmo
B14: 69.8 | C14: 21 | D14: F, C | E14: Initial Rubber Temperature, Tr
C16: 600 | D16: sec | E16: Total T
C18: =8.3144621*-AM3 -> 130244.1682 | D18: J/mole | E18: Ea2 | F18: Activation Energy
C19: =POWER(2.71828,AM4) -> 1.076654156e+13 | D19: s-1 | E19: A2 | F19: Arrhenius Constant
C20: =8.3144621*-AN3 -> 102493.321 | D20: J/mole | E20: Ea1 | F20: Activation Energy
C21: =POWER(2.71828,AN4) -> 3.430947017e+10 | D21: s-1 | E21: A1 | F21: Arrhenius Constant
B22: 3 Temp Rheology Study (ASTM D5289)
C23: Cure Set | D23: Temperature, C | F23: Ts(2), sec | G23: TC(90), sec
C24: Low | D24: 148.9 | F24: 149.9 | G24: 1262.2
C25: Med | D25: 165.6 | F25: 40.86 | G25: 403.08
C26: High | D26: 182.2 | F26: 17.8 | G26: 90.9
D28: Temperature (time, x), C | S28: 90% SOC (time, x), %
C29: time, s | D29: 0.25 | E29: 0.75 | F29: 1.25 | G29: 1.75 | H29: 2.25 | I29: 2.75 | J29: 3.25 | S29: 0.25 | T29: 0.75 | U29: 1.25 | V29: 1.75 | W29: 2.25 | X29: 2.75 | Y29: 3.25
C30: 0 | D30: 21 | E30: 21 | F30: 21 | G30: 21 | H30: 21 | I30: 21 | J30: 21 | S30: 0 | T30: 0 | U30: 0 | V30: 0 | W30: 0 | X30: 0 | Y30: 0
C31: 1.2 | D31: 21.16845626 | E31: 21.29012298 | F31: 21.80669483 | G31: 23.41369076 | H31: 28.30770278 | I31: 43.22821785 | J31: 88.84341245 | S31: 1.155321979e-38 | T31: 1.259787257e-38 | U31: 1.81789545e-38 | V31: 5.642822904e-38 | W31: 1.649376653e-36 | X31: 2.548530933e-32 | Y31: 1.17744548e-21
C32: 2.4 | D32: 21.75848315 | E32: 22.1846272 | F32: 23.82265716 | G32: 28.15092924 | H32: 38.82356589 | I32: 63.62157357 | J32: 115.7250942 | S32: 2.500942899e-37 | T32: 3.098845401e-37 | U32: 7.275632807e-37 | V32: 7.973780905e-36 | W32: 3.997526935e-33 | X32: 4.875551641e-27 | Y32: 2.194810798e-16
C33: 3.6 | D33: 22.97359851 | E33: 23.85120967 | F33: 26.97741385 | G33: 34.25716131 | H33: 49.55987308 | I33: 78.91642566 | J33: 127.9234837 | S33: 2.193127915e-36 | T33: 3.246950857e-36 | U33: 1.451631074e-35 | V33: 6.86648297e-34 | W33: 3.720958211e-30 | X33: 2.163670804e-23 | Y33: 7.661327806e-14
C34: 4.8 | D34: 24.90464132 | E34: 26.29932761 | F34: 30.98532274 | G34: 40.87655682 | H34: 59.28294496 | I34: 90.03739949 | J34: 134.3553237 | S34: 1.50921585e-35 | T34: 2.794631232e-35 | U34: 2.66422568e-34 | V34: 5.237235186e-32 | W34: 1.332526571e-27 | X34: 8.365621597e-21 | Y34: 2.697910175e-12
C35: 6 | D35: 27.53487554 | E35: 29.43454942 | F35: 35.53664724 | G35: 47.47152811 | H35: 67.70076589 | I35: 98.26218491 | J35: 138.2529303 | S35: 1.03723223e-34 | T35: 2.479339233e-34 | U35: 5.195401842e-33 | V35: 3.323674318e-30 | W35: 1.883463851e-25 | X35: 6.941603317e-19 | Y35: 3.244878976e-11
C36: 7.2 | D36: 30.77539277 | E36: 33.11584058 | F36: 40.3784207 | G36: 53.76876803 | H36: 74.89746186 | I36: 104.5396199 | J36: 140.8921635 | S36: 8.012662436e-34 | T36: 2.491020299e-33 | U36: 1.076395671e-31 | V36: 1.604636147e-28 | W36: 1.206604137e-23 | X36: 2.13277026e-17 | Y36: 2.147698373e-10
C37: 8.4 | D37: 34.50274775 | E37: 37.19481177 | F37: 45.32973284 | G37: 59.66012535 | H37: 81.06594025 | I37: 109.4938831 | J37: 142.830166 | S37: 7.316471478e-33 | T37: 2.896520031e-32 | U37: 2.252891591e-30 | V37: 5.661058456e-27 | W37: 4.098463161e-22 | X37: 3.359239146e-16 | Y37: 9.768291691e-10
C38: 9.6 | D38: 38.58692852 | E38: 41.53670822 | F38: 50.27080974 | G38: 65.12586725 | H38: 86.40317095 | I38: 113.5263678 | J38: 144.3378558 | S38: 7.898470372e-32 | T38: 3.807156677e-31 | U38: 4.502685336e-29 | V38: 1.461727105e-25 | W38: 8.449708562e-21 | X38: 3.308891347e-15 | Y38: 3.43986601e-09
C39: 10.8 | D39: 42.90796261 | E39: 46.02880848 | F39: 55.12639349 | G39: 70.18747517 | H39: 91.07719207 | I39: 116.8981284 | J39: 145.5610961 | S39: 9.738577871e-31 | T39: 5.397922034e-30 | U39: 8.224898963e-28 | V39: 2.827468596e-24 | W39: 1.175765677e-19 | X39: 2.312978766e-14 | Y39: 1.006813348e-08
C40: 12 | D40: 47.36361426 | E40: 50.58168699 | F40: 59.85123962 | G40: 74.88195477 | H40: 95.22185354 | I40: 119.782961 | J40: 146.5855484 | S40: 1.302010655e-29 | T40: 7.836621996e-29 | U40: 1.335475911e-26 | V40: 4.225926409e-23 | W40: 1.196989997e-18 | X40: 1.247759987e-13 | Y40: 2.563131084e-08
C41: 13.2 | D41: 51.87136863 | E41: 55.12707232 | F41: 64.41951613 | G41: 79.2491476 | H41: 98.94072535 | I41: 122.2996095 | J41: 147.465096 | S41: 1.788344839e-28 | T41: 1.112425415e-27 | U41: 1.899743389e-25 | V41: 5.035104275e-22 | W41: 9.475276255e-18 | X41: 5.503861555e-13 | Y41: 5.852856743e-08
C42: 14.4 | D42: 56.36730082 | E42: 59.61446599 | F42: 68.8176778 | G42: 83.32615626 | H42: 102.3130509 | I42: 124.5312056 | J42: 148.2354425 | S42: 2.408772439e-27 | T42: 1.490174144e-26 | U42: 2.35537903e-24 | V42: 4.920618396e-21 | W42: 6.107553008e-17 | X42: 2.068551776e-12 | Y42: 1.225143934e-07
C43: 15.6 | D43: 60.80356153 | E43: 64.00762926 | F43: 73.03987927 | G43: 87.1453861 | H43: 105.3993223 | I43: 126.5372094 | J43: 148.9211837 | S43: 3.07099317e-26 | T43: 1.838099644e-25 | U43: 2.547117245e-23 | V43: 4.042940929e-20 | W43: 3.320851049e-16 | X43: 6.826976307e-12 | Y43: 2.388584764e-07
C44: 16.8 | D44: 65.1454902 | E44: 68.28142707 | F44: 77.08508278 | G44: 90.73428948 | H44: 108.2458431 | I44: 128.3609425 | J44: 149.5397696 | S44: 3.616678465e-25 | T44: 2.056005953e-24 | U44: 2.412567837e-22 | V44: 2.852148082e-19 | W44: 1.565309672e-15 | X44: 2.0238501e-11 | Y44: 4.389634958e-07
C45: 18 | D45: 69.36887335 | E45: 72.4191913 | F45: 80.95524553 | G45: 94.11582373 | H45: 110.8882649 | I45: 130.0344816 | J45: 150.103868 | S45: 3.87498685e-24 | T45: 2.068301494e-23 | U45: 2.013665815e-21 | V45: 1.75847319e-18 | W45: 6.534404081e-15 | X45: 5.48320476e-11 | Y45: 7.674551033e-07
C46: 19.2 | D46: 73.4575682 | E46: 76.41060818 | F46: 84.65417986 | G46: 97.3091387 | H46: 113.3542628 | I46: 131.5819262 | J46: 150.6228497 | S46: 3.745806359e-23 | T46: 1.865201083e-22 | U46: 1.491392856e-20 | V46: 9.61742092e-18 | W46: 2.45710222e-14 | X46: 1.376104438e-10 | Y46: 1.285747309e-06
C47: 20.4 | D47: 77.40154896 | E47: 80.25006989 | F47: 88.18682919 | G47: 100.3302736 | H47: 115.6655371 | I47: 133.0216332 | J47: 151.10376 | S47: 3.255830931e-22 | T47: 1.508100353e-21 | U47: 9.872759892e-20 | V47: 4.724958584e-17 | W47: 8.436235988e-14 | X47: 3.233397273e-10 | Y47: 2.076074132e-06
C48: 21.6 | D48: 81.19535352 | E48: 83.93541041 | F48: 91.55880221 | G48: 103.1927749 | H48: 117.8393033 | I48: 134.3677776 | J48: 151.5519759 | S48: 2.544530793e-21 | T48: 1.095887853e-20 | U48: 5.883636365e-19 | V48: 2.107565611e-16 | W48: 2.674011669e-13 | X48: 7.174138191e-10 | Y48: 3.245965096e-06
C49: 22.8 | D49: 84.83687606 | E49: 87.46694802 | F49: 94.77606885 | G49: 105.9082095 | H49: 119.8894001 | I49: 135.6314585 | J49: 151.9716616 | S49: 1.791965207e-20 | T49: 7.184132853e-20 | U49: 3.178491988e-18 | V49: 8.613060007e-16 | W49: 7.895621768e-13 | X49: 1.513552231e-09 | Y49: 4.933128559e-06
C50: 24 | D50: 88.32644338 | E50: 90.84676641 | F50: 97.84475954 | G50: 108.4865764 | H50: 121.8271129 | I50: 136.8214938 | J50: 152.3660893 | S50: 1.141234836e-19 | T50: 4.268205284e-19 | U50: 1.56680624e-17 | V50: 3.250297773e-15 | W50: 2.188093123e-12 | X50: 3.053638277e-09 | Y50: 7.310693544e-06
C51: 25.2 | D51: 91.66611628 | E51: 94.0781788 | F51: 100.7710315 | G51: 110.9366298 | H51: 123.6617855 | I51: 137.9449963 | J51: 152.7378701 | S51: 6.601518775e-19 | T51: 2.309650853e-18 | U51: 7.090913134e-17 | V51: 1.140303514e-14 | W51: 5.726924955e-12 | X51: 5.919505738e-09 | Y51: 1.059274834e-05
C52: 26.4 | D52: 94.85916615 | E52: 97.1653309 | F52: 103.5609794 | G52: 113.2661295 | H52: 125.4012769 | I52: 139.0077949 | J52: 153.08912 | S52: 3.485125353e-18 | T52: 1.144213204e-17 | U52: 2.963279652e-16 | V52: 3.741259539e-14 | W52: 1.42316071e-11 | X52: 1.106941049e-08 | Y52: 1.504010319e-05
C53: 27.6 | D53: 97.90968552 | E53: 100.1129083 | F53: 106.2205759 | G53: 115.4820338 | H53: 127.0523009 | I53: 140.0147445 | J53: 153.4215823 | S53: 1.687522621e-17 | T53: 5.216073063e-17 | U53: 1.149574921e-15 | V53: 1.153914265e-13 | W53: 3.373090018e-11 | X53: 2.003521187e-08 | Y53: 2.096619541e-05
C54: 28.8 | D54: 100.8223003 | E54: 102.9259222 | F54: 108.7556328 | G54: 117.5906473 | H54: 128.6206804 | I54: 140.9699543 | J54: 153.7367165 | S54: 7.531513908e-17 | T54: 2.1989346e-16 | U54: 4.160386961e-15 | V54: 3.361140595e-13 | W54: 7.654855036e-11 | X54: 3.519981712e-08 | Y54: 2.874304832e-05
C55: 30 | D55: 103.6019586 | E55: 105.6095533 | F55: 111.1717767 | G55: 119.5977347 | H55: 130.1115379 | I55: 141.8769576 | J55: 154.0357643 | S55: 3.113202125e-16 | T55: 8.613490969e-16 | U55: 1.411031167e-14 | V55: 9.284063939e-13 | W55: 1.668989316e-10 | X55: 6.017804013e-08 | Y55: 3.880719109e-05
C56: 31.2 | D56: 106.2537767 | E56: 108.1690395 | F56: 113.4744336 | G56: 121.5086081 | H56: 131.5294382 | I56: 142.7388385 | J56: 154.3197993 | S56: 1.197381021e-15 | T56: 3.149234079e-15 | U56: 4.503691152e-14 | V56: 2.440751482e-12 | W56: 3.506457171e-10 | X56: 1.003274751e-07 | Y56: 5.166544467e-05
C57: 32.4 | D57: 108.782928 | E57: 110.6095953 | F57: 115.6688219 | G57: 123.328195 | H57: 132.8784967 | I57: 143.5583261 | J57: 154.5897628 | S57: 4.30393024e-15 | T57: 1.079286682e-14 | U57: 1.35803755e-13 | V57: 6.12745772e-12 | W57: 7.117413911e-10 | X57: 1.634190329e-07 | Y57: 6.790047944e-05
C58: 33.6 | D58: 111.1945635 | E58: 112.9363554 | F58: 117.7599492 | G58: 125.0610904 | H58: 134.162461 | I58: 144.3378659 | J58: 154.8464914 | S58: 1.451796137e-14 | T58: 3.481022441e-14 | U58: 3.882564925e-13 | V58: 1.473361441e-11 | W58: 1.399036693e-09 | X58: 2.604991584e-07 | Y58: 8.817605317e-05
C59: 34.8 | D59: 113.4937552 | E59: 115.1543353 | F59: 119.752613 | G59: 126.7115985 | H59: 135.3847727 | I59: 145.0796726 | J59: 155.0907377 | S59: 4.613630868e-14 | T59: 1.060555353e-13 | U59: 1.055900938e-12 | V59: 3.402459792e-11 | W59: 2.668687222e-09 | X59: 4.069771643e-07 | Y59: 0.0001132418428
C60: 36 | D60: 115.6854585 | E60: 117.2684055 | F60: 121.6514041 | G60: 128.2837652 | H60: 136.5486158 | I60: 145.7857715 | J60: 155.3231856 | S60: 1.386298474e-13 | T60: 3.062845694e-13 | U60: 2.739996297e-12 | V60: 7.565027856e-11 | W60: 4.949329783e-09 | X60: 6.239713307e-07 | Y60: 0.0001439377905
C61: 37.2 | D61: 117.774485 | E61: 119.2832742 | F61: 123.460711 | G61: 129.7814049 | H61: 137.6569529 | I61: 146.458029 | J61: 155.5444623 | S61: 3.952040817e-13 | T61: 8.41175468e-13 | U61: 6.803374203e-12 | V61: 1.623118018e-10 | W61: 8.939570299e-09 | X61: 9.399462127e-07 | Y61: 0.0001811978924
C62: 38.4 | D62: 119.7654868 | E62: 121.2034781 | F62: 125.1847257 | G62: 131.2081216 | H62: 138.7125543 | I62: 147.0981767 | J62: 155.7551471 | S62: 1.072284568e-12 | T62: 2.203555425e-12 | U62: 1.620617296e-11 | V62: 3.36759269e-10 | W62: 1.575010145e-08 | X62: 1.392670827e-06 | Y62: 0.0002260533693
C63: 39.6 | D63: 121.6629462 | E63: 123.0333771 | F63: 126.8274505 | G63: 132.5673267 | H63: 139.7180208 | I63: 147.7078295 | J63: 155.9557787 | S63: 2.777158203e-12 | T63: 5.521429931e-12 | U63: 3.712523226e-11 | V63: 6.76948057e-10 | W63: 2.7105893e-08 | X63: 2.031522983e-06 | Y63: 0.0002796351662
C64: 40.8 | D64: 123.4711713 | E64: 124.777153 | F64: 128.3927044 | G64: 133.8622539 | H64: 140.6758011 | I64: 148.2885005 | J64: 156.14686 | S64: 6.88465058e-12 | T64: 1.326777688e-11 | U64: 8.197194153e-11 | V64: 1.320778881e-09 | W64: 4.562726468e-08 | X64: 2.920158999e-06 | Y64: 0.0003431757428
C65: 42 | D65: 125.1942939 | E65: 126.4388108 | F65: 129.8841308 | G65: 135.0959722 | H65: 141.5882073 | I65: 148.8416122 | J65: 156.3288632 | S65: 1.637795225e-11 | T65: 3.064878631e-11 | U65: 1.74812984e-10 | V65: 2.505297481e-09 | W65: 7.521210538e-08 | X65: 4.139560519e-06 | Y65: 0.0004180101235
C66: 43.2 | D66: 126.8362715 | E66: 128.0221818 | F66: 131.3052042 | G66: 136.2713962 | H66: 142.4574262 | I66: 149.368506 | J66: 156.5022323 | S66: 3.747678113e-11 | T66: 6.821393916e-11 | U66: 3.607745758e-10 | V66: 4.62707776e-09 | W66: 1.215448421e-07 | X66: 5.791461321e-06 | Y66: 0.0005055761911
C67: 44.4 | D67: 128.4008898 | E67: 129.5309278 | F67: 132.6592379 | G67: 137.3912964 | H67: 143.2855297 | I67: 149.8704492 | J67: 156.6673866 | S67: 8.266984472e-11 | T67: 1.465838791e-10 | U67: 7.218299741e-10 | V67: 8.332779768e-09 | W67: 1.927607496e-07 | X67: 8.002147145e-06 | Y67: 0.0006074142147
C68: 45.6 | D68: 129.8917673 | E68: 130.9685462 | F68: 133.9493901 | G68: 138.4583075 | H68: 144.0744833 | I68: 150.3486416 | J68: 156.8247224 | S68: 1.761591972e-10 | T68: 3.047183466e-10 | U68: 1.402491098e-09 | V68: 1.465155258e-08 | W68: 3.002965682e-07 | X68: 1.092661104e-05 | Y68: 0.0007251656174
C69: 46.8 | D69: 131.3123597 | E69: 132.3383757 | F69: 135.1786716 | G69: 139.474936 | H69: 144.826153 | I69: 150.8042206 | J69: 156.9746151 | S69: 3.633015109e-10 | T69: 6.139017272e-10 | U69: 2.650402891e-09 | V69: 2.518399332e-08 | W69: 4.599598917e-07 | X69: 1.475303597e-05 | Y69: 0.000860570994
C70: 48 | D70: 132.6659661 | E70: 133.6436018 | F70: 136.3499522 | G70: 140.4435675 | H70: 145.542312 | I70: 151.2382657 | J70: 157.1174207 | S70: 7.264520235e-10 | T70: 1.200666809e-09 | U70: 4.878716045e-09 | V70: 4.236568269e-08 | W70: 6.932501586e-07 | X70: 1.970756551e-05 | Y70: 0.001015467402
C71: 49.2 | D71: 133.9557345 | E71: 134.8872634 | F71: 137.4659667 | G71: 141.3664728 | H71: 146.2246465 | I71: 151.6518023 | J71: 157.2534772 | S71: 1.410739836e-09 | T71: 2.283264641e-09 | U71: 8.75941037e-09 | V71: 6.982675063e-08 | W71: 1.028963106e-06 | X71: 2.605931374e-05 | Y71: 0.001191784953
C72: 50.4 | D72: 135.1846674 | E72: 136.0722582 | F72: 138.5293216 | G72: 142.2458141 | H72: 146.8747601 | I72: 152.0458047 | J72: 157.3831057 | S72: 2.66478309e-09 | T72: 4.228066199e-09 | U72: 1.535944638e-08 | V72: 1.128722935e-07 | W72: 1.505108073e-06 | X72: 3.412555553e-05 | Y72: 0.001391542744
C73: 51.6 | D73: 136.3556285 | E73: 137.2013494 | F73: 139.5425007 | G73: 143.0836505 | H73: 147.494179 | I73: 152.4212 | J73: 157.5066115 | S73: 4.903231711e-09 | T73: 7.634476622e-09 | U73: 2.633468478e-08 | V73: 1.791115366e-07 | W73: 2.171163486e-06 | X73: 4.427703107e-05 | Y73: 0.001616844165
C74: 52.8 | D74: 137.471348 | E74: 138.277171 | F74: 140.5078709 | G74: 143.8819429 | H74: 148.0843558 | I74: 152.7788699 | J74: 157.6242849 | S74: 8.80032423e-09 | T74: 1.345955241e-08 | U74: 4.419983464e-08 | V74: 2.792661568e-07 | W74: 3.090690231e-06 | X74: 5.694329159e-05 | Y74: 0.001869871633
C75: 54 | D75: 138.5344289 | E75: 139.3022338 | F75: 141.4276877 | G75: 144.6425593 | H75: 148.6466736 | I75: 153.1196536 | J75: 157.7364024 | S75: 1.542635231e-08 | T75: 2.319649495e-08 | U75: 7.269612396e-08 | V75: 4.281898885e-07 | W75: 4.344315479e-06 | X75: 7.261800873e-05 | Y75: 0.002152880803
C76: 55.2 | D76: 139.547352 | E76: 140.2789309 | F76: 142.3041002 | G76: 145.3672787 | H76: 149.1824494 | I76: 153.44435 | J76: 157.8432268 | S76: 2.644199018e-08 | T76: 3.912446368e-08 | U76: 1.172817384e-07 | V76: 6.461321695e-07 | W76: 6.033091088e-06 | X76: 9.186416702e-05 | Y76: 0.002468194306
C77: 56.4 | D77: 140.5124822 | E77: 141.2095428 | F77: 143.1391563 | G77: 146.0577963 | H77: 149.6929373 | I77: 153.7537198 | J77: 157.9450085 | S77: 4.436876793e-08 | T77: 6.465057377e-08 | U77: 1.85773113e-07 | V77: 9.602779277e-07 | W77: 8.282221223e-06 | X77: 0.0001153190583 | Y77: 0.002818195068
C78: 57.6 | D78: 141.4320732 | E78: 142.0962433 | F78: 143.9348073 | G78: 146.7157266 | H78: 150.1793319 | I78: 154.0484873 | J78: 158.041986 | S78: 7.295740022e-08 | T78: 1.047683343e-07 | U78: 2.891676325e-07 | V78: 1.406593492e-06 | W78: 1.124514358e-05 | X78: 0.0001436989979 | Y78: 0.003205319274
C79: 58.8 | D79: 142.3082727 | E79: 142.9411035 | F79: 144.6929127 | G79: 147.3426081 | H79: 150.6427712 | I79: 154.3293426 | J79: 158.1343862 | S79: 1.176790325e-07 | T79: 1.666599196e-07 | U79: 4.426799307e-07 | V79: 2.032004925e-06 | W79: 1.5107938e-05 | X79: 0.0001778036848 | Y79: 0.003632049024
C80: 60 | D80: 143.1431274 | E80: 143.7460971 | F80: 145.4152438 | G80: 147.9399062 | H80: 151.084339 | I80: 154.5969427 | J80: 158.2224254 | S80: 1.86367503e-07 | T80: 2.604722986e-07 | U80: 6.670245319e-07 | V80: 2.8969298e-06 | W80: 2.009402572e-05 | X80: 0.0002185201339 | Y80: 0.004100904731
C81: 61.2 | D81: 143.9385877 | E81: 144.513105 | F81: 146.1034889 | G81: 148.5090173 | H81: 151.505068 | I81: 154.8519135 | J81: 158.3063095 | S81: 2.900431857e-07 | T81: 4.002991067e-07 | U81: 9.89976817e-07 | V81: 4.078176681e-06 | W81: 2.646911238e-05 | X81: 0.0002668261129 | Y81: 0.004614437344
C82: 62.4 | D82: 144.6965121 | E82: 145.2439194 | F82: 146.7592564 | G82: 149.0512718 | H82: 151.905942 | I82: 155.0948515 | J82: 158.3862349 | S82: 4.439506088e-07 | T82: 6.054009783e-07 | U82: 1.448242073e-06 | V82: 5.672218385e-06 | W82: 3.454631846e-05 | X82: 0.0003237930253 | Y82: 0.005175220406
C83: 63.6 | D83: 145.4186716 | E83: 145.9402478 | F83: 147.3840787 | G83: 149.5679371 | H83: 152.2878981 | I83: 155.3263246 | J83: 158.4623883 | S83: 6.688425864e-07 | T83: 9.016966357e-07 | U83: 2.089658584e-06 | V83: 7.798835882e-06 | W83: 4.469143299e-05 | X83: 0.0003905881884 | Y83: 0.005785842044
C84: 64.8 | D84: 146.1067536 | E84: 146.6037174 | F84: 147.9794162 | G84: 150.0602209 | H84: 152.6518293 | I84: 155.5468742 | J84: 158.5349479 | S84: 9.925428399e-07 | T84: 1.323555164e-06 | U84: 2.975755348e-06 | V84: 1.060511959e-05 | W84: 5.732821928e-05 | X84: 0.0004684764643 | Y84: 0.006448896899
C85: 66 | D85: 146.7623659 | E85: 147.2358788 | F85: 148.5466601 | G85: 150.5292739 | H85: 152.9985864 | I85: 155.7570157 | J85: 158.6040833 | S85: 1.451816844e-06 | T85: 1.915916496e-06 | U85: 4.184678118e-06 | V85: 1.426980429e-05 | W85: 7.294369673e-05 | X85: 0.0005588212126 | Y85: 0.007166978075
C86: 67.2 | D86: 147.3870408 | E86: 147.8382092 | F86: 149.0871362 | G86: 150.9761924 | H86: 153.3289799 | I86: 155.9572404 | J86: 158.6699561 | S86: 2.094576829e-06 | T86: 2.736762119e-06 | U86: 5.814489224e-06 | V86: 1.900790333e-05 | W86: 9.209331954e-05 | X86: 0.0006630845423 | Y86: 0.007942669132
C87: 68.4 | D87: 147.9822379 | E87: 148.4121161 | F87: 149.6021076 | G87: 151.4020209 | H87: 153.6437821 | I87: 156.1480165 | J87: 158.7327203 | S87: 2.982441497e-06 | T87: 3.859951494e-06 | U87: 7.986837337e-06 | V87: 2.507559748e-05 | W87: 0.0001154059717 | X87: 0.0007828268495 | Y87: 0.008778536168
C88: 69.6 | D88: 148.5493483 | E88: 148.958941 | F88: 150.0927778 | G88: 151.8077548 | H88: 153.9437288 | I88: 156.3297898 | J88: 158.7925227 | S88: 4.193664086e-06 | T88: 5.378431752e-06 | U88: 1.085098318e-05 | V88: 3.277532442e-05 | W88: 0.0001435886988 | X88: 0.0009197056402 | Y88: 0.009677120032
C89: 70.8 | D89: 149.0896972 | E89: 149.4799616 | F89: 150.5602937 | G89: 152.1943422 | H89: 154.229521 | I89: 156.5029851 | J89: 158.8495029 | S89: 5.826434217e-06 | T89: 7.407819132e-06 | U89: 1.458815665e-05 | V89: 4.246100619e-05 | W89: 0.0001774310985 | X89: 0.001075473642 | Y89: 0.0106409287
C90: 72 | D90: 149.6045475 | E90: 149.9763957 | F90: 151.0057478 | G90: 152.5626867 | H90: 154.5018268 | I90: 156.6680075 | J90: 158.9037943 | S90: 8.00254961e-06 | T90: 1.009034068e-05 | U90: 1.941621036e-05 | V90: 5.454334517e-05 | W90: 0.0002178092983 | X90: 0.001251976221 | Y90: 0.01167242984
C91: 73.2 | D91: 150.0951025 | E91: 150.4494034 | F91: 151.4301811 | G91: 152.9136492 | H91: 154.7612825 | I91: 156.8252424 | J91: 158.9555237 | S91: 1.087144363e-05 | T91: 1.359911426e-05 | U91: 2.559452412e-05 | V91: 6.949511353e-05 | W91: 0.000265689451 | X91: 0.001451148126 | Y91: 0.01277404362
C92: 74.4 | D92: 150.5625085 | E92: 150.9000902 | F92: 151.8345857 | G92: 153.24805 | H92: 155.0084946 | I92: 156.9750575 | J92: 159.0048119 | S92: 1.461454406e-05 | T92: 1.81427343e-05 | U92: 3.342910584e-05 | V92: 8.785635764e-05 | W92: 0.00032213069 | X92: 0.001675009592 | Y92: 0.01394813574
C93: 75.6 | D93: 151.0078579 | E93: 151.3295094 | F93: 152.2199068 | G93: 153.5666705 | H93: 155.2440409 | I93: 157.1178028 | J93: 159.0517743 | S93: 1.944992806e-05 | T93: 2.397012038e-05 | U93: 4.327782562e-05 | V93: 0.0001102394371 | W93: 0.00038828749 | X93: 0.00192566183 | Y93: 0.01519701074
C94: 76.8 | D94: 151.4321917 | E94: 151.7386646 | F94: 152.5870447 | G94: 153.8702556 | H94: 155.4684719 | I94: 157.253812 | J94: 159.0965206 | S94: 2.563722778e-05 | T94: 3.137557618e-05 | U94: 5.555571313e-05 | V94: 0.0001373338187 | W94: 0.0004654113921 | X94: 0.002205281959 | Y94: 0.01652290563
C95: 78 | D95: 151.8365014 | E95: 152.1285121 | F95: 152.9368576 | G95: 154.1595146 | H95: 155.6823121 | I95: 157.3834031 | J95: 159.1391552 | S95: 3.34827321e-05 | T95: 4.070399754e-05 | U95: 7.074024291e-05 | V95: 0.0001699105466 | W95: 0.0005548520581 | X95: 0.002516117408 | Y95: 0.01792798381
C96: 79.2 | D96: 152.2217319 | E96: 152.4999629 | F96: 153.2701631 | G96: 154.4351237 | H96: 155.8860612 | I96: 157.5068788 | J96: 159.179778 | S96: 4.334462109e-05 | T96: 5.235616115e-05 | U96: 8.937652902e-05 | V96: 0.0002088263157 | W96: 0.0006580576301 | X96: 0.002860479856 | Y96: 0.01941432931
C97: 80.4 | D97: 152.5887837 | E97: 152.8538851 | F97: 153.5877401 | G97: 154.6977269 | H97: 156.0801956 | I97: 157.6245277 | J97: 159.2184838 | S97: 5.563826343e-05 | T97: 6.679401982e-05 | U97: 0.0001120823486 | V97: 0.0002550270785 | W97: 0.0007765743822 | X97: 0.003240738737 | Y97: 0.02098394134
C98: 81.6 | D98: 152.9385146 | E98: 153.191106 | F98: 153.8903308 | G98: 154.947938 | H98: 156.2651688 | I98: 157.7366249 | J98: 159.2553631 | S98: 7.084150139e-05 | T98: 8.454592616e-05 | U98: 0.0001395529144 | V98: 0.0003095511244 | W98: 0.0009120456579 | X98: 0.003659314388 | Y98: 0.02263872929
C99: 82.8 | D99: 153.2717419 | E99: 153.5124136 | F99: 154.1786425 | G99: 155.1863418 | H99: 156.4414133 | I99: 157.8434322 | J99: 159.2905021 | S99: 8.949984453e-05 | T99: 0.0001062117046 | U99: 0.0001725653188 | V99: 0.0003735315767 | W99: 0.0010662101 | X99: 0.004118670879 | Y99: 0.02438050797
C100: 84 | D100: 153.5892443 | E100: 153.818559 | F100: 154.4533489 | G100: 155.4134955 | H100: 156.6093409 | I100: 157.9451994 | J100: 159.3239829 | S100: 0.0001122314921 | T100: 0.0001324674917 | U100: 0.0002119825755 | V100: 0.0004481982627 | W100: 0.001240899183 | X100: 0.004621308574 | Y100: 0.02621099325
C101: 85.2 | D101: 153.8917641 | E101: 154.1102575 | F101: 154.715092 | G101: 155.6299299 | H101: 156.7693441 | I101: 158.0421642 | J101: 159.3558837 | S101: 0.0001397321037 | T101: 0.0001640702659 | U101: 0.0002587571902 | V101: 0.0005348789203 | W101: 0.001438034071 | X101: 0.005169756497 | Y101: 0.02813179812
C102: 86.4 | D102: 154.1800081 | E102: 154.3881909 | F102: 154.9644837 | G102: 155.8361509 | H102: 156.9217969 | I102: 158.1345533 | J102: 159.3862792 | S102: 0.0001727792416 | T102: 0.0002018619931 | U102: 0.0003139341994 | V102: 0.0006349997152 | W102: 0.001659621832 | X102: 0.005766564535 | Y102: 0.03014442902
C103: 87.6 | D103: 154.45465 | E103: 154.6530088 | F103: 155.2021067 | G103: 156.0326405 | H103: 157.0670554 | I103: 158.2225826 | J103: 159.4152403 | S103: 0.0002122364094 | T103: 0.000246773316 | U103: 0.0003786536241 | V103: 0.000750085053 | W103: 0.001907751034 | X103: 0.006414295538 | Y103: 0.03225028263
C104: 88.8 | D104: 154.7163318 | E104: 154.9053302 | F104: 155.4285164 | G104: 156.2198578 | H104: 157.2054594 | I104: 158.3064579 | J104: 159.4428348 | S104: 0.0002590566202 | T104: 0.000299826727 | U104: 0.000454152293 | V104: 0.0008817566776 | W104: 0.002184586774 | X104: 0.007115517364 | Y104: 0.03445064296
C105: 90 | D105: 154.9656649 | E105: 155.1457446 | F105: 155.644242 | G105: 156.3982405 | H105: 157.3373321 | I105: 158.3863752 | J105: 159.4691271 | S105: 0.0003142854325 | T105: 0.0003621391667 | U105: 0.0005417650011 | V105: 0.00103173206 | W105: 0.002492365175 | X105: 0.007872794923 | Y105: 0.03674667883
C106: 91.2 | D106: 155.2032322 | E106: 155.374814 | F106: 155.8497877 | G106: 156.5682054 | H106: 157.4629818 | I106: 158.4625211 | J106: 159.4941786 | S106: 0.0003790634 | T106: 0.000434924003 | U106: 0.0006429249761 | V106: 0.001201822086 | W106: 0.002833387406 | X106: 0.008688682246 | Y106: 0.03913944173
C107: 92.4 | D107: 155.4295888 | E107: 155.5930738 | F107: 156.0456337 | G107: 156.7301497 | H107: 157.5827022 | I107: 158.5350739 | J107: 159.5180481 | S107: 0.0004546278916 | T107: 0.0005194923525 | U107: 0.0007591636402 | V107: 0.001393928069 | W107: 0.003210013267 | X107: 0.009565714645 | Y107: 0.04162986401
C108: 93.6 | D108: 155.6452638 | E108: 155.801034 | F108: 156.2322379 | G108: 156.884452 | H108: 157.696773 | I108: 158.6042029 | J108: 159.5407911 | S108: 0.0005423142458 | T108: 0.0006172537154 | U108: 0.0008921096572 | V108: 0.001610038103 | W108: 0.003624654403 | X108: 0.01050640098 | Y108: 0.04421875741
C109: 94.8 | D109: 155.8507612 | E109: 155.9991807 | F109: 156.4100363 | G109: 157.0314729 | H109: 157.8054609 | I109: 158.6700697 | J109: 159.5624609 | S109: 0.0006435562343 | T109: 0.0007297159083 | U109: 0.001043487271 | V109: 0.001852222796 | W109: 0.004079767187 | X109: 0.0115132161 | Y109: 0.04690681196
C110: 96 | D110: 156.0465613 | E110: 156.187977 | F110: 156.5794446 | G110: 157.1715559 | H110: 157.9090199 | I110: 158.7328283 | J110: 159.5831081 | S110: 0.0007598858185 | T110: 0.0008584842836 | U110: 0.001215113946 | V110: 0.00212263043 | W110: 0.004577845341 | X110: 0.01258859344 | Y110: 0.04969459519
C111: 97.2 | D111: 156.2331217 | E111: 156.3678641 | F111: 156.7408586 | G111: 157.3050285 | H111: 158.007692 | I111: 158.7926254 | J111: 159.602781 | S111: 0.0008929321936 | T111: 0.001005260238 | U111: 0.001408897328 | V111: 0.00242348157 | W111: 0.005121412327 | X111: 0.01373491786 | Y111: 0.05258255171
C112: 98.4 | D112: 156.4108785 | E112: 156.5392624 | F112: 156.8946555 | G112: 157.4322026 | H112: 158.1017079 | I112: 158.8496007 | J112: 159.6215255 | S112: 0.001044420123 | T112: 0.001171839019 | U112: 0.001626831556 | V112: 0.002757063189 | W112: 0.005713013591 | X112: 0.01495451872 | Y112: 0.05557100301
C113: 99.6 | D113: 156.580247 | E113: 156.7025726 | F113: 157.0411949 | G113: 157.5533754 | H113: 158.1912871 | I113: 158.9038873 | J113: 159.6393855 | S113: 0.001216167576 | T113: 0.00136010685 | U113: 0.001870992953 | V113: 0.003125722351 | W113: 0.00635520868 | X113: 0.01624966323 | Y113: 0.05866014768
C114: 100.8 | D114: 156.7416231 | E114: 156.8581762 | F114: 157.1808191 | G114: 157.6688302 | H114: 158.2766392 | I114: 158.9556122 | J114: 159.6564027 | S114: 0.001410082682 | T114: 0.001572037391 | U114: 0.002143535142 | V114: 0.003531859505 | W114: 0.007050563301 | X114: 0.0176225501 | Y114: 0.06185006188
C115: 102 | D115: 156.895384 | E115: 157.006437 | F115: 157.3138546 | G115: 157.7788367 | H115: 158.3579636 | I115: 159.0048963 | J115: 159.6726168 | S115: 0.001628160043 | T115: 0.00180968758 | U115: 0.002446683622 | V115: 0.003977921436 | W115: 0.007801641367 | X115: 0.01907530346 | Y115: 0.06514070004
C116: 103.2 | D116: 157.0418889 | E116: 157.1477015 | F116: 157.4406122 | G116: 157.8836521 | H116: 158.4354503 | I116: 159.0518546 | J116: 159.6880658 | S116: 0.001872476418 | T116: 0.002075192884 | U116: 0.002782729862 | V116: 0.004466393942 | W116: 0.008610997068 | X116: 0.02060996713 | Y116: 0.0685318959
C117: 104.4 | D117: 157.1814804 | E117: 157.2822997 | F117: 157.5613882 | G117: 157.9835213 | H117: 158.5092805 | I117: 159.0965971 | J117: 159.7027858 | S117: 0.002145185837 | T117: 0.002370761998 | U117: 0.00315402495 | V117: 0.00499979428 | W117: 0.009481167017 | X117: 0.02222849927 | Y117: 0.07202336382
C118: 105.6 | D118: 157.3144847 | E118: 157.4105464 | F118: 157.6764648 | G118: 158.0786777 | H118: 158.5796266 | I118: 159.1392281 | J118: 159.7168112 | S118: 0.002448514175 | T118: 0.00269867105 | U118: 0.003562972861 | V118: 0.005580663431 | W118: 0.0104146625 | X118: 0.02393276729 | Y118: 0.07561470026
C119: 106.8 | D119: 157.4412126 | E119: 157.5327412 | F119: 157.7861111 | G119: 158.1693438 | H119: 158.6466532 | I119: 159.1798474 | J119: 159.7301747 | S119: 0.002784753243 | T119: 0.003061257358 | U119: 0.004012023393 | V119: 0.006211558245 | W119: 0.0114139619 | X119: 0.0257245432 | Y119: 0.07930538559
C120: 108 | D120: 157.5619602 | E120: 157.6491696 | F120: 157.8905832 | G120: 158.2557313 | H120: 158.7105168 | I120: 159.2185499 | J120: 159.7429076 | S120: 0.003156254433 | T120: 0.003460912781 | U120: 0.004503664819 | V120: 0.006895043514 | W120: 0.01248150324 | X120: 0.02760549926 | Y120: 0.08309478604
C121: 109.2 | D121: 157.6770099 | E121: 157.7601039 | F121: 157.9901253 | G121: 158.3380423 | H121: 158.7713668 | I121: 159.2554261 | J121: 159.7550396 | S121: 0.003565421988 | T121: 0.003900076728 | U121: 0.005040416321 | V121: 0.007633684013 | W121: 0.01361967703 | X121: 0.02957720408 | Y121: 0.08698215593
C122: 110.4 | D122: 157.7866304 | E122: 157.8658033 | F122: 158.0849701 | G122: 158.4164691 | H122: 158.8293453 | I122: 159.2905621 | J122: 159.7665992 | S122: 0.004014705932 | T122: 0.004381228881 | U122: 0.005624820247 | V122: 0.008430036563 | W122: 0.01483081929 | X122: 0.03164111899 | Y122: 0.09096664005
C123: 111.6 | D123: 157.891078 | E123: 157.9665148 | F123: 158.1753392 | G123: 158.491195 | H123: 158.8845878 | I123: 159.32404 | J123: 159.7776132 | S123: 0.004506594724 | T123: 0.004906881669 | U123: 0.006259434248 | V123: 0.009286642158 | W123: 0.01611720483 | X123: 0.03379859484 | Y123: 0.09504727624
C124: 112.8 | D124: 157.9905968 | E124: 158.0624737 | F124: 158.2614439 | G124: 158.5623946 | H124: 158.9372234 | I124: 159.3559382 | J124: 159.7881075 | S124: 0.00504360769 | T124: 0.005479572567 | U124: 0.006946823344 | V124: 0.01020601819 | W124: 0.01748104087 | X124: 0.0360508692 | Y124: 0.09922299816
C125: 114 | D125: 158.0854193 | E125: 158.1539044 | F125: 158.3434853 | G125: 158.6302344 | H125: 158.9873752 | I125: 159.3863311 | J125: 159.7981066 | S125: 0.005628287277 | T125: 0.006101856255 | U125: 0.007689551969 | V125: 0.01119065083 | W125: 0.01892446094 | X125: 0.03839906387 | Y125: 0.1034926382
C126: 115.2 | D126: 158.1757672 | E126: 158.2410206 | F126: 158.4216552 | G126: 158.6948728 | H126: 159.0351604 | I126: 159.4152898 | J126: 159.8076338 | S126: 0.006263191193 | T126: 0.006776296702 | U126: 0.00849017604 | V126: 0.01224298753 | W126: 0.02044951908 | X126: 0.04084418276 | Y126: 0.1078549306
C127: 116.4 | D127: 158.2618517 | E127: 158.3240258 | F127: 158.4961364 | G127: 158.756461 | H127: 159.0806906 | I127: 159.4428819 | J127: 159.8167115 | S127: 0.00695088447 | T127: 0.007505459203 | U127: 0.00935123508 | V127: 0.01336542984 | W127: 0.02205818439 | X127: 0.04338711017 | Y127: 0.1123085144
C128: 117.6 | D128: 158.3438739 | E128: 158.403114 | F128: 158.5671028 | G128: 158.8151428 | H128: 159.1240722 | I128: 159.469172 | J128: 159.8253607 | S128: 0.007693931514 | T128: 0.008291902446 | U128: 0.01027524446 | V128: 0.01456032633 | W128: 0.02375233598 | X128: 0.04602860939 | Y128: 0.1168519372
C129: 118.8 | D129: 158.4220255 | E129: 158.4784701 | F129: 158.6347204 | G129: 158.8710555 | H129: 159.1654067 | I129: 159.4942214 | J129: 159.8336019 | S129: 0.008494888162 | T129: 0.009138170615 | U129: 0.01126468779 | V129: 0.01582996585 | W129: 0.02553375818 | X129: 0.04876932167 | Y129: 0.1214836582
C130: 120 | D130: 158.4964892 | E130: 158.5502702 | F130: 158.6991471 | G130: 158.9243298 | H130: 159.2047907 | I130: 159.5180888 | J130: 159.8414541 | S130: 0.009356293824 | T130: 0.0100467856 | U130: 0.01232200946 | V130: 0.01717657108 | W130: 0.0274041362 | X130: 0.05160976549 | Y130: 0.1262020518
C131: 121.2 | D131: 158.5674389 | E131: 158.6186821 | F131: 158.7605336 | G131: 158.97509 | H131: 159.2423162 | I131: 159.5408299 | J131: 159.8489358 | S131: 0.01028066371 | T131: 0.01102023935 | U131: 0.01344960738 | V131: 0.01860229231 | W131: 0.02936505212 | X131: 0.05455033618 | Y131: 0.1310054115
C132: 122.4 | D132: 158.6350406 | E132: 158.6838656 | F132: 158.8190233 | G132: 159.0234549 | H132: 159.2780708 | I132: 159.5624979 | J132: 159.8560644 | S132: 0.01127048123 | T132: 0.01206098636 | U132: 0.01464982606 | V132: 0.02010920165 | W132: 0.03141798123 | X132: 0.05759130592 | Y132: 0.1358919533
C133: 123.6 | D133: 158.6994523 | E133: 158.7459732 | F133: 158.8747529 | G133: 159.0695375 | H133: 159.3121382 | I133: 159.5831433 | J133: 159.8628566 | S133: 0.01232819052 | T133: 0.01317143641 | U133: 0.01592494977 | V133: 0.02169928743 | W133: 0.03356428879 | X133: 0.06073282389 | Y133: 0.1408598193
C134: 124.8 | D134: 158.7608243 | E134: 158.80515 | F134: 158.9278526 | G134: 159.1134454 | H134: 159.344598 | I134: 159.6028146 | J134: 159.8693284 | S134: 0.01345618923 | T134: 0.01435394749 | U134: 0.01727719618 | V134: 0.02337444911 | W134: 0.03580522713 | X134: 0.06397491691 | Y134: 0.1459070821
C135: 126 | D135: 158.8193003 | E135: 158.8615343 | F135: 158.9784466 | G135: 159.1552814 | H135: 159.375526 | I135: 159.6215575 | J135: 159.8754947 | S135: 0.01465682152 | T135: 0.01561081898 | U135: 0.01870871015 | V135: 0.0251364924 | W135: 0.03814193316 | X135: 0.06731749021 | Y135: 0.1510317481
C136: 127.2 | D136: 158.8750168 | E136: 158.9152578 | F136: 159.0266531 | G136: 159.1951432 | H136: 159.4049946 | I136: 159.639416 | J136: 159.88137 | S136: 0.01593237135 | T136: 0.01694428518 | U136: 0.0202215579 | V136: 0.02698712483 | W136: 0.04057542614 | X136: 0.07076032856 | Y136: 0.1562317616
C137: 128.4 | D137: 158.9281041 | E137: 158.9664461 | F137: 159.0725848 | G137: 159.2331239 | H137: 159.4330725 | I137: 159.6564317 | J137: 159.8869681 | S137: 0.01728505596 | T137: 0.01835650902 | U137: 0.02181772155 | V137: 0.02892795165 | W137: 0.04310660597 | X137: 0.07430309764 | Y137: 0.1615050087
C138: 129.6 | D138: 158.9786862 | E138: 159.0152189 | F138: 159.1163489 | G138: 159.2693123 | H138: 159.4598255 | I138: 159.6726445 | J138: 159.892302 | S138: 0.01871701979 | T138: 0.01984957621 | U138: 0.02349909397 | V138: 0.03096047214 | W138: 0.04573625169 | X138: 0.07794534566 | Y138: 0.1668493211
C139: 130.8 | D139: 159.0268814 | E139: 159.0616902 | F139: 159.1580479 | G139: 159.303793 | H139: 159.485316 | I139: 159.6880922 | J139: 159.8973842 | S139: 0.02023032863 | T139: 0.02142548961 | U139: 0.02526747393 | V139: 0.0330860762 | W139: 0.0484650204 | X139: 0.08168650517 | Y139: 0.1722624802
C140: 132 | D140: 159.0728023 | E140: 159.1059684 | F140: 159.1977791 | G140: 159.3366466 | H140: 159.5096036 | I140: 159.702811 | J140: 159.9022266 | S140: 0.02182696411 | T140: 0.02308616404 | U140: 0.02712456175 | V140: 0.03530604146 | W140: 0.05129344652 | X140: 0.0855258952 | Y140: 0.177742221
C141: 133.2 | D141: 159.1165562 | E141: 159.1481573 | F141: 159.2356354 | G141: 159.3679499 | H141: 159.5327452 | I141: 159.7168351 | J141: 159.9068404 | S141: 0.02350881857 | T141: 0.02483342137 | U141: 0.02907195516 | V141: 0.03762153061 | W141: 0.05422194137 | X141: 0.08946272349 | Y141: 0.1832862359
C142: 134.4 | D142: 159.1582454 | E142: 159.1883552 | F142: 159.2717053 | G142: 159.397776 | H142: 159.5547946 | I142: 159.7301975 | J142: 159.9112366 | S142: 0.02527769027 | T142: 0.02666898602 | U142: 0.03111114567 | V142: 0.04003358919 | W142: 0.05725079303 | X142: 0.09349608901 | Y142: 0.1888921784
C143: 135.6 | D143: 159.1979673 | E143: 159.2266562 | F143: 159.3060731 | G143: 159.4261946 | H143: 159.5758036 | I143: 159.7429293 | J143: 159.9154253 | S143: 0.02713527893 | T143: 0.0285944808 | U143: 0.03324351521 | V143: 0.04254314369 | W143: 0.06038016659 | X143: 0.0976249846 | Y143: 0.1945576675
C144: 136.8 | D144: 159.2358147 | E144: 159.2631499 | F144: 159.3388191 | G144: 159.4532721 | H144: 159.5958212 | I144: 159.7550603 | J144: 159.9194163 | S144: 0.02908318174 | T144: 0.03061142313 | U144: 0.03547033321 | V144: 0.04515100009 | W144: 0.06361010463 | X144: 0.1018482998 | Y144: 0.2002802908
C145: 138 | D145: 159.2718762 | E145: 159.2979214 | F145: 159.3700199 | G145: 159.4790719 | H145: 159.6148941 | I145: 159.7666189 | J145: 159.923219 | S145: 0.03112288959 | T145: 0.03272122164 | U145: 0.03779275401 | V145: 0.04785784262 | W145: 0.06694052802 | X145: 0.1061648239 | Y145: 0.206057609
C146: 139.2 | D146: 159.3062359 | E146: 159.3310521 | F146: 159.3997483 | G146: 159.5036541 | H146: 159.6330671 | I146: 159.777632 | J146: 159.9268423 | S146: 0.03325578381 | T146: 0.03492517311 | U146: 0.04021181463 | V146: 0.05066423295 | W146: 0.07037123698 | X146: 0.110573249 | Y146: 0.2118871591
C147: 140.4 | D147: 159.3389742 | E147: 159.3626193 | F147: 159.4280738 | G147: 159.5270764 | H147: 159.6503824 | I147: 159.7881254 | J147: 159.9302945 | S147: 0.03548313317 | T147: 0.03722445982 | U147: 0.04272843297 | V147: 0.05357060974 | W147: 0.07390191245 | X147: 0.1150721734 | Y147: 0.217766458
C148: 141.6 | D148: 159.3701676 | E148: 159.3926969 | F148: 159.4550626 | G148: 159.5493934 | H148: 159.6668807 | I148: 159.7981237 | J148: 159.9335839 | S148: 0.03780609138 | T148: 0.03962014726 | U148: 0.04534340625 | V148: 0.05657728839 | W148: 0.07753211762 | X148: 0.1196601047 | Y148: 0.2236930065
C149: 142.8 | D149: 159.3998891 | E149: 159.4213552 | F149: 159.4807779 | G149: 159.5706572 | H149: 159.6826004 | I149: 159.8076501 | J149: 159.936718 | S149: 0.04022569481 | T149: 0.04211318217 | U149: 0.04805740992 | V149: 0.05968446125 | W149: 0.08126129979 | X149: 0.1243354637 | Y149: 0.2296642927
C150: 144 | D150: 159.4282079 | E150: 159.4486611 | F150: 159.5052797 | G150: 159.5909177 | H150: 159.6975783 | I150: 159.816727 | J150: 159.9397043 | S150: 0.04274286067 | T150: 0.04470439098 | U150: 0.05087099682 | V150: 0.062892198 | W150: 0.0850887924 | X150: 0.1290965878 | Y150: 0.2356777952
C151: 145.2 | D151: 159.4551905 | E151: 159.4746785 | F151: 159.5286252 | G151: 159.610222 | H151: 159.7118494 | I151: 159.8253755 | J151: 159.9425496 | S151: 0.04535838552 | T151: 0.04739447857 | U151: 0.05378459673 | V151: 0.06620044642 | W151: 0.08901381731 | X151: 0.1339417345 | Y151: 0.2417309868
C152: 146.4 | D152: 159.4808997 | E152: 159.4994681 | F152: 159.5508691 | G152: 159.6286154 | H152: 159.725447 | I152: 159.8336159 | J152: 159.9452606 | S152: 0.04807294413 | T152: 0.05018402737 | U152: 0.05679851621 | V152: 0.0696090334 | W152: 0.09303548721 | X152: 0.1388690855 | Y152: 0.2478213373
C153: 147.6 | D153: 159.5053957 | E153: 159.5230879 | F153: 159.5720634 | G153: 159.6461408 | H153: 159.738403 | I153: 159.8414675 | J153: 159.9478438 | S153: 0.05088708867 | T153: 0.05307349685 | U153: 0.05991293874 | V153: 0.07311766618 | W153: 0.09715280833 | X153: 0.1438767502 | Y153: 0.2539463175
C154: 148.8 | D154: 159.5287358 | E154: 159.5455931 | F154: 159.5922574 | G154: 159.6628392 | H154: 159.7507476 | I154: 159.8489486 | J154: 159.950305 | S154: 0.05380124821 | T154: 0.05606322324 | U154: 0.06312792522 | V154: 0.07672593392 | W154: 0.1013646832 | X154: 0.1489627697 | Y154: 0.2601034015
C155: 150 | D155: 159.5509745 | E155: 159.5670363 | F155: 159.6114986 | G155: 159.6787497 | H155: 159.7625097 | I155: 159.8560766 | J155: 159.9526501 | S155: 0.05681572863 | T155: 0.05915341968 | U155: 0.06644341469 | V155: 0.08043330945 | W155: 0.1056699136 | X155: 0.1541251206 | Y155: 0.2662900702
C156: 151.2 | D156: 159.5721637 | E156: 159.5874676 | F156: 159.6298317 | G156: 159.6939093 | H156: 159.7737167 | I156: 159.8628682 | J156: 159.9548845 | S156: 0.05993071274 | T156: 0.06234417653 | U156: 0.06985922538 | V156: 0.08423915124 | W156: 0.1100672039 | X156: 0.1593617192 | Y156: 0.2725038141
C157: 152.4 | D157: 159.5923531 | E157: 159.6069347 | F157: 159.6472997 | G157: 159.7083535 | H157: 159.7843949 | I157: 159.8693394 | J157: 159.9570134 | S157: 0.06314626076 | T157: 0.06563546211 | U157: 0.073375056 | V157: 0.08814270569 | W157: 0.1145551639 | X157: 0.1646704248 | Y157: 0.2787421361
C158: 153.6 | D158: 159.6115897 | E158: 159.6254832 | F158: 159.6639434 | G158: 159.7221161 | H158: 159.7945692 | I158: 159.8755052 | J158: 159.959042 | S158: 0.06646231105 | T158: 0.06902712366 | U158: 0.07699048725 | V158: 0.09214310947 | W158: 0.1191323126 | X158: 0.1700490446 | Y158: 0.2850025541
C159: 154.8 | D159: 159.6299185 | E159: 159.6431565 | F159: 159.6798018 | G159: 159.7352293 | H159: 159.8042633 | I159: 159.88138 | J159: 159.9609747 | S159: 0.06987868117 | T159: 0.07251888855 | U159: 0.08070498366 | V159: 0.09623939215 | W159: 0.1237970815 | X159: 0.1754953366 | Y159: 0.2912826038
C160: 156 | D160: 159.6473825 | E160: 159.6599957 | F160: 159.6949117 | G160: 159.7477237 | H160: 159.8135 | I160: 159.8869776 | J160: 159.9628163 | S160: 0.07339506916 | T160: 0.07611036577 | U160: 0.0845178956 | V160: 0.100430479 | W160: 0.1285478183 | X160: 0.1810070143 | Y160: 0.2975798415
C161: 157.2 | D161: 159.6640223 | E161: 159.6760403 | F161: 159.7093087 | G161: 159.7596284 | H161: 159.8223008 | I161: 159.8923111 | J161: 159.964571 | S161: 0.07701105509 | T161: 0.07980104768 | U161: 0.08842846144 | V161: 0.1047151938 | W161: 0.1333827902 | X161: 0.1865817504 | Y161: 0.3038918456
C162: 158.4 | D162: 159.6798769 | E162: 159.6913278 | F162: 159.7230262 | G162: 159.7709714 | H162: 159.8306864 | I162: 159.8973929 | J162: 159.9662429 | S162: 0.08072610284 | T162: 0.08359031193 | U162: 0.09243581007 | V162: 0.1090922623 | W162: 0.1383001883 | X162: 0.1922171805 | Y162: 0.3102162198
C163: 159.6 | D163: 159.6949833 | E163: 159.7058938 | F163: 159.7360964 | G163: 159.7817792 | H163: 159.8386762 | I163: 159.9022348 | J163: 159.9678358 | S163: 0.08453956214 | T163: 0.08747742368 | U163: 0.09653896347 | V163: 0.1135603149 | W163: 0.1432981308 | X163: 0.1979109071 | Y163: 0.316550595
C164: 160.8 | D164: 159.7093768 | E164: 159.7197725 | F164: 159.7485499 | G164: 159.7920769 | H164: 159.8462889 | I164: 159.9068483 | J164: 159.9693537 | S164: 0.08845067076 | T164: 0.09146153798 | U164: 0.1007368395 | V164: 0.1181178905 | W164: 0.1483746671 | X164: 0.2036605033 | Y164: 0.3228926313
C165: 162 | D165: 159.7230912 | E165: 159.7329963 | F165: 159.7604157 | G165: 159.8018886 | H165: 159.8535425 | I165: 159.9112441 | J165: 159.9707998 | S165: 0.09245855699 | T165: 0.09554170231 | U165: 0.1050282548 | V165: 0.1227634395 | W165: 0.1535277816 | X165: 0.209463517 | Y165: 0.3292400199
C166: 163.2 | D166: 159.7361583 | E166: 159.745596 | F166: 159.7717215 | G166: 159.8112374 | H166: 159.8604537 | I166: 159.9154324 | J166: 159.9721778 | S166: 0.09656224219 | T166: 0.09971685934 | U166: 0.1094119281 | V166: 0.127495328 | W166: 0.1587553978 | X166: 0.215317474 | Y166: 0.3355904852
C167: 164.4 | D167: 159.7486089 | E167: 159.7576012 | F167: 159.7824938 | G167: 159.820145 | H167: 159.8670388 | I167: 159.9194231 | J167: 159.9734907 | S167: 0.1007606437 | T167: 0.1039858499 | U167: 0.1138864831 | V167: 0.1323118407 | W167: 0.164055382 | X167: 0.2212198818 | Y167: 0.3419417865
C168: 165.6 | D168: 159.7604719 | E168: 159.7690399 | F168: 159.7927578 | G168: 159.8286322 | H168: 159.8733132 | I168: 159.9232255 | J168: 159.9747416 | S168: 0.1050525776 | T168: 0.1083474159 | U168: 0.1184504522 | V168: 0.1372111851 | W168: 0.1694255474 | X168: 0.2271682337 | Y168: 0.3482917196
C169: 166.8 | D169: 159.7717751 | E169: 159.7799387 | F169: 159.8025375 | G169: 159.836719 | H169: 159.8792915 | I169: 159.9268484 | J169: 159.9759336 | S169: 0.1094367619 | T169: 0.1128002037 | U169: 0.1231022797 | V169: 0.1421914952 | W169: 0.174863658 | X169: 0.2331600115 | Y169: 0.3546381183
C170: 168 | D170: 159.7825449 | E170: 159.7903233 | F170: 159.8118556 | G170: 159.8444241 | H170: 159.8849876 | I170: 159.9303004 | J170: 159.9770693 | S170: 0.1139118201 | T170: 0.1173427674 | U170: 0.1278403256 | V170: 0.1472508354 | W170: 0.1803674325 | X170: 0.2391926894 | Y170: 0.3609788559
C171: 169.2 | D171: 159.7928064 | E171: 159.8002178 | F171: 159.820734 | G171: 159.8517657 | H171: 159.890415 | I171: 159.9335895 | J171: 159.9781513 | S171: 0.1184762839 | T171: 0.1219735722 | U171: 0.1326628689 | V171: 0.152387204 | W171: 0.1859345484 | X171: 0.2452637376 | Y171: 0.3673118466
C172: 170.4 | D172: 159.8025838 | E172: 159.8096454 | F172: 159.8291935 | G172: 159.8587607 | H172: 159.8955862 | I172: 159.9367234 | J172: 159.9791824 | S172: 0.1231285972 | T172: 0.1266909981 | U172: 0.1375681119 | V172: 0.1575985378 | W172: 0.1915626455 | X172: 0.2513706247 | Y172: 0.3736350468
C173: 171.6 | D173: 159.8118997 | E173: 159.8186281 | F173: 159.8372537 | G173: 159.8654257 | H173: 159.9005135 | I173: 159.9397094 | J173: 159.9801647 | S173: 0.1278671195 | T173: 0.1314933432 | U173: 0.1425541833 | V173: 0.1628827153 | W173: 0.1972493303 | X173: 0.2575108219 | Y173: 0.3799464559
C174: 172.8 | D174: 159.8207761 | E174: 159.827187 | F174: 159.8449336 | G174: 159.8717762 | H174: 159.9052082 | I174: 159.9425544 | J174: 159.9811008 | S174: 0.1326901294 | T174: 0.136378828 | U174: 0.1476191425 | V174: 0.1682375611 | W174: 0.2029921792 | X174: 0.2636818053 | Y174: 0.3862441178
C175: 174 | D175: 159.8292335 | E175: 159.8353419 | F175: 159.8522511 | G175: 159.877827 | H175: 159.9096813 | I175: 159.9452653 | J175: 159.9819926 | S175: 0.1375958287 | T175: 0.1413455986 | U175: 0.1527609835 | V175: 0.1736608499 | W175: 0.2087887429 | X175: 0.2698810592 | Y175: 0.3925261213
C176: 175.2 | D176: 159.8372919 | E176: 159.843112 | F176: 159.8592233 | G176: 159.8835923 | H176: 159.9139434 | I176: 159.9478482 | J176: 159.9828424 | S176: 0.1425823457 | T176: 0.1463917307 | U176: 0.1579776385 | V176: 0.1791503098 | W176: 0.2146365495 | X176: 0.276106079 | Y176: 0.3987906016
C177: 176.4 | D177: 159.84497 | E177: 159.8505155 | F177: 159.8658665 | G177: 159.8890855 | H177: 159.9180044 | I177: 159.9503092 | J177: 159.983652 | S177: 0.1476477395 | T177: 0.1515152337 | U177: 0.1632669822 | V177: 0.1847036273 | W177: 0.2205331088 | X177: 0.2823543739 | Y177: 0.4050357404
C178: 177.6 | D178: 159.8522858 | E178: 159.8575696 | F178: 159.8721962 | G178: 159.8943195 | H178: 159.9218737 | I178: 159.9526541 | J178: 159.9844235 | S178: 0.1527900037 | T178: 0.1567140544 | U178: 0.1686268353 | V178: 0.1903184501 | W178: 0.2264759153 | X178: 0.2886234696 | Y178: 0.4112597671
C179: 178.8 | D179: 159.8592563 | E179: 159.8642908 | F179: 159.8782271 | G179: 159.8993065 | H179: 159.9255604 | I179: 159.9548883 | J179: 159.9851585 | S179: 0.1580070703 | T179: 0.1619860809 | U179: 0.1740549691 | V179: 0.1959923916 | W179: 0.2324624521 | X179: 0.294910911 | Y179: 0.4174609589
C180: 180 | D180: 159.8658979 | E180: 159.8706948 | F180: 159.8839735 | G180: 159.9040582 | H180: 159.9290732 | I180: 159.9570171 | J180: 159.9858589 | S180: 0.1632968134 | T180: 0.1673291467 | U180: 0.1795491087 | V180: 0.2017230347 | W180: 0.2384901941 | X180: 0.3012142644 | Y180: 0.4236376417
C181: 181.2 | D181: 159.8722261 | E181: 159.8767966 | F181: 159.8894488 | G181: 159.9085856 | H181: 159.9324202 | I181: 159.9590454 | J181: 159.9865262 | S181: 0.1686570537 | T181: 0.1727410344 | U181: 0.1851069373 | V181: 0.2075079354 | W181: 0.2445566115 | X181: 0.3075311201 | Y181: 0.4297881903
C182: 182.4 | D182: 159.8782557 | E182: 159.8826105 | F182: 159.8946656 | G182: 159.9128994 | H182: 159.9356092 | I182: 159.960978 | J182: 159.987162 | S182: 0.1740855621 | T182: 0.17821948 | U182: 0.1907261004 | V182: 0.2133446266 | W182: 0.2506591732 | X182: 0.3138590944 | Y182: 0.4359110287
C183: 183.6 | D183: 159.8840007 | E183: 159.8881501 | F183: 159.8996363 | G183: 159.9170096 | H183: 159.9386478 | I183: 159.9628195 | J183: 159.9877678 | S183: 0.1795800634 | T183: 0.1837621766 | U183: 0.1964042089 | V183: 0.2192306216 | W183: 0.2567953495 | X183: 0.3201958321 | Y183: 0.4420046304
C184: 184.8 | D184: 159.8894747 | E184: 159.8934282 | F184: 159.9043724 | G184: 159.9209259 | H184: 159.941543 | I184: 159.964574 | J184: 159.9883451 | S184: 0.1851382408 | T184: 0.1893667782 | U184: 0.2021388436 | V184: 0.225163418 | W184: 0.2629626159 | X184: 0.3265390084 | Y184: 0.4480675185
C185: 186 | D185: 159.8946903 | E185: 159.8984573 | F185: 159.908885 | G185: 159.9246573 | H185: 159.9443015 | I185: 159.9662457 | J185: 159.988895 | S185: 0.1907577393 | T185: 0.1950309037 | U185: 0.2079275588 | V185: 0.2311405013 | W185: 0.2691584553 | X185: 0.3328863306 | Y185: 0.4540982659
C186: 187.2 | D186: 159.8996598 | E186: 159.903249 | F186: 159.9131846 | G186: 159.9282127 | H186: 159.9469299 | I186: 159.9678386 | J186: 159.9894191 | S186: 0.1964361698 | T186: 0.200752141 | U186: 0.2137678857 | V186: 0.2371593477 | W186: 0.2753803617 | X186: 0.33923554 | Y186: 0.4600954952
C187: 188.4 | D187: 159.9043948 | E187: 159.9078146 | F187: 159.9172814 | G187: 159.9316003 | H187: 159.9494343 | I187: 159.9693562 | J187: 159.9899184 | S187: 0.202171113 | T187: 0.2065280502 | U187: 0.2196573366 | V187: 0.2432174283 | W187: 0.2816258423 | X187: 0.3455844141 | Y187: 0.4660578788
C188: 189.6 | D188: 159.9089064 | E188: 159.9121648 | F188: 159.9211849 | G188: 159.9348281 | H188: 159.9518204 | I188: 159.9708023 | J188: 159.9903941 | S188: 0.2079601229 | T188: 0.2123561679 | U188: 0.225593408 | V188: 0.2493122118 | W188: 0.2878924206 | X188: 0.3519307673 | Y188: 0.4719841387
C189: 190.8 | D189: 159.913205 | E189: 159.9163097 | F189: 159.9249041 | G189: 159.9379035 | H189: 159.954094 | I189: 159.9721801 | J189: 159.9908474 | S189: 0.2138007307 | T189: 0.2182340106 | U189: 0.2315735844 | V189: 0.2554411682 | W189: 0.2941776388 | X189: 0.3582724533 | Y189: 0.4778730463
C190: 192 | D190: 159.9173008 | E190: 159.920259 | F190: 159.9284478 | G190: 159.9408338 | H190: 159.9562603 | I190: 159.9734929 | J190: 159.9912793 | S190: 0.2196904485 | T190: 0.2241590781 | U190: 0.2375953419 | V190: 0.2616017713 | W190: 0.3004790606 | X190: 0.3646073659 | Y190: 0.4837234223
C191: 193.2 | D191: 159.9212033 | E191: 159.9240219 | F191: 159.9318243 | G191: 159.9436258 | H191: 159.9583243 | I191: 159.9747438 | J191: 159.9916909 | S191: 0.2256267728 | T191: 0.2301288578 | U191: 0.243656151 | V191: 0.2677915023 | W191: 0.3067942731 | X191: 0.3709334406 | Y191: 0.4895341361
C192: 194.4 | D192: 159.9249217 | E192: 159.9276073 | F192: 159.9350415 | G192: 159.9462861 | H192: 159.960291 | I192: 159.9759356 | J192: 159.992083 | S192: 0.2316071881 | T192: 0.2361408272 | U192: 0.2497534807 | V192: 0.2740078524 | W192: 0.3131208894 | X192: 0.3772486554 | Y192: 0.4953041058
C193: 195.6 | D193: 159.9284646 | E193: 159.9310234 | F193: 159.9381068 | G193: 159.9488208 | H193: 159.9621648 | I193: 159.9770712 | J193: 159.9924566 | S193: 0.2376291702 | T193: 0.242192458 | U193: 0.2558848008 | V193: 0.2802483256 | W193: 0.3194565506 | X193: 0.3835510326 | Y193: 0.5010322979
C194: 196.8 | D194: 159.9318403 | E194: 159.9342784 | F194: 159.9410276 | G194: 159.9512359 | H194: 159.9639502 | I194: 159.9781532 | J194: 159.9928125 | S194: 0.24369019 | T194: 0.2482812193 | U194: 0.2620475858 | V194: 0.2865104417 | W194: 0.325798928 | X194: 0.3898386388 | Y194: 0.5067177263
C195: 198 | D195: 159.9350567 | E195: 159.9373798 | F195: 159.9438104 | G195: 159.9535371 | H195: 159.9656514 | I195: 159.9791841 | J195: 159.9931517 | S195: 0.249787716 | T195: 0.2544045803 | U195: 0.2682393174 | V195: 0.2927917385 | W195: 0.3321457248 | X195: 0.3961095869 | Y195: 0.5123594523
C196: 199.2 | D196: 159.9381214 | E196: 159.9403348 | F196: 159.946462 | G196: 159.9557296 | H196: 159.9672723 | I196: 159.9801664 | J196: 159.9934749 | S196: 0.2559192185 | T196: 0.2605600142 | U196: 0.2744574876 | V196: 0.2990897747 | W196: 0.3384946782 | X196: 0.4023620359 | Y196: 0.5179565839
C197: 200.4 | D197: 159.9410414 | E197: 159.9431504 | F197: 159.9489884 | G197: 159.9578187 | H197: 159.9688167 | I197: 159.9811024 | J197: 159.9937828 | S197: 0.2620821717 | T197: 0.2667450006 | U197: 0.2806996016 | V197: 0.305402132 | W197: 0.344843561 | X197: 0.4085941922 | Y197: 0.5235082754
C198: 201.6 | D198: 159.9438236 | E198: 159.9458331 | F198: 159.9513956 | G198: 159.9598092 | H198: 159.9702882 | I198: 159.9819941 | J198: 159.9940762 | S198: 0.2682740575 | T198: 0.2729570288 | U198: 0.2869631803 | V198: 0.3117264176 | W198: 0.3511901833 | X198: 0.4148043099 | Y198: 0.5290137265
C199: 202.8 | D199: 159.9464745 | E199: 159.9483892 | F199: 159.9536892 | G199: 159.9617058 | H199: 159.9716903 | I199: 159.9828438 | J199: 159.9943557 | S199: 0.274492368 | T199: 0.2791936006 | U199: 0.2932457629 | V199: 0.3180602661 | W199: 0.3575323936 | X199: 0.4209906918 | Y199: 0.5344721817
C200: 204 | D200: 159.9490004 | E200: 159.9508246 | F200: 159.9558746 | G200: 159.9635129 | H200: 159.9730262 | I200: 159.9836534 | J200: 159.9946221 | S200: 0.2807346083 | T200: 0.2854522328 | U200: 0.2995449098 | V200: 0.3244013422 | W200: 0.3638680809 | X200: 0.4271516891 | Y200: 0.53988293
C201: 205.2 | D201: 159.951407 | E201: 159.9531452 | F201: 159.9579569 | G201: 159.9652347 | H201: 159.9742991 | I201: 159.9844248 | J201: 159.9948758 | S201: 0.2869982995 | T201: 0.2917304601 | U201: 0.3058582043 | V201: 0.3307473417 | W201: 0.3701951756 | X201: 0.4332857024 | Y201: 0.5452453039
C202: 206.4 | D202: 159.9537001 | E202: 159.9553562 | F202: 159.9599408 | G202: 159.9668752 | H202: 159.9755119 | I202: 159.9851598 | J202: 159.9951177 | S202: 0.293280981 | T202: 0.2980258374 | U202: 0.3121832557 | V202: 0.3370959942 | W202: 0.3765116504 | X202: 0.4393911818 | Y202: 0.5505586784
C203: 207.6 | D203: 159.955885 | E203: 159.957463 | F203: 159.9618312 | G203: 159.9684384 | H203: 159.9766675 | I203: 159.9858601 | J203: 159.995348 | S203: 0.2995802131 | T203: 0.3043359423 | U203: 0.3185177006 | V203: 0.3434450646 | W203: 0.3828155221 | X203: 0.4454666268 | Y203: 0.5558224709
C204: 208.8 | D204: 159.9579667 | E204: 159.9594703 | F204: 159.9636324 | G204: 159.9699278 | H204: 159.9777685 | I204: 159.9865273 | J204: 159.9955676 | S204: 0.3058935795 | T204: 0.3106583777 | U204: 0.3248592057 | V204: 0.3497923543 | W204: 0.3891048522 | X204: 0.4515105868 | Y204: 0.5610361398
C205: 210 | D205: 159.9599502 | E205: 159.9613828 | F205: 159.9653485 | G205: 159.9713468 | H205: 159.9788176 | I205: 159.9871631 | J205: 159.9957767 | S205: 0.3122186894 | T205: 0.3169907734 | U205: 0.3312054695 | V205: 0.3561357035 | W205: 0.3953777476 | X205: 0.4575216612 | Y205: 0.5661991842
... 325 more rows

Sheet InnerOuter Heated Annulus
C1: Peroxide Cured Silicones ONLY!
AJ2: Temp (K) | AK2: Ln (1/(t90 - ts1)) | AL2: Ln(1/ts(1)) | AM2: Slope/Interc | AN2: Slope/Interc
B3: Imp | C3: Metric | AJ3: =1/(D24+273.15) -> 0.002369387513 | AK3: =LN(1/(G24-F24)) -> -7.014185223 | AL3: =LN(1/(F24)) -> -5.009968405 | AM3: =SLOPE(AK3:AK5,AJ3:AJ5) -> -15664.77382 | AN3: =SLOPE(AL3:AL5,AJ3:AJ5) -> -12327.11386
B4: =C4/25.4 -> 0.5511811024 | C4: 14 | D4: mm | E4: Inner Radius, Ri | AJ4: =1/(D25+273.15) -> 0.002279202279 | AK4: =LN(1/(G25-F25)) -> -5.892251762 | AL4: =LN(1/(F25)) -> -3.710151589 | AM4: =INTERCEPT(AK3:AK5,AJ3:AJ5) -> 30.00748462 | AN4: =INTERCEPT(AL3:AL5,AJ3:AJ5) -> 24.25870357
B5: =C5/25.4 -> 0.6299212598 | C5: 16 | D5: mm | E5: Outer Radius, Ro | AJ5: =1/(D26+273.15) -> 0.00219611288 | AK5: =LN(1/(G26-F26)) -> -4.291828367 | AL5: =LN(1/(F26)) -> -2.879198457
C6: =0.0006*C8 - 0.4448 -> 0.2272 | D6: W/m-K | E6: Thermal Conductivity, k
C7: 1450 | D7: J/kg - K | E7: Heat Capacity, cp | Z7: 55.71428571
C8: 1120 | D8: kg/m3 | E8: Density, p | Z8: 20
Z9: 55.71428571
C10: 15 | D10: # | E10: Number of nodes
B12: =(C12*9/5)+32 -> 320 | C12: 160 | D12: F, C | E12: Mold Temperature, Tmi
B13: 302 | C13: 150 | D13: F, C | E13: Mold Temperature, Tmo
B14: 69.8 | C14: 21 | D14: F, C | E14: Initial Rubber Temperature, Tr
C16: 800 | D16: sec | E16: Total T
C18: =8.3144621*-AM3 -> 130244.1682 | D18: J/mole | E18: Ea2 | F18: Activation Energy
C19: =POWER(2.71828,AM4) -> 1.076654156e+13 | D19: s-1 | E19: A2 | F19: Arrhenius Constant
C20: =8.3144621*-AN3 -> 102493.321 | D20: J/mole | E20: Ea1 | F20: Activation Energy
C21: =POWER(2.71828,AN4) -> 3.430947017e+10 | D21: s-1 | E21: A1 | F21: Arrhenius Constant
B22: 3 Temp Rheology Study (ASTM D5289)
C23: Cure Set | D23: Temperature, C | F23: ts(1), sec | G23: t(90), sec
C24: Low | D24: 148.9 | F24: 149.9 | G24: 1262.2
C25: Med | D25: 165.6 | F25: 40.86 | G25: 403.08
C26: High | D26: 182.2 | F26: 17.8 | G26: 90.9
D28: Temperature (time, x), C | S28: 90% SOC (time, x), %
C29: time, s | D29: 0.06666666667 | E29: 0.2 | F29: 0.3333333333 | G29: 0.4666666667 | H29: 0.6 | I29: 0.7333333333 | J29: 0.8666666667 | K29: 1 | L29: 1.133333333 | M29: 1.266666667 | N29: 1.4 | O29: 1.533333333 | P29: 1.666666667 | Q29: 1.8 | R29: 1.933333333 | S29: 0.06666666667 | T29: 0.2 | U29: 0.3333333333 | V29: 0.4666666667 | W29: 0.6 | X29: 0.7333333333 | Y29: 0.8666666667 | Z29: 1 | AA29: 1.133333333 | AB29: 1.266666667 | AC29: 1.4 | AD29: 1.533333333 | AE29: 1.666666667 | AF29: 1.8 | AG29: 1.933333333
C30: 0 | D30: 21 | E30: 21 | F30: 21 | G30: 21 | H30: 21 | I30: 21 | J30: 21 | K30: 21 | L30: 21 | M30: 21 | N30: 21 | O30: 21 | P30: 21 | Q30: 21 | R30: 21 | S30: 0 | T30: 0 | U30: 0 | V30: 0 | W30: 0 | X30: 0 | Y30: 0 | Z30: 0 | AA30: 0 | AB30: 0 | AC30: 0 | AD30: 0 | AE30: 0 | AF30: 0 | AG30: 0
C31: 1.6 | D31: 140.8837911 | E31: 112.3981211 | F31: 91.40373605 | G31: 76.1694323 | H31: 65.43643607 | I31: 58.31418121 | J31: 54.20629088 | K31: 52.76059836 | L31: 53.83901236 | M31: 57.50465028 | N31: 64.02506024 | O31: 73.89164334 | P31: 87.85667499 | Q31: 106.9907119 | R31: 132.7647672 | S31: 9.826661361e-12 | T31: 1.638745305e-16 | U31: 1.641018212e-20 | V31: 1.027955951e-23 | W31: 3.82096908e-26 | X31: 7.637050799e-28 | Y31: 7.399909944e-29 | Z31: 3.20918344e-29 | AA31: 5.988981301e-29 | AB31: 4.843415329e-28 | AC31: 1.782984824e-26 | AD31: 3.227601845e-24 | AE31: 3.115029913e-21 | AF31: 1.685199715e-17 | AG31: 4.999660122e-13
C32: 3.2 | D32: 151.2513348 | E32: 134.6972325 | F32: 120.0605978 | G32: 107.8249245 | H32: 98.20410159 | I32: 91.26137025 | J32: 86.98611531 | K32: 85.34083313 | L32: 86.28623248 | M32: 89.78904231 | N32: 95.81431829 | O32: 104.3015184 | P32: 115.1210526 | Q32: 128.0050957 | R32: 142.4428482 | S32: 1.785248585e-09 | T32: 1.946112589e-12 | U32: 5.121061799e-15 | V32: 2.957626993e-17 | W32: 4.251844881e-19 | X32: 1.760083345e-20 | Y32: 2.342178389e-21 | Z32: 1.066256611e-21 | AA32: 1.68343791e-21 | AB32: 8.916862783e-21 | AC32: 1.465250934e-19 | AD32: 6.62675601e-18 | AE32: 7.120157269e-16 | AF32: 1.612130883e-13 | AG32: 8.503514934e-11
C33: 4.8 | D33: 154.5908048 | E33: 144.112875 | F33: 134.4771816 | G33: 126.0703953 | H33: 119.1831726 | I33: 114.017178 | J33: 110.696884 | K33: 109.2809737 | L33: 109.7705423 | M33: 112.1127945 | N33: 116.1999556 | O33: 121.8639606 | P33: 128.8684285 | Q33: 136.9007459 | R33: 145.5691008 | S33: 2.692661621e-08 | T33: 1.999164062e-10 | U33: 3.208780591e-12 | V33: 9.24488745e-14 | W33: 4.979431172e-15 | X33: 5.43030754e-16 | Y33: 1.289816104e-16 | Z33: 6.99842803e-17 | AA33: 8.791753366e-17 | AB33: 2.498818565e-16 | AC33: 1.519803298e-15 | AD33: 1.829298173e-14 | AE33: 4.016228781e-13 | AF33: 1.547689297e-11 | AG33: 1.265454241e-09
C34: 6.4 | D34: 156.4349147 | E34: 149.5009253 | F34: 143.0576682 | G34: 137.3523922 | H34: 132.5913821 | I34: 128.9337144 | J34: 126.4883564 | K34: 125.3134157 | L34: 125.416559 | M34: 126.7559772 | N34: 129.2416749 | O34: 132.7372716 | P34: 137.0628747 | Q34: 141.9998768 | R34: 147.2986698 | S34: 1.731754111e-07 | T34: 4.006596351e-09 | U34: 1.91102223e-10 | V34: 1.496161382e-11 | W34: 1.882279592e-12 | X34: 3.904042601e-13 | Y34: 1.378871357e-13 | Z34: 8.487470194e-14 | AA34: 9.166200549e-14 | AB34: 1.716581404e-13 | AC34: 5.423447726e-13 | AD34: 2.790566096e-12 | AE34: 2.276667053e-11 | AF34: 3.012114271e-10 | AG34: 8.137978341e-09
C35: 8 | D35: 157.5820167 | E35: 152.8709151 | F35: 148.4702423 | G35: 144.5382019 | H35: 141.2103257 | I35: 138.5941215 | J35: 136.765275 | K35: 135.7653223 | L35: 135.6006517 | M35: 136.2427138 | N35: 137.6293674 | O35: 139.6673584 | P35: 142.2359758 | Q35: 145.1919393 | R35: 148.3755155 | S35: 7.064381613e-07 | T35: 3.477603005e-08 | U35: 3.332197134e-09 | V35: 4.897795282e-10 | W35: 1.048063024e-10 | X35: 3.248713943e-11 | Y35: 1.470826761e-11 | Z35: 9.806668353e-12 | AA35: 9.652143131e-12 | AB35: 1.395284202e-11 | AC35: 2.931264689e-11 | AD35: 8.862268037e-11 | AE35: 3.873649474e-10 | AF35: 2.582152999e-09 | AG35: 3.339935422e-08
C36: 9.6 | D36: 158.3152264 | E36: 155.0274599 | F36: 151.9408964 | G36: 149.1572811 | H36: 146.7643754 | I36: 144.8323298 | J36: 143.4109063 | K36: 142.527624 | L36: 142.1868541 | M36: 142.3698652 | N36: 143.0357965 | O36: 144.1235226 | P36: 145.5543543 | Q36: 147.2354939 | R36: 149.0641263 | S36: 2.162117789e-06 | T36: 1.810093406e-07 | U36: 2.773531795e-08 | V36: 6.149440712e-09 | W36: 1.848732977e-09 | X36: 7.389927888e-10 | Y36: 3.912038789e-10 | Z36: 2.743775813e-10 | AA36: 2.549865315e-10 | AB36: 3.135099203e-10 | AC36: 5.091626512e-10 | AD36: 1.095899436e-09 | AE36: 3.188203495e-09 | AF36: 1.339755127e-08 | AG36: 1.032034936e-07
C37: 11.2 | D37: 158.7870866 | E37: 156.4157094 | F37: 154.1762367 | G37: 152.1342124 | H37: 150.3462704 | I37: 148.8577691 | J37: 147.7009442 | K37: 146.8936485 | L37: 146.4387188 | M37: 146.3239882 | N37: 146.522932 | O37: 146.9959204 | P37: 147.6920213 | Q37: 148.5512801 | R37: 149.5073807 | S37: 5.430165835e-06 | T37: 6.69742968e-07 | U37: 1.42545082e-07 | V37: 4.17833795e-08 | W37: 1.574708521e-08 | X37: 7.436559469e-09 | Y37: 4.358576089e-09 | Z37: 3.160001021e-09 | AA37: 2.831251195e-09 | AB37: 3.135788093e-09 | AC37: 4.30534061e-09 | AD37: 7.397467099e-09 | AE37: 1.632938242e-08 | AF37: 4.969167896e-08 | AG37: 2.622536916e-07
C38: 12.8 | D38: 159.0912982 | E38: 157.3107906 | F38: 155.61768 | G38: 154.0541983 | H38: 152.6568493 | I38: 151.4548793 | J38: 150.4690752 | K38: 149.7109407 | L38: 149.182279 | M38: 148.8751966 | N38: 148.7725242 | O38: 148.8486328 | P38: 149.0706072 | Q38: 149.3997257 | R38: 149.7931802 | S38: 1.181323994e-05 | T38: 1.948858208e-06 | U38: 5.260410199e-07 | V38: 1.876955336e-07 | W38: 8.269580789e-08 | X38: 4.375935077e-08 | Y38: 2.748102954e-08 | Z38: 2.038118524e-08 | AA38: 1.782572726e-08 | AB38: 1.840792776e-08 | AC38: 2.255335905e-08 | AD38: 3.318611694e-08 | AE38: 6.03449722e-08 | AF38: 1.454634963e-07 | AG38: 5.780721576e-07
C39: 14.4 | D39: 159.2875205 | E39: 157.8881467 | F39: 156.5474916 | G39: 155.2927553 | H39: 154.1474474 | I39: 153.130399 | J39: 152.2549862 | K39: 151.5285962 | L39: 150.9523566 | M39: 150.5211375 | N39: 150.2238228 | O39: 150.0438386 | P39: 149.959912 | Q39: 149.9470274 | R39: 149.9775358 | S39: 2.305940673e-05 | T39: 4.757429244e-06 | U39: 1.532303628e-06 | V39: 6.307149165e-07 | W39: 3.107308958e-07 | X39: 1.782213998e-07 | Y39: 1.175082872e-07 | Z39: 8.857361295e-08 | AA39: 7.6206656e-08 | AB39: 7.496192135e-08 | AC39: 8.478939132e-08 | AD39: 1.117381143e-07 | AE39: 1.76572419e-07 | AF39: 3.580647443e-07 | AG39: 1.144382541e-06
C40: 16 | D40: 159.4141047 | E40: 158.2606046 | F40: 157.147328 | G40: 156.0917791 | H40: 155.1090828 | I40: 154.2113476 | J40: 153.4071641 | K40: 152.7012601 | L40: 152.0943256 | M40: 151.5830144 | N40: 151.1601185 | O40: 150.8149098 | P40: 150.5336294 | Q40: 150.3001053 | R40: 150.0964677 | S40: 4.137534247e-05 | T40: 1.017446578e-05 | U40: 3.749413753e-06 | V40: 1.717183476e-06 | W40: 9.186278026e-07 | X40: 5.588546754e-07 | Y40: 3.818004461e-07 | Z40: 2.912715619e-07 | AA40: 2.477473856e-07 | AB40: 2.353745989e-07 | AC40: 2.512876829e-07 | AD40: 3.054863734e-07 | AE40: 4.349028447e-07 | AF40: 7.733915438e-07 | AG40: 2.083757165e-06
C41: 17.6 | D41: 159.495768 | E41: 158.500889 | F41: 157.5343027 | G41: 156.6072582 | H41: 155.7294712 | I41: 154.9087125 | J41: 154.1504843 | K41: 153.4577981 | L41: 152.8310615 | M41: 152.2680787 | N41: 151.7641638 | O41: 151.3123603 | P41: 150.9037579 | Q41: 150.5278898 | R41: 150.1731952 | S41: 6.942579997e-05 | T41: 1.964674319e-05 | U41: 8.040904373e-06 | V41: 3.996363771e-06 | W41: 2.275478627e-06 | X41: 1.447032564e-06 | Y41: 1.015354053e-06 | Z41: 7.817964434e-07 | AA41: 6.595688791e-07 | AB41: 6.108512002e-07 | AC41: 6.247959633e-07 | AD41: 7.149486334e-07 | AE41: 9.401288733e-07 | AF41: 1.50988151e-06 | AG41: 3.549704184e-06
C42: 19.2 | D42: 159.5484521 | E42: 158.6559058 | F42: 157.7839553 | G42: 156.9398145 | H42: 156.1297092 | I42: 155.3586116 | J42: 154.6300317 | K42: 153.9458734 | L42: 153.3063617 | M42: 152.7100434 | N42: 152.1538594 | O42: 151.633287 | P42: 151.1425435 | Q42: 150.6748432 | R42: 150.2226954 | S42: 0.0001103234636 | T42: 3.500067419e-05 | U42: 1.557058305e-05 | V42: 8.250218835e-06 | W42: 4.930336125e-06 | X42: 3.244385335e-06 | Y42: 2.323986584e-06 | Z42: 1.802560806e-06 | AA42: 1.511801548e-06 | AB42: 1.373617125e-06 | AC42: 1.360044179e-06 | AD42: 1.485716707e-06 | AE42: 1.836763943e-06 | AF42: 2.721538415e-06 | AG42: 5.7283226e-06
C43: 20.8 | D43: 159.5824408 | E43: 158.7559135 | F43: 157.9450164 | G43: 157.1543603 | H43: 156.3879194 | I43: 155.6488605 | J43: 154.939408 | K43: 154.2607514 | L43: 153.6129982 | M43: 152.9951738 | N43: 152.4052688 | O43: 151.8403305 | P43: 151.2965943 | Q43: 150.7696491 | R43: 150.2546301 | S43: 0.0001676117994 | T43: 5.84431688e-05 | U43: 2.781450333e-05 | V43: 1.551097482e-05 | W43: 9.631462626e-06 | X43: 6.511357671e-06 | Y43: 4.74095661e-06 | Z43: 3.699234569e-06 | AA43: 3.089205463e-06 | AB43: 2.76612499e-06 | AC43: 2.670779247e-06 | AD43: 2.813606755e-06 | AE43: 3.312615605e-06 | AF43: 4.600241104e-06 | AG43: 8.839601785e-06
C44: 22.4 | D44: 159.6043684 | E44: 158.8204326 | F44: 158.0489237 | G44: 157.2927728 | H44: 156.5545017 | I44: 155.8361123 | J44: 155.1389997 | K44: 154.4638926 | L44: 153.8108224 | M44: 153.1791235 | N44: 152.5674637 | O44: 151.9739031 | P44: 151.395979 | Q44: 150.8308125 | R44: 150.2752325 | S44: 0.00024524253 | T44: 9.255496993e-05 | U44: 4.656400156e-05 | V44: 2.706963459e-05 | W44: 1.733731886e-05 | X44: 1.197870135e-05 | Y44: 8.837784943e-06 | Z44: 6.930280693e-06 | AA44: 5.769174131e-06 | AB44: 5.107505223e-06 | AC44: 4.83476983e-06 | AD44: 4.948392129e-06 | AE44: 5.601446147e-06 | AF44: 7.377521324e-06 | AG44: 1.313840796e-05
C45: 24 | D45: 159.6185147 | E45: 158.8620566 | F45: 158.1159587 | G45: 157.3820685 | H45: 156.6619709 | I45: 155.9569163 | J45: 155.2677648 | K45: 154.5949476 | L45: 153.9384471 | M45: 153.2977972 | N45: 152.6721025 | O45: 152.0600765 | P45: 151.4600963 | Q45: 150.8702715 | R45: 150.288524 | S45: 0.0003475488385 | T45: 0.0001402785712 | U45: 7.392258858e-05 | V45: 4.447822994e-05 | W45: 2.922169627e-05 | X45: 2.055382464e-05 | Y45: 1.533076674e-05 | Z45: 1.207301384e-05 | AA45: 1.0027025e-05 | AB45: 8.797970653e-06 | AC45: 8.197327982e-06 | AD45: 8.196511459e-06 | AE45: 8.984962381e-06 | AF45: 1.132591693e-05 | AG45: 1.891518253e-05
C46: 25.6 | D46: 159.6276412 | E46: 158.88891 | F46: 158.1592058 | G46: 157.439677 | H46: 156.7313039 | I46: 156.0348521 | J46: 155.3508366 | K46: 154.6794967 | L46: 154.0207833 | M46: 153.3743587 | N46: 152.7396094 | O46: 152.1156706 | P46: 151.5014611 | Q46: 150.8957282 | R46: 150.2970989 | S46: 0.0004792151587 | T46: 0.0002049019412 | U46: 0.0001122983758 | V46: 6.954765829e-05 | W46: 4.667474986e-05 | X46: 3.332353061e-05 | Y46: 2.508443902e-05 | Z46: 1.982718743e-05 | AA46: 1.643935171e-05 | AB46: 1.432175116e-05 | AC46: 1.317375292e-05 | AD46: 1.292301155e-05 | AE46: 1.379427483e-05 | AF46: 1.675995509e-05 | AG46: 2.649637066e-05
C47: 27.2 | D47: 159.633529 | E47: 158.9062343 | F47: 158.1871063 | G47: 157.4768426 | H47: 156.7760335 | I47: 156.0851317 | J47: 155.4044297 | K47: 154.7340429 | L47: 154.0739018 | M47: 153.4237517 | N47: 152.783161 | O47: 152.1515367 | P47: 151.5281473 | Q47: 150.9121515 | R47: 150.302631 | S47: 0.0006452442864 | T47: 0.0002900388299 | U47: 0.0001643929982 | V47: 0.0001043421771 | W47: 7.130099455e-05 | X47: 5.155410701e-05 | Y47: 3.911281928e-05 | Z47: 3.101676358e-05 | AA47: 2.568593691e-05 | AB47: 2.224891757e-05 | AC47: 2.025093695e-05 | AD47: 1.955286883e-05 | AE47: 2.041089867e-05 | AF47: 2.403679442e-05 | AG47: 3.624459744e-05
C48: 28.8 | D48: 159.6373275 | E48: 158.9174109 | F48: 158.2051061 | G48: 157.5008198 | H48: 156.8048904 | I48: 156.1175693 | J48: 155.4390049 | K48: 154.769233 | L48: 154.1081708 | M48: 153.4556173 | N48: 152.811258 | O48: 152.1746754 | P48: 151.5453637 | Q48: 150.9227468 | R48: 150.3061999 | S48: 0.0008509224837 | T48: 0.0003996062414 | U48: 0.0002331876314 | V48: 0.0001511711729 | W48: 0.000104914865 | X48: 7.668931178e-05 | Y48: 5.857887736e-05 | Z48: 4.65902356e-05 | AA48: 3.855050424e-05 | AB48: 3.323629114e-05 | AC48: 2.998826097e-05 | AD48: 2.857176376e-05 | AE48: 2.92673348e-05 | AF48: 3.355654588e-05 | AG48: 4.855860968e-05
C49: 30.4 | D49: 159.6397781 | E49: 158.9246214 | F49: 158.2167185 | G49: 157.5162884 | H49: 156.8235073 | I49: 156.1384961 | J49: 155.4613108 | K49: 154.7919356 | L49: 154.1302792 | M49: 153.4761751 | N49: 152.8293845 | O49: 152.1896032 | P49: 151.5564707 | Q49: 150.9295822 | R49: 150.3085024 | S49: 0.001101783184 | T49: 0.0005377995894 | U49: 0.0003219265493 | V49: 0.0002125786079 | W49: 0.0001495342006 | X49: 0.0001103465681 | Y49: 8.479250072e-05 | Z49: 6.761970782e-05 | AA49: 5.5920462e-05 | AB49: 4.802754531e-05 | AC49: 4.301784964e-05 | AD49: 4.052635136e-05 | AE49: 4.084725743e-05 | AF49: 4.576229171e-05 | AG49: 6.387300281e-05
C50: 32 | D50: 159.641359 | E50: 158.9292732 | F50: 158.2242102 | G50: 157.5262679 | H50: 156.8355178 | I50: 156.1519969 | J50: 155.4757013 | K50: 154.806582 | L50: 154.1445423 | M50: 153.4894378 | N50: 152.8410787 | O50: 152.1992338 | P50: 151.5636363 | Q50: 150.9339921 | R50: 150.3099878 | S50: 0.001403569851 | T50: 0.0007090660255 | U50: 0.0004340986184 | V50: 0.0002913304672 | W50: 0.0002073719205 | X50: 0.0001543115834 | Y50: 0.0001192071233 | Z50: 9.529886368e-05 | AA50: 7.878573535e-05 | AB50: 6.745256936e-05 | AC50: 6.004423456e-05 | AD50: 5.602406161e-05 | AE50: 5.56853333e-05 | AF50: 6.113982353e-05 | AG50: 8.265775275e-05
C51: 33.6 | D51: 159.642379 | E51: 158.9322743 | F51: 158.2290434 | G51: 157.5327061 | H51: 156.8432663 | I51: 156.1607068 | J51: 155.4849852 | K51: 154.816031 | L51: 154.153744 | M51: 153.4979941 | N51: 152.8486231 | O51: 152.2054468 | P51: 151.5682592 | Q51: 150.9368371 | R51: 150.3109461 | S51: 0.001762198475 | T51: 0.0009180764034 | U51: 0.0005734171119 | V51: 0.0003904005109 | W51: 0.0002808261265 | X51: 0.0002105315777 | Y51: 0.0001634151596 | Z51: 0.0001309399296 | AA51: 0.000108236768 | AB51: 9.24261539e-05 | AC51: 8.184347031e-05 | AD51: 7.573246416e-05 | AE51: 7.436670003e-05 | AF51: 8.021712318e-05 | AG51: 0.0001054175725
C52: 35.2 | D52: 159.643037 | E52: 158.9342104 | F52: 158.2321615 | G52: 157.5368597 | H52: 156.8482652 | I52: 156.166326 | J52: 155.4909747 | K52: 154.822127 | L52: 154.1596804 | M52: 153.5035142 | N52: 152.8534903 | O52: 152.2094551 | P52: 151.5712416 | Q52: 150.9386725 | R52: 150.3115644 | S52: 0.002183720126 | T52: 0.001169696314 | U52: 0.000743798212 | V52: 0.0005129546256 | W52: 0.000372468865 | X52: 0.0002811072998 | Y52: 0.000219142383 | Z52: 0.0001759697404 | AA52: 0.000145461774 | AB52: 0.00012394606 | AC52: 0.0001092617513 | AD52: 0.0001003782349 | AE52: 9.75261341e-05 | AF52: 0.0001035636111 | AG52: 0.0001326911128
C53: 36.8 | D53: 159.6434615 | E53: 158.9354595 | F53: 158.2341731 | G53: 157.5395393 | H53: 156.8514902 | I53: 156.1699511 | J53: 155.4948387 | K53: 154.8260597 | L53: 154.1635102 | M53: 153.5070754 | N53: 152.8566304 | O53: 152.2120411 | P53: 151.5731656 | Q53: 150.9398566 | R53: 150.3119632 | S53: 0.002674283914 | T53: 0.001468956581 | U53: 0.0009493385488 | V53: 0.0006623340668 | W53: 0.0004850337824 | X53: 0.0003682840151 | Y53: 0.000288241389 | Z53: 0.0002319250157 | AA53: 0.0001917433238 | AB53: 0.0001630905375 | AC53: 0.0001432135802 | AD53: 0.0001307457646 | AE53: 0.0001258469402 | AF53: 0.0001317891875 | AG53: 0.0001650500252
C54: 38.4 | D54: 159.6437354 | E54: 158.9362653 | F54: 158.2354709 | G54: 157.541268 | H54: 156.8535707 | I54: 156.1722898 | J54: 155.4973316 | K54: 154.8285969 | L54: 154.165981 | M54: 153.5093729 | N54: 152.8586562 | O54: 152.2137094 | P54: 151.5744069 | Q54: 150.9406205 | R54: 150.3122206 | S54: 0.003240100671 | T54: 0.001821023566 | U54: 0.001194292097 | V54: 0.0008420378636 | W54: 0.0006214028942 | X54: 0.0004744416433 | Y54: 0.0003726842853 | Z54: 0.0003004469589 | AA54: 0.0002484543522 | AB54: 0.0002110153598 | AC54: 0.000184679541 | AD54: 0.000167675451 | AE54: 0.0001600595939 | AF54: 0.0001655430897 | AG54: 0.0002030979037
C55: 40 | D55: 159.643912 | E55: 158.9367852 | F55: 158.2363081 | G55: 157.5423833 | H55: 156.854913 | I55: 156.1737986 | J55: 155.4989398 | K55: 154.8302338 | L55: 154.167575 | M55: 153.5108551 | N55: 152.8599631 | O55: 152.2147857 | P55: 151.5752077 | Q55: 150.9411134 | R55: 150.3123866 | S55: 0.00388740756 | T55: 0.002231169573 | U55: 0.001483046716 | V55: 0.001055704638 | W55: 0.0007845926813 | X55: 0.0006020842175 | Y55: 0.0004745547464 | Z55: 0.0003832752859 | AA55: 0.0003170536723 | AB55: 0.0002689504429 | AC55: 0.0002347037289 | AD55: 0.0002120617142 | AE55: 0.0002009401692 | AF55: 0.0002055125909 | AG55: 0.000247469122
C56: 41.6 | D56: 159.644026 | E56: 158.9371206 | F56: 158.2368483 | G56: 157.5431028 | H56: 156.855779 | I56: 156.1747721 | J56: 155.4999774 | K56: 154.8312898 | L56: 154.1686033 | M56: 153.5118113 | N56: 152.8608062 | O56: 152.21548 | P56: 151.5757244 | Q56: 150.9414313 | R56: 150.3124937 | S56: 0.004622433854 | T56: 0.002704743614 | U56: 0.00182010058 | V56: 0.001307094059 | W56: 0.0009777397031 | X56: 0.0007538288234 | Y56: 0.0005960395617 | Z56: 0.0004822417891 | AA56: 0.0003990810792 | AB56: 0.0003381961119 | AC56: 0.0002943908867 | AD56: 0.0002648507752 | AE56: 0.000249308579 | AF56: 0.0002524215591 | AG56: 0.0002988275796
C57: 43.2 | D57: 159.6440996 | E57: 158.9373369 | F57: 158.2371968 | G57: 157.543567 | H57: 156.8563376 | I57: 156.1754 | J57: 155.5006467 | K57: 154.831971 | L57: 154.1692668 | M57: 153.5124282 | N57: 152.8613502 | O57: 152.215928 | P57: 151.5760577 | Q57: 150.9416364 | R57: 150.3125628 | S57: 0.005451368003 | T57: 0.003247142735 | U57: 0.002210038713 | V57: 0.001600068135 | W57: 0.001204085898 | X57: 0.000932394163 | Y57: 0.0007394197943 | Z57: 0.0005992635304 | AA57: 0.0004961521175 | AB57: 0.0004201190757 | AC57: 0.0003649032951 | AD57: 0.0003270382318 | AE57: 0.0003060266571 | AF57: 0.0003070288978 | AG57: 0.0003578653695
C58: 44.8 | D58: 159.644147 | E58: 158.9374765 | F58: 158.2374216 | G58: 157.5438665 | H58: 156.856698 | I58: 156.1758052 | J58: 155.5010786 | K58: 154.8324106 | L58: 154.1696948 | M58: 153.5128262 | N58: 152.8617011 | O58: 152.216217 | P58: 151.5762727 | Q58: 150.9417688 | R58: 150.3126073 | S58: 0.006380326133 | T58: 0.003863784082 | U58: 0.00265750981 | V58: 0.001938572505 | W58: 0.001466963721 | X58: 0.001140588869 | Y58: 0.0009070616573 | Z58: 0.0007363357503 | AA58: 0.0006099525835 | AB58: 0.0005161481645 | AC58: 0.0004474574588 | AD58: 0.0003996664663 | AE58: 0.0003719961054 | AF58: 0.0003701268855 | AG58: 0.0004253013808
C59: 46.4 | D59: 159.6441776 | E59: 158.9375666 | F59: 158.2375666 | G59: 157.5440597 | H59: 156.8569306 | I59: 156.1760665 | J59: 155.5013572 | K59: 154.8326941 | L59: 154.1699709 | M59: 153.513083 | N59: 152.8619275 | O59: 152.2164034 | P59: 151.5764114 | Q59: 150.9418542 | R59: 150.3126361 | S59: 0.007415322075 | T59: 0.004560077839 | U59: 0.003167203493 | V59: 0.002326617873 | W59: 0.001769781247 | X59: 0.001381299679 | Y59: 0.0011014072 | Z59: 0.0008955245686 | AA59: 0.0007422328222 | AB59: 0.0006277698787 | AC59: 0.0005433206277 | AD59: 0.0004838219136 | AE59: 0.0004481563288 | AF59: 0.000442539431 | AG59: 0.0005018798454
C60: 48 | D60: 159.6441974 | E60: 158.9376247 | F60: 158.2376602 | G60: 157.5441843 | H60: 156.8570806 | I60: 156.1762352 | J60: 155.5015369 | K60: 154.832877 | L60: 154.1701491 | M60: 153.5132486 | N60: 152.8620736 | O60: 152.2165237 | P60: 151.5765009 | Q60: 150.9419092 | R60: 150.3126546 | S60: 0.008562238988 | T60: 0.00534140116 | U60: 0.003743828114 | V60: 0.00276826171 | W60: 0.002116007348 | X60: 0.001657479572 | Y60: 0.001324964885 | Z60: 0.001078959545 | AA60: 0.0008948018761 | AB60: 0.0007565237937 | AC60: 0.0006538071869 | AD60: 0.0005806322164 | AE60: 0.0005354821776 | AF60: 0.0005251202577 | AG60: 0.0005883688392
C61: 49.6 | D61: 159.6442101 | E61: 158.9376622 | F61: 158.2377206 | G61: 157.5442647 | H61: 156.8571774 | I61: 156.176344 | J61: 155.5016529 | K61: 154.8329951 | L61: 154.170264 | M61: 153.5133555 | N61: 152.8621678 | O61: 152.2166013 | P61: 151.5765587 | Q61: 150.9419448 | R61: 150.3126666 | S61: 0.009826802637 | T61: 0.006213073172 | U61: 0.004392089233 | V61: 0.00326759032 | W61: 0.002509157038 | X61: 0.001972135941 | Y61: 0.001580300129 | Z61: 0.001288826159 | AA61: 0.001069521531 | AB61: 0.0009039978593 | AC61: 0.0007802749469 | AD61: 0.0006912632925 | AE61: 0.000634981617 | AF61: 0.0006187510313 | AG61: 0.0006855587474
C62: 51.2 | D62: 159.6442183 | E62: 158.9376864 | F62: 158.2377595 | G62: 157.5443166 | H62: 156.8572398 | I62: 156.1764141 | J62: 155.5017277 | K62: 154.8330712 | L62: 154.1703381 | M62: 153.5134245 | N62: 152.8622286 | O62: 152.2166514 | P62: 151.5765959 | Q62: 150.9419677 | R62: 150.3126743 | S62: 0.01121455637 | T62: 0.007180331135 | U62: 0.005116668821 | V62: 0.003828701356 | W62: 0.002952777063 | X62: 0.002328318873 | Y62: 0.001870025861 | Z62: 0.001527358258 | AA62: 0.001268300305 | AB62: 0.001071823627 | AC62: 0.000924121361 | AD62: 0.0008169163333 | AE62: 0.0007476933374 | AF62: 0.0007243394426 | AG62: 0.0007942606998
C63: 52.8 | D63: 159.6442236 | E63: 158.937702 | F63: 158.2377846 | G63: 157.5443501 | H63: 156.8572801 | I63: 156.1764594 | J63: 155.5017759 | K63: 154.8331203 | L63: 154.170386 | M63: 153.5134689 | N63: 152.8622678 | O63: 152.2166837 | P63: 151.57662 | Q63: 150.9419825 | R63: 150.3126793 | S63: 0.0127308378 | T63: 0.008248307796 | U63: 0.005922205276 | V63: 0.004455686847 | W63: 0.003450431802 | X63: 0.002729109605 | Y63: 0.002196793162 | Z63: 0.001796830518 | AA63: 0.001493087413 | AB63: 0.001261671438 | AC63: 0.001086779693 | AD63: 0.0009588247548 | AE63: 0.0008746843219 | AF63: 0.0008428172554 | AG63: 0.0009153049861
C64: 54.4 | D64: 159.644227 | E64: 158.937712 | F64: 158.2378008 | G64: 157.5443717 | H64: 156.8573061 | I64: 156.1764886 | J64: 155.5018071 | K64: 154.833152 | L64: 154.1704168 | M64: 153.5134976 | N64: 152.8622931 | O64: 152.2167045 | P64: 151.5766355 | Q64: 150.941992 | R64: 150.3126825 | S64: 0.01438075725 | T64: 0.009422009997 | U64: 0.006813274299 | V64: 0.005152616801 | W64: 0.004005689534 | X64: 0.003177609189 | Y64: 0.002563282015 | Z64: 0.002099550962 | AA64: 0.00174586674 | AB64: 0.001475245593 | AC64: 0.00126971516 | AD64: 0.001118251116 | AE64: 0.001017047384 | AF64: 0.0009751383294 | AG64: 0.001049539455
C65: 56 | D65: 159.6442293 | E65: 158.9377185 | F65: 158.2378113 | G65: 157.5443856 | H65: 156.8573228 | I65: 156.1765075 | J65: 155.5018272 | K65: 154.8331725 | L65: 154.1704367 | M65: 153.5135161 | N65: 152.8623094 | O65: 152.2167179 | P65: 151.5766455 | Q65: 150.9419982 | R65: 150.3126846 | S65: 0.01616917791 | T65: 0.01070629855 | U65: 0.007794370665 | V65: 0.00592352343 | W65: 0.004622109114 | X65: 0.003676927427 | Y65: 0.002972192218 | Z65: 0.002437853555 | AA65: 0.002028650859 | AB65: 0.001714279532 | AC65: 0.001474421061 | AD65: 0.00129648402 | AE65: 0.001175898682 | AF65: 0.001122276628 | AG65: 0.001197827906
C66: 57.6 | D66: 159.6442307 | E66: 158.9377227 | F66: 158.237818 | G66: 157.5443946 | H66: 156.8573336 | I66: 156.1765196 | J66: 155.5018401 | K66: 154.8331856 | L66: 154.1704496 | M66: 153.5135281 | N66: 152.86232 | O66: 152.2167266 | P66: 151.5766519 | Q66: 150.9420021 | R66: 150.3126859 | S66: 0.01810069778 | T66: 0.0121058694 | U66: 0.008869890935 | V66: 0.006772386018 | W66: 0.005303227092 | X66: 0.004230172097 | Y66: 0.003426234479 | Z66: 0.002814090916 | AA66: 0.002343475101 | AB66: 0.001980531044 | AC66: 0.001702414918 | AD66: 0.001494835011 | AE66: 0.001352375236 | AF66: 0.001285224214 | AG66: 0.001361048476
C67: 59.2 | D67: 159.6442316 | E67: 158.9377254 | F67: 158.2378224 | G67: 157.5444004 | H67: 156.8573406 | I67: 156.1765275 | J67: 155.5018485 | K67: 154.8331942 | L67: 154.1704579 | M67: 153.5135358 | N67: 152.8623268 | O67: 152.2167322 | P67: 151.5766561 | Q67: 150.9420047 | R67: 150.3126868 | S67: 0.02017963327 | T67: 0.01362523613 | U67: 0.01004411711 | V67: 0.007703116484 | W67: 0.00605254532 | X67: 0.004840438506 | Y67: 0.003928121732 | Z67: 0.003230627168 | AA67: 0.002692391711 | AB67: 0.00227577752 | AC67: 0.001955234641 | AD67: 0.001714635485 | AE67: 0.001547632428 | AF67: 0.001464989253 | AG67: 0.001540092029
C68: 60.8 | D68: 159.6442322 | E68: 158.9377271 | F68: 158.2378252 | G68: 157.5444041 | H68: 156.8573451 | I68: 156.1765325 | J68: 155.5018539 | K68: 154.8331996 | L68: 154.1704632 | M68: 153.5135408 | N68: 152.8623311 | O68: 152.2167358 | P68: 151.5766588 | Q68: 150.9420064 | R68: 150.3126874 | S68: 0.02241000459 | T68: 0.01526871373 | U68: 0.01132120129 | V68: 0.008719545646 | W68: 0.00687351905 | X68: 0.005510799392 | Y68: 0.00448056069 | Z68: 0.003689830945 | AA68: 0.003077464111 | AB68: 0.002601811267 | AC68: 0.00223443472 | AD68: 0.001957233606 | AE68: 0.00176284153 | AF68: 0.001662594006 | AG68: 0.00173586055
C69: 62.4 | D69: 159.6442326 | E69: 158.9377283 | F69: 158.237827 | G69: 157.5444065 | H69: 156.857348 | I69: 156.1765358 | J69: 155.5018574 | K69: 154.8332032 | L69: 154.1704667 | M69: 153.513544 | N69: 152.862334 | O69: 152.2167382 | P69: 151.5766605 | Q69: 150.9420074 | R69: 150.3126877 | S69: 0.02479552282 | T69: 0.01704040374 | U69: 0.01270515126 | V69: 0.009825410207 | W69: 0.007769545566 | X69: 0.006244295201 | Y69: 0.005086243652 | Z69: 0.004194068573 | AA69: 0.003500761272 | AB69: 0.0029604349 | AC69: 0.002541582472 | AD69: 0.002223991266 | AE69: 0.001999187232 | AF69: 0.001879072851 | AG69: 0.001949265551
C70: 64 | D70: 159.6442328 | E70: 158.937729 | F70: 158.2378282 | G70: 157.5444081 | H70: 156.8573499 | I70: 156.1765379 | J70: 155.5018596 | K70: 154.8332055 | L70: 154.1704689 | M70: 153.513546 | N70: 152.8623358 | O70: 152.2167397 | P70: 151.5766616 | Q70: 150.9420081 | R70: 150.312688 | S70: 0.0273395786 | T70: 0.01894418066 | U70: 0.01419981715 | V70: 0.01102434049 | W70: 0.008743953345 | X70: 0.007043924745 | Y70: 0.005747840591 | Z70: 0.004745697444 | AA70: 0.003964352216 | AB70: 0.00335345682 | AC70: 0.002878254341 | AD70: 0.002516281069 | AE70: 0.002257865207 | AF70: 0.002115470305 | AG70: 0.002181226487
C71: 65.6 | D71: 159.644233 | E71: 158.9377295 | F71: 158.2378289 | G71: 157.5444091 | H71: 156.8573511 | I71: 156.1765393 | J71: 155.501861 | K71: 154.8332069 | L71: 154.1704703 | M71: 153.5135474 | N71: 152.862337 | O71: 152.2167406 | P71: 151.5766623 | Q71: 150.9420086 | R71: 150.3126881 | S71: 0.03004523255 | T71: 0.02098367966 | U71: 0.01580887903 | V71: 0.0123198489 | W71: 0.009799991776 | X71: 0.007912636268 | Y71: 0.006467991525 | Z71: 0.005347059592 | AA71: 0.004470300667 | AB71: 0.003782686788 | AC71: 0.003246032262 | AD71: 0.002835483364 | AE71: 0.002540079693 | AF71: 0.002372839075 | AG71: 0.002432669193
C72: 67.2 | D72: 159.6442331 | E72: 158.9377298 | F72: 158.2378294 | G72: 157.5444098 | H72: 156.8573519 | I72: 156.1765401 | J72: 155.501862 | K72: 154.8332079 | L72: 154.1704712 | M72: 153.5135482 | N72: 152.8623377 | O72: 152.2167412 | P72: 151.5766628 | Q72: 150.9420088 | R72: 150.3126882 | S72: 0.03291520723 | T72: 0.02316228564 | U72: 0.0175358355 | V72: 0.01371531916 | W72: 0.01094082143 | X72: 0.008853318921 | Y72: 0.00724929919 | Z72: 0.006000475488 | AA72: 0.005020659848 | AB72: 0.004249931602 | AC72: 0.003646500102 | AD72: 0.003182983327 | AE72: 0.002847041117 | AF72: 0.00265223813 | AG72: 0.002704524336
C73: 68.8 | D73: 159.6442331 | E73: 158.93773 | F73: 158.2378297 | G73: 157.5444102 | H73: 156.8573524 | I73: 156.1765407 | J73: 155.5018626 | K73: 154.8332085 | L73: 154.1704718 | M73: 153.5135488 | N73: 152.8623382 | O73: 152.2167417 | P73: 151.5766631 | Q73: 150.942009 | R73: 150.3126883 | S73: 0.03595188068 | T73: 0.02548312351 | U73: 0.01938399334 | V73: 0.01521399628 | W73: 0.01216950493 | X73: 0.009868794656 | Y73: 0.008094322019 | Z73: 0.006708238051 | AA73: 0.005617467436 | AB73: 0.004756990897 | AC73: 0.004081240177 | AD73: 0.003560168097 | AE73: 0.003179963757 | AF73: 0.002954730801 | AG73: 0.002997725895
C74: 70.4 | D74: 159.6442332 | E74: 158.9377301 | F74: 158.2378299 | G74: 157.5444104 | H74: 156.8573527 | I74: 156.1765411 | J74: 155.501863 | K74: 154.8332089 | L74: 154.1704722 | M74: 153.5135491 | N74: 152.8623385 | O74: 152.2167419 | P74: 151.5766633 | Q74: 150.9420091 | R74: 150.3126883 | S74: 0.03915728155 | T74: 0.02794904972 | U74: 0.02135645803 | V74: 0.01681897731 | W74: 0.0134889983 | X74: 0.01096181055 | Y74: 0.009005567439 | Z74: 0.007472606895 | AA74: 0.006262740696 | AB74: 0.005305653052 | AC74: 0.004551829854 | AD74: 0.003968423976 | AE74: 0.003540063441 | AF74: 0.003281382915 | AG74: 0.003313209658
C75: 72 | D75: 159.6442332 | E75: 158.9377302 | F75: 158.2378301 | G75: 157.5444106 | H75: 156.8573529 | I75: 156.1765413 | J75: 155.5018632 | K75: 154.8332092 | L75: 154.1704725 | M75: 153.5135494 | N75: 152.8623387 | O75: 152.2167421 | P75: 151.5766634 | Q75: 150.9420092 | R75: 150.3126883 | S75: 0.0425330856 | T75: 0.03056264508 | U75: 0.02345612535 | V75: 0.0185332028 | W75: 0.01490214304 | X75: 0.01213503155 | Y75: 0.009985485491 | Z75: 0.008295802818 | AA75: 0.006958471771 | AB75: 0.005897691239 | AC75: 0.005059838248 | AD75: 0.004409133689 | AE75: 0.0039285553 | AF75: 0.003633260958 | AG75: 0.003651911754
C76: 73.6 | D76: 159.6442332 | E76: 158.9377302 | F76: 158.2378301 | G76: 157.5444107 | H76: 156.857353 | I76: 156.1765414 | J76: 155.5018634 | K76: 154.8332093 | L76: 154.1704726 | M76: 153.5135495 | N76: 152.8623389 | O76: 152.2167422 | P76: 151.5766635 | Q76: 150.9420093 | R76: 150.3126883 | S76: 0.04608061377 | T76: 0.03332620871 | U76: 0.02568567391 | V76: 0.02035944905 | W76: 0.01641165862 | X76: 0.01339103368 | Y76: 0.01103646277 | Z76: 0.009180002519 | AA76: 0.007706623171 | AB76: 0.006534859585 | AC76: 0.005606823014 | AD76: 0.004883673715 | AE76: 0.004346651569 | AF76: 0.004011430281 | AG76: 0.004014767205
C77: 75.2 | D77: 159.6442332 | E77: 158.9377303 | F77: 158.2378302 | G77: 157.5444108 | H77: 156.8573531 | I77: 156.1765415 | J77: 155.5018635 | K77: 154.8332094 | L77: 154.1704727 | M77: 153.5135496 | N77: 152.862339 | O77: 152.2167423 | P77: 151.5766635 | Q77: 150.9420093 | R77: 150.3126884 | S77: 0.04980083153 | T77: 0.03624175324 | U77: 0.02804755858 | V77: 0.02230032111 | W77: 0.01802013563 | X77: 0.01473229764 | Y77: 0.0121608167 | Z77: 0.01012733358 | AA77: 0.008509123427 | AB77: 0.007218889483 | AC77: 0.006194327227 | AD77: 0.005393411697 | AE77: 0.004795559436 | AF77: 0.004416953339 | AG77: 0.004402708516
C78: 76.8 | D78: 159.6442333 | E78: 158.9377303 | F78: 158.2378302 | G78: 157.5444108 | H78: 156.8573532 | I78: 156.1765416 | J78: 155.5018636 | K78: 154.8332095 | L78: 154.1704728 | M78: 153.5135497 | N78: 152.862339 | O78: 152.2167423 | P78: 151.5766636 | Q78: 150.9420093 | R78: 150.3126884 | S78: 0.05369434962 | T78: 0.03931100115 | U78: 0.03054400489 | V78: 0.02435824645 | W78: 0.0197300295 | X78: 0.01616120289 | Y78: 0.01336079013 | Z78: 0.01113986968 | AA78: 0.009367862943 | AB78: 0.007951486036 | AC78: 0.006823876384 | AD78: 0.005939703909 | AE78: 0.005276478952 | AF78: 0.004850887976 | AG78: 0.004816664296
C79: 78.4 | D79: 159.6442333 | E79: 158.9377303 | F79: 158.2378303 | G79: 157.5444109 | H79: 156.8573532 | I79: 156.1765417 | J79: 155.5018636 | K79: 154.8332095 | L79: 154.1704729 | M79: 153.5135497 | N79: 152.8623391 | O79: 152.2167423 | P79: 151.5766636 | Q79: 150.9420093 | R79: 150.3126884 | S79: 0.05776142606 | T79: 0.04253538216 | U79: 0.0331770044 | V79: 0.0265354694 | W79: 0.02154365474 | X79: 0.01768002213 | Y79: 0.01463854629 | Z79: 0.01221962608 | AA79: 0.01028469003 | AB79: 0.008734324639 | AC79: 0.007496975487 | AD79: 0.006523892826 | AE79: 0.005790600995 | AF79: 0.00531428575 | AG79: 0.005257557902
C80: 80 | D80: 159.6442333 | E80: 158.9377303 | F80: 158.2378303 | G80: 157.5444109 | H80: 156.8573533 | I80: 156.1765417 | J80: 155.5018636 | K80: 154.8332096 | L80: 154.1704729 | M80: 153.5135498 | N80: 152.8623391 | O80: 152.2167424 | P80: 151.5766636 | Q80: 150.9420093 | R80: 150.3126884 | S80: 0.0620019694 | T80: 0.04591603177 | U80: 0.03594831082 | V80: 0.02883404635 | W80: 0.02346317978 | X80: 0.01929091624 | Y80: 0.01599616403 | Z80: 0.01336855534 | AA80: 0.01126140714 | AB80: 0.009569047714 | AC80: 0.008215106257 | AD80: 0.007147304747 | AE80: 0.006339105297 | AF80: 0.005808190301 | AG80: 0.00572630613
C81: 81.6 | D81: 159.6442333 | E81: 158.9377303 | F81: 158.2378303 | G81: 157.5444109 | H81: 156.8573533 | I81: 156.1765417 | J81: 155.5018636 | K81: 154.8332096 | L81: 154.1704729 | M81: 153.5135498 | N81: 152.8623391 | O81: 152.2167424 | P81: 151.5766636 | Q81: 150.9420094 | R81: 150.3126884 | S81: 0.06641554304 | T81: 0.04945379086 | U81: 0.03885943713 | V81: 0.03125584153 | W81: 0.02549062234 | X81: 0.0209959296 | Y81: 0.01743563345 | Z81: 0.01458854327 | AA81: 0.01229976727 | AB81: 0.01045726158 | AC81: 0.008979724436 | AD81: 0.007811247522 | AE81: 0.006923158526 | AF81: 0.006333635773 | AG81: 0.006223817937
C82: 83.2 | D82: 159.6442333 | E82: 158.9377303 | F82: 158.2378303 | G82: 157.5444109 | H82: 156.8573533 | I82: 156.1765417 | J82: 155.5018637 | K82: 154.8332096 | L82: 154.1704729 | M82: 153.5135498 | N82: 152.8623391 | O82: 152.2167424 | P82: 151.5766636 | Q82: 150.9420094 | R82: 150.3126884 | S82: 0.07100137079 | T82: 0.05314920622 | U82: 0.04191165351 | V82: 0.03380252357 | W82: 0.02762784537 | X82: 0.02279698595 | Y82: 0.01895885181 | Z82: 0.01588140525 | AA82: 0.0134014706 | AB82: 0.01140053346 | AC82: 0.009792257215 | AD82: 0.008517008347 | AE82: 0.007543912437 | AF82: 0.006891645272 | AG82: 0.006750993195
C83: 84.8 | D83: 159.6442333 | E83: 158.9377303 | F83: 158.2378303 | G83: 157.5444109 | H83: 156.8573533 | I83: 156.1765417 | J83: 155.5018637 | K83: 154.8332096 | L83: 154.1704729 | M83: 153.5135498 | N83: 152.8623391 | O83: 152.2167424 | P83: 151.5766636 | Q83: 150.9420094 | R83: 150.3126884 | S83: 0.07575834335 | T83: 0.0570025321 | U83: 0.04510598605 | V83: 0.03647556274 | W83: 0.02987655346 | X83: 0.02469588451 | Y83: 0.02056761979 | Z83: 0.0172488826 | AA83: 0.0145681613 | AB83: 0.01240038868 | AC83: 0.01065410076 | AD83: 0.009265851651 | AE83: 0.008202502082 | AF83: 0.007483229376 | AG83: 0.007308721486
C84: 86.4 | D84: 159.6442333 | E84: 158.9377303 | F84: 158.2378303 | G84: 157.5444109 | H84: 156.8573533 | I84: 156.1765417 | J84: 155.5018637 | K84: 154.8332096 | L84: 154.1704729 | M84: 153.5135498 | N84: 152.8623391 | O84: 152.2167424 | P84: 151.5766636 | Q84: 150.9420094 | R84: 150.3126884 | S84: 0.08068502582 | T84: 0.06101373272 | U84: 0.0484432163 | V84: 0.03927622875 | W84: 0.03223828991 | X84: 0.02669429668 | Y84: 0.02226363807 | Z84: 0.01869263943 | AA84: 0.01580142448 | AB84: 0.01345830796 | AC84: 0.01156661788 | AD84: 0.01005901707 | AE84: 0.008900044083 | AF84: 0.008109384702 | AG84: 0.007897880935
C85: 88 | D85: 159.6442333 | E85: 158.9377303 | F85: 158.2378303 | G85: 157.5444109 | H85: 156.8573533 | I85: 156.1765417 | J85: 155.5018637 | K85: 154.8332096 | L85: 154.1704729 | M85: 153.5135498 | N85: 152.8623391 | O85: 152.2167424 | P85: 151.5766636 | Q85: 150.9420094 | R85: 150.3126884 | S85: 0.08577966612 | T85: 0.06518248556 | U85: 0.05192388161 | V85: 0.0422055893 | W85: 0.03471443413 | X85: 0.02879376301 | Y85: 0.02404850427 | Z85: 0.02021425952 | AA85: 0.01710278347 | AB85: 0.01457572489 | AC85: 0.01253113575 | AD85: 0.01089771748 | AE85: 0.009637634977 | AF85: 0.008771092507 | AG85: 0.00851933708
C86: 89.6 | D86: 159.6442333 | E86: 158.9377303 | F86: 158.2378303 | G86: 157.5444109 | H86: 156.8573533 | I86: 156.1765417 | J86: 155.5018637 | K86: 154.8332096 | L86: 154.1704729 | M86: 153.5135498 | N86: 152.8623391 | O86: 152.2167424 | P86: 151.5766636 | Q86: 150.9420094 | R86: 150.3126884 | S86: 0.09104020419 | T86: 0.0695081856 | U86: 0.05554827611 | V86: 0.04526450916 | W86: 0.03730619973 | X86: 0.03099569068 | Y86: 0.02592371012 | Z86: 0.02181524368 | AA86: 0.01847369713 | AB86: 0.01575402353 | AC86: 0.01354894382 | AD86: 0.01178313719 | AE86: 0.01041634962 | AF86: 0.009469317355 | AG86: 0.009173941777
C87: 91.2 | D87: 159.6442333 | E87: 158.9377303 | F87: 158.2378303 | G87: 157.5444109 | H87: 156.8573533 | I87: 156.1765417 | J87: 155.5018637 | K87: 154.8332096 | L87: 154.1704729 | M87: 153.5135498 | N87: 152.8623391 | O87: 152.2167424 | P87: 151.5766636 | Q87: 150.9420094 | R87: 150.3126884 | S87: 0.09646428206 | T87: 0.07398995027 | U87: 0.05931645252 | V87: 0.04845364994 | W87: 0.04001463298 | X87: 0.03330135131 | Y87: 0.02789063903 | Z87: 0.02349700711 | AA87: 0.01991555748 | AB87: 0.01699453618 | AC87: 0.01462129176 | AD87: 0.01271643011 | AE87: 0.01123723967 | AF87: 0.01020500582 | AG87: 0.009862532152
C88: 92.8 | D88: 159.6442333 | E88: 158.9377303 | F88: 158.2378303 | G88: 157.5444109 | H88: 156.8573533 | I88: 156.1765417 | J88: 155.5018637 | K88: 154.8332096 | L88: 154.1704729 | M88: 153.5135498 | N88: 152.8623391 | O88: 152.2167424 | P88: 151.5766636 | Q88: 150.9420094 | R88: 150.3126884 | S88: 0.1020492546 | T88: 0.07862662522 | U88: 0.06322822455 | V88: 0.05177347033 | W88: 0.04284061179 | X88: 0.0357118792 | Y88: 0.02995056394 | Z88: 0.02526087721 | AA88: 0.02142968744 | AB88: 0.01829854131 | AC88: 0.01574938764 | AD88: 0.01369871811 | AE88: 0.01210133212 | AF88: 0.01097908527 | AG88: 0.01058592958
C89: 94.4 | D89: 159.6442333 | E89: 158.9377303 | F89: 158.2378303 | G89: 157.5444109 | H89: 156.8573533 | I89: 156.1765417 | J89: 155.5018637 | K89: 154.8332096 | L89: 154.1704729 | M89: 153.5135498 | N89: 152.8623391 | O89: 152.2167424 | P89: 151.5766636 | Q89: 150.9420094 | R89: 150.3126884 | S89: 0.1077922007 | T89: 0.08341679069 | U89: 0.06728317001 | V89: 0.05522422699 | W89: 0.04578484514 | X89: 0.03822826991 | Y89: 0.03210464547 | Z89: 0.02710809154 | AA89: 0.02301733881 | AB89: 0.01966726156 | AC89: 0.01693439603 | AD89: 0.01473108943 | AE89: 0.01300962788 | AF89: 0.01179246263 | AG89: 0.01134493874
C90: 96 | D90: 159.6442333 | E90: 158.9377303 | F90: 158.2378303 | G90: 157.5444109 | H90: 156.8573533 | I90: 156.1765417 | J90: 155.5018637 | K90: 154.8332096 | L90: 154.1704729 | M90: 153.5135498 | N90: 152.8623391 | O90: 152.2167424 | P90: 151.5766636 | Q90: 150.9420094 | R90: 150.3126884 | S90: 0.1136899355 | T90: 0.08835876866 | U90: 0.07148063447 | V90: 0.05880597595 | W90: 0.04884787303 | X90: 0.04085137923 | Y90: 0.03435393035 | Z90: 0.02903979599 | AA90: 0.02467969039 | AB90: 0.02110186201 | AC90: 0.01817743643 | AD90: 0.01581459713 | AE90: 0.01396310051 | AF90: 0.01264602331 | AG90: 0.01214034662
C91: 97.6 | D91: 159.6442333 | E91: 158.9377303 | F91: 158.2378303 | G91: 157.5444109 | H91: 156.8573533 | I91: 156.1765417 | J91: 155.5018637 | K91: 154.8332096 | L91: 154.1704729 | M91: 153.5135498 | N91: 152.8623391 | O91: 152.2167424 | P91: 151.5766636 | Q91: 150.9420094 | R91: 150.3126884 | S91: 0.1197390227 | T91: 0.09345063049 | U91: 0.07581973558 | V91: 0.06251857451 | W91: 0.05203006675 | X91: 0.04358192255 | Y91: 0.03669935019 | Z91: 0.03105704325 | AA91: 0.02641784636 | AB91: 0.02260344846 | AC91: 0.01947958165 | AD91: 0.0169502577 | AE91: 0.0149626949 | AF91: 0.01354063009 | AG91: 0.0129729217
C92: 99.2 | D92: 159.6442333 | E92: 158.9377303 | F92: 158.2378303 | G92: 157.5444109 | H92: 156.8573533 | I92: 156.1765417 | J92: 155.5018637 | K92: 154.8332096 | L92: 154.1704729 | M92: 153.5135498 | N92: 152.8623391 | O92: 152.2167424 | P92: 151.5766636 | Q92: 150.9420094 | R92: 150.3126884 | S92: 0.1259357875 | T92: 0.09869020519 | U92: 0.08029936783 | V92: 0.06636168365 | W92: 0.05533162967 | X92: 0.04642047449 | Y92: 0.03914172048 | Z92: 0.03316079146 | AA92: 0.02823283472 | AB92: 0.02417306597 | AC92: 0.0208418564 | AD92: 0.01813904974 | AE92: 0.01600932615 | AF92: 0.01447712206 | AG92: 0.01384341303
C93: 100.8 | D93: 159.6442333 | E93: 158.9377303 | F93: 158.2378303 | G93: 157.5444109 | H93: 156.8573533 | I93: 156.1765417 | J93: 155.5018637 | K93: 154.8332096 | L93: 154.1704729 | M93: 153.5135498 | N93: 152.8623391 | O93: 152.2167424 | P93: 151.5766636 | Q93: 150.9420094 | R93: 150.3126884 | S93: 0.1322763298 | T93: 0.1040750881 | U93: 0.08491820796 | V93: 0.07033477088 | W93: 0.0587525984 | X93: 0.04936746898 | Y93: 0.04168173993 | Z93: 0.03535190313 | AA93: 0.03012560603 | AB93: 0.02581169748 | AC93: 0.02226523592 | AD93: 0.01938191268 | AE93: 0.01710387835 | AF93: 0.01545631371 | AG93: 0.01475254948
C94: 102.4 | D94: 159.6442333 | E94: 158.9377303 | F94: 158.2378303 | G94: 157.5444109 | H94: 156.8573533 | I94: 156.1765417 | J94: 155.5018637 | K94: 154.8332096 | L94: 154.1704729 | M94: 153.5135498 | N94: 152.8623391 | O94: 152.2167424 | P94: 151.5766636 | Q94: 150.9420094 | R94: 150.3126884 | S94: 0.1387565377 | T94: 0.1096026504 | U94: 0.0896747207 | V94: 0.0744371136 | W94: 0.06229284433 | X94: 0.05242319954 | Y94: 0.04431999003 | Z94: 0.03763114422 | AA94: 0.03209703227 | AB94: 0.02752026255 | AC94: 0.02375064478 | AD94: 0.02067974563 | AE94: 0.01824720363 | AF94: 0.01647899393 | AG94: 0.01570103889
C95: 104 | D95: 159.6442333 | E95: 158.9377303 | F95: 158.2378303 | G95: 157.5444109 | H95: 156.8573533 | I95: 156.1765417 | J95: 155.5018637 | K95: 154.8332096 | L95: 154.1704729 | M95: 153.5135498 | N95: 152.8623391 | O95: 152.2167424 | P95: 151.5766636 | Q95: 150.9420094 | R95: 150.3126884 | S95: 0.1453721017 | T95: 0.1152700482 | U95: 0.0945671651 | V95: 0.07866780278 | W95: 0.06595207556 | X95: 0.05558782003 | Y95: 0.04705693489 | Z95: 0.03999918351 | AA95: 0.03414790589 | AB95: 0.02929961631 | AC95: 0.02529895574 | AD95: 0.02203340631 | AE95: 0.01944012107 | AF95: 0.01754592518 | AG95: 0.01668956741
C96: 105.6 | D96: 159.6442333 | E96: 158.9377303 | F96: 158.2378303 | G96: 157.5444109 | H96: 156.8573533 | I96: 156.1765417 | J96: 155.5018637 | K96: 154.8332096 | L96: 154.1704729 | M96: 153.5135498 | N96: 152.8623391 | O96: 152.2167424 | P96: 151.5766636 | Q96: 150.9420094 | R96: 150.3126884 | S96: 0.1521185286 | T96: 0.121074233 | U96: 0.09959360114 | V96: 0.08302574716 | W96: 0.06972983919 | X96: 0.05886134559 | Y96: 0.04989292136 | Z96: 0.04245659211 | AA96: 0.03627893899 | AB96: 0.03115054848 | AC96: 0.02691098874 | AD96: 0.02344371006 | AE96: 0.02068341586 | AF96: 0.01865784266 | AG96: 0.01771879877
C97: 107.2 | D97: 159.6442333 | E97: 158.9377303 | F97: 158.2378303 | G97: 157.5444109 | H97: 156.8573533 | I97: 156.1765417 | J97: 155.5018637 | K97: 154.8332096 | L97: 154.1704729 | M97: 153.5135498 | N97: 152.8623391 | O97: 152.2167424 | P97: 151.5766636 | Q97: 150.9420094 | R97: 150.3126884 | S97: 0.1589911554 | T97: 0.1270119618 | U97: 0.1047518968 | V97: 0.08750967769 | W97: 0.07362552392 | X97: 0.06224365389 | Y97: 0.05282817937 | Z97: 0.04500384321 | AA97: 0.03849076273 | AB97: 0.03307378257 | AC97: 0.02858751005 | AD97: 0.02491142892 | AE97: 0.02197783839 | AF97: 0.01981545352 | AG97: 0.01878937362
C98: 108.8 | D98: 159.6442333 | E98: 158.9377303 | F98: 158.2378303 | G98: 157.5444109 | H98: 156.8573533 | I98: 156.1765417 | J98: 155.5018637 | K98: 154.8332096 | L98: 154.1704729 | M98: 153.5135498 | N98: 152.8623391 | O98: 152.2167424 | P98: 151.5766636 | Q98: 150.9420094 | R98: 150.3126884 | S98: 0.1659851641 | T98: 0.1330798078 | U98: 0.1100397355 | V98: 0.0921181524 | W98: 0.07763836298 | X98: 0.06573448674 | Y98: 0.0558628225 | Z98: 0.04764131206 | AA98: 0.04078392688 | AB98: 0.03506997516 | AC98: 0.03032923138 | AD98: 0.02643729083 | AE98: 0.02332410346 | AF98: 0.02101943613 | AG98: 0.01990190892
C99: 110.4 | D99: 159.6442333 | E99: 158.9377303 | F99: 158.2378303 | G99: 157.5444109 | H99: 156.8573533 | I99: 156.1765417 | J99: 155.5018637 | K99: 154.8332096 | L99: 154.1704729 | M99: 153.5135498 | N99: 152.8623391 | O99: 152.2167424 | P99: 151.5766636 | Q99: 150.9420094 | R99: 150.3126884 | S99: 0.1730955954 | T99: 0.1392741711 | U99: 0.1154546235 | V99: 0.09684956158 | W99: 0.08176743742 | X99: 0.06933345187 | Y99: 0.05899684885 | Z99: 0.05036927606 | AA99: 0.04315889947 | AB99: 0.03713971538 | AC99: 0.03213680926 | AD99: 0.02802197885 | AE99: 0.02472288957 | AF99: 0.02227043944 | AG99: 0.02105699738
C100: 112 | D100: 159.6442333 | E100: 158.9377303 | F100: 158.2378303 | G100: 157.5444109 | H100: 156.8573533 | I100: 156.1765417 | J100: 155.5018637 | K100: 154.8332096 | L100: 154.1704729 | M100: 153.5135498 | N100: 152.8623391 | O100: 152.2167424 | P100: 151.5766636 | Q100: 150.9420094 | R100: 150.3126884 | S100: 0.1803173634 | T100: 0.1455912897 | U100: 0.1209938984 | V100: 0.1017021332 | W100: 0.08601167957 | X100: 0.07304002504 | Y100: 0.06223014205 | Z100: 0.05318791513 | AA100: 0.04561606671 | AB100: 0.03928352442 | AC100: 0.03401084441 | AD100: 0.02966613054 | AE100: 0.02617483826 | AF100: 0.02356908233 | AG100: 0.02225520691
C101: 113.6 | D101: 159.6442333 | E101: 158.9377303 | F101: 158.2378303 | G101: 157.5444109 | H101: 156.8573533 | I101: 156.1765417 | J101: 155.5018637 | K101: 154.8332096 | L101: 154.1704729 | M101: 153.5135498 | N101: 152.8623391 | O101: 152.2167424 | P101: 151.5766636 | Q101: 150.9420094 | R101: 150.3126884 | S101: 0.1876452699 | T101: 0.1520272507 | U101: 0.1266547367 | V101: 0.1066739388 | W101: 0.0903698769 | X101: 0.07685355234 | Y101: 0.06556247251 | Z101: 0.05609731222 | AA101: 0.04815573296 | AB101: 0.0415018553 | AC101: 0.03595188126 | AD101: 0.03137033734 | AE101: 0.02768055347 | AF101: 0.02491595305 | AG101: 0.02349708012
C102: 115.2 | D102: 159.6442333 | E102: 158.9377303 | F102: 158.2378303 | G102: 157.5444109 | H102: 156.8573533 | I102: 156.1765417 | J102: 155.5018637 | K102: 154.8332096 | L102: 154.1704729 | M102: 153.5135498 | N102: 152.8623391 | O102: 152.2167424 | P102: 151.5766636 | Q102: 150.9420094 | R102: 150.3126884 | S102: 0.1950740178 | T102: 0.1585780014 | U102: 0.1324341628 | V102: 0.1117628991 | W102: 0.09484067601 | X102: 0.08077325279 | Y102: 0.06899349893 | Z102: 0.05909745395 | AA102: 0.0507781209 | AB102: 0.04379509259 | AC102: 0.03796040754 | AD102: 0.03313514408 | AE102: 0.02924060103 | AF102: 0.02631160868 | AG102: 0.02478313384
C103: 116.8 | D103: 159.6442333 | E103: 158.9377303 | F103: 158.2378303 | G103: 157.5444109 | H103: 156.8573533 | I103: 156.1765417 | J103: 155.5018637 | K103: 154.8332096 | L103: 154.1704729 | M103: 153.5135498 | N103: 152.8623391 | O103: 152.2167424 | P103: 151.5766636 | Q103: 150.9420094 | R103: 150.3126884 | S103: 0.2025982258 | T103: 0.1652393608 | U103: 0.1383290571 | V103: 0.1169667907 | W103: 0.0994225869 | X103: 0.08479822107 | Y103: 0.07252276993 | Z103: 0.06218823155 | AA103: 0.05348337182 | AB103: 0.04616355243 | AC103: 0.040036854 | AD103: 0.03496104858 | AE103: 0.03085550819 | AF103: 0.02775657467 | AG103: 0.02611385876
C104: 118.4 | D104: 159.6442333 | E104: 158.9377303 | F104: 158.2378303 | G104: 157.5444109 | H104: 156.8573533 | I104: 156.1765417 | J104: 155.5018637 | K104: 154.8332096 | L104: 154.1704729 | M104: 153.5135498 | N104: 152.8623391 | O104: 152.2167424 | P104: 151.5766636 | Q104: 150.9420094 | R104: 150.3126884 | S104: 0.2102124417 | T104: 0.1720070309 | U104: 0.1443361649 | V104: 0.1222832521 | W104: 0.1041139875 | X104: 0.08892743052 | Y104: 0.07614972589 | Z104: 0.06536944179 | AA104: 0.05627154608 | AB104: 0.04860748249 | AC104: 0.04218159417 | AD104: 0.03684850126 | AE104: 0.03252576316 | AF104: 0.02925134441 | AG104: 0.02748971896
C105: 120 | D105: 159.6442333 | E105: 158.9377303 | F105: 158.2378303 | G105: 157.5444109 | H105: 156.8573533 | I105: 156.1765417 | J105: 155.5018637 | K105: 154.8332096 | L105: 154.1704729 | M105: 153.5135498 | N105: 152.8623391 | O105: 152.2167424 | P105: 151.5766636 | Q105: 150.9420094 | R105: 150.3126884 | S105: 0.2179111558 | T105: 0.1788766076 | U105: 0.1504521052 | V105: 0.1277097902 | W105: 0.1089131283 | X105: 0.09315973634 | Y105: 0.07987370101 | Z105: 0.06864078822 | AA105: 0.05914262364 | AB105: 0.05112706218 | AC105: 0.04439494431 | AD105: 0.03879790488 | AE105: 0.0342518148 | AF105: 0.03079637886 | AG105: 0.02891115162
C106: 121.6 | D106: 159.6442333 | E106: 158.9377303 | F106: 158.2378303 | G106: 157.5444109 | H106: 156.8573533 | I106: 156.1765417 | J106: 155.5018637 | K106: 154.8332096 | L106: 154.1704729 | M106: 153.5135498 | N106: 152.8623391 | O106: 152.2167424 | P106: 151.5766636 | Q106: 150.9420094 | R106: 150.3126884 | S106: 0.2256888144 | T106: 0.1858435925 | U106: 0.1566733795 | V106: 0.1332437874 | W106: 0.1138181371 | X106: 0.0974938789 | Y106: 0.08369392546 | Z106: 0.07200188248 | AA106: 0.06209650479 | AB106: 0.05372240291 | AC106: 0.04667716329 | AD106: 0.04080961435 | AE106: 0.03603407229 | AF106: 0.03239210618 | AG106: 0.03037856672
C107: 123.2 | D107: 159.6442333 | E107: 158.9377303 | F107: 158.2378303 | G107: 157.5444109 | H107: 156.8573533 | I107: 156.1765417 | J107: 155.5018637 | K107: 154.8332096 | L107: 154.1704729 | M107: 153.5135498 | N107: 152.8623391 | O107: 152.2167424 | P107: 151.5766636 | Q107: 150.9420094 | R107: 150.3126884 | S107: 0.2335398323 | T107: 0.1929034036 | U107: 0.1629963812 | V107: 0.1388825082 | W107: 0.1188270244 | X107: 0.1019284873 | Y107: 0.08760952776 | Z107: 0.07545224575 | AA107: 0.065133011 | AB107: 0.05639354842 | AC107: 0.04902845275 | AD107: 0.04288393655 | AE107: 0.0378729049 | AF107: 0.03403892147 | AG107: 0.03189234669
C108: 124.8 | D108: 159.6442333 | E108: 158.9377303 | F108: 158.2378303 | G108: 157.5444109 | H108: 156.8573533 | I108: 156.1765417 | J108: 155.5018637 | K108: 154.8332096 | L108: 154.1704729 | M108: 153.5135498 | N108: 152.8623391 | O108: 152.2167424 | P108: 151.5766636 | Q108: 150.9420094 | R108: 150.3126884 | S108: 0.2414586055 | T108: 0.2000513867 | U108: 0.1694174037 | V108: 0.1446231059 | W108: 0.123937688 | X108: 0.1064620829 | Y108: 0.09161953726 | Z108: 0.07899131037 | AA108: 0.06825188577 | AB108: 0.05914047531 | AC108: 0.05144895719 | AD108: 0.04502113035 | AE108: 0.03976864179 | AF108: 0.03573718654 | AG108: 0.03345284624
C109: 126.4 | D109: 159.6442333 | E109: 158.9377303 | F109: 158.2378303 | G109: 157.5444109 | H109: 156.8573533 | I109: 156.1765417 | J109: 155.5018637 | K109: 154.8332096 | L109: 154.1704729 | M109: 153.5135498 | N109: 152.8623391 | O109: 152.2167424 | P109: 151.5766636 | Q109: 150.9420094 | R109: 150.3126884 | S109: 0.2494395233 | T109: 0.2072828258 | U109: 0.1759326502 | V109: 0.1504626301 | W109: 0.1291479186 | X109: 0.1110930834 | Y109: 0.0957228868 | Z109: 0.08261842158 | AA109: 0.07145279581 | AB109: 0.06196309357 | AC109: 0.05393876419 | AD109: 0.04722140654 | AE109: 0.0417215719 | AF109: 0.03748722966 | AG109: 0.03506039214
C110: 128 | D110: 159.6442333 | E110: 158.9377303 | F110: 158.2378303 | G110: 157.5444109 | H110: 156.8573533 | I110: 156.1765417 | J110: 155.5018637 | K110: 154.8332096 | L110: 154.1704729 | M110: 153.5135498 | N110: 152.8623391 | O110: 152.2167424 | P110: 151.5766636 | Q110: 150.9420094 | R110: 150.3126884 | S110: 0.2574769801 | T110: 0.2145929544 | U110: 0.1825382421 | V110: 0.1563980334 | W110: 0.1344554051 | X110: 0.1158198065 | Y110: 0.09991841543 | Z110: 0.08633283933 | AA110: 0.0747353321 | AB110: 0.06486124723 | AC110: 0.0564979048 | AD110: 0.04948492794 | AE110: 0.04373194388 | AF110: 0.03928934548 | AG110: 0.03671528304
C111: 129.6 | D111: 159.6442333 | E111: 158.9377303 | F111: 158.2378303 | G111: 157.5444109 | H111: 156.8573533 | I111: 156.1765417 | J111: 155.5018637 | K111: 154.8332096 | L111: 154.1704729 | M111: 153.5135498 | N111: 152.8623391 | O111: 152.2167424 | P111: 151.5766636 | Q111: 150.9420094 | R111: 150.3126884 | S111: 0.2655653865 | T111: 0.2219769654 | U111: 0.189230228 | V111: 0.1624261786 | W111: 0.1398577402 | X111: 0.120640474 | Y111: 0.1042048713 | Z111: 0.09013374033 | AA111: 0.07809901122 | AB111: 0.06783471517 | AC111: 0.05912635381 | AD111: 0.05181180952 | AE111: 0.04579996602 | AF111: 0.04114379485 | AG111: 0.03841778931
C112: 131.2 | D112: 159.6442333 | E112: 158.9377303 | F112: 158.2378303 | G112: 157.5444109 | H112: 156.8573533 | I112: 156.1765417 | J112: 155.5018637 | K112: 154.8332096 | L112: 154.1704729 | M112: 153.5135498 | N112: 152.8623391 | O112: 152.2167424 | P112: 151.5766636 | Q112: 150.9420094 | R112: 150.3126884 | S112: 0.2736991805 | T112: 0.229430022 | U112: 0.1960045928 | V112: 0.1685438457 | W112: 0.1453524255 | X112: 0.1255532162 | Y112: 0.1085809148 | Z112: 0.09402022004 | AA112: 0.08154327672 | AB112: 0.07088321193 | AC112: 0.06182403033 | AD112: 0.05420211864 | AE112: 0.04792580634 | AF112: 0.04305080479 | AG112: 0.04016815298
C113: 132.8 | D113: 159.6442333 | E113: 158.9377303 | F113: 158.2378303 | G113: 157.5444109 | H113: 156.8573533 | I113: 156.1765417 | J113: 155.5018637 | K113: 154.8332096 | L113: 154.1704729 | M113: 153.5135498 | N113: 152.8623391 | O113: 152.2167424 | P113: 151.5766636 | Q113: 150.9420094 | R113: 150.3126884 | S113: 0.2818728376 | T113: 0.2369472668 | U113: 0.2028572656 | V113: 0.1747477393 | W113: 0.1509368777 | X113: 0.1305560757 | Y113: 0.1130451214 | Z113: 0.09799129489 | AA113: 0.08506750055 | AB113: 0.07400638862 | AC113: 0.06459079825 | AD113: 0.05665587526 | AE113: 0.05010959263 | AF113: 0.04501056844 | AG113: 0.04196658766
C114: 134.4 | D114: 159.6442333 | E114: 158.9377303 | F114: 158.2378303 | G114: 157.5444109 | H114: 156.8573533 | I114: 156.1765417 | J114: 155.5018637 | K114: 154.8332096 | L114: 154.1704729 | M114: 153.5135498 | N114: 152.8623391 | O114: 152.2167424 | P114: 151.5766636 | Q114: 150.9420094 | R114: 150.3126884 | S114: 0.2900808809 | T114: 0.2445238327 | U114: 0.2097841292 | V114: 0.1810344954 | W114: 0.1566084336 | X114: 0.1356470119 | Y114: 0.1175959849 | Z114: 0.1020459045 | AA114: 0.08867098463 | AB114: 0.07720383396 | AC114: 0.06742646687 | AD114: 0.05917305228 | AE114: 0.05235141258 | AF114: 0.0470232451 | AG114: 0.04381327848
C115: 136 | D115: 159.6442333 | E115: 158.9377303 | F115: 158.2378303 | G115: 157.5444109 | H115: 156.8573533 | I115: 156.1765417 | J115: 155.5018637 | K115: 154.8332096 | L115: 154.1704729 | M115: 153.5135498 | N115: 152.8623391 | O115: 152.2167424 | P115: 151.5766636 | Q115: 150.9420094 | R115: 150.3126884 | S115: 0.2983178904 | T115: 0.2521548511 | U115: 0.2167810276 | V115: 0.1874006884 | W115: 0.1623643561 | X115: 0.1408239055 | Y115: 0.1222319209 | Z115: 0.1061829143 | AA115: 0.09235296251 | AB115: 0.08047507537 | AC115: 0.07033079158 | AD115: 0.06175357594 | AE115: 0.054651314 | AF115: 0.04908896024 | AG115: 0.04570838208
C116: 137.6 | D116: 159.6442333 | E116: 158.9377303 | F116: 158.2378303 | G116: 157.5444109 | H116: 156.8573533 | I116: 156.1765417 | J116: 155.5018637 | K116: 154.8332096 | L116: 154.1704729 | M116: 153.5135498 | N116: 152.8623391 | O116: 152.2167424 | P116: 151.5766636 | Q116: 150.9420094 | R116: 150.3126884 | S116: 0.3065785121 | T116: 0.2598354622 | U116: 0.2238437751 | V116: 0.1938428385 | W116: 0.1682018399 | X116: 0.1460845628 | Y116: 0.1269512698 | Z116: 0.1104011173 | AA116: 0.09611260104 | AB116: 0.08381958008 | AC116: 0.07330347458 | AD116: 0.06439732622 | AE116: 0.05700930498 | AF116: 0.05120780562 | AG116: 0.04765202668
C117: 139.2 | D117: 159.6442333 | E117: 158.9377303 | F117: 158.2378303 | G117: 157.5444109 | H117: 156.8573533 | I117: 156.1765417 | J117: 155.5018637 | K117: 154.8332096 | L117: 154.1704729 | M117: 153.5135498 | N117: 152.8623391 | O117: 152.2167424 | P117: 151.5766636 | Q117: 150.9420094 | R117: 150.3126884 | S117: 0.3148574666 | T117: 0.2675608228 | U117: 0.2309681635 | V117: 0.2003574181 | W117: 0.1741180169 | X117: 0.1514267201 | Y117: 0.1317523006 | Z117: 0.1146992374 | AA117: 0.09994900218 | AB117: 0.08723675638 | AC117: 0.07634416572 | AD117: 0.06710413737 | AE117: 0.05942535422 | AF117: 0.05337983942 | AG117: 0.04964431208
C118: 140.8 | D118: 159.6442333 | E118: 158.9377303 | F118: 158.2378303 | G118: 157.5444109 | H118: 156.8573533 | I118: 156.1765417 | J118: 155.5018637 | K118: 154.8332096 | L118: 154.1704729 | M118: 153.5135498 | N118: 152.8623391 | O118: 152.2167424 | P118: 151.5766636 | Q118: 150.9420094 | R118: 150.3126884 | S118: 0.3231495564 | T118: 0.2753261154 | U118: 0.2381499706 | V118: 0.2069408588 | W118: 0.1801099619 | X118: 0.1568480482 | Y118: 0.1366332139 | Z118: 0.1190759316 | AA118: 0.1038612049 | AB118: 0.09072595495 | AC118: 0.07945246328 | AD118: 0.0698737984 | AE118: 0.06189939129 | AF118: 0.05560508639 | AG118: 0.05168530978
C119: 142.4 | D119: 159.6442333 | E119: 158.9377303 | F119: 158.2378303 | G119: 157.5444109 | H119: 156.8573533 | I119: 156.1765417 | J119: 155.5018637 | K119: 154.8332096 | L119: 154.1704729 | M119: 153.5135498 | N119: 152.8623391 | O119: 152.2167424 | P119: 151.5766636 | Q119: 150.9420094 | R119: 150.3126884 | S119: 0.3314496741 | T119: 0.2831265561 | U119: 0.2453849676 | V119: 0.2135895582 | W119: 0.1861746984 | X119: 0.1623461568 | Y119: 0.1415921457 | Z119: 0.1235297923 | AA119: 0.1078481869 | AB119: 0.09428647014 | AC119: 0.08262791499 | AD119: 0.07270605372 | AE119: 0.06443130703 | AF119: 0.05788353803 | AG119: 0.05377506305
C120: 144 | D120: 159.6442333 | E120: 158.9377303 | F120: 158.2378303 | G120: 157.5444109 | H120: 156.8573533 | I120: 156.1765417 | J120: 155.5018637 | K120: 154.8332096 | L120: 154.1704729 | M120: 153.5135498 | N120: 152.8623391 | O120: 152.2167424 | P120: 151.5766636 | Q120: 150.9420094 | R120: 150.3126884 | S120: 0.3397528087 | T120: 0.2909574023 | U120: 0.2526689265 | V120: 0.2202998862 | W120: 0.1923092039 | X120: 0.1679185992 | Y120: 0.1466271707 | Z120: 0.1280593507 | AA120: 0.1119088669 | AB120: 0.09791754142 | AC120: 0.08587001891 | AD120: 0.07560060372 | AE120: 0.06702095392 | AF120: 0.06021515287 | AG120: 0.05591358714
C121: 145.6 | D121: 159.6442333 | E121: 158.9377303 | F121: 158.2378303 | G121: 157.5444109 | H121: 156.8573533 | I121: 156.1765417 | J121: 155.5018637 | K121: 154.8332096 | L121: 154.1704729 | M121: 153.5135498 | N121: 152.8623391 | O121: 152.2167424 | P121: 151.5766636 | Q121: 150.9420094 | R121: 150.3126884 | S121: 0.3480540525 | T121: 0.29881396 | U121: 0.2599976272 | V121: 0.227068192 | W121: 0.1985104153 | X121: 0.1735628769 | Y121: 0.1517363062 | Z121: 0.1326630787 | AA121: 0.1160421064 | AB121: 0.1016183548 | AC121: 0.08917822448 | AD121: 0.07855710551 | AE121: 0.06966814653 | AF121: 0.06259985671 | AG121: 0.05810086935
C122: 147.2 | D122: 159.6442333 | E122: 158.9377303 | F122: 158.2378303 | G122: 157.5444109 | H122: 156.8573533 | I122: 156.1765417 | J122: 155.5018637 | K122: 154.8332096 | L122: 154.1704729 | M122: 153.5135498 | N122: 152.8623391 | O122: 152.2167424 | P122: 151.5766636 | Q122: 150.9420094 | R122: 150.3126884 | S122: 0.3563486066 | T122: 0.3066915911 | U122: 0.2673668648 | V122: 0.2338908096 | W122: 0.2047752348 | X122: 0.1792764435 | Y122: 0.1569175153 | Z122: 0.1373393925 | AA122: 0.120246712 | AB122: 0.1053880445 | AC122: 0.09255193361 | AD122: 0.08157517362 | AE122: 0.07237266198 | AF122: 0.06503754288 | AG122: 0.06033686933
C123: 148.8 | D123: 159.6442333 | E123: 158.9377303 | F123: 158.2378303 | G123: 157.5444109 | H123: 156.8573533 | I123: 156.1765417 | J123: 155.5018637 | K123: 154.8332096 | L123: 154.1704729 | M123: 153.5135498 | N123: 152.8623391 | O123: 152.2167424 | P123: 151.5766636 | Q123: 150.9420094 | R123: 150.3126884 | S123: 0.3646317864 | T123: 0.3145857197 | U123: 0.2747724557 | V123: 0.2407640647 | W123: 0.2111005348 | X123: 0.1850567098 | Y123: 0.1621687107 | Z123: 0.1420866547 | AA123: 0.1245214372 | AB123: 0.1092256943 | AC123: 0.09599050176 | AD123: 0.08465438075 | AE123: 0.07513424046 | AF123: 0.06752807267 | AG123: 0.06262151919
C124: 150.4 | D124: 159.6442333 | E124: 158.9377303 | F124: 158.2378303 | G124: 157.5444109 | H124: 156.8573533 | I124: 156.1765417 | J124: 155.5018637 | K124: 154.8332096 | L124: 154.1704729 | M124: 153.5135498 | N124: 152.8623391 | O124: 152.2167424 | P124: 151.5766636 | Q124: 150.9420094 | R124: 150.3126884 | S124: 0.3728990267 | T124: 0.3224918387 | U124: 0.2822102446 | V124: 0.2476842801 | W124: 0.2174831631 | X124: 0.1909010477 | Y124: 0.1674877581 | Z124: 0.1469031775 | AA124: 0.1288649847 | AB124: 0.1131303391 | AC124: 0.09949323909 | AD124: 0.08779425862 | AE124: 0.0779525858 | AF124: 0.07007127559 | AG124: 0.06495472385
C125: 152 | D125: 159.6442333 | E125: 158.9377303 | F125: 158.2378303 | G125: 157.5444109 | H125: 156.8573533 | I125: 156.1765417 | J125: 155.5018637 | K125: 154.8332096 | L125: 154.1704729 | M125: 153.5135498 | N125: 152.8623391 | O125: 152.2167424 | P125: 151.5766636 | Q125: 150.9420094 | R125: 150.3126884 | S125: 0.3811458857 | T125: 0.3304055149 | U125: 0.2896761099 | V125: 0.2546477819 | W125: 0.2239199486 | X125: 0.196806795 | Y125: 0.1728724801 | Z125: 0.1517872255 | AA125: 0.1332760088 | AB125: 0.1171009669 | AC125: 0.1030594117 | AD125: 0.09099429876 | AE125: 0.08082736599 | AF125: 0.0726669498 | AG125: 0.06733636123
C126: 153.6 | D126: 159.6442333 | E126: 158.9377303 | F126: 158.2378303 | G126: 157.5444109 | H126: 156.8573533 | I126: 156.1765417 | J126: 155.5018637 | K126: 154.8332096 | L126: 154.1704729 | M126: 153.5135498 | N126: 152.8623391 | O126: 152.2167424 | P126: 151.5766636 | Q126: 150.9420094 | R126: 150.3126884 | S126: 0.3893680494 | T126: 0.3383223955 | U126: 0.2971659705 | V126: 0.2616509049 | W126: 0.2304077056 | X126: 0.2027712595 | Y126: 0.1783206592 | Z126: 0.1567370182 | AA126: 0.1377531172 | AB126: 0.1211365202 | AC126: 0.1066882428 | AD126: 0.09425395343 | AE126: 0.08375821386 | AF126: 0.07531486255 | AG126: 0.06976628255
C127: 155.2 | D127: 159.6442333 | E127: 158.9377303 | F127: 158.2378303 | G127: 157.5444109 | H127: 156.8573533 | I127: 156.1765417 | J127: 155.5018637 | K127: 154.8332096 | L127: 154.1704729 | M127: 153.5135498 | N127: 152.8623391 | O127: 152.2167424 | P127: 151.5766636 | Q127: 150.9420094 | R127: 150.3126884 | S127: 0.3975613347 | T127: 0.3462382124 | U127: 0.3046757905 | V127: 0.2686899982 | W127: 0.2369432394 | X127: 0.2087917232 | Y127: 0.1838300422 | Z127: 0.1617507335 | AA127: 0.1422948737 | AB127: 0.1252358976 | AC127: 0.1103789139 | AD127: 0.09757263654 | AE127: 0.08674472768 | AF127: 0.07801475059 | AG127: 0.07224431269
C128: 156.8 | D128: 159.6442333 | E128: 158.9377303 | F128: 158.2378303 | G128: 157.5444109 | H128: 156.8573533 | I128: 156.1765417 | J128: 155.5018637 | K128: 154.8332096 | L128: 154.1704729 | M128: 153.5135498 | N128: 152.8623391 | O128: 152.2167424 | P128: 151.5766636 | Q128: 150.9420094 | R128: 150.3126884 | S128: 0.4057216925 | T128: 0.3541487871 | U128: 0.3122015848 | V128: 0.27576143 | W128: 0.2435233507 | X128: 0.2148654467 | Y128: 0.1893983427 | Z128: 0.16682651 | AA128: 0.1468998001 | AB128: 0.1293979558 | AC128: 0.1141305665 | AD128: 0.1009497246 | AE128: 0.08978647183 | AF128: 0.08076632063 | AG128: 0.07477025048
C129: 158.4 | D129: 159.6442333 | E129: 158.9377303 | F129: 158.2378303 | G129: 157.5444109 | H129: 156.8573533 | I129: 156.1765417 | J129: 155.5018637 | K129: 154.8332096 | L129: 154.1704729 | M129: 153.5135498 | N129: 152.8623391 | O129: 152.2167424 | P129: 151.5766636 | Q129: 150.9420094 | R129: 150.3126884 | S129: 0.4138452102 | T129: 0.362050035 | U129: 0.3197394244 | V129: 0.2828615934 | W129: 0.2501448403 | X129: 0.2209896731 | Y129: 0.1950232455 | Z129: 0.1719624501 | AA129: 0.1515663784 | AB129: 0.1336215113 | AC129: 0.1179423029 | AD129: 0.1043845575 | AE129: 0.09288297754 | AF129: 0.08356924988 | AG129: 0.07734386908
C130: 160 | D130: 159.6442333 | E130: 158.9377303 | F130: 158.2378303 | G130: 157.5444109 | H130: 156.8573533 | I130: 156.1765417 | J130: 155.5018637 | K130: 154.8332096 | L130: 154.1704729 | M130: 153.5135498 | N130: 152.8623391 | O130: 152.2167424 | P130: 151.5766636 | Q130: 150.9420094 | R130: 150.3126884 | S130: 0.4219281142 | T130: 0.3699379695 | U130: 0.3272854404 | V130: 0.2899869102 | W130: 0.2568045139 | X130: 0.2271616321 | Y130: 0.2007024096 | Z130: 0.1771566227 | AA130: 0.1562930536 | AB130: 0.137905342 | AC130: 0.1218131877 | AD130: 0.1078764399 | AE130: 0.09603374356 | AF130: 0.08642318654 | AG130: 0.07996491632
C131: 161.6 | D131: 159.6442333 | E131: 158.9377303 | F131: 158.2378303 | G131: 157.5444109 | H131: 156.8573533 | I131: 156.1765417 | J131: 155.5018637 | K131: 154.8332096 | L131: 154.1704729 | M131: 153.5135498 | N131: 152.8623391 | O131: 152.2167424 | P131: 151.5766636 | Q131: 150.9420094 | R131: 150.3126884 | S131: 0.429966771 | T131: 0.3778087055 | U131: 0.3348358291 | V131: 0.2971338363 | W131: 0.2634991861 | X131: 0.2333785443 | Y131: 0.2064334714 | Z131: 0.1824070663 | AA131: 0.1610782354 | AB131: 0.1422481893 | AC131: 0.1257422493 | AD131: 0.111424642 | AE131: 0.09923823695 | AF131: 0.08932775033 | AG131: 0.08263311515
C132: 163.2 | D132: 159.6442333 | E132: 158.9377303 | F132: 158.2378303 | G132: 157.5444109 | H132: 156.8573533 | I132: 156.1765417 | J132: 155.5018637 | K132: 154.8332096 | L132: 154.1704729 | M132: 153.5135498 | N132: 152.8623391 | O132: 152.2167424 | P132: 151.5766636 | Q132: 150.9420094 | R132: 150.3126884 | S132: 0.4379576889 | T132: 0.3856584623 | U132: 0.3423868556 | V132: 0.304298866 | W132: 0.2702256849 | X132: 0.2396376244 | Y132: 0.2122140487 | Z132: 0.1877117916 | AA132: 0.1659203008 | AB132: 0.1466487595 | AC132: 0.1297284814 | AD132: 0.1150284004 | AE132: 0.1024958938 | AF132: 0.09228253308 | AG132: 0.08534816401
C133: 164.8 | D133: 159.6442333 | E133: 158.9377303 | F133: 158.2378303 | G133: 157.5444109 | H133: 156.8573533 | I133: 156.1765417 | J133: 155.5018637 | K133: 154.8332096 | L133: 154.1704729 | M133: 153.5135498 | N133: 152.8623391 | O133: 152.2167424 | P133: 151.5766636 | Q133: 150.9420094 | R133: 150.3126884 | S133: 0.4458975191 | T133: 0.3934835667 | U133: 0.3499348581 | V133: 0.3114785356 | W133: 0.276980856 | X133: 0.2459360856 | Y133: 0.2180417434 | Z133: 0.1930687842 | AA133: 0.1708175963 | AB133: 0.1511057258 | AC133: 0.1337708441 | AD133: 0.1186869197 | AE133: 0.1058061202 | AF133: 0.09528709929 | AG133: 0.08810973726
C134: 166.4 | D134: 159.6442333 | E134: 158.9377303 | F134: 158.2378303 | G134: 157.5444109 | H134: 156.8573533 | I134: 156.1765417 | J134: 155.5018637 | K134: 154.8332096 | L134: 154.1704729 | M134: 153.5135498 | N134: 152.8623391 | O134: 152.2167424 | P134: 151.5766636 | Q134: 150.9420094 | R134: 150.3126884 | S134: 0.4537830558 | T134: 0.4012804558 | U134: 0.3574762507 | V134: 0.318669428 | W134: 0.2837615661 | X134: 0.2522711428 | Y134: 0.223914145 | Z134: 0.1984760077 | AA134: 0.1757684402 | AB134: 0.1556177304 | AC134: 0.1378682654 | AD134: 0.122399373 | AE134: 0.1091682928 | AF134: 0.09834098673 | AG134: 0.09091748567
C135: 168 | D135: 159.6442333 | E135: 158.9377303 | F135: 158.2378303 | G135: 157.5444109 | H135: 156.8573533 | I135: 156.1765417 | J135: 155.5018637 | K135: 154.8332096 | L135: 154.1704729 | M135: 153.5135498 | N135: 152.8623391 | O135: 152.2167424 | P135: 151.5766636 | Q135: 150.9420094 | R135: 150.3126884 | S135: 0.4616112366 | T135: 0.4090456786 | U135: 0.3650075276 | V135: 0.3258681759 | W135: 0.2905647074 | X135: 0.2586400166 | Y135: 0.2298288339 | Z135: 0.2039314061 | AA135: 0.1807711249 | AB135: 0.160183386 | AC135: 0.1420196427 | AD135: 0.1261649035 | AE135: 0.1125817597 | AF135: 0.1014437071 | AG135: 0.09377103683
C136: 169.6 | D136: 159.6442333 | E136: 158.9377303 | F136: 158.2378303 | G136: 157.5444109 | H136: 156.8573533 | I136: 156.1765417 | J136: 155.5018637 | K136: 154.8332096 | L136: 154.1704729 | M136: 153.5135498 | N136: 152.8623391 | O136: 152.2167424 | P136: 151.5766636 | Q136: 150.9420094 | R136: 150.3126884 | S136: 0.4693791425 | T136: 0.416775898 | U136: 0.3725252651 | V136: 0.3330714659 | W136: 0.2973872007 | X136: 0.2650399361 | Y136: 0.2357833842 | Z136: 0.2094329065 | AA136: 0.185823919 | AB136: 0.1648012775 | AC136: 0.1462238444 | AD136: 0.1299826253 | AE136: 0.1160458414 | AF136: 0.1045947465 | AG136: 0.09666999565
C137: 171.2 | D137: 159.6442333 | E137: 158.9377303 | F137: 158.2378303 | G137: 157.5444109 | H137: 156.8573533 | I137: 156.1765417 | J137: 155.5018637 | K137: 154.8332096 | L137: 154.1704729 | M137: 153.5135498 | N137: 152.8623391 | O137: 152.2167424 | P137: 151.5766636 | Q137: 150.9420094 | R137: 150.3126884 | S137: 0.4770839975 | T137: 0.4244678925 | U137: 0.3800261251 | V137: 0.3402760409 | W137: 0.304225999 | X137: 0.2714681431 | Y137: 0.2417753669 | Z137: 0.2149784222 | AA137: 0.1909250696 | AB137: 0.1694699642 | AC137: 0.1504797112 | AD137: 0.1338516246 | AE137: 0.1195598318 | AF137: 0.1077935665 | AG137: 0.09961394488
C138: 172.8 | D138: 159.6442333 | E138: 158.9377303 | F138: 158.2378303 | G138: 157.5444109 | H138: 156.8573533 | I138: 156.1765417 | J138: 155.5018637 | K138: 154.8332096 | L138: 154.1704729 | M138: 153.5135498 | N138: 152.8623391 | O138: 152.2167424 | P138: 151.5766636 | Q138: 150.9420094 | R138: 150.3126884 | S138: 0.4847231675 | T138: 0.4321185574 | U138: 0.387506857 | V138: 0.3474787043 | W138: 0.3110780908 | X138: 0.2779218946 | Y138: 0.2478023529 | Z138: 0.2205658547 | AA138: 0.1960728048 | AB138: 0.1741879816 | AC138: 0.1547860573 | AD138: 0.137770961 | AE138: 0.1231229987 | AF138: 0.1110396042 | AG138: 0.1026024455
C139: 174.4 | D139: 159.6442333 | E139: 158.9377303 | F139: 158.2378303 | G139: 157.5444109 | H139: 156.8573533 | I139: 156.1765417 | J139: 155.5018637 | K139: 154.8332096 | L139: 154.1704729 | M139: 153.5135498 | N139: 152.8623391 | O139: 152.2167424 | P139: 151.5766636 | Q139: 150.9420094 | R139: 150.3126884 | S139: 0.4922941598 | T139: 0.4397249054 | U139: 0.3949643 | V139: 0.3546763217 | W139: 0.3179405034 | X139: 0.2843984661 | Y139: 0.2538619159 | Z139: 0.2261930965 | AA139: 0.2012653353 | AB139: 0.1789538427 | AC139: 0.1591416724 | AD139: 0.1417396684 | AE139: 0.126734585 | AF139: 0.1143322733 | AG139: 0.1056350375
C140: 176 | D140: 159.6442333 | E140: 158.9377303 | F140: 158.2378303 | G140: 157.5444109 | H140: 156.8573533 | I140: 156.1765417 | J140: 155.5018637 | K140: 154.8332096 | L140: 154.1704729 | M140: 153.5135498 | N140: 152.8623391 | O140: 152.2167424 | P140: 151.5766636 | Q140: 150.9420094 | R140: 150.3126884 | S140: 0.4997946213 | T140: 0.4472840677 | U140: 0.402395385 | V140: 0.3618658243 | W140: 0.3248103056 | X140: 0.2908951546 | Y140: 0.2599516351 | Z140: 0.2318580337 | AA140: 0.2065008572 | AB140: 0.1837660406 | AC140: 0.1635453228 | AD140: 0.1457567563 | AE140: 0.1303938094 | AF140: 0.1176709649 | AG140: 0.1087112401
C141: 177.6 | D141: 159.6442333 | E141: 158.9377303 | F141: 158.2378303 | G141: 157.5444109 | H141: 156.8573533 | I141: 156.1765417 | J141: 155.5018637 | K141: 154.8332096 | L141: 154.1704729 | M141: 153.5135498 | N141: 152.8623391 | O141: 152.2167424 | P141: 151.5766636 | Q141: 150.9420094 | R141: 150.3126884 | S141: 0.5072223374 | T141: 0.4547932938 | U141: 0.4097971362 | V141: 0.369044211 | W141: 0.3316846103 | X141: 0.2974092818 | Y141: 0.266069098 | Z141: 0.2375585486 | AA141: 0.2117775535 | AB141: 0.1886230495 | AC141: 0.167995753 | AD141: 0.1498212111 | AE141: 0.1340998675 | AF141: 0.1210550478 | AG141: 0.1118305524
C142: 179.2 | D142: 159.6442333 | E142: 158.9377303 | F142: 158.2378303 | G142: 157.5444109 | H142: 156.8573533 | I142: 156.1765417 | J142: 155.5018637 | K142: 154.8332096 | L142: 154.1704729 | M142: 153.5135498 | N142: 152.8623391 | O142: 152.2167424 | P142: 151.5766636 | Q142: 150.9420094 | R142: 150.3126884 | S142: 0.51457523 | T142: 0.4622499522 | U142: 0.4171666727 | V142: 0.3762085506 | W142: 0.3385605778 | X142: 0.303938196 | Y142: 0.2722119029 | Z142: 0.2432925216 | AA142: 0.2170935968 | AB142: 0.193523327 | AC142: 0.1724916869 | AD142: 0.153931997 | AE142: 0.1378519325 | AF142: 0.1244838696 | AG142: 0.1149924541
C143: 180.8 | D143: 159.6442333 | E143: 158.9377303 | F143: 158.2378303 | G143: 157.5444109 | H143: 156.8573533 | I143: 156.1765417 | J143: 155.5018637 | K143: 154.8332096 | L143: 154.1704729 | M143: 153.5135498 | N143: 152.8623391 | O143: 152.2167424 | P143: 151.5766636 | Q143: 150.9420094 | R143: 150.3126884 | S143: 0.5218513555 | T143: 0.4696515296 | U143: 0.4245012092 | V143: 0.3833559841 | W143: 0.3454354175 | X143: 0.3104792756 | Y143: 0.2783776616 | Z143: 0.249057834 | AA143: 0.222447151 | AB143: 0.1984653157 | AC143: 0.1770318298 | AD143: 0.1580880574 | AE143: 0.1416491564 | AF143: 0.1279567571 | AG143: 0.1181964057
C144: 182.4 | D144: 159.6442333 | E144: 158.9377303 | F144: 158.2378303 | G144: 157.5444109 | H144: 156.8573533 | I144: 156.1765417 | J144: 155.5018637 | K144: 154.8332096 | L144: 154.1704729 | M144: 153.5135498 | N144: 152.8623391 | O144: 152.2167424 | P144: 151.5766636 | Q144: 150.9420094 | R144: 150.3126884 | S144: 0.5290489028 | T144: 0.4769956311 | U144: 0.4317980573 | V144: 0.3904837258 | W144: 0.3523063907 | X144: 0.317029931 | Y144: 0.2845640016 | Z144: 0.2548523699 | AA144: 0.2278363733 | AB144: 0.203447445 | AC144: 0.1816148693 | AD144: 0.1622883159 | AE144: 0.1454906709 | AF144: 0.1314730173 | AG144: 0.1214418496
C145: 184 | D145: 159.6442333 | E145: 158.9377303 | F145: 158.2378303 | G145: 157.5444109 | H145: 156.8573533 | I145: 156.1765417 | J145: 155.5018637 | K145: 154.8332096 | L145: 154.1704729 | M145: 153.5135498 | N145: 152.8623391 | O145: 152.2167424 | P145: 151.5766636 | Q145: 150.9420094 | R145: 150.3126884 | S145: 0.5361661911 | T145: 0.4842799794 | U145: 0.4390546263 | V145: 0.3975890658 | W145: 0.3591708122 | X145: 0.323587607 | Y145: 0.290768569 | Z145: 0.2606740189 | AA145: 0.2332594165 | AB145: 0.2084681325 | AC145: 0.1862394769 | AD145: 0.1665316775 | AE145: 0.1493755878 | AF145: 0.1350319379 | AG145: 0.1247282099
C146: 185.6 | D146: 159.6442333 | E146: 158.9377303 | F146: 158.2378303 | G146: 157.5444109 | H146: 156.8573533 | I146: 156.1765417 | J146: 155.5018637 | K146: 154.8332096 | L146: 154.1704729 | M146: 153.5135498 | N146: 152.8623391 | O146: 152.2167424 | P146: 151.5766636 | Q146: 150.9420094 | R146: 150.3126884 | S146: 0.5432016669 | T146: 0.4915024135 | U146: 0.4462684232 | V146: 0.4046693705 | W146: 0.366026053 | X146: 0.3301497854 | Y146: 0.2969890299 | Z146: 0.2665206777 | AA146: 0.2387144305 | AB146: 0.2135257863 | AC146: 0.1909043098 | AD146: 0.1708170301 | AE146: 0.1533030008 | AF146: 0.1386327884 | AG146: 0.1280548939
C147: 187.2 | D147: 159.6442333 | E147: 158.9377303 | F147: 158.2378303 | G147: 157.5444109 | H147: 156.8573533 | I147: 156.1765417 | J147: 155.5018637 | K147: 154.8332096 | L147: 154.1704729 | M147: 153.5135498 | N147: 152.8623391 | O147: 152.2167424 | P147: 151.5766636 | Q147: 150.9420094 | R147: 150.3126884 | S147: 0.5501539017 | T147: 0.4986608886 | U147: 0.4534370533 | V147: 0.4117220845 | W147: 0.3728695413 | X147: 0.3367139866 | Y147: 0.3032230735 | Z147: 0.2723902527 | AA147: 0.2441995647 | AB147: 0.2186188059 | AC147: 0.1956080116 | AD147: 0.1751432451 | AE147: 0.1572719859 | AF147: 0.1422748202 | AG147: 0.131421292
C148: 188.8 | D148: 159.6442333 | E148: 158.9377303 | F148: 158.2378303 | G148: 157.5444109 | H148: 156.8573533 | I148: 156.1765417 | J148: 155.5018637 | K148: 154.8332096 | L148: 154.1704729 | M148: 153.5135498 | N148: 152.8623391 | O148: 152.2167424 | P148: 151.5766636 | Q148: 150.9420094 | R148: 150.3126884 | S148: 0.5570215893 | T148: 0.505753474 | U148: 0.4605582203 | V148: 0.4187447314 | W148: 0.3796987647 | X148: 0.3432777718 | Y148: 0.3094684134 | Z148: 0.2782806615 | AA148: 0.2497129693 | AB148: 0.2237455847 | AC148: 0.2003492143 | AD148: 0.179509179 | AE148: 0.1612816022 | AF148: 0.1459572682 | AG148: 0.1348267785
C149: 190.4 | D149: 159.6442333 | E149: 158.9377303 | F149: 158.2378303 | G149: 157.5444109 | H149: 156.8573533 | I149: 156.1765417 | J149: 155.5018637 | K149: 154.8332096 | L149: 154.1704729 | M149: 153.5135498 | N149: 152.8623391 | O149: 152.2167424 | P149: 151.5766636 | Q149: 150.9420094 | R149: 150.3126884 | S149: 0.5638035425 | T149: 0.5127783524 | U149: 0.4676297261 | V149: 0.4257349143 | W149: 0.3865112712 | X149: 0.3498387448 | Y149: 0.31572279 | Z149: 0.2841898352 | AA149: 0.2552527977 | AB149: 0.2289045107 | AC149: 0.2051265395 | AD149: 0.1839136743 | AE149: 0.1653308935 | AF149: 0.1496793508 | AG149: 0.1382707124
C150: 192 | D150: 159.6442333 | E150: 158.9377303 | F150: 158.2378303 | G150: 157.5444109 | H150: 156.8573533 | I150: 156.1765417 | J150: 155.5018637 | K150: 154.8332096 | L150: 154.1704729 | M150: 153.5135498 | N150: 152.8623391 | O150: 152.2167424 | P150: 151.5766636 | Q150: 150.9420094 | R150: 150.3126884 | S150: 0.5704986905 | T150: 0.519733818 | U150: 0.4746494706 | V150: 0.4326903171 | W150: 0.3933046712 | X150: 0.3563945539 | Y150: 0.3219839721 | Z150: 0.2901157203 | AA150: 0.2608172078 | AB150: 0.2340939688 | AC150: 0.2099385996 | AD150: 0.188355561 | AE150: 0.1694188885 | AF150: 0.1534402712 | AG150: 0.1417524375
C151: 193.6 | D151: 159.6442333 | E151: 158.9377303 | F151: 158.2378303 | G151: 157.5444109 | H151: 156.8573533 | I151: 156.1765417 | J151: 155.5018637 | K151: 154.8332096 | L151: 154.1704729 | M151: 153.5135498 | N151: 152.8623391 | O151: 152.2167424 | P151: 151.5766636 | Q151: 150.9420094 | R151: 150.3126884 | S151: 0.5771060756 | T151: 0.5266182747 | U151: 0.4816154511 | V151: 0.4396087044 | W151: 0.400076638 | X151: 0.3629428931 | Y151: 0.3282497592 | Z151: 0.2960562802 | AA151: 0.2664043638 | AB151: 0.2393123421 | AC151: 0.2147839995 | AD151: 0.1928336573 | AE151: 0.1735446024 | AF151: 0.1572392177 | AG151: 0.1452712837
C152: 195.2 | D152: 159.6442333 | E152: 158.9377303 | F152: 158.2378303 | G152: 157.5444109 | H152: 156.8573533 | I152: 156.1765417 | J152: 155.5018637 | K152: 154.8332096 | L152: 154.1704729 | M152: 153.5135498 | N152: 152.8623391 | O152: 152.2167424 | P152: 151.5766636 | Q152: 150.9420094 | R152: 150.3126884 | S152: 0.58362485 | T152: 0.5334302347 | U152: 0.4885257619 | V152: 0.4464879225 | W152: 0.4068249092 | X152: 0.3694815039 | Y152: 0.3345179824 | Z152: 0.3020094972 | AA152: 0.2720124381 | AB152: 0.2445580132 | AC152: 0.2196613375 | AD152: 0.1973467708 | AE152: 0.1777070372 | AF152: 0.1610753649 | AG152: 0.148826567
C153: 196.8 | D153: 159.6442333 | E153: 158.9377303 | F153: 158.2378303 | G153: 157.5444109 | H153: 156.8573533 | I153: 156.1765417 | J153: 155.5018637 | K153: 154.8332096 | L153: 154.1704729 | M153: 153.5135498 | N153: 152.8623391 | O153: 152.2167424 | P153: 151.5766636 | Q153: 150.9420094 | R153: 150.3126884 | S153: 0.5900542727 | T153: 0.5401683162 | U153: 0.4953785932 | V153: 0.4533258988 | W153: 0.4135472873 | X153: 0.3760081763 | Y153: 0.3407865067 | Z153: 0.307973374 | AA153: 0.2776396126 | AB153: 0.249829366 | AC153: 0.224569207 | AD153: 0.2018937002 | AE153: 0.1819051831 | AF153: 0.1649478741 | AG153: 0.1524175904
C154: 198.4 | D154: 159.6442333 | E154: 158.9377303 | F154: 158.2378303 | G154: 157.5444109 | H154: 156.8573533 | I154: 156.1765417 | J154: 155.5018637 | K154: 154.8332096 | L154: 154.1704729 | M154: 153.5135498 | N154: 152.8623391 | O154: 152.2167424 | P154: 151.5766636 | Q154: 150.9420094 | R154: 150.3126884 | S154: 0.596393706 | T154: 0.5468312416 | U154: 0.5021722307 | V154: 0.4601206425 | W154: 0.4202416411 | X154: 0.3825207506 | Y154: 0.3470532319 | Z154: 0.3139459352 | AA154: 0.2832840803 | AB154: 0.2551247869 | AC154: 0.2295061975 | AD154: 0.2064732355 | AE154: 0.1861380192 | AF154: 0.1688558943 | AG154: 0.1560436445
C155: 200 | D155: 159.6442333 | E155: 158.9377303 | F155: 158.2378303 | G155: 157.5444109 | H155: 156.8573533 | I155: 156.1765417 | J155: 155.5018637 | K155: 154.8332096 | L155: 154.1704729 | M155: 153.5135498 | N155: 152.8623391 | O155: 152.2167424 | P155: 151.5766636 | Q155: 150.9420094 | R155: 150.3126884 | S155: 0.6026426126 | T155: 0.5534178349 | U155: 0.508905054 | V155: 0.4668702443 | W155: 0.4269059054 | X155: 0.3890171179 | Y155: 0.3533160944 | Z155: 0.3199252292 | AA155: 0.2889440471 | AB155: 0.2604426665 | AC155: 0.2344708959 | AD155: 0.2110841597 | AE155: 0.1904045147 | AF155: 0.1727985628 | AG155: 0.159704008
C156: 201.6 | D156: 159.6442333 | E156: 158.9377303 | F156: 158.2378303 | G156: 157.5444109 | H156: 156.8573533 | I156: 156.1765417 | J156: 155.5018637 | K156: 154.8332096 | L156: 154.1704729 | M156: 153.5135498 | N156: 152.8623391 | O156: 152.2167424 | P156: 151.5766636 | Q156: 150.9420094 | R156: 150.3126884 | S156: 0.6088005514 | T156: 0.5599270201 | U156: 0.5155755359 | V156: 0.473572876 | W156: 0.4335380823 | X156: 0.3954952214 | Y156: 0.3595730685 | Z156: 0.3259093292 | AA156: 0.2946177327 | AB156: 0.2657814006 | AC156: 0.2394618879 | AD156: 0.2157252498 | AE156: 0.1947036293 | AF156: 0.1767750061 | AG156: 0.1633979484
C157: 203.2 | D157: 159.6442333 | E157: 158.9377303 | F157: 158.2378303 | G157: 157.5444109 | H157: 156.8573533 | I157: 156.1765417 | J157: 155.5018637 | K157: 154.8332096 | L157: 154.1704729 | M157: 153.5135498 | N157: 152.8623391 | O157: 152.2167424 | P157: 151.5766636 | Q157: 150.9420094 | R157: 150.3126884 | S157: 0.6148671752 | T157: 0.5663578183 | U157: 0.5221822407 | V157: 0.4802267904 | W157: 0.440136241 | X157: 0.4019530571 | Y157: 0.3658221672 | Z157: 0.3318963347 | AA157: 0.3003033726 | AB157: 0.2711393916 | AC157: 0.244477759 | AD157: 0.2203952776 | AE157: 0.1990343145 | AF157: 0.1807843404 | AG157: 0.1671247227
C158: 204.8 | D158: 159.6442333 | E158: 158.9377303 | F158: 158.2378303 | G158: 157.5444109 | H158: 156.8573533 | I158: 156.1765417 | J158: 155.5018637 | K158: 154.8332096 | L158: 154.1704729 | M158: 153.5135498 | N158: 152.8623391 | O158: 152.2167424 | P158: 151.5766636 | Q158: 150.9420094 | R158: 150.3126884 | S158: 0.6208422264 | T158: 0.5727093453 | U158: 0.5287238232 | V158: 0.4868303207 | W158: 0.4466985186 | X158: 0.408388675 | Y158: 0.3720614437 | Z158: 0.3378843728 | AA158: 0.305999219 | AB158: 0.2765150501 | AC158: 0.249517096 | AD158: 0.225093011 | AE158: 0.2033955146 | AF158: 0.1848256727 | AG158: 0.1708835776
C159: 206.4 | D159: 159.6442333 | E159: 158.9377303 | F159: 158.2378303 | G159: 157.5444109 | H159: 156.8573533 | I159: 156.1765417 | J159: 155.5018637 | K159: 154.8332096 | L159: 154.1704729 | M159: 153.5135498 | N159: 152.8623391 | O159: 152.2167424 | P159: 151.5766636 | Q159: 150.9420094 | R159: 150.3126884 | S159: 0.6267255339 | T159: 0.5789808097 | U159: 0.5351990271 | V159: 0.4933818798 | W159: 0.4532231196 | X159: 0.4148001792 | Y159: 0.3782889924 | Z159: 0.3438715996 | AA159: 0.311703542 | AB159: 0.2819067957 | AC159: 0.2545784875 | AD159: 0.229817215 | AE159: 0.207786167 | AF159: 0.1888981011 | AG159: 0.1746737508
C160: 208 | D160: 159.6442333 | E160: 158.9377303 | F160: 158.2378303 | G160: 157.5444109 | H160: 156.8573533 | I160: 156.1765417 | J160: 155.5018637 | K160: 154.8332096 | L160: 154.1704729 | M160: 153.5135498 | N160: 152.8623391 | O160: 152.2167424 | P160: 151.5766636 | Q160: 150.9420094 | R160: 150.3126884 | S160: 0.6325170101 | T160: 0.5851715098 | U160: 0.5416066832 | V160: 0.4998799599 | W160: 0.4597083164 | X160: 0.4211857288 | Y160: 0.3845029494 | Z160: 0.3498562008 | AA160: 0.3174146313 | AB160: 0.2873130586 | AC160: 0.2596605259 | AD160: 0.2345666525 | AE160: 0.2122052036 | AF160: 0.1930007161 | AG160: 0.1784944709
C161: 209.6 | D161: 159.6442333 | E161: 158.9377303 | F161: 158.2378303 | G161: 157.5444109 | H161: 156.8573533 | I161: 156.1765417 | J161: 155.5018637 | K161: 154.8332096 | L161: 154.1704729 | M161: 153.5135498 | N161: 152.8623391 | O161: 152.2167424 | P161: 151.5766636 | Q161: 150.9420094 | R161: 150.3126884 | S161: 0.6382166468 | T161: 0.5912808309 | U161: 0.5479457079 | V161: 0.5063231313 | W161: 0.466152449 | X161: 0.4275435384 | Y161: 0.390701494 | Z161: 0.3558363933 | AA161: 0.3231307969 | AB161: 0.2927322803 | AC161: 0.2647618077 | AD161: 0.2393400856 | AE161: 0.2166515517 | AF161: 0.1971326007 | AG161: 0.1823449583
C162: 211.2 | D162: 159.6442333 | E162: 158.9377303 | F162: 158.2378303 | G162: 157.5444109 | H162: 156.8573533 | I162: 156.1765417 | J162: 155.5018637 | K162: 154.8332096 | L162: 154.1704729 | M162: 153.5135498 | N162: 152.8623391 | O162: 152.2167424 | P162: 151.5766636 | Q162: 150.9420094 | R162: 150.3126884 | S162: 0.6438245125 | T162: 0.5973082435 | U162: 0.5542151016 | V162: 0.5127100418 | W162: 0.4725539249 | X162: 0.4338718782 | Y162: 0.3968828489 | Z162: 0.3618104261 | AA162: 0.3288503704 | AB162: 0.2981629153 | AC162: 0.2698809351 | AD162: 0.2441362761 | AE162: 0.2211241343 | AF162: 0.2012928316 | AG162: 0.1862244262
C163: 212.8 | D163: 159.6442333 | E163: 158.9377303 | F163: 158.2378303 | G163: 157.5444109 | H163: 156.8573533 | I163: 156.1765417 | J163: 155.5018637 | K163: 154.8332096 | L163: 154.1704729 | M163: 153.5135498 | N163: 152.8623391 | O163: 152.2167424 | P163: 151.5766636 | Q163: 150.9420094 | R163: 150.3126884 | S163: 0.6493407486 | T163: 0.6032532999 | U163: 0.5604139467 | V163: 0.5190394156 | W163: 0.4789112188 | X163: 0.4401690746 | Y163: 0.4030452812 | Z163: 0.367776581 | AA163: 0.334571706 | AB163: 0.3036034317 | AC163: 0.2750165167 | AD163: 0.2489539869 | AE163: 0.2256218715 | AF163: 0.2054804797 | AG163: 0.1901320802
C164: 214.4 | D164: 159.6442333 | E164: 158.9377303 | F164: 158.2378303 | G164: 157.5444109 | H164: 156.8573533 | I164: 156.1765417 | J164: 155.5018637 | K164: 154.8332096 | L164: 154.1704729 | M164: 153.5135498 | N164: 152.8623391 | O164: 152.2167424 | P164: 151.5766636 | Q164: 150.9420094 | R164: 150.3126884 | S164: 0.6547655663 | T164: 0.6091156317 | U164: 0.5665414057 | V164: 0.5253100523 | W164: 0.4852228722 | X164: 0.44643351 | Y164: 0.4091871027 | Z164: 0.3737331736 | AA164: 0.3402931815 | AB164: 0.3090523123 | AC164: 0.2801671686 | AD164: 0.2537919829 | AE164: 0.230143681 | AF164: 0.2096946108 | AG164: 0.19406712
C165: 216 | D165: 159.6442333 | E165: 158.9377303 | F165: 158.2378303 | G165: 157.5444109 | H165: 156.8573533 | I165: 156.1765417 | J165: 155.5018637 | K165: 154.8332096 | L165: 154.1704729 | M165: 153.5135498 | N165: 152.8623391 | O165: 152.2167424 | P165: 151.5766636 | Q165: 150.9420094 | R165: 150.3126884 | S165: 0.6600992436 | T165: 0.6148949474 | U165: 0.5725967196 | V165: 0.5315208255 | W165: 0.4914874929 | X165: 0.4526636233 | Y165: 0.4153066709 | Z165: 0.3796785539 | AA165: 0.3460131993 | AB165: 0.3145080559 | AC165: 0.2853315156 | AD165: 0.2586490314 | AE165: 0.2346884789 | AF165: 0.2139342862 | AG165: 0.1980287391
C166: 217.6 | D166: 159.6442333 | E166: 158.9377303 | F166: 158.2378303 | G166: 157.5444109 | H166: 156.8573533 | I166: 156.1765417 | J166: 155.5018637 | K166: 154.8332096 | L166: 154.1704729 | M166: 153.5135498 | N166: 152.8623391 | O166: 152.2167424 | P166: 151.5766636 | Q166: 150.9420094 | R166: 150.3126884 | S166: 0.6653421216 | T166: 0.6205910294 | U166: 0.5785792056 | V166: 0.537670682 | W166: 0.4977037545 | X166: 0.4588579097 | Y166: 0.4214023889 | Z166: 0.3856111073 | AA166: 0.3517301872 | AB166: 0.3199691777 | AC166: 0.2905081917 | AD166: 0.2635239037 | AE166: 0.2392551808 | AF166: 0.2181985638 | AG166: 0.2020161261
C167: 219.2 | D167: 159.6442333 | E167: 158.9377303 | F167: 158.2378303 | G167: 157.5444109 | H167: 156.8573533 | I167: 156.1765417 | J167: 155.5018637 | K167: 154.8332096 | L167: 154.1704729 | M167: 153.5135498 | N167: 152.8623391 | O167: 152.2167424 | P167: 151.5766636 | Q167: 150.9420094 | R167: 150.3126884 | S167: 0.6704946016 | T167: 0.6262037317 | U167: 0.5844882551 | V167: 0.5437586402 | W167: 0.5038703959 | X167: 0.4650149206 | Y167: 0.4274727058 | Z167: 0.3915292553 | AA167: 0.357442599 | AB167: 0.3254342109 | AC167: 0.2956958413 | AD167: 0.2684153753 | AE167: 0.2438427023 | AF167: 0.2224864983 | AG167: 0.2060284645
C168: 220.8 | D168: 159.6442333 | E168: 158.9377303 | F168: 158.2378303 | G168: 157.5444109 | H168: 156.8573533 | I168: 156.1765417 | J168: 155.5018637 | K168: 154.8332096 | L168: 154.1704729 | M168: 153.5135498 | N168: 152.8623391 | O168: 152.2167424 | P168: 151.5766636 | Q168: 150.9420094 | R168: 150.3126884 | S168: 0.6755571421 | T168: 0.6317329765 | U168: 0.5903233319 | V168: 0.5497837887 | W168: 0.5099862203 | X168: 0.4711332636 | Y168: 0.4335161175 | Z168: 0.3974314556 | AA168: 0.3631489159 | AB168: 0.3309017068 | AC168: 0.30089312 | AD168: 0.2733222271 | AE168: 0.2484499596 | AF168: 0.2267971421 | AG168: 0.2100649341
C169: 222.4 | D169: 159.6442333 | E169: 158.9377303 | F169: 158.2378303 | G169: 157.5444109 | H169: 156.8573533 | I169: 156.1765417 | J169: 155.5018637 | K169: 154.8332096 | L169: 154.1704729 | M169: 153.5135498 | N169: 152.8623391 | O169: 152.2167424 | P169: 151.5766636 | Q169: 150.9420094 | R169: 150.3126884 | S169: 0.6805302557 | T169: 0.6371787526 | U169: 0.5960839701 | V169: 0.5557452853 | W169: 0.5160500947 | X169: 0.477211602 | Y169: 0.4395311664 | Z169: 0.4033162029 | AA169: 0.3688476464 | AB169: 0.3363702362 | AC169: 0.3060986955 | AD169: 0.2782432461 | AE169: 0.2530758707 | AF169: 0.2311295459 | AG169: 0.2141247108
C170: 224 | D170: 159.6442333 | E170: 158.9377303 | F170: 158.2378303 | G170: 157.5444109 | H170: 156.8573533 | I170: 156.1765417 | J170: 155.5018637 | K170: 154.8332096 | L170: 154.1704729 | M170: 153.5135498 | N170: 152.8623391 | O170: 152.2167424 | P170: 151.5766636 | Q170: 150.9420094 | R170: 150.3126884 | S170: 0.6854145059 | T170: 0.6425411119 | U170: 0.6017697718 | V170: 0.5616423551 | W170: 0.5220609491 | X170: 0.4832486549 | Y170: 0.4455164417 | Z170: 0.4091820297 | AA170: 0.3745373278 | AB170: 0.3418383899 | AC170: 0.3113112483 | AD170: 0.2831772263 | AE170: 0.2577193557 | AF170: 0.2354827594 | AG170: 0.2182069675
C171: 225.6 | D171: 159.6442333 | E171: 158.9377303 | F171: 158.2378303 | G171: 157.5444109 | H171: 156.8573533 | I171: 156.1765417 | J171: 155.5018637 | K171: 154.8332096 | L171: 154.1704729 | M171: 153.5135498 | N171: 152.8623391 | O171: 152.2167424 | P171: 151.5766636 | Q171: 150.9420094 | R171: 150.3126884 | S171: 0.6902105046 | T171: 0.6478201668 | U171: 0.6073804052 | V171: 0.5674742893 | W171: 0.5280177752 | X171: 0.4892431966 | Y171: 0.4514705793 | Z171: 0.4150275061 | AA171: 0.3802165261 | AB171: 0.3473047795 | AC171: 0.3165294724 | AD171: 0.2881229692 | AE171: 0.2623793378 | AF171: 0.2398558317 | AG171: 0.222310875
C172: 227.2 | D172: 159.6442333 | E172: 158.9377303 | F172: 158.2378303 | G172: 157.5444109 | H172: 156.8573533 | I172: 156.1765417 | J172: 155.5018637 | K172: 154.8332096 | L172: 154.1704729 | M172: 153.5135498 | N172: 152.8623391 | O172: 152.2167424 | P172: 151.5766636 | Q172: 150.9420094 | R172: 150.3126884 | S172: 0.6949189087 | T172: 0.6530160884 | U172: 0.6129156024 | V172: 0.5732404435 | W172: 0.5339196261 | X172: 0.4951940561 | Y172: 0.4573922624 | Z172: 0.4208512405 | AA172: 0.3858838368 | AB172: 0.3527680379 | AC172: 0.3217520762 | AD172: 0.2930792847 | AE172: 0.2670547437 | AF172: 0.2442478122 | AG172: 0.2264356017
C173: 228.8 | D173: 159.6442333 | E173: 158.9377303 | F173: 158.2378303 | G173: 157.5444109 | H173: 156.8573533 | I173: 156.1765417 | J173: 155.5018637 | K173: 154.8332096 | L173: 154.1704729 | M173: 153.5135498 | N173: 152.8623391 | O173: 152.2167424 | P173: 151.5766636 | Q173: 150.9420094 | R173: 150.3126884 | S173: 0.6995404179 | T173: 0.6581291029 | U173: 0.6183751573 | V173: 0.5789402362 | W173: 0.5397656146 | X173: 0.5011001169 | Y173: 0.4632802207 | Z173: 0.4266518797 | AA173: 0.3915378857 | AB173: 0.3582268205 | AC173: 0.3269777833 | AD173: 0.2980449919 | AE173: 0.2717445046 | AF173: 0.2486577512 | AG173: 0.2305803148
C174: 230.4 | D174: 159.6442333 | E174: 158.9377303 | F174: 158.2378303 | G174: 157.5444109 | H174: 156.8573533 | I174: 156.1765417 | J174: 155.5018637 | K174: 154.8332096 | L174: 154.1704729 | M174: 153.5135498 | N174: 152.8623391 | O174: 152.2167424 | P174: 151.5766636 | Q174: 150.9420094 | R174: 150.3126884 | S174: 0.7040757717 | T174: 0.6631594898 | U174: 0.6237589236 | V174: 0.5845731474 | W174: 0.5455549128 | X174: 0.5069603162 | Y174: 0.4691332308 | Z174: 0.4324281093 | AA174: 0.3971773289 | AB174: 0.363679805 | AC174: 0.3322053329 | AD174: 0.3030189195 | AE174: 0.2764475567 | AF174: 0.2530847002 | AG174: 0.2347441807
C175: 232 | D175: 159.6442333 | E175: 158.9377303 | F175: 158.2378303 | G175: 157.5444109 | H175: 156.8573533 | I175: 156.1765417 | J175: 155.5018637 | K175: 154.8332096 | L175: 154.1704729 | M175: 153.5135498 | N175: 152.8623391 | O175: 152.2167424 | P175: 151.5766636 | Q175: 150.9420094 | R175: 150.3126884 | S175: 0.7085257469 | T175: 0.668107579 | U175: 0.6290668125 | V175: 0.5901387165 | W175: 0.5512867507 | X175: 0.5127736444 | Y175: 0.4749501158 | Z175: 0.4381786537 | AA175: 0.4028008535 | AB175: 0.3691256926 | AC175: 0.3374334805 | AD175: 0.3079999069 | AE175: 0.2811628415 | AF175: 0.2575277128 | AG175: 0.2389263651
C176: 233.6 | D176: 159.6442333 | E176: 158.9377303 | F176: 158.2378303 | G176: 157.5444109 | H176: 156.8573533 | I176: 156.1765417 | J176: 155.5018637 | K176: 154.8332096 | L176: 154.1704729 | M176: 153.5135498 | N176: 152.8623391 | O176: 152.2167424 | P176: 151.5766636 | Q176: 150.9420094 | R176: 150.3126884 | S176: 0.7128911547 | T176: 0.6729737487 | U176: 0.6342987905 | V176: 0.5956365413 | W176: 0.5569604148 | X176: 0.5185391446 | Y176: 0.480729745 | Z176: 0.4439022765 | AA176: 0.4084071778 | AB176: 0.3745632082 | AC176: 0.3426609985 | AD176: 0.3129868043 | AE176: 0.2858893071 | AF176: 0.2619858452 | AG176: 0.2431260341
C177: 235.2 | D177: 159.6442333 | E177: 158.9377303 | F177: 158.2378303 | G177: 157.5444109 | H177: 156.8573533 | I177: 156.1765417 | J177: 155.5018637 | K177: 154.8332096 | L177: 154.1704729 | M177: 153.5135498 | N177: 152.8623391 | O177: 152.2167424 | P177: 151.5766636 | Q177: 150.9420094 | R177: 150.3126884 | S177: 0.7171728389 | T177: 0.6777584226 | U177: 0.6394548778 | V177: 0.6010662757 | W177: 0.5625752475 | X177: 0.5242559116 | Y177: 0.4864710341 | Z177: 0.44959778 | AA177: 0.413995052 | AB177: 0.379991101 | AC177: 0.3478866772 | AD177: 0.3179784737 | AE177: 0.2906259082 | AF177: 0.2664581564 | AG177: 0.2473423542
C178: 236.8 | D178: 159.6442333 | E178: 158.9377303 | F178: 158.2378303 | G178: 157.5444109 | H178: 156.8573533 | I178: 156.1765417 | J178: 155.5018637 | K178: 154.8332096 | L178: 154.1704729 | M178: 153.5135498 | N178: 152.8623391 | O178: 152.2167424 | P178: 151.5766636 | Q178: 150.9420094 | R178: 150.3126884 | S178: 0.7213716727 | T178: 0.6824620677 | U178: 0.6445351456 | V178: 0.6064276288 | W178: 0.5681306457 | X178: 0.5299230917 | Y178: 0.4921729444 | Z178: 0.455264006 | AA178: 0.4195632577 | AB178: 0.385408145 | AC178: 0.3531093245 | AD178: 0.3229737892 | AE178: 0.2953716069 | AF178: 0.2709437092 | AG178: 0.2515744932
C179: 238.4 | D179: 159.6442333 | E179: 158.9377303 | F179: 158.2378303 | G179: 157.5444109 | H179: 156.8573533 | I179: 156.1765417 | J179: 155.5018637 | K179: 154.8332096 | L179: 154.1704729 | M179: 153.5135498 | N179: 152.8623391 | O179: 152.2167424 | P179: 151.5766636 | Q179: 150.9420094 | R179: 150.3126884 | S179: 0.725488557 | T179: 0.687085192 | U179: 0.6495397145 | V179: 0.6117203622 | W179: 0.5736260594 | X179: 0.5355398812 | Y179: 0.4978344825 | Z179: 0.460899835 | AA179: 0.4251106089 | AB179: 0.3908131391 | AC179: 0.3583277672 | AD179: 0.3279716378 | AE179: 0.3001253734 | AF179: 0.2754415706 | AG179: 0.2558216201
C180: 240 | D180: 159.6442333 | E180: 158.9377303 | F180: 158.2378303 | G180: 157.5444109 | H180: 156.8573533 | I180: 156.1765417 | J180: 155.5018637 | K180: 154.8332096 | L180: 154.1704729 | M180: 153.5135498 | N180: 152.8623391 | O180: 152.2167424 | P180: 151.5766636 | Q180: 150.9420094 | R180: 150.3126884 | S180: 0.729524418 | T180: 0.6916283424 | U180: 0.6544687522 | V180: 0.6169442895 | W180: 0.5790609905 | X180: 0.5411055261 | Y180: 0.5034547001 | Z180: 0.4665041866 | AA180: 0.4306359517 | AB180: 0.3962049078 | AC180: 0.3635408511 | AD180: 0.3329709199 | AE180: 0.3048861863 | AF180: 0.2799508123 | AG180: 0.2600829062
C181: 241.6 | D181: 159.6442333 | E181: 158.9377303 | F181: 158.2378303 | G181: 157.5444109 | H181: 156.8573533 | I181: 156.1765417 | J181: 155.5018637 | K181: 154.8332096 | L181: 154.1704729 | M181: 153.5135498 | N181: 152.8623391 | O181: 152.2167424 | P181: 151.5766636 | Q181: 150.9420094 | R181: 150.3126884 | S181: 0.7334802048 | T181: 0.696092102 | U181: 0.6593224717 | V181: 0.6220992737 | W181: 0.5844349919 | X181: 0.5466193213 | Y181: 0.5090326934 | Z181: 0.4720760194 | AA181: 0.4361381649 | AB181: 0.4015823016 | AC181: 0.3687474415 | AD181: 0.3379705496 | AE181: 0.3096530331 | AF181: 0.2844705108 | AG181: 0.2643575251
C182: 243.2 | D182: 159.6442333 | E182: 158.9377303 | F182: 158.2378303 | G182: 157.5444109 | H182: 156.8573533 | I182: 156.1765417 | J182: 155.5018637 | K182: 154.8332096 | L182: 154.1704729 | M182: 153.5135498 | N182: 152.8623391 | O182: 152.2167424 | P182: 151.5766636 | Q182: 150.9420094 | R182: 150.3126884 | S182: 0.7373568876 | T182: 0.7004770886 | U182: 0.664101129 | V182: 0.6271852258 | W182: 0.5897476655 | X182: 0.5520806095 | Y182: 0.5145676026 | Z182: 0.4776143305 | AA182: 0.4416161595 | AB182: 0.4069441967 | AC182: 0.3739464234 | AD182: 0.3429694553 | AE182: 0.3144249109 | AF182: 0.2889997486 | AG182: 0.2686446533
C183: 244.8 | D183: 159.6442333 | E183: 158.9377303 | F183: 158.2378303 | G183: 157.5444109 | H183: 156.8573533 | I183: 156.1765417 | J183: 155.5018637 | K183: 154.8332096 | L183: 154.1704729 | M183: 153.5135498 | N183: 152.8623391 | O183: 152.2167424 | P183: 151.5766636 | Q183: 150.9420094 | R183: 150.3126884 | S183: 0.7411554556 | T183: 0.7047839519 | U183: 0.6688050213 | V183: 0.6322021035 | W183: 0.5949986619 | X183: 0.5574887801 | Y183: 0.5200586116 | Z183: 0.4831181556 | AA183: 0.4470688791 | AB183: 0.4122894961 | AC183: 0.3791367024 | AD183: 0.3479665803 | AE183: 0.3192008268 | AF183: 0.2935376142 | AG183: 0.2729434706
C184: 246.4 | D184: 159.6442333 | E184: 158.9377303 | F184: 158.2378303 | G184: 157.5444109 | H184: 156.8573533 | I184: 156.1765417 | J184: 155.5018637 | K184: 154.8332096 | L184: 154.1704729 | M184: 153.5135498 | N184: 152.8623391 | O184: 152.2167424 | P184: 151.5766636 | Q184: 150.9420094 | R184: 150.3126884 | S184: 0.7448769149 | T184: 0.7090133719 | U184: 0.6734344854 | V184: 0.637149909 | W184: 0.600187678 | X184: 0.562843269 | Y184: 0.525504947 | Z184: 0.4885865685 | AA184: 0.4524953003 | AB184: 0.4176171289 | AC184: 0.3843172047 | AD184: 0.3529608829 | AE184: 0.3239797981 | AF184: 0.2980832024 | AG184: 0.2772531605
C185: 248 | D185: 159.6442333 | E185: 158.9377303 | F185: 158.2378303 | G185: 157.5444109 | H185: 156.8573533 | I185: 156.1765417 | J185: 155.5018637 | K185: 154.8332096 | L185: 154.1704729 | M185: 153.5135498 | N185: 152.8623391 | O185: 152.2167424 | P185: 151.5766636 | Q185: 150.9420094 | R185: 150.3126884 | S185: 0.7485222871 | T185: 0.713166057 | U185: 0.6779898952 | V185: 0.6420286876 | W185: 0.6053144566 | X185: 0.5681435568 | Y185: 0.530905878 | Z185: 0.4940186813 | AA185: 0.4578944317 | AB185: 0.4229260515 | AC185: 0.3894868772 | AD185: 0.3579513371 | AE185: 0.3287608533 | AF185: 0.3026356154 | AG185: 0.2815729106
C186: 249.6 | D186: 159.6442333 | E186: 158.9377303 | F186: 158.2378303 | G186: 157.5444109 | H186: 156.8573533 | I186: 156.1765417 | J186: 155.5018637 | K186: 154.8332096 | L186: 154.1704729 | M186: 153.5135498 | N186: 152.8623391 | O186: 152.2167424 | P186: 151.5766636 | Q186: 150.9420094 | R186: 150.3126884 | S186: 0.7520926068 | T186: 0.7172427415 | U186: 0.68247166 | V186: 0.6468385262 | W186: 0.6103787844 | X186: 0.5733891685 | Y186: 0.5362607154 | Z186: 0.4994136436 | AA186: 0.463265315 | AB186: 0.4282152467 | AC186: 0.3946446885 | AD186: 0.3629369329 | AE186: 0.333543032 | AF186: 0.3071939623 | AG186: 0.2859019132
C187: 251.2 | D187: 159.6442333 | E187: 158.9377303 | F187: 158.2378303 | G187: 157.5444109 | H187: 156.8573533 | I187: 156.1765417 | J187: 155.5018637 | K187: 154.8332096 | L187: 154.1704729 | M187: 153.5135498 | N187: 152.8623391 | O187: 152.2167424 | P187: 151.5766636 | Q187: 150.9420094 | R187: 150.3126884 | S187: 0.7555889207 | T187: 0.7212441843 | U187: 0.6868802232 | V187: 0.6515795514 | W187: 0.6153804913 | X187: 0.5785796719 | Y187: 0.541568811 | Z187: 0.5047706422 | AA187: 0.468607024 | AB187: 0.4334837247 | AC187: 0.3997896284 | AD187: 0.3679166766 | AE187: 0.3383253855 | AF187: 0.3117573605 | AG187: 0.2902393652
C188: 252.8 | D188: 159.6442333 | E188: 158.9377303 | F188: 158.2378303 | G188: 157.5444109 | H188: 156.8573533 | I188: 156.1765417 | J188: 155.5018637 | K188: 154.8332096 | L188: 154.1704729 | M188: 153.5135498 | N188: 152.8623391 | O188: 152.2167424 | P188: 151.5766636 | Q188: 150.9420094 | R188: 150.3126884 | S188: 0.7590122853 | T188: 0.7251711667 | U188: 0.6912160599 | V188: 0.656251928 | W188: 0.6203194484 | X188: 0.5837146772 | Y188: 0.5468295573 | Z188: 0.5100889011 | AA188: 0.473918665 | AB188: 0.4387305227 | AC188: 0.4049207087 | AD188: 0.3728895912 | AE188: 0.3431069771 | AF188: 0.3163249353 | AG188: 0.294584469
C189: 254.4 | D189: 159.6442333 | E189: 158.9377303 | F189: 158.2378303 | G189: 157.5444109 | H189: 156.8573533 | I189: 156.1765417 | J189: 155.5018637 | K189: 154.8332096 | L189: 154.1704729 | M189: 153.5135498 | N189: 152.8623391 | O189: 152.2167424 | P189: 151.5766636 | Q189: 150.9420094 | R189: 150.3126884 | S189: 0.7623637658 | T189: 0.729024491 | U189: 0.6954796752 | V189: 0.6608558575 | W189: 0.6251955671 | X189: 0.5887938357 | Y189: 0.5520423863 | Z189: 0.5153676808 | AA189: 0.4791993765 | AB189: 0.4439547052 | AC189: 0.4100369629 | AD189: 0.3778547164 | AE189: 0.3478868826 | AF189: 0.3208958204 | AG189: 0.2989364325
C190: 256 | D190: 159.6442333 | E190: 158.9377303 | F190: 158.2378303 | G190: 157.5444109 | H190: 156.8573533 | I190: 156.1765417 | J190: 155.5018637 | K190: 154.8332096 | L190: 154.1704729 | M190: 153.5135498 | N190: 152.8623391 | O190: 152.2167424 | P190: 151.5766636 | Q190: 150.9420094 | R190: 150.3126884 | S190: 0.7656444343 | T190: 0.7328049785 | U190: 0.699671603 | V190: 0.6653915765 | W190: 0.6300087979 | X190: 0.5938168385 | Y190: 0.5572067691 | Z190: 0.5206062778 | AA190: 0.484448329 | AB190: 0.4491553637 | AC190: 0.415137447 | AD190: 0.3828111096 | AE190: 0.3526641907 | AF190: 0.3254691589 | AG190: 0.3032944695
C191: 257.6 | D191: 159.6442333 | E191: 158.9377303 | F191: 158.2378303 | G191: 157.5444109 | H191: 156.8573533 | I191: 156.1765417 | J191: 155.5018637 | K191: 154.8332096 | L191: 154.1704729 | M191: 153.5135498 | N191: 152.8623391 | O191: 152.2167424 | P191: 151.5766636 | Q191: 150.9420094 | R191: 150.3126884 | S191: 0.7688553685 | T191: 0.7365134677 | U191: 0.7037924038 | V191: 0.6698593551 | W191: 0.6347591287 | X191: 0.5987834161 | Y191: 0.5623222149 | Z191: 0.5258040246 | AA191: 0.489664725 | AB191: 0.4543316171 | AC191: 0.4202212392 | AD191: 0.3877578453 | AE191: 0.3574380029 | AF191: 0.3300441028 | AG191: 0.3076578004
C192: 259.2 | D192: 159.6442333 | E192: 158.9377303 | F192: 158.2378303 | G192: 157.5444109 | H192: 156.8573533 | I192: 156.1765417 | J192: 155.5018637 | K192: 154.8332096 | L192: 154.1704729 | M192: 153.5135498 | N192: 152.8623391 | O192: 152.2167424 | P192: 151.5766636 | Q192: 150.9420094 | R192: 150.3126884 | S192: 0.7719976505 | T192: 0.7401508134 | U192: 0.7078426632 | V192: 0.6742594953 | W192: 0.6394465835 | X192: 0.6036933368 | Y192: 0.5673882707 | Z192: 0.5309602885 | AA192: 0.4948477984 | AB192: 0.4594826115 | AC192: 0.4252874401 | AD192: 0.3926940161 | AE192: 0.3622074342 | AF192: 0.3346198138 | AG192: 0.3120256518
C193: 260.8 | D193: 159.6442333 | E193: 158.9377303 | F193: 158.2378303 | G193: 157.5444109 | H193: 156.8573533 | I193: 156.1765417 | J193: 155.5018637 | K193: 154.8332096 | L193: 154.1704729 | M193: 153.5135498 | N193: 152.8623391 | O193: 152.2167424 | P193: 151.5766636 | Q193: 150.9420094 | R193: 150.3126884 | S193: 0.7750723651 | T193: 0.7437178844 | U193: 0.7118229905 | V193: 0.6785923298 | W193: 0.6440712215 | X193: 0.6085464058 | Y193: 0.5724045199 | Z193: 0.5360744718 | AA193: 0.4999968146 | AB193: 0.4646075202 | AC193: 0.4303351728 | AD193: 0.3976187322 | AE193: 0.3669716134 | AF193: 0.3391954635 | AG193: 0.3163972576
C194: 262.4 | D194: 159.6442333 | E194: 158.9377303 | F194: 158.2378303 | G194: 157.5444109 | H194: 156.8573533 | I194: 156.1765417 | J194: 155.5018637 | K194: 154.8332096 | L194: 154.1704729 | M194: 153.5135498 | N194: 152.8623391 | O194: 152.2167424 | P194: 151.5766636 | Q194: 150.9420094 | R194: 150.3126884 | S194: 0.7780805992 | T194: 0.7472155624 | U194: 0.7157340172 | V194: 0.6828582202 | W194: 0.6486331355 | X194: 0.6133424642 | Y194: 0.577370582 | Z194: 0.541146011 | AA194: 0.50511107 | AB194: 0.4697055436 | AC194: 0.4353635834 | AD194: 0.4025311224 | AE194: 0.371729683 | AF194: 0.3437702338 | AG194: 0.3207718586
C195: 264 | D195: 159.6442333 | E195: 158.9377303 | F195: 158.2378303 | G195: 157.5444109 | H195: 156.8573533 | I195: 156.1765417 | J195: 155.5018637 | K195: 154.8332096 | L195: 154.1704729 | M195: 153.5135498 | N195: 152.8623391 | O195: 152.2167424 | P195: 151.5766636 | Q195: 150.9420094 | R195: 150.3126884 | S195: 0.7810234398 | T195: 0.7506447406 | U195: 0.719576395 | V195: 0.6870575558 | W195: 0.6531324507 | X195: 0.6180813881 | Y195: 0.5822861117 | Z195: 0.5461743761 | AA195: 0.5101898918 | AB195: 0.4747759088 | AC195: 0.4403718404 | AD195: 0.4074303336 | AE195: 0.3764808001 | AF195: 0.3483433169 | AG195: 0.3251487035
C196: 265.6 | D196: 159.6442333 | E196: 158.9377303 | F196: 158.2378303 | G196: 157.5444109 | H196: 156.8573533 | I196: 156.1765417 | J196: 155.5018637 | K196: 154.8332096 | L196: 154.1704729 | M196: 153.5135498 | N196: 152.8623391 | O196: 152.2167424 | P196: 151.5766636 | Q196: 150.9420094 | R196: 150.3126884 | S196: 0.7839019739 | T196: 0.7540063224 | U196: 0.723350795 | V196: 0.6911907521 | W196: 0.6575693233 | X196: 0.6227630873 | Y196: 0.587150798 | Z196: 0.5511590702 | AA196: 0.5152326377 | AB196: 0.4798178702 | AC196: 0.4453591351 | AD196: 0.4123155311 | AE196: 0.3812241357 | AF196: 0.3529139159 | AG196: 0.3295270485
C197: 267.2 | D197: 159.6442333 | E197: 158.9377303 | F197: 158.2378303 | G197: 157.5444109 | H197: 156.8573533 | I197: 156.1765417 | J197: 155.5018637 | K197: 154.8332096 | L197: 154.1704729 | M197: 153.5135498 | N197: 152.8623391 | O197: 152.2167424 | P197: 151.5766636 | Q197: 150.9420094 | R197: 150.3126884 | S197: 0.7867172865 | T197: 0.7573012197 | U197: 0.7270579059 | V197: 0.6952582495 | W197: 0.6619439396 | X197: 0.6273875041 | Y197: 0.5919643633 | Z197: 0.5560996291 | AA197: 0.5202386954 | AB197: 0.4848307086 | AC197: 0.4503246818 | AD197: 0.417185899 | AE197: 0.3859588758 | AF197: 0.357481245 | AG197: 0.333906158
C198: 268.8 | D198: 159.6442333 | E198: 158.9377303 | F198: 158.2378303 | G198: 157.5444109 | H198: 156.8573533 | I198: 156.1765417 | J198: 155.5018637 | K198: 154.8332096 | L198: 154.1704729 | M198: 153.5135498 | N198: 152.8623391 | O198: 152.2167424 | P198: 151.5766636 | Q198: 150.9420094 | R198: 150.3126884 | S198: 0.7894704602 | T198: 0.7605303521 | U198: 0.7306984328 | V198: 0.6992605118 | W198: 0.6662565142 | X198: 0.6319546129 | Y198: 0.5967265628 | Z198: 0.5609956203 | AA198: 0.5252074825 | AB198: 0.4898137316 | AC198: 0.4552677171 | AD198: 0.4220406403 | AE198: 0.3906842211 | AF198: 0.3620445295 | AG198: 0.3382853045
C199: 270.4 | D199: 159.6442333 | E199: 158.9377303 | F199: 158.2378303 | G199: 157.5444109 | H199: 156.8573533 | I199: 156.1765417 | J199: 155.5018637 | K199: 154.8332096 | L199: 154.1704729 | M199: 153.5135498 | N199: 152.8623391 | O199: 152.2167424 | P199: 151.5766636 | Q199: 150.9420094 | R199: 150.3126884 | S199: 0.7921625743 | T199: 0.7636946455 | U199: 0.7342730957 | V199: 0.7031980251 | W199: 0.6705072895 | X199: 0.6364644184 | Y199: 0.6014371836 | Z199: 0.5658466428 | AA199: 0.530138446 | AB199: 0.4947662729 | AC199: 0.4601875009 | AD199: 0.4268789765 | AE199: 0.3953993874 | AF199: 0.3666030063 | AG199: 0.3426637694
C200: 272 | D200: 159.6442333 | E200: 158.9377303 | F200: 158.2378303 | G200: 157.5444109 | H200: 156.8573533 | I200: 156.1765417 | J200: 155.5018637 | K200: 154.8332096 | L200: 154.1704729 | M200: 153.5135498 | N200: 152.8623391 | O200: 152.2167424 | P200: 151.5766636 | Q200: 150.9420094 | R200: 150.3126884 | S200: 0.7947947035 | T200: 0.7667950311 | U200: 0.7377826286 | V200: 0.7070712961 | W200: 0.674696534 | X200: 0.640916955 | Y200: 0.6060960439 | Z200: 0.5706523263 | AA200: 0.5350310616 | AB200: 0.4996876926 | AC200: 0.4650833154 | AD200: 0.4317001482 | AE200: 0.4001036055 | AF200: 0.3711559239 | AG200: 0.3470408427
C201: 273.6 | D201: 159.6442333 | E201: 158.9377303 | F201: 158.2378303 | G201: 157.5444109 | H201: 156.8573533 | I201: 156.1765417 | J201: 155.5018637 | K201: 154.8332096 | L201: 154.1704729 | M201: 153.5135498 | N201: 152.8623391 | O201: 152.2167424 | P201: 151.5766636 | Q201: 150.9420094 | R201: 150.3126884 | S201: 0.7973679176 | T201: 0.769832444 | U201: 0.7412277777 | V201: 0.7108808515 | W201: 0.6788245411 | X201: 0.6453122858 | Y201: 0.6107029917 | Z201: 0.5754123304 | AA201: 0.5398848337 | AB201: 0.5045773767 | AC201: 0.4699544656 | AD201: 0.4365034152 | AE201: 0.4047961218 | AF201: 0.3757025428 | AG201: 0.3514158233
C202: 275.2 | D202: 159.6442333 | E202: 158.9377303 | F202: 158.2378303 | G202: 157.5444109 | H202: 156.8573533 | I202: 156.1765417 | J202: 155.5018637 | K202: 154.8332096 | L202: 154.1704729 | M202: 153.5135498 | N202: 152.8623391 | O202: 152.2167424 | P202: 151.5766636 | Q202: 150.9420094 | R202: 150.3126884 | S202: 0.7998832801 | T202: 0.7728078225 | U202: 0.7446093009 | V202: 0.7146272363 | W202: 0.6828916283 | X202: 0.6496505012 | Y202: 0.6152579049 | Z202: 0.5801263445 | AA202: 0.544699295 | AB202: 0.5094347367 | AC202: 0.474800279 | AD202: 0.4412880559 | AE202: 0.4094761979 | AF202: 0.3802421357 | AG202: 0.3557880195
C203: 276.8 | D203: 159.6442333 | E203: 158.9377303 | F203: 158.2378303 | G203: 157.5444109 | H203: 156.8573533 | I203: 156.1765417 | J203: 155.5018637 | K203: 154.8332096 | L203: 154.1704729 | M203: 153.5135498 | N203: 152.8623391 | O203: 152.2167424 | P203: 151.5766636 | Q203: 150.9420094 | R203: 150.3126884 | S203: 0.8023418482 | T203: 0.7757221069 | U203: 0.747927966 | V203: 0.7183110126 | W203: 0.6868981357 | X203: 0.6539317185 | Y203: 0.6197606896 | Z203: 0.5847940865 | AA203: 0.5494740056 | AB203: 0.5142592098 | AC203: 0.4796201056 | AD203: 0.446053368 | AE203: 0.414143111 | AF203: 0.3847739872 | AG203: 0.3601567489
C204: 278.4 | D204: 159.6442333 | E204: 158.9377303 | F204: 158.2378303 | G204: 157.5444109 | H204: 156.8573533 | I204: 156.1765417 | J204: 155.5018637 | K204: 154.8332096 | L204: 154.1704729 | M204: 153.5135498 | N204: 152.8623391 | O204: 152.2167424 | P204: 151.5766636 | Q204: 150.9420094 | R204: 150.3126884 | S204: 0.8047446716 | T204: 0.7785762385 | U204: 0.75118455 | V204: 0.7219327586 | W204: 0.6908444252 | X204: 0.6581560801 | Y204: 0.6242112795 | Z204: 0.5894153027 | AA204: 0.5542085531 | AB204: 0.5190502582 | AC204: 0.4844133176 | AD204: 0.4507986684 | AE204: 0.4187961541 | AF204: 0.3892973947 | AG204: 0.3645213388
... 326 more rows

Sheet Inner Heated Annulus
C1: Peroxide Cured Silicones ONLY!
AJ2: Temp (K) | AK2: Ln (1/(t90 - ts1)) | AL2: Ln(1/ts(1)) | AM2: Slope/Interc | AN2: Slope/Interc
B3: Imp | C3: Metric | AJ3: =1/(D24+273.15) -> 0.002369387513 | AK3: =LN(1/(G24-F24)) -> -7.014185223 | AL3: =LN(1/(F24)) -> -5.009968405 | AM3: =SLOPE(AK3:AK5,AJ3:AJ5) -> -15664.77382 | AN3: =SLOPE(AL3:AL5,AJ3:AJ5) -> -12327.11386
B4: =C4/25.4 -> 1.968503937 | C4: 50 | D4: in, mm | E4: Inner Radius, Ri | AJ4: =1/(D25+273.15) -> 0.002279202279 | AK4: =LN(1/(G25-F25)) -> -5.892251762 | AL4: =LN(1/(F25)) -> -3.710151589 | AM4: =INTERCEPT(AK3:AK5,AJ3:AJ5) -> 30.00748462 | AN4: =INTERCEPT(AL3:AL5,AJ3:AJ5) -> 24.25870357
B5: =C5/25.4 -> 2.047244094 | C5: 52 | D5: in, mm | E5: Outer Radius, Ro | AJ5: =1/(D26+273.15) -> 0.00219611288 | AK5: =LN(1/(G26-F26)) -> -4.291828367 | AL5: =LN(1/(F26)) -> -2.879198457
C6: =0.0006*C8 - 0.4448 -> 0.2272 | D6: W/m-K | E6: Thermal Conductivity, k
C7: 1450 | D7: J/kg - K | E7: Heat Capacity, cp | Z7: 55.71428571
C8: 1120 | D8: kg/m3 | E8: Density, p | Z8: 20
Z9: 55.71428571
C10: 15 | D10: # | E10: Number of nodes
B13: =(C13*9/5)+32 -> 320 | C13: 160 | D13: F, C | E13: Mold Temperature, Tmi
B14: 69.8 | C14: 21 | D14: F, C | E14: Initial Rubber Temperature, Tr
C16: 600 | D16: sec | E16: Total T
C18: =8.3144621*-AM3 -> 130244.1682 | D18: J/mole | E18: Ea2 | F18: Activation Energy
C19: =POWER(2.71828,AM4) -> 1.076654156e+13 | D19: s-1 | E19: A2 | F19: Arrhenius Constant
C20: =8.3144621*-AN3 -> 102493.321 | D20: J/mole | E20: Ea1 | F20: Activation Energy
C21: =POWER(2.71828,AN4) -> 3.430947017e+10 | D21: s-1 | E21: A1 | F21: Arrhenius Constant
B22: 3 Temp Rheology Study (ASTM D5289)
C23: Cure Set | D23: Temperature, C | F23: ts(1), sec | G23: t(90), sec
C24: Low | D24: 148.9 | F24: 149.9 | G24: 1262.2
C25: Med | D25: 165.6 | F25: 40.86 | G25: 403.08
C26: High | D26: 182.2 | F26: 17.8 | G26: 90.9
D28: Temperature (time, x), C | S28: 90% SOC (time, x), %
C29: time, s | D29: 0.06666666667 | E29: 0.2 | F29: 0.3333333333 | G29: 0.4666666667 | H29: 0.6 | I29: 0.7333333333 | J29: 0.8666666667 | K29: 1 | L29: 1.133333333 | M29: 1.266666667 | N29: 1.4 | O29: 1.533333333 | P29: 1.666666667 | Q29: 1.8 | R29: 1.933333333 | S29: 0.06666666667 | T29: 0.2 | U29: 0.3333333333 | V29: 0.4666666667 | W29: 0.6 | X29: 0.7333333333 | Y29: 0.8666666667 | Z29: 1 | AA29: 1.133333333 | AB29: 1.266666667 | AC29: 1.4 | AD29: 1.533333333 | AE29: 1.666666667 | AF29: 1.8 | AG29: 1.933333333
C30: 0 | D30: 21 | E30: 21 | F30: 21 | G30: 21 | H30: 21 | I30: 21 | J30: 21 | K30: 21 | L30: 21 | M30: 21 | N30: 21 | O30: 21 | P30: 21 | Q30: 21 | R30: 21 | S30: 0 | T30: 0 | U30: 0 | V30: 0 | W30: 0 | X30: 0 | Y30: 0 | Z30: 0 | AA30: 0 | AB30: 0 | AC30: 0 | AD30: 0 | AE30: 0 | AF30: 0 | AG30: 0
C31: 1.2 | D31: 137.6034282 | E31: 105.230877 | F31: 81.85196758 | G31: 64.97028366 | H31: 52.78321921 | I31: 43.9894716 | J31: 37.65007279 | K31: 33.08811575 | L31: 29.81646597 | M31: 27.48573738 | N31: 25.8469758 | O31: 24.72506386 | P31: 24.00000573 | Q31: 23.59409159 | R31: 23.46356837 | S31: 7.100110141e-13 | T31: 1.880915272e-18 | U31: 4.11370528e-23 | V31: 7.054293865e-27 | W31: 7.716189901e-30 | X31: 4.06858997e-32 | Y31: 7.71427078e-34 | Z31: 4.016790559e-35 | AA31: 4.567339205e-36 | AB31: 9.428988932e-37 | AC31: 3.064061766e-37 | AD31: 1.409273815e-37 | AE31: 8.504561905e-38 | AF31: 6.403056803e-38 | AG31: 5.843586302e-38
C32: 2.4 | D32: 148.4853887 | E32: 126.6529015 | F32: 107.1437954 | G32: 90.36102836 | H32: 76.30774091 | I32: 64.77927993 | J32: 55.47971853 | K32: 48.09009504 | L32: 42.30632159 | M32: 37.85849728 | N32: 34.5192194 | O32: 32.10574747 | P32: 30.47907729 | Q32: 29.54181466 | R32: 29.23598416 | S32: 1.546878133e-10 | T32: 2.212302313e-14 | U32: 6.23253753e-18 | V32: 3.241052753e-21 | W32: 3.536970097e-24 | X32: 9.030230971e-27 | Y32: 5.655108473e-29 | Z32: 8.586602729e-31 | AA32: 2.986431581e-32 | AB32: 2.184052175e-33 | AC32: 3.045800406e-34 | AD32: 7.363384319e-35 | AE32: 2.843105693e-35 | AF32: 1.648059814e-35 | AG32: 1.380237485e-35
C33: 3.6 | D33: 151.448289 | E33: 134.6923135 | F33: 118.8309855 | G33: 104.247593 | H33: 91.1712527 | I33: 79.70121976 | J33: 69.8393724 | K33: 61.52196215 | L33: 54.64677489 | M33: 49.09457868 | N33: 44.74509985 | O33: 41.48835283 | P33: 39.23230555 | Q33: 37.90779871 | R33: 37.47147131 | S33: 2.279878687e-09 | T33: 1.770180534e-12 | U33: 2.173133001e-15 | V33: 3.620144519e-18 | W33: 8.691776631e-21 | X33: 3.302387399e-23 | Y33: 2.16375733e-25 | Z33: 2.606322997e-27 | AA33: 5.987189519e-29 | AB33: 2.64787245e-30 | AC33: 2.223109775e-31 | AD33: 3.436276086e-32 | AE33: 9.410780215e-33 | AF33: 4.403343899e-33 | AG33: 3.429722734e-33
C34: 4.8 | D34: 152.9428294 | E34: 139.0146889 | F34: 125.5806027 | G34: 112.8958597 | H34: 101.159183 | I34: 90.50966935 | J34: 81.03116262 | K34: 72.76106863 | L34: 65.70117554 | M34: 59.82874568 | N34: 55.10678393 | O34: 51.49288124 | P34: 48.94637443 | Q34: 47.43377345 | R34: 46.93251442 | S34: 1.411718064e-08 | T34: 2.89478323e-11 | U34: 8.859912103e-14 | V34: 3.405475451e-16 | W34: 1.665011539e-18 | X34: 1.097329348e-20 | Y34: 1.045600652e-22 | Z34: 1.541854768e-24 | AA34: 3.729871469e-26 | AB34: 1.547547911e-27 | AC34: 1.13385364e-28 | AD34: 1.488506866e-29 | AE34: 3.511301612e-30 | AF34: 1.482195655e-30 | AG34: 1.113015199e-30
C35: 6 | D35: 153.920276 | E35: 141.8884457 | F35: 130.192442 | G35: 119.0151035 | H35: 108.5143972 | I35: 98.81917771 | J35: 90.02818301 | K35: 82.21169104 | L35: 75.4150719 | M35: 69.66346293 | N35: 64.966885 | O35: 61.32525419 | P35: 58.73288412 | Q35: 57.1821993 | R35: 56.66648044 | S35: 5.62589711e-08 | T35: 2.255268447e-10 | U35: 1.311958158e-12 | V35: 9.37979694e-15 | W35: 8.176770582e-17 | X35: 9.002061397e-19 | Y35: 1.319051818e-20 | Z35: 2.727246923e-22 | AA35: 8.428034186e-24 | AB35: 4.101227092e-25 | AC35: 3.283368158e-26 | AD35: 4.473967862e-27 | AE35: 1.062669011e-27 | AF35: 4.464969114e-28 | AG35: 3.342464116e-28
C36: 7.2 | D36: 154.6509265 | E36: 144.0513832 | F36: 133.7086952 | G36: 123.7652289 | H36: 114.3503482 | I36: 105.5774265 | J36: 97.54225434 | K36: 90.32277543 | L36: 83.9799458 | M36: 78.55942766 | N36: 74.09380077 | O36: 70.60498283 | P36: 68.10658428 | Q36: 66.60597079 | R36: 66.10585954 | S36: 1.713250413e-07 | T36: 1.145438004e-09 | U36: 1.093425108e-11 | V36: 1.276441284e-13 | W36: 1.792096127e-15 | X36: 3.093762497e-17 | Y36: 6.833252358e-19 | Z36: 2.026295528e-20 | AA36: 8.488775623e-22 | AB36: 5.279915012e-23 | AC36: 5.101791494e-24 | AD36: 7.960120544e-25 | AE36: 2.067557642e-25 | AF36: 9.134333092e-26 | AG36: 6.948841599e-26
C37: 8.4 | D37: 155.2413418 | E37: 145.8054439 | F37: 136.5800742 | G37: 127.682772 | H37: 119.2232452 | I37: 111.3013153 | J37: 104.0055118 | K37: 97.41233615 | L37: 91.58614177 | M37: 86.57952677 | N37: 82.43409888 | O37: 79.18145968 | P37: 76.84425517 | Q37: 75.43715494 | R37: 74.96764538 | S37: 4.350472926e-07 | T37: 4.403444039e-09 | U37: 6.302865824e-11 | V37: 1.104561273e-12 | W37: 2.321071968e-14 | X37: 5.931672351e-16 | Y37: 1.900839118e-17 | Z37: 7.944660231e-19 | AA37: 4.522539012e-20 | AB37: 3.663367948e-21 | AC37: 4.400869198e-22 | AD37: 8.133053845e-23 | AE37: 2.382513067e-23 | AF37: 1.130832521e-23 | AG37: 8.809788657e-24
C38: 9.6 | D38: 155.7410472 | E38: 147.292974 | F38: 139.0246221 | G38: 131.0366665 | H38: 123.4244784 | I38: 116.2766252 | J38: 109.6737003 | K38: 103.687506 | L38: 98.3805811 | M38: 93.80603452 | N38: 90.00762483 | O38: 87.02001289 | P38: 84.86910959 | Q38: 83.5724442 | R38: 83.13948874 | S38: 9.688935595e-07 | T38: 1.391308732e-08 | U38: 2.809284776e-10 | V38: 6.969005808e-12 | W38: 2.0749845e-13 | X38: 7.478557792e-15 | Y38: 3.340631168e-16 | Z38: 1.909347e-17 | AA38: 1.44753733e-18 | AB38: 1.510709077e-19 | AC38: 2.249192655e-20 | AD38: 4.932673177e-21 | AE38: 1.6364243e-21 | AF38: 8.37564626e-22 | AG38: 6.691950756e-22
C39: 10.8 | D39: 156.175629 | E39: 148.5880992 | F39: 141.1576604 | G39: 133.9724576 | H39: 127.1166877 | I39: 120.6694301 | J39: 114.7036588 | K39: 109.2854534 | L39: 104.4734137 | M39: 100.318264 | N39: 96.8626217 | O39: 94.14089933 | P39: 92.17929964 | Q39: 90.99586834 | R39: 90.60057002 | S39: 1.953759304e-06 | T39: 3.798079166e-08 | U39: 1.03472994e-09 | V39: 3.477059175e-11 | W39: 1.405238585e-12 | X39: 6.857636577e-14 | Y39: 4.11372186e-15 | Z39: 3.111671169e-16 | AA39: 3.056587429e-17 | AB39: 4.020764332e-18 | AC39: 7.297079408e-19 | AD39: 1.877006049e-19 | AE39: 6.998886525e-20 | AF39: 3.846834797e-20 | AG39: 3.147985103e-20
C40: 12 | D40: 156.5595511 | E40: 149.7329769 | F40: 143.0455859 | G40: 136.5755433 | H40: 130.3978614 | I40: 124.5834382 | J40: 119.1982047 | K40: 114.3023943 | L40: 109.9499405 | M40: 106.1880012 | N40: 103.0565999 | O40: 100.5883709 | P40: 98.80839053 | Q40: 97.73407865 | R40: 97.37515201 | S40: 3.644171437e-06 | T40: 9.253899562e-08 | U40: 3.286408673e-09 | V40: 1.444799486e-10 | W40: 7.652922564e-12 | X40: 4.88457721e-13 | Y40: 3.805554235e-14 | Z40: 3.692074409e-15 | AA40: 4.567421301e-16 | AB40: 7.38734377e-17 | AC40: 1.600788133e-17 | AD40: 4.751697691e-18 | AE40: 1.968336778e-18 | AF40: 1.153690457e-18 | AG40: 9.647223233e-19
C41: 13.2 | D41: 156.9017666 | E41: 150.7538478 | F41: 144.7301978 | G41: 138.900639 | H41: 133.332352 | I41: 128.0890566 | J41: 123.2302623 | K41: 118.810602 | L41: 114.8792532 | M41: 111.4794508 | N41: 108.6480877 | O41: 106.4154016 | P41: 104.8047391 | Q41: 103.8323909 | R41: 103.5074912 | S41: 6.382418008e-06 | T41: 2.057742894e-07 | U41: 9.264570699e-09 | V41: 5.178248383e-10 | W41: 3.49069874e-11 | X41: 2.828461032e-12 | Y41: 2.778731628e-13 | Z41: 3.360560498e-14 | AA41: 5.097817975e-15 | AB41: 9.896937751e-16 | AC41: 2.508176595e-16 | AD41: 8.448856571e-17 | AE41: 3.840545928e-17 | AF41: 2.382512065e-17 | AG41: 2.03065228e-17
C42: 14.4 | D42: 157.2083528 | E42: 151.6686155 | F42: 146.240313 | G42: 140.9860728 | H42: 135.9662411 | I42: 131.2381674 | J42: 126.8555397 | K42: 122.8677801 | L42: 119.3195051 | M42: 116.2500573 | N42: 113.6931078 | O42: 111.6763314 | P42: 110.2211511 | Q42: 109.3425513 | R42: 109.0489569 | S42: 1.061204224e-05 | T42: 4.243364026e-07 | U42: 2.366300181e-08 | V42: 1.641267836e-09 | W42: 1.373026689e-10 | X42: 1.37638384e-11 | Y42: 1.661447038e-12 | Z42: 2.442102408e-13 | AA42: 4.434943281e-14 | AB42: 1.011104914e-14 | AC42: 2.940283013e-15 | AD42: 1.106611623e-15 | AE42: 5.456707995e-16 | AF42: 3.557557906e-16 | AG42: 3.083217893e-16
C43: 15.6 | D43: 157.4838014 | E43: 152.4905699 | F43: 147.5975081 | G43: 142.8609207 | H43: 138.3351053 | I43: 134.0717201 | J43: 130.1191893 | K43: 126.5221562 | L43: 123.3209887 | M43: 120.5513416 | N43: 118.2437801 | O43: 116.4234645 | P43: 115.1098993 | Q43: 114.3167449 | R43: 114.0516931 | S43: 1.689020605e-05 | T43: 8.212071192e-07 | U43: 5.560046154e-08 | V43: 4.686614429e-09 | W43: 4.76026547e-10 | X43: 5.772109465e-11 | Y43: 8.369148386e-12 | Z43: 1.46221341e-12 | AA43: 3.112481493e-13 | AB43: 8.173454058e-14 | AC43: 2.681642608e-14 | AD43: 1.112166073e-14 | AE43: 5.888322003e-15 | AF43: 4.009152298e-15 | AG43: 3.525597374e-15
C44: 16.8 | D44: 157.7316699 | E44: 153.2302698 | F44: 148.8190362 | G44: 144.5486548 | H44: 140.4680272 | I44: 136.623706 | J44: 133.059362 | K44: 129.8152899 | L44: 126.9279581 | M44: 124.429607 | N44: 122.3478994 | O44: 120.7056264 | P44: 119.5204692 | Q44: 118.8048206 | R44: 118.5656642 | S44: 2.589852054e-05 | T44: 1.505178456e-06 | U44: 1.216005498e-07 | V44: 1.223041511e-08 | W44: 1.479667665e-09 | X44: 2.127870959e-10 | Y44: 3.633081781e-11 | Z44: 7.399787609e-12 | AA44: 1.812509284e-12 | AB44: 5.390770124e-13 | AC44: 1.966370491e-13 | AD44: 8.879210447e-14 | AE44: 5.002761704e-14 | AF44: 3.537766684e-14 | AG44: 3.150897142e-14
C45: 18 | D45: 157.9549187 | E45: 153.8965223 | F45: 149.91935 | G45: 146.0690625 | H45: 142.3897248 | I45: 138.9232994 | J45: 135.7091674 | K45: 132.7836824 | L45: 130.1797624 | M45: 127.9265239 | N45: 126.0489619 | O45: 124.5676793 | P45: 123.4986667 | Q45: 122.8531365 | R45: 122.6374098 | S45: 3.845204479e-05 | T45: 2.631754177e-06 | U45: 2.498390458e-07 | V45: 2.950335552e-08 | W45: 4.180305798e-09 | X45: 7.007129895e-10 | Y45: 1.384558439e-10 | Z45: 3.232317517e-11 | AA45: 8.965714483e-12 | AB45: 2.976388972e-12 | AC45: 1.191820147e-12 | AD45: 5.799076695e-13 | AE45: 3.450443255e-13 | AF45: 2.52234925e-13 | AG45: 2.271668973e-13
C46: 19.2 | D46: 158.1560937 | E46: 154.4969104 | F46: 150.9109267 | G46: 147.4392937 | H46: 144.1217294 | I46: 140.9960643 | J46: 138.0978098 | K46: 135.4597558 | L46: 133.1116017 | M46: 131.0796245 | N46: 129.3863882 | O46: 128.0504964 | P46: 127.0863919 | Q46: 126.5042037 | R46: 126.3096437 | S46: 5.550625926e-05 | T46: 4.415165379e-06 | U46: 4.858564319e-07 | V46: 6.640226539e-08 | W46: 1.085509306e-08 | X46: 2.088734697e-09 | Y46: 4.704189427e-10 | Z46: 1.240314501e-10 | AA46: 3.842166589e-11 | AB46: 1.40584332e-11 | AC46: 6.112445998e-12 | AD46: 3.17639615e-12 | AE46: 1.982772838e-12 | AF46: 1.492315642e-12 | AG46: 1.357202452e-12
C47: 20.4 | D47: 158.3374278 | E47: 155.0380912 | F47: 151.8047384 | G47: 148.6744642 | H47: 145.6830747 | I47: 142.8646779 | J47: 140.2512951 | K47: 137.8724977 | L47: 135.7550744 | M47: 133.9227304 | N47: 132.3958245 | O47: 131.1911449 | P47: 130.3217264 | Q47: 129.7967119 | R47: 129.621258 | S47: 7.816191756e-05 | T47: 7.141093879e-06 | U47: 8.998472501e-07 | V47: 1.405177447e-07 | W47: 2.615278933e-08 | X47: 5.699332274e-09 | Y47: 1.443610195e-09 | Z47: 4.243653206e-10 | AA47: 1.450484413e-10 | AB47: 5.786163099e-11 | AC47: 2.706026336e-11 | AD47: 1.490386236e-11 | AE47: 9.705273846e-12 | AF47: 7.494643348e-12 | AG47: 6.875012045e-12
C48: 21.6 | D48: 158.5009033 | E48: 155.5259771 | F48: 152.610538 | G48: 149.7880288 | H48: 147.0907318 | I48: 144.5494003 | J48: 142.1929079 | K48: 140.0479218 | L48: 138.1386012 | M48: 136.4863271 | N48: 135.1094632 | O48: 134.0231541 | P48: 133.2391593 | Q48: 132.7657275 | R48: 132.6075117 | S48: 0.0001076677668 | T48: 1.117963576e-05 | U48: 1.59552453e-06 | V48: 2.81419116e-07 | W48: 5.892857236e-08 | X48: 1.437130678e-08 | Y48: 4.046095666e-09 | Z48: 1.311194145e-09 | AA48: 4.893307137e-10 | AB48: 2.108087171e-10 | AC48: 1.051857311e-10 | AD48: 6.099684685e-11 | AE48: 4.123630423e-11 | AF48: 3.257535438e-11 | AG48: 3.011040054e-11
C49: 22.8 | D49: 158.6482918 | E49: 155.9658535 | F49: 153.3370493 | G49: 150.7920315 | H49: 148.3599071 | I49: 146.0684051 | J49: 143.943561 | K49: 142.0094215 | L49: 140.2877732 | M49: 138.797898 | N49: 137.5563577 | O49: 136.5768113 | P49: 135.8698655 | Q49: 135.4429604 | R49: 135.3002932 | S49: 0.000145421198 | T49: 1.699801524e-05 | U49: 2.720430977e-06 | V49: 5.363899905e-07 | W49: 1.250362257e-07 | X49: 3.37645608e-08 | Y49: 1.045696647e-08 | Z49: 3.69893355e-09 | AA49: 1.493438736e-09 | AB49: 6.891441513e-10 | AC49: 3.642850232e-10 | AD49: 2.211573819e-10 | AE49: 1.545681698e-10 | AF49: 1.245906693e-10 | AG49: 1.15943018e-10
C50: 24 | D50: 158.7811828 | E50: 156.3624633 | F50: 153.9921028 | G50: 151.6972879 | H50: 149.5042634 | I50: 147.4380318 | J50: 145.5220692 | K50: 143.7780591 | L50: 142.2256474 | M50: 140.8822218 | N50: 139.7627178 | O50: 138.8794532 | P50: 138.2419935 | Q50: 137.8570487 | R50: 137.7284041 | S50: 0.0001929669441 | T50: 2.51725743e-05 | U50: 4.477445178e-06 | V50: 9.777237313e-07 | W50: 2.513233092e-07 | X50: 7.44408669e-08 | Y50: 2.512883308e-08 | Z50: 9.61831892e-09 | AA50: 4.167678057e-09 | AB50: 2.045209671e-09 | AC50: 1.1383302e-09 | AD50: 7.199335796e-10 | AE50: 5.183040606e-10 | AF50: 4.253500064e-10 | AG50: 3.982124531e-10
C51: 25.2 | D51: 158.9010055 | E51: 156.7200717 | F51: 154.5827414 | G51: 152.5135281 | H51: 150.5360961 | I51: 148.6729896 | J51: 146.945377 | K51: 145.3728105 | L51: 143.9730051 | M51: 142.76164 | N51: 141.7521832 | O51: 140.9557426 | P51: 140.3809438 | Q51: 140.0338381 | R51: 139.9178389 | S51: 0.0002519939843 | T51: 3.639961061e-05 | U51: 7.137125931e-06 | V51: 1.711577029e-06 | W51: 4.810352988e-07 | X51: 1.549714562e-07 | Y51: 5.65577907e-08 | Z51: 2.324539839e-08 | AA51: 1.073369616e-08 | AB51: 5.566565239e-09 | AC51: 3.244835306e-09 | AD51: 2.128694537e-09 | AE51: 1.573666054e-09 | AF51: 1.312314547e-09 | AG51: 1.235196434e-09
C52: 26.4 | D52: 159.0090468 | E52: 157.0425185 | F52: 155.1153067 | G52: 153.2495145 | H52: 151.4664795 | I52: 149.7865297 | J52: 148.2287525 | K52: 146.810778 | L52: 145.5485801 | M52: 144.456297 | N52: 143.5460731 | O52: 142.8279246 | P52: 142.3096298 | Q52: 141.9966451 | R52: 141.8920488 | S52: 0.0003243308403 | T52: 5.150470697e-05 | U52: 1.105046239e-05 | V52: 2.888255383e-06 | W52: 8.807587674e-07 | X52: 3.063091875e-07 | Y52: 1.19987869e-07 | Z52: 5.259522083e-08 | AA52: 2.572016243e-08 | AB52: 1.401882776e-08 | AC52: 8.518374893e-09 | AD52: 5.77487062e-09 | AE52: 4.371762698e-09 | AF52: 3.698450516e-09 | AG52: 3.497873422e-09
C53: 27.6 | D53: 159.1064658 | E53: 157.3332635 | F53: 155.5955123 | G53: 153.9131422 | H53: 152.3053931 | I53: 150.7905945 | J53: 149.3859573 | K53: 148.1073787 | L53: 146.9692623 | M53: 145.9843565 | N53: 145.1636121 | O53: 144.516061 | P53: 144.0487168 | Q53: 143.7664999 | R53: 143.6721858 | S53: 0.0004119394655 | T53: 7.145028025e-05 | U53: 1.666155843e-05 | V53: 4.713682358e-06 | W53: 1.548928365e-06 | X53: 5.776132163e-07 | Y53: 2.412964072e-07 | Z53: 1.121255302e-07 | AA53: 5.775093438e-08 | AB53: 3.292210814e-08 | AC53: 2.076748974e-08 | AD53: 1.450118498e-08 | AE53: 1.121474123e-08 | AF53: 9.610713333e-09 | AG53: 9.128789872e-09
C54: 28.8 | D54: 159.1943072 | E54: 157.5954247 | F54: 156.0285079 | G54: 154.5115276 | H54: 153.0618322 | I54: 151.6959493 | J54: 150.4293978 | K54: 149.276512 | L54: 148.2502798 | M54: 147.3621965 | N54: 146.6221362 | O54: 146.0382431 | P54: 145.6168415 | Q54: 145.3623681 | R54: 145.2773256 | S54: 0.0005169079322 | T54: 9.7341169e-05 | U54: 2.451977769e-05 | V54: 7.461700095e-06 | W54: 2.625800268e-06 | X54: 1.043629253e-06 | Y54: 4.622706411e-07 | Z54: 2.264983469e-07 | AA54: 1.222728978e-07 | AB54: 7.259143627e-08 | AC54: 4.736487593e-08 | AD54: 3.396649827e-08 | AE54: 2.67787866e-08 | AF54: 2.321684236e-08 | AG54: 2.213845172e-08
C55: 30 | D55: 159.2735129 | E55: 157.8318127 | F55: 156.4189356 | G55: 155.0510859 | H55: 153.7439062 | I55: 152.5122995 | J55: 151.370259 | K55: 150.33071 | L55: 149.4053635 | M55: 148.6045846 | N55: 147.9372772 | O55: 147.4107845 | P55: 147.0308094 | Q55: 146.8013523 | R55: 146.72467 | S55: 0.0006414421202 | T55: 0.0001304281675 | U55: 3.529090733e-05 | V55: 1.148677308e-05 | W55: 4.304671425e-06 | X55: 1.813617348e-06 | Y55: 8.474131874e-07 | Z55: 4.357147773e-07 | AA55: 2.454694051e-07 | AB55: 1.511913637e-07 | AC55: 1.017134218e-07 | AD55: 7.471983698e-08 | AE55: 5.994069377e-08 | AF55: 5.251568063e-08 | AG55: 5.02522018e-08
C56: 31.2 | D56: 159.344932 | E56: 158.0449617 | F56: 156.7709809 | G56: 155.5376009 | H56: 154.3589266 | I56: 153.2483958 | J56: 152.2186261 | K56: 151.2812722 | L56: 150.4468937 | M56: 149.724837 | N56: 149.1231304 | O56: 148.6483956 | P56: 148.3057746 | Q56: 148.0988747 | R56: 148.0297308 | S56: 0.0007878566005 | T56: 0.0001721094954 | U56: 4.976695771e-05 | V56: 1.723662734e-05 | W56: 6.844014707e-06 | X56: 3.041695309e-06 | Y56: 1.492311319e-06 | Z56: 8.017691882e-07 | AA56: 4.695683263e-07 | AB56: 2.99043599e-07 | AC56: 2.068374953e-07 | AD56: 1.552979719e-07 | AE56: 1.26555816e-07 | AF56: 1.119361648e-07 | AG56: 1.074516745e-07
C57: 32.4 | D57: 159.4093301 | E57: 158.2371564 | F57: 157.0884173 | G57: 155.9762876 | H57: 154.9134856 | I57: 153.912128 | J57: 152.9835922 | K57: 152.1383868 | L57: 151.3860337 | M57: 150.7349603 | N57: 150.1924058 | O57: 149.7643407 | P57: 149.4554018 | Q57: 149.2688416 | R57: 149.206495 | S57: 0.0009585648947 | T57: 0.0002239302628 | U57: 6.887429225e-05 | V57: 2.526435406e-05 | W57: 1.058011739e-05 | X57: 4.938345164e-06 | Y57: 2.53348405e-06 | Z57: 1.416868608e-06 | AA57: 8.596804574e-07 | AB57: 5.643786021e-07 | AC57: 4.003213632e-07 | AD57: 3.065842663e-07 | AE57: 2.534323867e-07 | AF57: 2.260928616e-07 | AG57: 2.176594291e-07
C58: 33.6 | D58: 159.4673972 | E58: 158.4104568 | F58: 157.3746472 | G58: 156.371848 | H58: 155.4135272 | I58: 154.5106104 | J58: 153.6733563 | K58: 152.9112408 | L58: 152.2328494 | M58: 151.6457812 | N58: 151.1565636 | O58: 150.7705804 | P58: 150.4920124 | Q58: 150.3237924 | R58: 150.2675749 | S58: 0.001156069276 | T58: 0.0002875800456 | U58: 9.36798695e-05 | V58: 3.623953753e-05 | W58: 1.593976207e-05 | X58: 7.782727213e-06 | Y58: 4.159497432e-06 | Z58: 2.413143479e-06 | AA58: 1.512200775e-06 | AB58: 1.020638946e-06 | AC58: 7.407522432e-07 | AD58: 5.776171949e-07 | AE58: 4.837085772e-07 | AF58: 4.349135893e-07 | AG58: 4.197850968e-07
C59: 34.8 | D59: 159.519756 | E59: 158.5667205 | F59: 157.6327386 | G59: 156.7285219 | H59: 155.864411 | I59: 155.0502574 | J59: 154.2953115 | K59: 153.6081175 | L59: 152.9964169 | M59: 152.4670617 | N59: 152.0259378 | O59: 151.6778995 | P59: 151.4267167 | Q59: 151.2750339 | R59: 151.224343 | S59: 0.001382950259 | T59: 0.0003648887294 | U59: 0.0001253954684 | V59: 5.09580247e-05 | W59: 2.345247754e-05 | X59: 1.193537252e-05 | Y59: 6.623027604e-06 | Z59: 3.973651884e-06 | AA59: 2.564683982e-06 | AB59: 1.775332265e-06 | AC59: 1.315728886e-06 | AD59: 1.042952628e-06 | AE59: 8.837638063e-07 | AF59: 8.002856672e-07 | AG59: 7.742843506e-07
C60: 36 | D60: 159.5669675 | E60: 158.7076224 | F60: 157.8654577 | G60: 157.050132 | H60: 156.2709695 | I60: 155.5368532 | J60: 154.856124 | K60: 154.2364861 | L60: 153.6849201 | M60: 153.2076044 | N60: 152.8098461 | O60: 152.4960225 | P60: 152.2695328 | Q60: 152.1327615 | R60: 152.0870539 | S60: 0.00164185591 | T60: 0.0004578208101 | U60: 0.0001653798522 | V60: 7.035003068e-05 | W60: 3.376191046e-05 | X60: 1.785078643e-05 | Y60: 1.025346571e-05 | Z60: 6.344366653e-06 | AA60: 4.206982348e-06 | AB60: 2.980308198e-06 | AC60: 2.251378674e-06 | AD60: 1.811573213e-06 | AE60: 1.55169144e-06 | AF60: 1.41426722e-06 | AG60: 1.371283375e-06
C61: 37.2 | D61: 159.6095377 | E61: 158.8346725 | F61: 158.0752987 | G61: 157.3401255 | H61: 156.6375604 | I61: 155.975613 | J61: 155.3618044 | K61: 154.8030815 | L61: 154.3057384 | M61: 153.8753463 | N61: 153.5166906 | O61: 153.2337181 | P61: 153.029494 | Q61: 152.9061683 | R61: 152.8649541 | S61: 0.001935491086 | T61: 0.0005684683517 | U61: 0.0002151389015 | V61: 9.548636091e-05 | W61: 4.763592061e-05 | X61: 2.608949421e-05 | Y61: 1.546960719e-05 | Z61: 9.846746438e-06 | AA61: 6.693323385e-06 | AB61: 4.843212599e-06 | AC61: 3.723201889e-06 | AD61: 3.037214591e-06 | AE61: 2.627238528e-06 | AF61: 2.408790327e-06 | AG61: 2.340202588e-06
C62: 38.4 | D62: 159.647923 | E62: 158.9492327 | F62: 158.2645109 | G62: 157.6016106 | H62: 156.9681127 | I62: 156.3712396 | J62: 155.8177728 | K62: 155.3139764 | L62: 154.8655258 | M62: 154.4774443 | N62: 154.1540471 | O62: 153.8988929 | P62: 153.7147454 | Q62: 153.6035436 | R62: 153.566381 | S62: 0.002266606715 | T62: 0.0006990428128 | U62: 0.0002763238097 | V62: 0.0001275826198 | W62: 6.597507521e-05 | X62: 3.732909154e-05 | Y62: 2.279195303e-05 | Z62: 1.489043674e-05 | AA62: 1.035492017e-05 | AB62: 7.639768342e-06 | AC62: 5.967946714e-06 | AD62: 4.929857428e-06 | AE62: 4.302995059e-06 | AF62: 3.966658812e-06 | AG62: 3.860689187e-06
C63: 39.6 | D63: 159.6825347 | E63: 159.0525308 | F63: 158.4351221 | G63: 157.8373897 | H63: 157.2661693 | I63: 156.7279732 | J63: 156.2289162 | K63: 155.7746466 | L63: 155.370282 | M63: 155.0203518 | N63: 154.7287468 | O63: 154.4986761 | P63: 154.3326317 | Q63: 154.2323618 | R63: 154.1988526 | S63: 0.002637989173 | T63: 0.0008518659479 | U63: 0.0003507274818 | V63: 0.0001680013602 | W63: 8.981930311e-05 | X63: 5.237392115e-05 | Y63: 3.285417074e-05 | Z63: 2.198562836e-05 | AA63: 1.561265621e-05 | AB63: 1.172645667e-05 | AC63: 9.29612629e-06 | AD63: 7.768031194e-06 | AE63: 6.836505709e-06 | AF63: 6.333530647e-06 | AG63: 6.174554281e-06
C64: 40.8 | D64: 159.7137439 | E64: 159.1456739 | F64: 158.588961 | G64: 158.0499901 | H64: 157.5349248 | I64: 157.0496372 | J64: 156.5996412 | K64: 156.1900296 | L64: 155.825417 | M64: 155.5098874 | N64: 155.2469494 | O64: 155.0394963 | P64: 154.8897753 | Q64: 154.7993626 | R64: 154.7691476 | S64: 0.003052449853 | T64: 0.001029359981 | U64: 0.000440279313 | V64: 0.0002182522026 | W64: 0.0001203525583 | X64: 7.216307404e-05 | Y64: 4.641331237e-05 | Z64: 3.17546178e-05 | AA64: 2.29893726e-05 | AB64: 1.755313301e-05 | AC64: 1.410472922e-05 | AD64: 1.19115015e-05 | AE64: 1.056289377e-05 | AF64: 9.830486524e-06 | AG64: 9.598320292e-06
C65: 42 | D65: 159.741885 | E65: 159.2296604 | F65: 158.7276764 | G65: 158.2416902 | H65: 157.7772596 | I65: 157.3396794 | J65: 156.9339212 | K65: 156.5645775 | L65: 156.2358089 | M65: 155.9512982 | N65: 155.7142088 | O65: 155.5271499 | P65: 155.3921475 | Q65: 155.3106231 | R65: 155.2833785 | S65: 0.003512814963 | T65: 0.001234037234 | U65: 0.0005470385466 | V65: 0.000279990016 | W65: 0.0001589054281 | X65: 9.777650033e-05 | Y65: 6.435845796e-05 | Z65: 4.494216087e-05 | AA65: 3.312130601e-05 | AB65: 2.567510766e-05 | AC65: 2.088965138e-05 | AD65: 1.781387413e-05 | AE65: 1.590753766e-05 | AF65: 1.48667308e-05 | AG65: 1.453592696e-05
C66: 43.2 | D66: 159.7672595 | E66: 159.3053904 | F66: 158.8527551 | G66: 158.4145449 | H66: 157.9957712 | I66: 157.6012082 | J66: 157.2353391 | K66: 156.9023045 | L66: 156.6058563 | M66: 156.349315 | N66: 156.1355333 | O66: 155.9668636 | P66: 155.845133 | Q66: 155.771623 | R66: 155.7470567 | S66: 0.004021915608 | T66: 0.001468489384 | U66: 0.0006731864171 | V66: 0.0003550113023 | W66: 0.0002069556991 | X66: 0.0001304391034 | Y66: 8.771753734e-05 | Z66: 6.242428057e-05 | AA66: 4.676827621e-05 | AB66: 3.676425214e-05 | AC66: 3.025738937e-05 | AD66: 2.603464672e-05 | AE66: 2.339832811e-05 | AF66: 2.195195237e-05 | AG66: 2.149112358e-05
C67: 44.4 | D67: 159.7901396 | E67: 159.3736755 | F67: 158.9655376 | G67: 158.5704067 | H67: 158.1928014 | I67: 157.8370269 | J67: 157.5071254 | K67: 157.2068305 | L67: 156.9395253 | M67: 156.7082039 | N67: 156.5154385 | O67: 156.3633503 | P67: 156.2535867 | Q67: 156.1873032 | R67: 156.165152 | S67: 0.004582578188 | T67: 0.001735376489 | U67: 0.0008210172912 | V67: 0.0004452489584 | W67: 0.0002661269597 | X67: 0.0001715227757 | Y67: 0.0001176621715 | Z67: 8.521527342e-05 | AA67: 6.482229309e-05 | AB67: 5.1618749e-05 | AC67: 4.293557905e-05 | AD67: 3.725027063e-05 | AE67: 3.367705617e-05 | AF67: 3.170788973e-05 | AG67: 3.107909002e-05
C68: 45.6 | D68: 159.8107704 | E68: 159.4352478 | F68: 159.0672328 | G68: 158.7109461 | H68: 158.3704622 | I68: 158.0496629 | J68: 157.7521931 | K68: 157.4814194 | L68: 157.2403922 | M68: 157.0318115 | N68: 156.8579963 | O68: 156.7208594 | P68: 156.6218864 | Q68: 156.5621191 | R68: 156.5421455 | S68: 0.005197615134 | T68: 0.002037415921 | U68: 0.0009929290082 | V68: 0.0005527656158 | W68: 0.0003381853692 | X68: 0.0002225464074 | Y68: 0.0001555104618 | Z68: 0.0001144727469 | AA68: 8.831433792e-05 | AB68: 7.117117943e-05 | AC68: 5.978202974e-05 | AD68: 5.226384334e-05 | AE68: 4.750953373e-05 | AF68: 4.487869142e-05 | AG68: 4.403687421e-05
C69: 46.8 | D69: 159.8293731 | E69: 159.4907671 | F69: 159.1589306 | G69: 158.8376695 | H69: 158.5306576 | I69: 158.2413953 | J69: 157.9731689 | K69: 157.7290142 | L69: 157.5116818 | M69: 157.323606 | N69: 157.1668781 | O69: 157.0432228 | P69: 156.9539795 | Q69: 156.9000878 | R69: 156.8820777 | S69: 0.005869816015 | T69: 0.002377371318 | U69: 0.001191412611 | V69: 0.0006797457653 | W69: 0.000425034764 | X69: 0.0002851739636 | Y69: 0.0002027277325 | Z69: 0.0001515006082 | AA69: 0.000118419162 | AB69: 9.649472934e-05 | AC69: 8.17919864e-05 | AD69: 7.201312883e-05 | AE69: 6.579412029e-05 | AF69: 6.233973229e-05 | AG69: 6.123230251e-05
C70: 48 | D70: 159.8461469 | E70: 159.5408284 | F70: 159.2416138 | G70: 158.951935 | H70: 158.6751047 | I70: 158.4142789 | J70: 158.1724211 | K70: 157.9522686 | L70: 157.7563016 | M70: 157.586715 | N70: 157.4453946 | O70: 157.3338955 | P70: 157.2534255 | Q70: 157.2048317 | R70: 157.1885922 | S70: 0.006601939024 | T70: 0.002758041641 | U70: 0.001419041646 | V70: 0.0008284868777 | W70: 0.0005287102938 | X70: 0.0003612107725 | Y70: 0.0002609253009 | Z70: 0.0001977500026 | AA70: 0.0001564580323 | AB70: 0.0001288073832 | AC70: 0.0001101034407 | AD70: 9.757668993e-05 | AE70: 8.956841467e-05 | AF70: 8.510462934e-05 | AG70: 8.367110148e-05
C71: 49.2 | D71: 159.8612718 | E71: 159.5859683 | F71: 159.3161687 | G71: 159.0549674 | H71: 158.8053515 | I71: 158.5701668 | J71: 158.3520854 | K71: 158.1535755 | L71: 157.9768734 | M71: 157.8239585 | N71: 157.6965309 | O71: 157.595993 | P71: 157.5234338 | Q71: 157.4796171 | R71: 157.464974 | S71: 0.007396702846 | T71: 0.003182250431 | U71: 0.001678461185 | V71: 0.001001389724 | W71: 0.0006513707955 | X71: 0.000452598201 | Y71: 0.000331857401 | Z71: 0.0002548182699 | AA71: 0.0002038994318 | AB71: 0.0001694740597 | AC71: 0.0001460003989 | AD71: 0.0001301780053 | AE71: 0.000120013959 | AF71: 0.0001143302895 | AG71: 0.0001125020589
C72: 50.4 | D72: 159.8749098 | E72: 159.6266706 | F72: 159.3833943 | G72: 159.147871 | H72: 158.9227942 | I72: 158.7107298 | J72: 158.5140874 | K72: 158.3350925 | L72: 158.1757615 | M72: 158.0378792 | N72: 157.9229787 | O72: 157.8323244 | P72: 157.7668983 | Q72: 157.7273891 | R72: 157.7141855 | S72: 0.008256778934 | T72: 0.003652835313 | U72: 0.001972376717 | V72: 0.001200948085 | W72: 0.0007952901153 | X72: 0.0005614069175 | Y72: 0.0004174164271 | Z72: 0.0003244460398 | AA72: 0.0002623577892 | AB72: 0.0002200067174 | AC72: 0.0001909140961 | AD72: 0.0001711875279 | AE72: 0.0001584588885 | AF72: 0.0001513199087 | AG72: 0.0001490201381
C73: 51.6 | D73: 159.8872071 | E73: 159.6633716 | F73: 159.4440111 | G73: 159.2316415 | H73: 159.0286914 | I73: 158.8374745 | J73: 158.6601635 | K73: 158.498765 | L73: 158.3550974 | M73: 158.23077 | N73: 158.127165 | O73: 158.0454227 | P73: 157.9864284 | Q73: 157.9508033 | R73: 157.9388977 | S73: 0.009184784173 | T73: 0.004172637808 | U73: 0.002303543018 | V73: 0.001429738034 | W73: 0.0009628475855 | X73: 0.000689828951 | Y73: 0.0005196266893 | Z73: 0.0004085126301 | AA73: 0.0003335903655 | AB73: 0.0002820625232 | AC73: 0.0002464222151 | AD73: 0.0002221227161 | AE73: 0.000206378538 | AF73: 0.0001975239208 | AG73: 0.0001946675405
C74: 52.8 | D74: 159.8982954 | E74: 159.6964646 | F74: 159.4986689 | G74: 159.3071767 | H74: 159.1241781 | I74: 158.9517592 | J74: 158.7918791 | K74: 158.6463474 | L74: 158.5168033 | M74: 158.4046982 | N74: 158.3112783 | O74: 158.2375719 | P74: 158.1843772 | Q74: 158.1522543 | R74: 158.1415191 | S74: 0.01018327395 | T74: 0.004744493496 | U74: 0.002674753113 | V74: 0.001690406936 | W74: 0.00115651785 | X74: 0.0008401687562 | Y74: 0.0006406368886 | Z74: 0.0005090299371 | AA74: 0.0004194924635 | AB74: 0.0003574402231 | AC74: 0.0003142462251 | AD74: 0.0002846461316 | AE74: 0.0002653940825 | AF74: 0.0002545389638 | AG74: 0.0002510327801
C75: 54 | D75: 159.9082937 | E75: 159.7263044 | F75: 159.5479534 | G75: 159.3752863 | H75: 159.2102777 | I75: 159.0548089 | J75: 158.9106462 | K75: 158.7794213 | L75: 158.6626124 | M75: 158.5615279 | N75: 158.477292 | O75: 158.4108314 | P75: 158.3628661 | Q75: 158.3339011 | R75: 158.3242213 | S75: 0.01125473564 | T75: 0.005371222544 | U75: 0.003088827409 | V75: 0.001985662324 | W75: 0.00137886022 | X75: 0.001014833488 | Y75: 0.0007827115206 | Z75: 0.0006281350254 | AA75: 0.0005220911551 | AB75: 0.0004480748916 | AC75: 0.0003962469996 | AD75: 0.0003605617463 | AE75: 0.0003372693416 | AF75: 0.0003241049841 | AG75: 0.0003198478879
C76: 55.2 | D76: 159.9173091 | E76: 159.7532106 | F76: 159.5923929 | G76: 159.4367002 | H76: 159.2879132 | I76: 159.1477281 | J76: 159.0177376 | K76: 158.899413 | L76: 158.7940873 | M76: 158.7029402 | N76: 158.6269852 | O76: 158.5670582 | P76: 158.5238083 | Q76: 158.4976908 | R76: 158.4889625 | S76: 0.01240158244 | T76: 0.006055620646 | U76: 0.003548603067 | V76: 0.002318260754 | W76: 0.001632507721 | X76: 0.001216322676 | Y76: 0.0009482214163 | Z76: 0.0007680816258 | AA76: 0.0006435377305 | AB76: 0.0005560312577 | AC76: 0.000494418899 | AD76: 0.0004518096344 | AE76: 0.0004239059166 | AF76: 0.0004081006429 | AG76: 0.0004029839086
C77: 56.4 | D77: 159.9254383 | E77: 159.7774718 | F77: 159.6324636 | G77: 159.4920767 | H77: 159.3579165 | I77: 159.2315126 | J77: 159.1143012 | K77: 159.0076087 | L77: 158.9126373 | M77: 158.8304506 | N77: 158.7619626 | O77: 158.7079268 | P77: 158.6689287 | Q77: 158.6453787 | R77: 158.6375085 | S77: 0.01362614766 | T77: 0.006800450358 | U77: 0.004056923679 | V77: 0.002690996754 | W77: 0.001920155978 | X77: 0.001447217479 | Y77: 0.001139633614 | Z77: 0.0009312307505 | AA77: 0.0007860990818 | AB77: 0.0006834958174 | AC77: 0.0006108825246 | AD77: 0.0005604592492 | AE77: 0.0005273368519 | AF77: 0.0005085372139 | AG77: 0.0005024448771
C78: 57.6 | D78: 159.9327682 | E78: 159.799348 | F78: 159.6685951 | G78: 159.5420092 | H78: 159.421038 | I78: 159.3070605 | J78: 159.2013718 | K78: 159.105168 | L78: 159.019533 | M78: 158.9454258 | N78: 158.8836707 | O78: 158.834947 | P78: 158.7997827 | Q78: 158.7785478 | R78: 158.7714514 | S78: 0.01493067936 | T78: 0.007608432874 | U78: 0.004616629274 | V78: 0.003106691941 | W78: 0.002244552061 | X78: 0.00171016967 | Y78: 0.001359500749 | Z78: 0.001120040622 | AA78: 0.0009521482271 | AB78: 0.0008327679405 | AC78: 0.0007478763519 | AD78: 0.0006887014936 | AE78: 0.0006497190313 | AF78: 0.0006275511786 | AG78: 0.0006203604818
C79: 58.8 | D79: 159.9393776 | E79: 159.8190735 | F79: 159.7011746 | G79: 159.5870331 | H79: 159.4779542 | I79: 159.3751815 | J79: 159.2798828 | K79: 159.1931365 | L79: 159.11592 | M79: 159.0490982 | N79: 158.993414 | O79: 158.9494802 | P79: 158.9177728 | Q79: 158.8986255 | R79: 158.8922266 | S79: 0.01631733541 | T79: 0.008482240218 | U79: 0.005230546714 | V79: 0.003568184391 | W79: 0.0026084834 | X79: 0.002007890495 | Y79: 0.001610450114 | Z79: 0.001337056099 | AA79: 0.001144154171 | AB79: 0.001006250178 | AC79: 0.0009077474536 | AD79: 0.0008388397942 | AE79: 0.0007933245165 | AF79: 0.0007673957296 | AG79: 0.0007589776228
